Workbook

Sheet HFB_
A1: Tel. +49 (0)711 8201-0 | N1: =IF($AG$9=2,"Email:","") ->  | O1: =IF($AG$9=2,"info@LTG-INC.net:","") ->  | Q1: =IF($AG$9=1,"Email:","") -> Email: | R1: =IF($AG$9=1,"Info@LTG.de","") -> Info@LTG.de | W1: t_WWS = | X1: t_WWVL = | Y1: wK= | Z1: wC= | AA1: t_Raum = | AB1: t_Room = | AG1: Metric-Unit | AI1: 1 | AJ1: Deutsch | AL1: =VLOOKUP(AM1,AI1:AJ4,2,0) -> Deutsch | AM1: 1 | AO1: Überschrift wird bei Einstellung der Unit in Anzeigetabelle kopiert | AQ1: VP [m³/h] | AR1: dp - kühlen [Pa] | AS1: dp - heizen [Pa] | AT1: dp - Akustik [Pa] | AU1: dp [Pa] | AV1: LWA [dB(A)] | AW1: LA18 [dB(A)] | AX1: QPK [W] | AY1: QSK1) [W] | AZ1: QKges1) [W] | BA1: QTotal2) [W] | BB1: QSK2) [W] | BC1: QKges2) [W] | BD1: QPH [W] | BE1: QSH [W] | BF1: QHges [W] | BG1: tKWRL [°C] | BH1: tKWRL2) [°C] | BI1: tWWRL [°C] | BK1: qSK1) [W]
A2: =L_LTG -> LTG Aktiengesellschaft | X2: Ansaugtemperatur und Kühlwasservorlauf werden auf 0 stellen nach dem Komma gerundet. --> Für die kondensierende Auslegung notwendig | AG2: US-Unit | AI2: 2 | AJ2: Englisch | AQ2: VP [cfm] | AR2: dp - kühlen [in] | AS2: dp - heizen [in] | AT2: dp - Akustik [in] | AU2: dp [in] | AV2: LWA [dB(A)] | AW2: LA18 [dB(A)] | AX2: QPC [BTU/h] | AY2: QSC1) [BTU/h] | AZ2: QCtot1) [BTU/h] | BA2: Qtot2) [BTU/h] | BB2: QSC2) [BTU/h] | BC2: QCtot2) [BTU/h] | BD2: QPH [BTU/h] | BE2: QSH [BTU/h] | BF2: QHtot [BTU/h] | BG2: tCWR [°F] | BH2: tCWR2) [°F] | BI2: tWWR [°F] | BK2: qSC1) [BTU/h] | BO2: Parameter als Zwischenspeicher | BS2: Umgerechnete Parameter
A3: =L_Auslegetool -> Auslegetool: HFB 4L - Induktionsgerät mit Aluminiumlineargitter | AI3: 3 | AJ3: Franzoesisch
X4: Parameter werden hier immer in metric-Unit angezeigt und nach Worksheet "HFB" übergeben | AI4: 4 | AJ4: Italienisch | BA4: =CONCATENATE("STARTWERTE Umrechnung in ", AH9) -> STARTWERTE Umrechnung in Metric-Unit
I5: =L_Kuehlfall -> Kühlfall: | N5: =L_Heizfall -> Heizfall | X5: Kühlfall: | AB5: Heizfall: | BA5: Kühlfall: | BE5: Grenzwerte Auslegung: | BF5: Heizfall: | BJ5: Grenzwerte Auslegung:
A6: =L_Projekt -> Projekt: | J6: =L_Ansaugtemperatur_K -> Ansaugtemperatur: | K6: 26 | L6: =IF($AG$9=2,"°F","°C") -> °C | O6: =J6 -> Ansaugtemperatur: | P6: 20 | Q6: =IF($AG$9=2,"°F","°C") -> °C | Y6: Ansaugtemperatur (gerundet): | Z6: =IF($AG$9=1,K6,ROUND(US_to_Metric__Temp__degF__to__GradC(K6),0)) -> 26 | AA6: °C | AC6: =L_Ansaugtemperatur_K -> Ansaugtemperatur: | AD6: =IF($AG$9=1,P6,US_to_Metric__Temp__degF__to__GradC(P6)) -> 20 | AE6: °C | AZ6: ganze Zahlen | BB6: Ansaugtemperatur: | BC6: =IF($AG$9=1,BC21,Metric_to_US__Temp__GradC__to__degF(BC21)) -> 26 | BD6: =IF($AG$9=1,BD21,"°F") -> °C | BE6: =IF($AG$9=1,BE21,Metric_to_US__Temp__GradC__to__degF(BE21)) -> 20 | BF6: =IF($AG$9=1,BF21,Metric_to_US__Temp__GradC__to__degF(BF21)) -> 32 | BG6: =L_Ansaugtemperatur_K -> Ansaugtemperatur: | BH6: =IF($AG$9=1,BH21,Metric_to_US__Temp__GradC__to__degF(BH21)) -> 20 | BI6: =IF($AG$9=1,BI21,"°F") -> °C | BO6: 78.8 | BP6: =IF($AG$9=1,"deg F","°C") -> deg F | BQ6: 68 | BR6: =IF($AG$9=1,"deg F","°C") -> deg F | BS6: =IF($AG$9=2,Metric_to_US__Temp__GradC__to__degF(BO6),ROUND(US_to_Metric__Temp__degF__to__GradC(BO6),0)) ->  | BT6: =IF($AG$9=2,"°F","°C") -> °C | BU6: =IF($AG$9=2,Metric_to_US__Temp__GradC__to__degF(BQ6),ROUND(US_to_Metric__Temp__degF__to__GradC(BQ6),0)) ->  | BV6: =IF($AG$9=2,"°F","°C") -> °C
J7: =L_Primaerlufttemp_K -> Primärlufttemperatur: | K7: 18 | L7: =IF($AG$9=2,"°F","°C") -> °C | O7: =J7 -> Primärlufttemperatur: | P7: 18 | Q7: =IF($AG$9=2,"°F","°C") -> °C | Y7: Primärlufttemperatur: | Z7: =IF($AG$9=1,K7,US_to_Metric__Temp__degF__to__GradC(K7)) -> 18 | AA7: °C | AC7: =L_Primaerlufttemp_K -> Primärlufttemperatur: | AD7: =IF($AG$9=1,P7,US_to_Metric__Temp__degF__to__GradC(P7)) -> 18 | AE7: °C | AG7: 1 | AH7: Metric-Unit | BB7: Primärlufttemperatur: | BC7: =IF($AG$9=1,BC22,Metric_to_US__Temp__GradC__to__degF(BC22)) -> 18 | BD7: =IF($AG$9=1,BD22,"°F") -> °C | BE7: =IF($AG$9=1,BE22,Metric_to_US__Temp__GradC__to__degF(BE22)) -> 12 | BF7: =IF($AG$9=1,BF22,Metric_to_US__Temp__GradC__to__degF(BF22)) -> 32 | BG7: =L_Primaerlufttemp_K -> Primärlufttemperatur: | BH7: =IF($AG$9=1,BH22,Metric_to_US__Temp__GradC__to__degF(BH22)) -> 18 | BI7: =IF($AG$9=1,BI22,"°F") -> °C | BJ7: =ROUNDDOWN(IF($AG$9=1,BJ22,Metric_to_US__Temp__GradC__to__degF(BJ22)),1) -> 12 | BK7: =ROUNDUP(IF($AG$9=1,BK22,Metric_to_US__Temp__GradC__to__degF(BK22)),1) -> 32 | BO7: 64.4 | BP7: =IF($AG$9=1,"deg F","°C") -> deg F | BQ7: 64.4 | BR7: =IF($AG$9=1,"deg F","°C") -> deg F | BS7: =IF($AG$9=2,Metric_to_US__Temp__GradC__to__degF(BO7),ROUND(US_to_Metric__Temp__degF__to__GradC(BO7),0)) ->  | BT7: =IF($AG$9=2,"°F","°C") -> °C | BU7: =IF($AG$9=2,Metric_to_US__Temp__GradC__to__degF(BQ7),ROUND(US_to_Metric__Temp__degF__to__GradC(BQ7),0)) ->  | BV7: =IF($AG$9=2,"°F","°C") -> °C
A8: =L_Date -> Datum: | B8: =TODAY() -> 2026-06-23 | J8: =L_Kuehlwasservorlauf -> Kühlwasservorlauf (1): | K8: 16 | L8: =IF($AG$9=2,"°F","°C") -> °C | O8: =J8 -> Kühlwasservorlauf (1): | P8: 60 | Q8: =IF($AG$9=2,"°F","°C") -> °C | Y8: Kühlwasservorlauf¹: | Z8: =IF($AG$9=1,K8,US_to_Metric__Temp__degF__to__GradC(K8)) -> 16 | AA8: °C | AC8: Heizwasservorlauf: | AD8: =IF($AG$9=1,P8,US_to_Metric__Temp__degF__to__GradC(P8)) -> 60 | AE8: °C | AG8: 2 | AH8: US-Unit | BB8: Kühlwasservorlauf¹: | BC8: =IF($AG$9=1,BC23,Metric_to_US__Temp__GradC__to__degF(BC23)) -> 16 | BD8: =IF($AG$9=1,BD23,"°F") -> °C | BE8: =IF($AG$9=1,BE23,Metric_to_US__Temp__GradC__to__degF(BE23)) -> 16 | BF8: =IF($AG$9=1,BF23,Metric_to_US__Temp__GradC__to__degF(BF23)) -> 32 | BG8: Heizwasservorlauf: | BH8: =IF($AG$9=1,BH23,Metric_to_US__Temp__GradC__to__degF(BH23)) -> 55 | BI8: =IF($AG$9=1,BI23,"°F") -> °C | BO8: 60.8 | BP8: =IF($AG$9=1,"deg F","°C") -> deg F | BQ8: 131 | BR8: =IF($AG$9=1,"deg F","°C") -> deg F | BS8: =IF($AG$9=2,Metric_to_US__Temp__GradC__to__degF(BO8),ROUND(US_to_Metric__Temp__degF__to__GradC(BO8),0)) ->  | BT8: =IF($AG$9=2,"°F","°C") -> °C | BU8: =IF($AG$9=2,Metric_to_US__Temp__GradC__to__degF(BQ8),ROUND(US_to_Metric__Temp__degF__to__GradC(BQ8),0)) ->  | BV8: =IF($AG$9=2,"°F","°C") -> °C
A9: =L_Bearbeiter -> Bearbeiter: | J9: =L_projektierte_Leistung_k -> projektierte Leistung: | K9: 0 | L9: =IF($AG$9=2,"BTU/h","°W") -> °W | O9: =J9 -> projektierte Leistung: | Q9: =IF($AG$9=2,"BTU/h","°W") -> °W | Z9: =IF($AG$9=1,K9,US_to_Metric__Leistung__BTU_hr__to__W(K9)) -> 0 | AA9: W | AD9: =IF($AG$9=1,P9,US_to_Metric__Leistung__BTU_hr__to__W(P9)) -> 0 | AE9: W | AG9: 1 | AH9: =VLOOKUP(Para_US_METRIC,AG7:AH8,2,0) -> Metric-Unit | BB9: projektierte Leistung: | BC9: =IF($AG$9=1,BC24,Metric_to_US__Leistung__W__to__BTU_hr(BC24)) -> -900 | BD9: =IF($AG$9=1,BD24,"BTU/h") -> W | BG9: =L_projektierte_Leistung_k -> projektierte Leistung: | BH9: =IF($AG$9=1,BH24,Metric_to_US__Leistung__W__to__BTU_hr(BH24)) -> 900 | BI9: =IF($AG$9=1,BI24,"BTU/h") -> W | BO9: -3070.62436 | BP9: =IF($AG$9=1,"BTU/hr","°W") -> BTU/hr | BQ9: 3070.62436 | BR9: =IF($AG$9=1,"BTU/hr","°W") -> BTU/hr | BS9: =IF($AG$9=2,Metric_to_US__Leistung__W__to__BTU_hr(BO9),ROUND(US_to_Metric__Leistung__BTU_hr__to__W(BO9),0)) ->  | BT9: =IF($AG$9=2,"BTU/h","°W") -> °W | BU9: =IF($AG$9=2,Metric_to_US__Leistung__W__to__BTU_hr(BQ9),ROUND(US_to_Metric__Leistung__BTU_hr__to__W(BQ9),0)) ->  | BV9: =IF($AG$9=2,"BTU/h","°W") -> °W | BX9: =US_to_Metric__Leistung__BTU_hr__to__W(BS9) ->  | BZ9: =US_to_Metric__Leistung__BTU_hr__to__W(BU9) -> 
J10: =L_Raumtemperatur_K -> Raumtemperatur | K10: 26 | L10: =IF($AG$9=2,"°F","°C") -> °C | O10: =J10 -> Raumtemperatur | P10: 20 | Q10: =IF($AG$9=2,"°F","°C") -> °C | Y10: Raumtemperatur | Z10: =IF($AG$9=1,K10,US_to_Metric__Temp__degF__to__GradC(K10)) -> 26 | AA10: °C | AC10: =L_Raumtemperatur_K -> Raumtemperatur | AD10: =IF($AG$9=1,P10,US_to_Metric__Temp__degF__to__GradC(P10)) -> 20 | AE10: °C | BB10: Raumtemperatur | BC10: =IF($AG$9=1,BC25,Metric_to_US__Temp__GradC__to__degF(BC25)) -> 26 | BD10: =IF($AG$9=1,BD25,"°F") -> °C | BG10: =L_Raumtemperatur_K -> Raumtemperatur | BH10: =IF($AG$9=1,BH25,Metric_to_US__Temp__GradC__to__degF(BH25)) -> 20 | BI10: =IF($AG$9=1,BI25,"°F") -> °C | BO10: 78.8 | BP10: =IF($AG$9=1,"deg F","°C") -> deg F | BQ10: 68 | BR10: =IF($AG$9=1,"deg F","°C") -> deg F | BS10: =IF($AG$9=2,Metric_to_US__Temp__GradC__to__degF(BO10),ROUND(US_to_Metric__Temp__degF__to__GradC(BO10),0)) ->  | BT10: =IF($AG$9=2,"°F","°C") -> °C | BU10: =IF($AG$9=2,Metric_to_US__Temp__GradC__to__degF(BQ10),ROUND(US_to_Metric__Temp__degF__to__GradC(BQ10),0)) ->  | BV10: =IF($AG$9=2,"°F","°C") -> °C
I12: =L_Kuehlwasservorlauf_kon -> Kühlwasservorlauf kondensierender Betrieb (2): | J12: =L_Kuehlfall -> Kühlfall: | K12: 6 | L12: =IF($AG$9=2,"°F","°C") -> °C | X12: Kühlwasservorlauf (gerundet) kondensierender Betrieb²: | Z12: =IF($AG$9=1,K12,ROUND(US_to_Metric__Temp__degF__to__GradC(K12),0)) -> 6 | AA12: °C | AZ12: ganze Zahlen | BA12: Kühlwasservorlauf kondensierender Betrieb²: | BC12: =IF($AG$9=1,BC27,Metric_to_US__Temp__GradC__to__degF(BC27)) -> 6 | BD12: =IF($AG$9=1,BD27,"°F") -> °C | BE12: =IF($AG$9=1,BE27,Metric_to_US__Temp__GradC__to__degF(BE27)) -> 3 | BF12: =IF($AG$9=1,BF27,Metric_to_US__Temp__GradC__to__degF(BF27)) -> 18 | BO12: 42.8 | BP12: =IF($AG$9=1,"deg F","°C") -> deg F | BS12: =IF($AG$9=2,Metric_to_US__Temp__GradC__to__degF(BO12),ROUND(US_to_Metric__Temp__degF__to__GradC(BO12),0)) ->  | BT12: =IF($AG$9=2,"deg F","°C") -> °C
B13: 1 | J13: =L_rF_kon -> relative Feuchte (2): | K13: 50 | L13: % | Y13: relative Feuchte²: | Z13: =IF($AG$9=1,K13,US_to_Metric__Temp__degF__to__GradC(K13)) -> 50 | AA13: % | BB13: relative Feuchte²: | BC13: 50 | BD13: % | BE13: =BE28 -> 1 | BF13: =BF28 -> 99 | BG13: =BG28 -> wK= | BH13: =IF($AG$9=1,BH28,Metric_to_US__Wassermassenstrom__kg_h__to__gpm(BH28)) -> 200 | BI13: =IF($AG$9=1,BI28,"gpm") -> [kg/h] | BJ13: =ROUNDDOWN(IF($AG$9=1,BJ28,Metric_to_US__Wassermassenstrom__kg_h__to__gpm(BJ28)),3) -> 80 | BK13: =ROUNDUP(IF($AG$9=1,BK28,Metric_to_US__Wassermassenstrom__kg_h__to__gpm(BK28)),3) -> 300 | BO13: 50 | BP13: % | BS13: =BO13 -> 50 | BT13: %
BB14: =L_Primärvolumenstrom -> Primärvolumenstrom | BC14: =IF($AG$9=1,BC29,Metric_to_US__Volumenstrom__m3_h__to__cfm(BC29)) -> 50 | BD14: =IF($AG$9=1,BD29,"cfm") -> m³/h | BG14: =BG29 -> wH= | BH14: =IF($AG$9=1,BH29,Metric_to_US__Wassermassenstrom__kg_h__to__gpm(BH29)) -> 100 | BI14: =IF($AG$9=1,BI29,"gpm") -> [kg/h] | BJ14: =ROUNDDOWN(IF($AG$9=1,BJ29,Metric_to_US__Wassermassenstrom__kg_h__to__gpm(BJ29)),3) -> 40 | BK14: =ROUNDUP(IF($AG$9=1,BK29,Metric_to_US__Wassermassenstrom__kg_h__to__gpm(BK29)),3) -> 250
A15: =L_BG630 -> Baugröße 630 | BB15: =L_Primärvolumenstrom -> Primärvolumenstrom | BC15: =IF($AG$9=1,BC30,Metric_to_US__Volumenstrom__m3_h__to__cfm(BC30)) -> 70 | BD15: =IF($AG$9=1,BD30,"cfm") -> m³/h | BO15: Volumenstrom | BS15: Volumenstrom
B16: =L_Primärvolumenstrom -> Primärvolumenstrom | F16: 60 | G16: =IF($AG$9=2,"cfm","m³/h") -> m³/h | Y16: =B16 -> Primärvolumenstrom | Z16: =IF($AG$9=1,F16,US_to_Metric__Volumenstrom__cfm__to__m3_h(F16)) -> 60 | AA16: m³/h | BB16: =L_Primärvolumenstrom -> Primärvolumenstrom | BC16: =IF($AG$9=1,BC31,Metric_to_US__Volumenstrom__m3_h__to__cfm(BC31)) -> 80 | BD16: =IF($AG$9=1,BD31,"cfm") -> m³/h | BO16: 29.41176471 | BP16: =IF($AG$9=1,"cfm","m³/h") -> cfm | BS16: =IF($AG$9=2,Metric_to_US__Volumenstrom__m3_h__to__cfm(BO16),ROUND(US_to_Metric__Volumenstrom__cfm__to__m3_h(BO16),0)) ->  | BT16: =IF($AG$9=2,"cfm","m³/h") -> m³/h
Z17: Ergebenis aus "HFB" immer in metric-Unit | BO17: 41.17647059 | BP17: =IF($AG$9=1,"cfm","m³/h") -> cfm | BS17: =IF($AG$9=2,Metric_to_US__Volumenstrom__m3_h__to__cfm(BO17),ROUND(US_to_Metric__Volumenstrom__cfm__to__m3_h(BO17),0)) ->  | BT17: =IF($AG$9=2,"cfm","m³/h") -> m³/h
A18: =L_Düsenkasten -> Düsen-kasten | B18: VP [m³/h] | C18: dp - kühlen [Pa] | D18: dp - heizen [Pa] | E18: dp - Akustik [Pa] | F18: dp [Pa] | G18: LWA [dB(A)] | H18: LA18 [dB(A)] | I18: QPK [W] | J18: QSK1) [W] | K18: QKges1) [W] | L18: QTotal2) [W] | M18: QSK2) [W] | N18: QKges2) [W] | O18: QPH [W] | P18: QSH [W] | Q18: QHges [W] | R18: tKWRL [°C] | S18: tKWRL2) [°C] | T18: tWWRL [°C] | V18: qSK1) [W] | Z18: =L_Düsenkasten -> Düsen-kasten | AA18: VP [cfm] | AB18: dp - kühlen [in] | AC18: dp - heizen [in] | AD18: dp - Akustik [in] | AE18: dp [in] | AF18: LWA [dB(A)] | AG18: LA18 [dB(A)] | AH18: QPK [W] | AI18: QSK1) [W] | AJ18: QKges1) [W] | AK18: QTotal2) [W] | AL18: QSK2) [W] | AM18: QKges2) [W] | AN18: QPH [W] | AO18: QSH [W] | AP18: QHges [W] | AQ18: tKWRL [°C] | AR18: tKWRL2) [°C] | AS18: tWWRL [°C] | AU18: qSK1) [W] | BO18: 47.05882353 | BP18: =IF($AG$9=1,"cfm","m³/h") -> cfm | BS18: =IF($AG$9=2,Metric_to_US__Volumenstrom__m3_h__to__cfm(BO18),ROUND(US_to_Metric__Volumenstrom__cfm__to__m3_h(BO18),0)) ->  | BT18: =IF($AG$9=2,"cfm","m³/h") -> m³/h
BA19: STARTWERTE Metric-Unit. Wird geladen, wenn Unit ausgesucht wird | BO19: Wassermassenstrom | BS19: Wassermassenstrom
A20: =Z20 -> S | B20: =IFERROR(IF($AG$9=1,AA20,Metric_to_US__Volumenstrom__m3_h__to__cfm(AA20)),"") ->  | C20: =IF($AG$9=1,AB20,Metric_to_US__Druck_Luft__Pa__to__in(AB20)) -> 412.4171589 | D20: =IF($AG$9=1,AC20,Metric_to_US__Druck_Luft__Pa__to__in(AC20)) -> 409.2155443 | E20: =IF($AG$9=1,AD20,Metric_to_US__Druck_Luft__Pa__to__in(AD20)) -> 426.2051252 | F20: =IF($AG$9=1,AE20,Metric_to_US__Druck_Luft__Pa__to__in(AE20)) -> 426.2051252 | G20: =AF20 -> 44.73391793 | H20: =AG20 -> 38.23391793 | I20: =IFERROR(IF($AG$9=1,AH20,Metric_to_US__Leistung__W__to__BTU_hr(AH20)),"") ->  | J20: =IFERROR(IF($AG$9=1,AI20,Metric_to_US__Leistung__W__to__BTU_hr(AI20)),"") ->  | K20: =IFERROR(IF($AG$9=1,AJ20,Metric_to_US__Leistung__W__to__BTU_hr(AJ20)),"") ->  | L20: =IFERROR(IF($AG$9=1,AK20,Metric_to_US__Leistung__W__to__BTU_hr(AK20)),"") ->  | M20: =IFERROR(IF($AG$9=1,AL20,Metric_to_US__Leistung__W__to__BTU_hr(AL20)),"") ->  | N20: =IFERROR(IF($AG$9=1,AM20,Metric_to_US__Leistung__W__to__BTU_hr(AM20)),"") ->  | O20: =IFERROR(IF($AG$9=1,AN20,Metric_to_US__Leistung__W__to__BTU_hr(AN20)),"") ->  | P20: =IFERROR(IF($AG$9=1,AO20,Metric_to_US__Leistung__W__to__BTU_hr(AO20)),"") ->  | Q20: =IF(IF($AG$9=1,AP20,Metric_to_US__Leistung__W__to__BTU_hr(AP20))=0,"",IF($AG$9=1,AP20,Metric_to_US__Leistung__W__to__BTU_hr(AP20))) ->  | R20: =IFERROR(IF($AG$9=1,AQ20,Metric_to_US__Temp__GradC__to__degF(AQ20)),"") ->  | S20: =IFERROR(IF($AG$9=1,AR20,Metric_to_US__Temp__GradC__to__degF(AR20)),"") ->  | T20: =IFERROR(IF($AG$9=1,AS20,Metric_to_US__Temp__GradC__to__degF(AS20)),"") ->  | V20: =IFERROR(J20/($K$6-$K$8),"") ->  | Z20: =HFB!A20 -> S | AA20: =HFB!B20 ->  | AB20: =HFB!C20 -> 412.4171589 | AC20: =HFB!D20 -> 409.2155443 | AD20: =HFB!E20 -> 426.2051252 | AE20: =HFB!F20 -> 426.2051252 | AF20: =HFB!G20 -> 44.73391793 | AG20: =HFB!H20 -> 38.23391793 | AH20: =HFB!I20 ->  | AI20: =HFB!J20 ->  | AJ20: =HFB!K20 ->  | AK20: =HFB!L20 ->  | AL20: =HFB!M20 ->  | AM20: =HFB!N20 ->  | AN20: =HFB!O20 ->  | AO20: =HFB!P20 ->  | AP20: =HFB!Q20 -> 0 | AQ20: =HFB!R20 ->  | AR20: =HFB!S20 ->  | AS20: =HFB!T20 ->  | AU20: =HFB!V20 ->  | BA20: Kühlfall: | BE20: Grenzwerte Auslegung: | BG20: Heizfall: | BJ20: Grenzwerte Auslegung: | BO20: 0.8807080893 | BP20: =IF($AG$9=2,"kg/h","gpm") -> gpm | BS20: =IF($AG$9=2,Metric_to_US__Wassermassenstrom__kg_h__to__gpm(BO20),ROUND(US_to_Metric__Wassermassenstrom__gpm__to__kg_h(BO20),0)) ->  | BT20: =IF($AG$9=1,"kg/h","gpm") -> kg/h
A21: =Z21 -> M | B21: =IFERROR(IF($AG$9=1,AA21,Metric_to_US__Volumenstrom__m3_h__to__cfm(AA21)),"") -> 60 | C21: =IF($AG$9=1,AB21,Metric_to_US__Druck_Luft__Pa__to__in(AB21)) -> 257.8778423 | D21: =IF($AG$9=1,AC21,Metric_to_US__Druck_Luft__Pa__to__in(AC21)) -> 256.0969636 | E21: =IF($AG$9=1,AD21,Metric_to_US__Druck_Luft__Pa__to__in(AD21)) -> 265.3120644 | F21: =IF($AG$9=1,AE21,Metric_to_US__Druck_Luft__Pa__to__in(AE21)) -> 265.3120644 | G21: =AF21 -> 39.68474355 | H21: 33.18474355 | I21: =IFERROR(IF($AG$9=1,AH21,Metric_to_US__Leistung__W__to__BTU_hr(AH21)),"") -> -160 | J21: =IFERROR(IF($AG$9=1,AI21,Metric_to_US__Leistung__W__to__BTU_hr(AI21)),"") -> -340.6980653 | K21: =IFERROR(IF($AG$9=1,AJ21,Metric_to_US__Leistung__W__to__BTU_hr(AJ21)),"") -> -500.6980653 | L21: =IFERROR(IF($AG$9=1,AK21,Metric_to_US__Leistung__W__to__BTU_hr(AK21)),"") -> -966.1092402 | M21: =IFERROR(IF($AG$9=1,AL21,Metric_to_US__Leistung__W__to__BTU_hr(AL21)),"") -> -633.7140647 | N21: =IFERROR(IF($AG$9=1,AM21,Metric_to_US__Leistung__W__to__BTU_hr(AM21)),"") -> -793.7140647 | O21: =IFERROR(IF($AG$9=1,AN21,Metric_to_US__Leistung__W__to__BTU_hr(AN21)),"") -> -40 | P21: =IFERROR(IF($AG$9=1,AO21,Metric_to_US__Leistung__W__to__BTU_hr(AO21)),"") -> 957.8331414 | Q21: =IF(IF($AG$9=1,AP21,Metric_to_US__Leistung__W__to__BTU_hr(AP21))=0,"",IF($AG$9=1,AP21,Metric_to_US__Leistung__W__to__BTU_hr(AP21))) -> 917.8331414 | R21: =IFERROR(IF($AG$9=1,AQ21,Metric_to_US__Temp__GradC__to__degF(AQ21)),"") -> 17.46013457 | S21: =IFERROR(IF($AG$9=1,AR21,Metric_to_US__Temp__GradC__to__degF(AR21)),"") -> 8.71591742 | T21: =IFERROR(IF($AG$9=1,AS21,Metric_to_US__Temp__GradC__to__degF(AS21)),"") -> 51.79000165 | V21: =IFERROR(J21/($K$6-$K$8),"") -> -34.06980653 | Z21: =HFB!A21 -> M | AA21: =HFB!B21 -> 60 | AB21: =HFB!C21 -> 257.8778423 | AC21: =HFB!D21 -> 256.0969636 | AD21: =HFB!E21 -> 265.3120644 | AE21: =HFB!F21 -> 265.3120644 | AF21: =HFB!G21 -> 39.68474355 | AG21: =HFB!H21 -> 33.18474355 | AH21: =HFB!I21 -> -160 | AI21: =HFB!J21 -> -340.6980653 | AJ21: =HFB!K21 -> -500.6980653 | AK21: =HFB!L21 -> -966.1092402 | AL21: =HFB!M21 -> -633.7140647 | AM21: =HFB!N21 -> -793.7140647 | AN21: =HFB!O21 -> -40 | AO21: =HFB!P21 -> 957.8331414 | AP21: =HFB!Q21 -> 917.8331414 | AQ21: =HFB!R21 -> 17.46013457 | AR21: =HFB!S21 -> 8.71591742 | AS21: =HFB!T21 -> 51.79000165 | AU21: =HFB!V21 -> -34.06980653 | BB21: Ansaugtemperatur: | BC21: 26 | BD21: °C | BE21: 20 | BF21: 32 | BG21: =L_Ansaugtemperatur_K -> Ansaugtemperatur: | BH21: 20 | BI21: °C | BO21: 0.4403540447 | BP21: =IF($AG$9=2,"kg/h","gpm") -> gpm | BS21: =IF($AG$9=2,Metric_to_US__Wassermassenstrom__kg_h__to__gpm(BO21),ROUND(US_to_Metric__Wassermassenstrom__gpm__to__kg_h(BO21),0)) ->  | BT21: =IF($AG$9=1,"kg/h","gpm") -> kg/h
A22: =Z22 -> L | B22: =IFERROR(IF($AG$9=1,AA22,Metric_to_US__Volumenstrom__m3_h__to__cfm(AA22)),"") -> 60 | C22: =IF($AG$9=1,AB22,Metric_to_US__Druck_Luft__Pa__to__in(AB22)) -> 165.8662915 | D22: =IF($AG$9=1,AC22,Metric_to_US__Druck_Luft__Pa__to__in(AC22)) -> 164.8545673 | E22: =IF($AG$9=1,AD22,Metric_to_US__Druck_Luft__Pa__to__in(AD22)) -> 169.9334101 | F22: =IF($AG$9=1,AE22,Metric_to_US__Druck_Luft__Pa__to__in(AE22)) -> 169.9334101 | G22: 34.93929819 | H22: 28.43929819 | I22: =IFERROR(IF($AG$9=1,AH22,Metric_to_US__Leistung__W__to__BTU_hr(AH22)),"") -> -160 | J22: =IFERROR(IF($AG$9=1,AI22,Metric_to_US__Leistung__W__to__BTU_hr(AI22)),"") -> -288.1212349 | K22: =IFERROR(IF($AG$9=1,AJ22,Metric_to_US__Leistung__W__to__BTU_hr(AJ22)),"") -> -448.1212349 | L22: =IFERROR(IF($AG$9=1,AK22,Metric_to_US__Leistung__W__to__BTU_hr(AK22)),"") -> -840.803545 | M22: =IFERROR(IF($AG$9=1,AL22,Metric_to_US__Leistung__W__to__BTU_hr(AL22)),"") -> -543.0550897 | N22: =IFERROR(IF($AG$9=1,AM22,Metric_to_US__Leistung__W__to__BTU_hr(AM22)),"") -> -703.0550897 | O22: =IFERROR(IF($AG$9=1,AN22,Metric_to_US__Leistung__W__to__BTU_hr(AN22)),"") -> -40 | P22: =IFERROR(IF($AG$9=1,AO22,Metric_to_US__Leistung__W__to__BTU_hr(AO22)),"") -> 869.8474469 | Q22: =IF(IF($AG$9=1,AP22,Metric_to_US__Leistung__W__to__BTU_hr(AP22))=0,"",IF($AG$9=1,AP22,Metric_to_US__Leistung__W__to__BTU_hr(AP22))) -> 829.8474469 | R22: =IFERROR(IF($AG$9=1,AQ22,Metric_to_US__Temp__GradC__to__degF(AQ22)),"") -> 17.23480529 | S22: =IFERROR(IF($AG$9=1,AR22,Metric_to_US__Temp__GradC__to__degF(AR22)),"") -> 8.327378956 | T22: =IFERROR(IF($AG$9=1,AS22,Metric_to_US__Temp__GradC__to__degF(AS22)),"") -> 52.54416474 | V22: -28.81212349 | Z22: =HFB!A22 -> L | AA22: =HFB!B22 -> 60 | AB22: =HFB!C22 -> 165.8662915 | AC22: =HFB!D22 -> 164.8545673 | AD22: =HFB!E22 -> 169.9334101 | AE22: =HFB!F22 -> 169.9334101 | AF22: =HFB!G22 -> 34.93929819 | AG22: =HFB!H22 -> 28.43929819 | AH22: =HFB!I22 -> -160 | AI22: =HFB!J22 -> -288.1212349 | AJ22: =HFB!K22 -> -448.1212349 | AK22: =HFB!L22 -> -840.803545 | AL22: =HFB!M22 -> -543.0550897 | AM22: =HFB!N22 -> -703.0550897 | AN22: =HFB!O22 -> -40 | AO22: =HFB!P22 -> 869.8474469 | AP22: =HFB!Q22 -> 829.8474469 | AQ22: =HFB!R22 -> 17.23480529 | AR22: =HFB!S22 -> 8.327378956 | AS22: =HFB!T22 -> 52.54416474 | AU22: =HFB!V22 -> -28.81212349 | BB22: Primärlufttemperatur: | BC22: 18 | BD22: °C | BE22: 12 | BF22: 32 | BG22: =L_Primaerlufttemp_K -> Primärlufttemperatur: | BH22: 18 | BI22: °C | BJ22: 12 | BK22: 32
A23: =Z23 -> XL | B23: =IFERROR(IF($AG$9=1,AA23,Metric_to_US__Volumenstrom__m3_h__to__cfm(AA23)),"") -> 60 | C23: =IF($AG$9=1,AB23,Metric_to_US__Druck_Luft__Pa__to__in(AB23)) -> 120.8984539 | D23: =IF($AG$9=1,AC23,Metric_to_US__Druck_Luft__Pa__to__in(AC23)) -> 120.2309155 | E23: =IF($AG$9=1,AD23,Metric_to_US__Druck_Luft__Pa__to__in(AD23)) -> 123.4910638 | F23: =IF($AG$9=1,AE23,Metric_to_US__Druck_Luft__Pa__to__in(AE23)) -> 123.4910638 | G23: 31.5387919 | H23: 25.0387919 | I23: =IFERROR(IF($AG$9=1,AH23,Metric_to_US__Leistung__W__to__BTU_hr(AH23)),"") -> -160 | J23: =IFERROR(IF($AG$9=1,AI23,Metric_to_US__Leistung__W__to__BTU_hr(AI23)),"") -> -247.0923608 | K23: =IFERROR(IF($AG$9=1,AJ23,Metric_to_US__Leistung__W__to__BTU_hr(AJ23)),"") -> -407.0923608 | L23: =IFERROR(IF($AG$9=1,AK23,Metric_to_US__Leistung__W__to__BTU_hr(AK23)),"") -> -736.2460672 | M23: =IFERROR(IF($AG$9=1,AL23,Metric_to_US__Leistung__W__to__BTU_hr(AL23)),"") -> -470.748934 | N23: =IFERROR(IF($AG$9=1,AM23,Metric_to_US__Leistung__W__to__BTU_hr(AM23)),"") -> -630.748934 | O23: =IFERROR(IF($AG$9=1,AN23,Metric_to_US__Leistung__W__to__BTU_hr(AN23)),"") -> -40 | P23: =IFERROR(IF($AG$9=1,AO23,Metric_to_US__Leistung__W__to__BTU_hr(AO23)),"") -> 821.1723682 | Q23: =IF(IF($AG$9=1,AP23,Metric_to_US__Leistung__W__to__BTU_hr(AP23))=0,"",IF($AG$9=1,AP23,Metric_to_US__Leistung__W__to__BTU_hr(AP23))) -> 781.1723682 | R23: =IFERROR(IF($AG$9=1,AQ23,Metric_to_US__Temp__GradC__to__degF(AQ23)),"") -> 17.05896726 | S23: =IFERROR(IF($AG$9=1,AR23,Metric_to_US__Temp__GradC__to__degF(AR23)),"") -> 8.017495431 | T23: =IFERROR(IF($AG$9=1,AS23,Metric_to_US__Temp__GradC__to__degF(AS23)),"") -> 52.9613797 | V23: -24.70923608 | Z23: =HFB!A23 -> XL | AA23: =HFB!B23 -> 60 | AB23: =HFB!C23 -> 120.8984539 | AC23: =HFB!D23 -> 120.2309155 | AD23: =HFB!E23 -> 123.4910638 | AE23: =HFB!F23 -> 123.4910638 | AF23: =HFB!G23 -> 31.5387919 | AG23: =HFB!H23 -> 25.0387919 | AH23: =HFB!I23 -> -160 | AI23: =HFB!J23 -> -247.0923608 | AJ23: =HFB!K23 -> -407.0923608 | AK23: =HFB!L23 -> -736.2460672 | AL23: =HFB!M23 -> -470.748934 | AM23: =HFB!N23 -> -630.748934 | AN23: =HFB!O23 -> -40 | AO23: =HFB!P23 -> 821.1723682 | AP23: =HFB!Q23 -> 781.1723682 | AQ23: =HFB!R23 -> 17.05896726 | AR23: =HFB!S23 -> 8.017495431 | AS23: =HFB!T23 -> 52.9613797 | AU23: =HFB!V23 -> -24.70923608 | BB23: Kühlwasservorlauf¹: | BC23: 16 | BD23: °C | BE23: 16 | BF23: 32 | BG23: Heizwasservorlauf: | BH23: 55 | BI23: °C | BO23: 0.8807080893 | BP23: =IF($AG$9=2,"kg/h","gpm") -> gpm | BS23: =IF($AG$9=2,Metric_to_US__Wassermassenstrom__kg_h__to__gpm(BO23),ROUND(US_to_Metric__Wassermassenstrom__gpm__to__kg_h(BO23),0)) ->  | BT23: =IF($AG$9=1,"kg/h","gpm") -> kg/h
I24: Min | J24: Max | BB24: projektierte Leistung: | BC24: -900 | BD24: W | BG24: =L_projektierte_Leistung_k -> projektierte Leistung: | BH24: 900 | BI24: W | BO24: 0.4403540447 | BP24: =IF($AG$9=2,"kg/h","gpm") -> gpm | BS24: =IF($AG$9=2,Metric_to_US__Wassermassenstrom__kg_h__to__gpm(BO24),ROUND(US_to_Metric__Wassermassenstrom__gpm__to__kg_h(BO24),0)) ->  | BT24: =IF($AG$9=1,"kg/h","gpm") -> kg/h
A25: =Legende_Abkürzungen!$A$20 -> wOK= | B25: =IF($AG$9=1,AE25,Metric_to_US__Wassermassenstrom__kg_h__to__gpm(AE25)) -> 200 | E25: =IF($AG$9=1,AE25,Metric_to_US__Wassermassenstrom__kg_h__to__gpm(AE25)) -> 200 | F25: =IF($AG$9=1,"kg/h","gpm") -> kg/h | G25: =Legende_Abkürzungen!$A$22 -> wK= | H25: 200 | I25: =wkmin -> 80 | J25: =wkmax -> 300 | K25: =IF($AG$9=1,"kg/h","gpm") -> kg/h | L25: =Legende_Abkürzungen!$A$24 -> dpK= | M25: =IF($AG$9=1,AL25,Metric_to_US__Wasserdruck__kPa__to__ft(AL25)) -> 22.40221716 | N25: =IF($AG$9=1,AM25,"[ft]") -> [kPa] | AA25: =HFB!B25 -> wOK= | AE25: =HFB!F25 -> 200 | AF25: =HFB!G25 -> [kg/h] | AG25: =HFB!H25 -> wK= | AH25: =IF($AG$9=1,H25,US_to_Metric__Wassermassenstrom__gpm__to__kg_h(H25)) -> 200 | AI25: =HFB!J25 -> [kg/h] | AK25: =HFB!L25 -> DpK = | AL25: =HFB!M25 -> 22.40221716 | AM25: =HFB!N25 -> [kPa] | BB25: Raumtemperatur | BC25: 26 | BD25: °C | BG25: =L_Raumtemperatur_K -> Raumtemperatur | BH25: 20 | BI25: °C
A26: =Legende_Abkürzungen!$A$21 -> wOH= | B26: =IF($AG$9=1,AE26,Metric_to_US__Wassermassenstrom__kg_h__to__gpm(AE26)) -> 100 | E26: =IF($AG$9=1,AE26,Metric_to_US__Wassermassenstrom__kg_h__to__gpm(AE26)) -> 100 | F26: =IF($AG$9=1,"kg/h","gpm") -> kg/h | G26: =Legende_Abkürzungen!$A$23 -> wH= | H26: 100 | I26: =whmin -> 40 | J26: =whmax -> 250 | K26: =IF($AG$9=1,"kg/h","gpm") -> kg/h | L26: =Legende_Abkürzungen!$A$25 -> dpH= | M26: =IF($AG$9=1,AL26,Metric_to_US__Wasserdruck__kPa__to__ft(AL26)) -> 1.3 | N26: =IF($AG$9=1,AM26,"[ft]") -> [kPa] | O26: =AN26 -> Eigenkonvektion Heizen Q_E: | AA26: =HFB!B26 -> wOH= | AE26: =HFB!F26 -> 100 | AF26: =HFB!G26 -> [kg/h] | AG26: =HFB!H26 -> wH= | AH26: =IF($AG$9=1,H26,US_to_Metric__Wassermassenstrom__gpm__to__kg_h(H26)) -> 100 | AI26: =HFB!J26 -> [kg/h] | AK26: =HFB!L26 -> DpH = | AL26: =HFB!M26 -> 1.3 | AM26: =HFB!N26 -> [kPa] | AN26: =HFB!O26 -> Eigenkonvektion Heizen Q_E: | BO26: 0.8807080893 | BP26: =IF($AG$9=2,"kg/h","gpm") -> gpm | BS26: =IF($AG$9=2,Metric_to_US__Wassermassenstrom__kg_h__to__gpm(BO26),ROUND(US_to_Metric__Wassermassenstrom__gpm__to__kg_h(BO26),0)) ->  | BT26: =IF($AG$9=1,"kg/h","gpm") -> kg/h
O27: =IF($AG$9=1,AN27,Metric_to_US__Leistung__W__to__BTU_hr(AN27)) -> 126 | P27: =IF($AG$9=1,AO27,"[BTU/hr]") -> W | AN27: =HFB!O27 -> 126 | AO27: =HFB!P27 -> W | BA27: Kühlwasservorlauf kondensierender Betrieb²: | BC27: 6 | BD27: °C | BE27: 3 | BF27: 18 | BO27: 0.4403540447 | BP27: =IF($AG$9=2,"kg/h","gpm") -> gpm | BS27: =IF($AG$9=2,Metric_to_US__Wassermassenstrom__kg_h__to__gpm(BO27),ROUND(US_to_Metric__Wassermassenstrom__gpm__to__kg_h(BO27),0)) ->  | BT27: =IF($AG$9=1,"kg/h","gpm") -> kg/h
O28: =IF($AG$9=2,$AA$1,$AB$1) -> t_Room = | P28: =ROUND(IF($AG$9=1,AO28,Metric_to_US__Leistung__W__to__BTU_hr(AO28)),0) -> 20 | Q28: =IF($AG$9=1,AP28,"°F") -> °C | R28: =IF($AG$9=2,$W$1,$X$1) -> t_WWVL = | S28: =ROUND(IF($AG$9=1,AR28,Metric_to_US__Leistung__W__to__BTU_hr(AR28)),0) -> 55 | T28: =IF($AG$9=1,AS28,"°F") -> °C | AN28: =HFB!O28 -> tR = | AO28: =HFB!P28 -> 20 | AP28: =HFB!Q28 -> °C | AQ28: =HFB!R28 -> tWWVL = | AR28: =HFB!S28 -> 55 | AS28: =HFB!T28 -> °C | BB28: relative Feuchte²: | BC28: 50 | BD28: % | BE28: 1 | BF28: 99 | BG28: wK= | BH28: 200 | BI28: [kg/h] | BJ28: 80 | BK28: 300
A29: =L_BG800 -> Baugröße 800 | BB29: =L_Primärvolumenstrom -> Primärvolumenstrom | BC29: 50 | BD29: m³/h | BG29: wH= | BH29: 100 | BI29: [kg/h] | BJ29: 40 | BK29: 250
B30: =L_Primärvolumenstrom -> Primärvolumenstrom | F30: 80 | G30: =IF($AG$9=2,"cfm","m³/h") -> m³/h | Y30: =B30 -> Primärvolumenstrom | Z30: =IF($AG$9=1,F30,US_to_Metric__Volumenstrom__cfm__to__m3_h(F30)) -> 80 | AA30: m³/h | BB30: =L_Primärvolumenstrom -> Primärvolumenstrom | BC30: 70 | BD30: m³/h
Z31: Ergebenis aus "HFB" immer in metric-Unit | BB31: =L_Primärvolumenstrom -> Primärvolumenstrom | BC31: 80 | BD31: m³/h
A32: =L_Düsenkasten -> Düsen-kasten | B32: VP [m³/h] | C32: dp - kühlen [Pa] | D32: dp - heizen [Pa] | E32: dp - Akustik [Pa] | F32: dp [Pa] | G32: LWA [dB(A)] | H32: LA18 [dB(A)] | I32: QPK [W] | J32: QSK1) [W] | K32: QKges1) [W] | L32: QTotal2) [W] | M32: QSK2) [W] | N32: QKges2) [W] | O32: QPH [W] | P32: QSH [W] | Q32: QHges [W] | R32: tKWRL [°C] | S32: tKWRL2) [°C] | T32: tWWRL [°C] | V32: qSK1) [W] | Z32: =L_Düsenkasten -> Düsen-kasten | AA32: VP [cfm] | AB32: dp - kühlen [in] | AC32: dp - heizen [in] | AD32: dp - Akustik [in] | AE32: dp [in] | AF32: LWA [dB(A)] | AG32: LA18 [dB(A)] | AH32: QPK [W] | AI32: QSK1) [W] | AJ32: QKges1) [W] | AK32: QTotal2) [W] | AL32: QSK2) [W] | AM32: QKges2) [W] | AN32: QPH [W] | AO32: QSH [W] | AP32: QHges [W] | AQ32: tKWRL [°C] | AR32: tKWRL2) [°C] | AS32: tWWRL [°C]
A34: =Z34 -> S | B34: =IFERROR(IF($AG$9=1,AA34,Metric_to_US__Volumenstrom__m3_h__to__cfm(AA34)),"") ->  | C34: =IF($AG$9=1,AB34,Metric_to_US__Druck_Luft__Pa__to__in(AB34)) -> 388.226059 | D34: =IF($AG$9=1,AC34,Metric_to_US__Druck_Luft__Pa__to__in(AC34)) -> 385.6555988 | E34: =IF($AG$9=1,AD34,Metric_to_US__Druck_Luft__Pa__to__in(AD34)) -> 398.8234976 | F34: =IF($AG$9=1,AE34,Metric_to_US__Druck_Luft__Pa__to__in(AE34)) -> 398.8234976 | G34: =AF34 -> 45.12781206 | H34: =AG34 -> 38.62781206 | I34: =IFERROR(IF($AG$9=1,AH34,Metric_to_US__Leistung__W__to__BTU_hr(AH34)),"") ->  | J34: =IFERROR(IF($AG$9=1,AI34,Metric_to_US__Leistung__W__to__BTU_hr(AI34)),"") ->  | K34: =IFERROR(IF($AG$9=1,AJ34,Metric_to_US__Leistung__W__to__BTU_hr(AJ34)),"") ->  | L34: =IFERROR(IF($AG$9=1,AK34,Metric_to_US__Leistung__W__to__BTU_hr(AK34)),"") ->  | M34: =IFERROR(IF($AG$9=1,AL34,Metric_to_US__Leistung__W__to__BTU_hr(AL34)),"") ->  | N34: =IFERROR(IF($AG$9=1,AM34,Metric_to_US__Leistung__W__to__BTU_hr(AM34)),"") ->  | O34: =IFERROR(IF($AG$9=1,AN34,Metric_to_US__Leistung__W__to__BTU_hr(AN34)),"") ->  | P34: =IFERROR(IF($AG$9=1,AO34,Metric_to_US__Leistung__W__to__BTU_hr(AO34)),"") ->  | Q34: =IF(IF($AG$9=1,AP34,Metric_to_US__Leistung__W__to__BTU_hr(AP34))=0,"",IF($AG$9=1,AP34,Metric_to_US__Leistung__W__to__BTU_hr(AP34))) ->  | R34: =IFERROR(IF($AG$9=1,AQ34,Metric_to_US__Temp__GradC__to__degF(AQ34)),"") ->  | S34: =IFERROR(IF($AG$9=1,AR34,Metric_to_US__Temp__GradC__to__degF(AR34)),"") ->  | T34: =IFERROR(IF($AG$9=1,AS34,Metric_to_US__Temp__GradC__to__degF(AS34)),"") ->  | V34: =IFERROR(J34/($K$6-$K$8),"") ->  | Z34: =HFB!A34 -> S | AA34: =HFB!B34 ->  | AB34: =HFB!C34 -> 388.226059 | AC34: =HFB!D34 -> 385.6555988 | AD34: =HFB!E34 -> 398.8234976 | AE34: =HFB!F34 -> 398.8234976 | AF34: =HFB!G34 -> 45.12781206 | AG34: =HFB!H34 -> 38.62781206 | AH34: =HFB!I34 ->  | AI34: =HFB!J34 ->  | AJ34: =HFB!K34 ->  | AK34: =HFB!L34 ->  | AL34: =HFB!M34 ->  | AM34: =HFB!N34 ->  | AN34: =HFB!O34 ->  | AO34: =HFB!P34 ->  | AP34: =HFB!Q34 -> 0 | AQ34: =HFB!R34 ->  | AR34: =HFB!S34 ->  | AS34: =HFB!T34 ->  | AU34: =HFB!V34 -> 
A35: =Z35 -> M | B35: =IFERROR(IF($AG$9=1,AA35,Metric_to_US__Volumenstrom__m3_h__to__cfm(AA35)),"") -> 80 | C35: =IF($AG$9=1,AB35,Metric_to_US__Druck_Luft__Pa__to__in(AB35)) -> 233.4323564 | D35: =IF($AG$9=1,AC35,Metric_to_US__Druck_Luft__Pa__to__in(AC35)) -> 232.0196137 | E35: =IF($AG$9=1,AD35,Metric_to_US__Druck_Luft__Pa__to__in(AD35)) -> 239.226315 | F35: =IF($AG$9=1,AE35,Metric_to_US__Druck_Luft__Pa__to__in(AE35)) -> 239.226315 | G35: =AF35 -> 39.6981485 | H35: =AG35 -> 33.1981485 | I35: =IFERROR(IF($AG$9=1,AH35,Metric_to_US__Leistung__W__to__BTU_hr(AH35)),"") -> -210 | J35: =IFERROR(IF($AG$9=1,AI35,Metric_to_US__Leistung__W__to__BTU_hr(AI35)),"") -> -453.3269859 | K35: =IFERROR(IF($AG$9=1,AJ35,Metric_to_US__Leistung__W__to__BTU_hr(AJ35)),"") -> -663.3269859 | L35: =IFERROR(IF($AG$9=1,AK35,Metric_to_US__Leistung__W__to__BTU_hr(AK35)),"") -> -1295.439232 | M35: =IFERROR(IF($AG$9=1,AL35,Metric_to_US__Leistung__W__to__BTU_hr(AL35)),"") -> -846.1694834 | N35: =IFERROR(IF($AG$9=1,AM35,Metric_to_US__Leistung__W__to__BTU_hr(AM35)),"") -> -1056.169483 | O35: =IFERROR(IF($AG$9=1,AN35,Metric_to_US__Leistung__W__to__BTU_hr(AN35)),"") -> -50 | P35: =IFERROR(IF($AG$9=1,AO35,Metric_to_US__Leistung__W__to__BTU_hr(AO35)),"") -> 1235.501502 | Q35: =IF(IF($AG$9=1,AP35,Metric_to_US__Leistung__W__to__BTU_hr(AP35))=0,"",IF($AG$9=1,AP35,Metric_to_US__Leistung__W__to__BTU_hr(AP35))) -> 1185.501502 | R35: =IFERROR(IF($AG$9=1,AQ35,Metric_to_US__Temp__GradC__to__degF(AQ35)),"") -> 17.94282994 | S35: =IFERROR(IF($AG$9=1,AR35,Metric_to_US__Temp__GradC__to__degF(AR35)),"") -> 9.626440643 | T35: =IFERROR(IF($AG$9=1,AS35,Metric_to_US__Temp__GradC__to__degF(AS35)),"") -> 49.40998713 | V35: =IFERROR(J35/($K$6-$K$8),"") -> -45.33269859 | Z35: =HFB!A35 -> M | AA35: =HFB!B35 -> 80 | AB35: =HFB!C35 -> 233.4323564 | AC35: =HFB!D35 -> 232.0196137 | AD35: =HFB!E35 -> 239.226315 | AE35: =HFB!F35 -> 239.226315 | AF35: =HFB!G35 -> 39.6981485 | AG35: =HFB!H35 -> 33.1981485 | AH35: =HFB!I35 -> -210 | AI35: =HFB!J35 -> -453.3269859 | AJ35: =HFB!K35 -> -663.3269859 | AK35: =HFB!L35 -> -1295.439232 | AL35: =HFB!M35 -> -846.1694834 | AM35: =HFB!N35 -> -1056.169483 | AN35: =HFB!O35 -> -50 | AO35: =HFB!P35 -> 1235.501502 | AP35: =HFB!Q35 -> 1185.501502 | AQ35: =HFB!R35 -> 17.94282994 | AR35: =HFB!S35 -> 9.626440643 | AS35: =HFB!T35 -> 49.40998713 | AU35: =HFB!V35 -> -45.33269859
A36: =Z36 -> L | B36: =IFERROR(IF($AG$9=1,AA36,Metric_to_US__Volumenstrom__m3_h__to__cfm(AA36)),"") -> 80 | C36: =IF($AG$9=1,AB36,Metric_to_US__Druck_Luft__Pa__to__in(AB36)) -> 148.7682271 | D36: =IF($AG$9=1,AC36,Metric_to_US__Druck_Luft__Pa__to__in(AC36)) -> 147.9428811 | E36: =IF($AG$9=1,AD36,Metric_to_US__Druck_Luft__Pa__to__in(AD36)) -> 152.1352425 | F36: =IF($AG$9=1,AE36,Metric_to_US__Druck_Luft__Pa__to__in(AE36)) -> 152.1352425 | G36: 34.88961632 | H36: 28.38961632 | I36: =IFERROR(IF($AG$9=1,AH36,Metric_to_US__Leistung__W__to__BTU_hr(AH36)),"") -> -210 | J36: =IFERROR(IF($AG$9=1,AI36,Metric_to_US__Leistung__W__to__BTU_hr(AI36)),"") -> -383.6178657 | K36: =IFERROR(IF($AG$9=1,AJ36,Metric_to_US__Leistung__W__to__BTU_hr(AJ36)),"") -> -593.6178657 | L36: =IFERROR(IF($AG$9=1,AK36,Metric_to_US__Leistung__W__to__BTU_hr(AK36)),"") -> -1127.255579 | M36: =IFERROR(IF($AG$9=1,AL36,Metric_to_US__Leistung__W__to__BTU_hr(AL36)),"") -> -725.5051537 | N36: =IFERROR(IF($AG$9=1,AM36,Metric_to_US__Leistung__W__to__BTU_hr(AM36)),"") -> -935.5051537 | O36: =IFERROR(IF($AG$9=1,AN36,Metric_to_US__Leistung__W__to__BTU_hr(AN36)),"") -> -50 | P36: =IFERROR(IF($AG$9=1,AO36,Metric_to_US__Leistung__W__to__BTU_hr(AO36)),"") -> 1109.878594 | Q36: =IF(IF($AG$9=1,AP36,Metric_to_US__Leistung__W__to__BTU_hr(AP36))=0,"",IF($AG$9=1,AP36,Metric_to_US__Leistung__W__to__BTU_hr(AP36))) -> 1059.878594 | R36: =IFERROR(IF($AG$9=1,AQ36,Metric_to_US__Temp__GradC__to__degF(AQ36)),"") -> 17.64407657 | S36: =IFERROR(IF($AG$9=1,AR36,Metric_to_US__Temp__GradC__to__degF(AR36)),"") -> 9.109307802 | T36: =IFERROR(IF($AG$9=1,AS36,Metric_to_US__Temp__GradC__to__degF(AS36)),"") -> 50.48675491 | V36: -38.36178657 | Z36: =HFB!A36 -> L | AA36: =HFB!B36 -> 80 | AB36: =HFB!C36 -> 148.7682271 | AC36: =HFB!D36 -> 147.9428811 | AD36: =HFB!E36 -> 152.1352425 | AE36: =HFB!F36 -> 152.1352425 | AF36: =HFB!G36 -> 34.88961632 | AG36: =HFB!H36 -> 28.38961632 | AH36: =HFB!I36 -> -210 | AI36: =HFB!J36 -> -383.6178657 | AJ36: =HFB!K36 -> -593.6178657 | AK36: =HFB!L36 -> -1127.255579 | AL36: =HFB!M36 -> -725.5051537 | AM36: =HFB!N36 -> -935.5051537 | AN36: =HFB!O36 -> -50 | AO36: =HFB!P36 -> 1109.878594 | AP36: =HFB!Q36 -> 1059.878594 | AQ36: =HFB!R36 -> 17.64407657 | AR36: =HFB!S36 -> 9.109307802 | AS36: =HFB!T36 -> 50.48675491 | AU36: =HFB!V36 -> -38.36178657
A37: =Z37 -> XL | B37: =IFERROR(IF($AG$9=1,AA37,Metric_to_US__Volumenstrom__m3_h__to__cfm(AA37)),"") -> 80 | C37: =IF($AG$9=1,AB37,Metric_to_US__Druck_Luft__Pa__to__in(AB37)) -> 110.0065211 | D37: =IF($AG$9=1,AC37,Metric_to_US__Druck_Luft__Pa__to__in(AC37)) -> 109.4333972 | E37: =IF($AG$9=1,AD37,Metric_to_US__Druck_Luft__Pa__to__in(AD37)) -> 112.3352659 | F37: =IF($AG$9=1,AE37,Metric_to_US__Druck_Luft__Pa__to__in(AE37)) -> 112.3352659 | G37: 31.66776025 | H37: 25.16776025 | I37: =IFERROR(IF($AG$9=1,AH37,Metric_to_US__Leistung__W__to__BTU_hr(AH37)),"") -> -210 | J37: =IFERROR(IF($AG$9=1,AI37,Metric_to_US__Leistung__W__to__BTU_hr(AI37)),"") -> -330.224912 | K37: =IFERROR(IF($AG$9=1,AJ37,Metric_to_US__Leistung__W__to__BTU_hr(AJ37)),"") -> -540.224912 | L37: =IFERROR(IF($AG$9=1,AK37,Metric_to_US__Leistung__W__to__BTU_hr(AK37)),"") -> -989.7279765 | M37: =IFERROR(IF($AG$9=1,AL37,Metric_to_US__Leistung__W__to__BTU_hr(AL37)),"") -> -631.2522914 | N37: =IFERROR(IF($AG$9=1,AM37,Metric_to_US__Leistung__W__to__BTU_hr(AM37)),"") -> -841.2522914 | O37: =IFERROR(IF($AG$9=1,AN37,Metric_to_US__Leistung__W__to__BTU_hr(AN37)),"") -> -50 | P37: =IFERROR(IF($AG$9=1,AO37,Metric_to_US__Leistung__W__to__BTU_hr(AO37)),"") -> 1050.005816 | Q37: =IF(IF($AG$9=1,AP37,Metric_to_US__Leistung__W__to__BTU_hr(AP37))=0,"",IF($AG$9=1,AP37,Metric_to_US__Leistung__W__to__BTU_hr(AP37))) -> 1000.005816 | R37: =IFERROR(IF($AG$9=1,AQ37,Metric_to_US__Temp__GradC__to__degF(AQ37)),"") -> 17.41524962 | S37: =IFERROR(IF($AG$9=1,AR37,Metric_to_US__Temp__GradC__to__degF(AR37)),"") -> 8.705366963 | T37: =IFERROR(IF($AG$9=1,AS37,Metric_to_US__Temp__GradC__to__degF(AS37)),"") -> 50.99995015 | V37: -33.0224912 | Z37: =HFB!A37 -> XL | AA37: =HFB!B37 -> 80 | AB37: =HFB!C37 -> 110.0065211 | AC37: =HFB!D37 -> 109.4333972 | AD37: =HFB!E37 -> 112.3352659 | AE37: =HFB!F37 -> 112.3352659 | AF37: =HFB!G37 -> 31.66776025 | AG37: =HFB!H37 -> 25.16776025 | AH37: =HFB!I37 -> -210 | AI37: =HFB!J37 -> -330.224912 | AJ37: =HFB!K37 -> -540.224912 | AK37: =HFB!L37 -> -989.7279765 | AL37: =HFB!M37 -> -631.2522914 | AM37: =HFB!N37 -> -841.2522914 | AN37: =HFB!O37 -> -50 | AO37: =HFB!P37 -> 1050.005816 | AP37: =HFB!Q37 -> 1000.005816 | AQ37: =HFB!R37 -> 17.41524962 | AR37: =HFB!S37 -> 8.705366963 | AS37: =HFB!T37 -> 50.99995015 | AU37: =HFB!V37 -> -33.0224912
I38: Min | J38: Max
A39: =Legende_Abkürzungen!$A$20 -> wOK= | B39: =IF($AG$9=1,AE39,Metric_to_US__Wassermassenstrom__kg_h__to__gpm(AE39)) -> 200 | E39: =IF($AG$9=1,AE39,Metric_to_US__Wassermassenstrom__kg_h__to__gpm(AE39)) -> 200 | F39: =IF($AG$9=1,"kg/h","gpm") -> kg/h | G39: =Legende_Abkürzungen!$A$22 -> wK= | H39: 200 | I39: =wkmin -> 80 | J39: =wkmax -> 300 | K39: =IF($AG$9=1,"kg/h","gpm") -> kg/h | L39: =Legende_Abkürzungen!$A$24 -> dpK= | M39: =IF($AG$9=1,AL39,Metric_to_US__Wasserdruck__kPa__to__ft(AL39)) -> 27.92230502 | N39: =IF($AG$9=1,AM39,"[ft]") -> [kPa] | AA39: =HFB!B39 -> wOK= | AE39: =HFB!F39 -> 200 | AF39: =HFB!G39 -> [kg/h] | AG39: =HFB!H39 -> wK= | AH39: =IF($AG$9=1,H39,US_to_Metric__Wassermassenstrom__gpm__to__kg_h(H39)) -> 200 | AI39: =HFB!J39 -> [kg/h] | AK39: =HFB!L39 -> DpK = | AL39: =HFB!M39 -> 27.92230502 | AM39: =HFB!N39 -> [kPa]
A40: =Legende_Abkürzungen!$A$21 -> wOH= | B40: =IF($AG$9=1,AE40,Metric_to_US__Wassermassenstrom__kg_h__to__gpm(AE40)) -> 100 | E40: =IF($AG$9=1,AE40,Metric_to_US__Wassermassenstrom__kg_h__to__gpm(AE40)) -> 100 | F40: =IF($AG$9=1,"kg/h","gpm") -> kg/h | G40: =Legende_Abkürzungen!$A$23 -> wH= | H40: 100 | I40: =whmin -> 40 | J40: =whmax -> 250 | K40: =IF($AG$9=1,"kg/h","gpm") -> kg/h | L40: =Legende_Abkürzungen!$A$25 -> dpH= | M40: =IF($AG$9=1,AL40,Metric_to_US__Wasserdruck__kPa__to__ft(AL40)) -> 1.6 | N40: =IF($AG$9=1,AM40,"[ft]") -> [kPa] | O40: =AN40 -> Eigenkonvektion Heizen Q_E: | AA40: =HFB!B40 -> wOH= | AE40: =HFB!F40 -> 100 | AF40: =HFB!G40 -> [kg/h] | AG40: =HFB!H40 -> wH= | AH40: =IF($AG$9=1,H40,US_to_Metric__Wassermassenstrom__gpm__to__kg_h(H40)) -> 100 | AI40: =HFB!J40 -> [kg/h] | AK40: =HFB!L40 -> DpH = | AL40: =HFB!M40 -> 1.6 | AM40: =HFB!N40 -> [kPa] | AN40: =HFB!O40 -> Eigenkonvektion Heizen Q_E:
O41: =IF($AG$9=1,AN41,Metric_to_US__Leistung__W__to__BTU_hr(AN41)) -> 175 | P41: =IF($AG$9=1,AO41,"[BTU/hr]") -> W | AN41: =HFB!O41 -> 175 | AO41: =HFB!P41 -> W
O42: =IF($AG$9=2,$AA$1,$AB$1) -> t_Room = | P42: =ROUND(IF($AG$9=1,AO42,Metric_to_US__Leistung__W__to__BTU_hr(AO42)),0) -> 20 | Q42: =IF($AG$9=1,AP42,"°F") -> °C | R42: =IF($AG$9=2,$W$1,$X$1) -> t_WWVL = | S42: =ROUND(IF($AG$9=1,AR42,Metric_to_US__Leistung__W__to__BTU_hr(AR42)),0) -> 55 | T42: =IF($AG$9=1,AS42,"°F") -> °C | AN42: =HFB!O42 -> tR = | AO42: =HFB!P42 -> 20 | AP42: =HFB!Q42 -> °C | AQ42: =HFB!R42 -> tWWVL = | AR42: =HFB!S42 -> 55 | AS42: =HFB!T42 -> °C
A43: =L_BG1000 -> Baugröße 1000
B44: =L_Primärvolumenstrom -> Primärvolumenstrom | F44: 127 | G44: =IF($AG$9=2,"cfm","m³/h") -> m³/h | Y44: =B44 -> Primärvolumenstrom | Z44: =IF($AG$9=1,F44,US_to_Metric__Volumenstrom__cfm__to__m3_h(F44)) -> 127 | AA44: m³/h
Z45: Ergebenis aus "HFB" immer in metric-Unit
A46: =L_Düsenkasten -> Düsen-kasten | B46: VP [m³/h] | C46: dp - kühlen [Pa] | D46: dp - heizen [Pa] | E46: dp - Akustik [Pa] | F46: dp [Pa] | G46: LWA [dB(A)] | H46: LA18 [dB(A)] | I46: QPK [W] | J46: QSK1) [W] | K46: QKges1) [W] | L46: QTotal2) [W] | M46: QSK2) [W] | N46: QKges2) [W] | O46: QPH [W] | P46: QSH [W] | Q46: QHges [W] | R46: tKWRL [°C] | S46: tKWRL2) [°C] | T46: tWWRL [°C] | V46: qSK1) [W] | Z46: =L_Düsenkasten -> Düsen-kasten | AA46: VP [cfm] | AB46: dp - kühlen [in] | AC46: dp - heizen [in] | AD46: dp - Akustik [in] | AE46: dp [in] | AF46: LWA [dB(A)] | AG46: LA18 [dB(A)] | AH46: QPK [W] | AI46: QSK1) [W] | AJ46: QKges1) [W] | AK46: QTotal2) [W] | AL46: QSK2) [W] | AM46: QKges2) [W] | AN46: QPH [W] | AO46: QSH [W] | AP46: QHges [W] | AQ46: tKWRL [°C] | AR46: tKWRL2) [°C] | AS46: tWWRL [°C]
A48: =Z48 -> S | B48: =IFERROR(IF($AG$9=1,AA48,Metric_to_US__Volumenstrom__m3_h__to__cfm(AA48)),"") ->  | C48: =IF($AG$9=1,AB48,Metric_to_US__Druck_Luft__Pa__to__in(AB48)) -> 633.9734171 | D48: =IF($AG$9=1,AC48,Metric_to_US__Druck_Luft__Pa__to__in(AC48)) -> 625.3716667 | E48: =IF($AG$9=1,AD48,Metric_to_US__Druck_Luft__Pa__to__in(AD48)) -> 675.3805846 | F48: =IF($AG$9=1,AE48,Metric_to_US__Druck_Luft__Pa__to__in(AE48)) -> 675.3805846 | G48: =AF48 -> 53.61722318 | H48: =AG48 -> 47.11722318 | I48: =IFERROR(IF($AG$9=1,AH48,Metric_to_US__Leistung__W__to__BTU_hr(AH48)),"") ->  | J48: =IFERROR(IF($AG$9=1,AI48,Metric_to_US__Leistung__W__to__BTU_hr(AI48)),"") ->  | K48: =IFERROR(IF($AG$9=1,AJ48,Metric_to_US__Leistung__W__to__BTU_hr(AJ48)),"") ->  | L48: =IFERROR(IF($AG$9=1,AK48,Metric_to_US__Leistung__W__to__BTU_hr(AK48)),"") ->  | M48: =IFERROR(IF($AG$9=1,AL48,Metric_to_US__Leistung__W__to__BTU_hr(AL48)),"") ->  | N48: =IFERROR(IF($AG$9=1,AM48,Metric_to_US__Leistung__W__to__BTU_hr(AM48)),"") ->  | O48: =IFERROR(IF($AG$9=1,AN48,Metric_to_US__Leistung__W__to__BTU_hr(AN48)),"") ->  | P48: =IFERROR(IF($AG$9=1,AO48,Metric_to_US__Leistung__W__to__BTU_hr(AO48)),"") ->  | Q48: =IF(IF($AG$9=1,AP48,Metric_to_US__Leistung__W__to__BTU_hr(AP48))=0,"",IF($AG$9=1,AP48,Metric_to_US__Leistung__W__to__BTU_hr(AP48))) ->  | R48: =IFERROR(IF($AG$9=1,AQ48,Metric_to_US__Temp__GradC__to__degF(AQ48)),"") ->  | S48: =IFERROR(IF($AG$9=1,AR48,Metric_to_US__Temp__GradC__to__degF(AR48)),"") ->  | T48: =IFERROR(IF($AG$9=1,AS48,Metric_to_US__Temp__GradC__to__degF(AS48)),"") ->  | V48: =IFERROR(J48/($K$6-$K$8),"") ->  | Z48: =HFB!A48 -> S | AA48: =HFB!B48 ->  | AB48: =HFB!C48 -> 633.9734171 | AC48: =HFB!D48 -> 625.3716667 | AD48: =HFB!E48 -> 675.3805846 | AE48: =HFB!F48 -> 675.3805846 | AF48: =HFB!G48 -> 53.61722318 | AG48: =HFB!H48 -> 47.11722318 | AH48: =HFB!I48 ->  | AI48: =HFB!J48 ->  | AJ48: =HFB!K48 ->  | AK48: =HFB!L48 ->  | AL48: =HFB!M48 ->  | AM48: =HFB!N48 ->  | AN48: =HFB!O48 ->  | AO48: =HFB!P48 ->  | AP48: =HFB!Q48 -> 0 | AQ48: =HFB!R48 ->  | AR48: =HFB!S48 ->  | AS48: =HFB!T48 ->  | AU48: =HFB!V48 -> 
A49: =Z49 -> M | B49: =IFERROR(IF($AG$9=1,AA49,Metric_to_US__Volumenstrom__m3_h__to__cfm(AA49)),"") ->  | C49: =IF($AG$9=1,AB49,Metric_to_US__Druck_Luft__Pa__to__in(AB49)) -> 386.759286 | D49: =IF($AG$9=1,AC49,Metric_to_US__Druck_Luft__Pa__to__in(AC49)) -> 382.5251994 | E49: =IF($AG$9=1,AD49,Metric_to_US__Druck_Luft__Pa__to__in(AD49)) -> 405.339187 | F49: =IF($AG$9=1,AE49,Metric_to_US__Druck_Luft__Pa__to__in(AE49)) -> 405.339187 | G49: =AF49 -> 48.10845625 | H49: =AG49 -> 41.60845625 | I49: =IFERROR(IF($AG$9=1,AH49,Metric_to_US__Leistung__W__to__BTU_hr(AH49)),"") ->  | J49: =IFERROR(IF($AG$9=1,AI49,Metric_to_US__Leistung__W__to__BTU_hr(AI49)),"") ->  | K49: =IFERROR(IF($AG$9=1,AJ49,Metric_to_US__Leistung__W__to__BTU_hr(AJ49)),"") ->  | L49: =IFERROR(IF($AG$9=1,AK49,Metric_to_US__Leistung__W__to__BTU_hr(AK49)),"") ->  | M49: =IFERROR(IF($AG$9=1,AL49,Metric_to_US__Leistung__W__to__BTU_hr(AL49)),"") ->  | N49: =IFERROR(IF($AG$9=1,AM49,Metric_to_US__Leistung__W__to__BTU_hr(AM49)),"") ->  | O49: =IFERROR(IF($AG$9=1,AN49,Metric_to_US__Leistung__W__to__BTU_hr(AN49)),"") ->  | P49: =IFERROR(IF($AG$9=1,AO49,Metric_to_US__Leistung__W__to__BTU_hr(AO49)),"") ->  | Q49: =IF(IF($AG$9=1,AP49,Metric_to_US__Leistung__W__to__BTU_hr(AP49))=0,"",IF($AG$9=1,AP49,Metric_to_US__Leistung__W__to__BTU_hr(AP49))) ->  | R49: =IFERROR(IF($AG$9=1,AQ49,Metric_to_US__Temp__GradC__to__degF(AQ49)),"") ->  | S49: =IFERROR(IF($AG$9=1,AR49,Metric_to_US__Temp__GradC__to__degF(AR49)),"") ->  | T49: =IFERROR(IF($AG$9=1,AS49,Metric_to_US__Temp__GradC__to__degF(AS49)),"") ->  | V49: =IFERROR(J49/($K$6-$K$8),"") ->  | Z49: =HFB!A49 -> M | AA49: =HFB!B49 ->  | AB49: =HFB!C49 -> 386.759286 | AC49: =HFB!D49 -> 382.5251994 | AD49: =HFB!E49 -> 405.339187 | AE49: =HFB!F49 -> 405.339187 | AF49: =HFB!G49 -> 48.10845625 | AG49: =HFB!H49 -> 41.60845625 | AH49: =HFB!I49 ->  | AI49: =HFB!J49 ->  | AJ49: =HFB!K49 ->  | AK49: =HFB!L49 ->  | AL49: =HFB!M49 ->  | AM49: =HFB!N49 ->  | AN49: =HFB!O49 ->  | AO49: =HFB!P49 ->  | AP49: =HFB!Q49 -> 0 | AQ49: =HFB!R49 ->  | AR49: =HFB!S49 ->  | AS49: =HFB!T49 ->  | AU49: =HFB!V49 -> 
A50: =Z50 -> L | B50: =IFERROR(IF($AG$9=1,AA50,Metric_to_US__Volumenstrom__m3_h__to__cfm(AA50)),"") -> 127 | C50: =IF($AG$9=1,AB50,Metric_to_US__Druck_Luft__Pa__to__in(AB50)) -> 243.1812624 | D50: =IF($AG$9=1,AC50,Metric_to_US__Druck_Luft__Pa__to__in(AC50)) -> 241.118831 | E50: =IF($AG$9=1,AD50,Metric_to_US__Druck_Luft__Pa__to__in(AD50)) -> 250.9818119 | F50: =IF($AG$9=1,AE50,Metric_to_US__Druck_Luft__Pa__to__in(AE50)) -> 250.9818119 | G50: 42.93642245 | H50: 36.43642245 | I50: =IFERROR(IF($AG$9=1,AH50,Metric_to_US__Leistung__W__to__BTU_hr(AH50)),"") -> -340 | J50: =IFERROR(IF($AG$9=1,AI50,Metric_to_US__Leistung__W__to__BTU_hr(AI50)),"") -> -590.7641512 | K50: =IFERROR(IF($AG$9=1,AJ50,Metric_to_US__Leistung__W__to__BTU_hr(AJ50)),"") -> -930.7641512 | L50: =IFERROR(IF($AG$9=1,AK50,Metric_to_US__Leistung__W__to__BTU_hr(AK50)),"") -> -1726.982321 | M50: =IFERROR(IF($AG$9=1,AL50,Metric_to_US__Leistung__W__to__BTU_hr(AL50)),"") -> -1111.515367 | N50: =IFERROR(IF($AG$9=1,AM50,Metric_to_US__Leistung__W__to__BTU_hr(AM50)),"") -> -1451.515367 | O50: =IFERROR(IF($AG$9=1,AN50,Metric_to_US__Leistung__W__to__BTU_hr(AN50)),"") -> -90 | P50: =IFERROR(IF($AG$9=1,AO50,Metric_to_US__Leistung__W__to__BTU_hr(AO50)),"") -> 1556.826657 | Q50: =IF(IF($AG$9=1,AP50,Metric_to_US__Leistung__W__to__BTU_hr(AP50))=0,"",IF($AG$9=1,AP50,Metric_to_US__Leistung__W__to__BTU_hr(AP50))) -> 1466.826657 | R50: =IFERROR(IF($AG$9=1,AQ50,Metric_to_US__Temp__GradC__to__degF(AQ50)),"") -> 18.02547709 | S50: =IFERROR(IF($AG$9=1,AR50,Metric_to_US__Temp__GradC__to__degF(AR50)),"") -> 10.76363729 | T50: =IFERROR(IF($AG$9=1,AS50,Metric_to_US__Temp__GradC__to__degF(AS50)),"") -> 46.65577151 | V50: -59.07641512 | Z50: =HFB!A50 -> L | AA50: =HFB!B50 -> 127 | AB50: =HFB!C50 -> 243.1812624 | AC50: =HFB!D50 -> 241.118831 | AD50: =HFB!E50 -> 250.9818119 | AE50: =HFB!F50 -> 250.9818119 | AF50: =HFB!G50 -> 42.93642245 | AG50: =HFB!H50 -> 36.43642245 | AH50: =HFB!I50 -> -340 | AI50: =HFB!J50 -> -590.7641512 | AJ50: =HFB!K50 -> -930.7641512 | AK50: =HFB!L50 -> -1726.982321 | AL50: =HFB!M50 -> -1111.515367 | AM50: =HFB!N50 -> -1451.515367 | AN50: =HFB!O50 -> -90 | AO50: =HFB!P50 -> 1556.826657 | AP50: =HFB!Q50 -> 1466.826657 | AQ50: =HFB!R50 -> 18.02547709 | AR50: =HFB!S50 -> 10.76363729 | AS50: =HFB!T50 -> 46.65577151 | AU50: =HFB!V50 -> -59.07641512
A51: =Z51 -> XL | B51: =IFERROR(IF($AG$9=1,AA51,Metric_to_US__Volumenstrom__m3_h__to__cfm(AA51)),"") -> 127 | C51: =IF($AG$9=1,AB51,Metric_to_US__Druck_Luft__Pa__to__in(AB51)) -> 180.5935944 | D51: =IF($AG$9=1,AC51,Metric_to_US__Druck_Luft__Pa__to__in(AC51)) -> 179.3482175 | E51: =IF($AG$9=1,AD51,Metric_to_US__Druck_Luft__Pa__to__in(AD51)) -> 184.5609441 | F51: =IF($AG$9=1,AE51,Metric_to_US__Druck_Luft__Pa__to__in(AE51)) -> 184.5609441 | G51: 39.61962303 | H51: 33.11962303 | I51: =IFERROR(IF($AG$9=1,AH51,Metric_to_US__Leistung__W__to__BTU_hr(AH51)),"") -> -340 | J51: =IFERROR(IF($AG$9=1,AI51,Metric_to_US__Leistung__W__to__BTU_hr(AI51)),"") -> -528.8826695 | K51: =IFERROR(IF($AG$9=1,AJ51,Metric_to_US__Leistung__W__to__BTU_hr(AJ51)),"") -> -868.8826695 | L51: =IFERROR(IF($AG$9=1,AK51,Metric_to_US__Leistung__W__to__BTU_hr(AK51)),"") -> -1572.770433 | M51: =IFERROR(IF($AG$9=1,AL51,Metric_to_US__Leistung__W__to__BTU_hr(AL51)),"") -> -1004.003925 | N51: =IFERROR(IF($AG$9=1,AM51,Metric_to_US__Leistung__W__to__BTU_hr(AM51)),"") -> -1344.003925 | O51: =IFERROR(IF($AG$9=1,AN51,Metric_to_US__Leistung__W__to__BTU_hr(AN51)),"") -> -90 | P51: =IFERROR(IF($AG$9=1,AO51,Metric_to_US__Leistung__W__to__BTU_hr(AO51)),"") -> 1496.188846 | Q51: =IF(IF($AG$9=1,AP51,Metric_to_US__Leistung__W__to__BTU_hr(AP51))=0,"",IF($AG$9=1,AP51,Metric_to_US__Leistung__W__to__BTU_hr(AP51))) -> 1406.188846 | R51: =IFERROR(IF($AG$9=1,AQ51,Metric_to_US__Temp__GradC__to__degF(AQ51)),"") -> 17.81331201 | S51: =IFERROR(IF($AG$9=1,AR51,Metric_to_US__Temp__GradC__to__degF(AR51)),"") -> 10.30287397 | T51: =IFERROR(IF($AG$9=1,AS51,Metric_to_US__Temp__GradC__to__degF(AS51)),"") -> 47.17552417 | V51: -52.88826695 | Z51: =HFB!A51 -> XL | AA51: =HFB!B51 -> 127 | AB51: =HFB!C51 -> 180.5935944 | AC51: =HFB!D51 -> 179.3482175 | AD51: =HFB!E51 -> 184.5609441 | AE51: =HFB!F51 -> 184.5609441 | AF51: =HFB!G51 -> 39.61962303 | AG51: =HFB!H51 -> 33.11962303 | AH51: =HFB!I51 -> -340 | AI51: =HFB!J51 -> -528.8826695 | AJ51: =HFB!K51 -> -868.8826695 | AK51: =HFB!L51 -> -1572.770433 | AL51: =HFB!M51 -> -1004.003925 | AM51: =HFB!N51 -> -1344.003925 | AN51: =HFB!O51 -> -90 | AO51: =HFB!P51 -> 1496.188846 | AP51: =HFB!Q51 -> 1406.188846 | AQ51: =HFB!R51 -> 17.81331201 | AR51: =HFB!S51 -> 10.30287397 | AS51: =HFB!T51 -> 47.17552417 | AU51: =HFB!V51 -> -52.88826695
I52: Min | J52: Max
A53: =Legende_Abkürzungen!$A$20 -> wOK= | B53: =IF($AG$9=1,AE53,Metric_to_US__Wassermassenstrom__kg_h__to__gpm(AE53)) -> 200 | F53: =IF($AG$9=1,"kg/h","gpm") -> kg/h | G53: =Legende_Abkürzungen!$A$22 -> wK= | H53: 250 | I53: =wkmin -> 80 | J53: =wkmax -> 300 | K53: =IF($AG$9=1,"kg/h","gpm") -> kg/h | L53: =Legende_Abkürzungen!$A$24 -> dpK= | M53: =IF($AG$9=1,AL53,Metric_to_US__Wasserdruck__kPa__to__ft(AL53)) -> 49.19854746 | N53: =IF($AG$9=1,AM53,"[ft]") -> [kPa] | AA53: =HFB!B53 -> wOK= | AE53: =HFB!F53 -> 200 | AF53: =HFB!G53 -> [kg/h] | AG53: =HFB!H53 -> wK= | AH53: =IF($AG$9=1,H53,US_to_Metric__Wassermassenstrom__gpm__to__kg_h(H53)) -> 250 | AI53: =HFB!J53 -> [kg/h] | AK53: =HFB!L53 -> DpK = | AL53: =HFB!M53 -> 49.19854746 | AM53: =HFB!N53 -> [kPa]
A54: =Legende_Abkürzungen!$A$21 -> wOH= | B54: =IF($AG$9=1,AE54,Metric_to_US__Wassermassenstrom__kg_h__to__gpm(AE54)) -> 100 | F54: =IF($AG$9=1,"kg/h","gpm") -> kg/h | G54: =Legende_Abkürzungen!$A$23 -> wH= | H54: 100 | I54: =whmin -> 40 | J54: =whmax -> 250 | K54: =IF($AG$9=1,"kg/h","gpm") -> kg/h | L54: =Legende_Abkürzungen!$A$25 -> dpH= | M54: =IF($AG$9=1,AL54,Metric_to_US__Wasserdruck__kPa__to__ft(AL54)) -> 1.8 | N54: =IF($AG$9=1,AM54,"[ft]") -> [kPa] | O54: =AN54 -> Eigenkonvektion Heizen Q_E: | AA54: =HFB!B54 -> wOH= | AE54: =HFB!F54 -> 100 | AF54: =HFB!G54 -> [kg/h] | AG54: =HFB!H54 -> wH= | AH54: =IF($AG$9=1,H54,US_to_Metric__Wassermassenstrom__gpm__to__kg_h(H54)) -> 100 | AI54: =HFB!J54 -> [kg/h] | AK54: =HFB!L54 -> DpH = | AL54: =HFB!M54 -> 1.8 | AM54: =HFB!N54 -> [kPa] | AN54: =HFB!O54 -> Eigenkonvektion Heizen Q_E:
O55: =IF($AG$9=1,AN55,Metric_to_US__Leistung__W__to__BTU_hr(AN55)) -> 218 | P55: =IF($AG$9=1,AO55,"[BTU/hr]") -> W | AN55: =HFB!O55 -> 218 | AO55: =HFB!P55 -> W
O56: =IF($AG$9=2,$AA$1,$AB$1) -> t_Room = | P56: =ROUND(IF($AG$9=1,AO56,Metric_to_US__Leistung__W__to__BTU_hr(AO56)),0) -> 20 | Q56: =IF($AG$9=1,AP56,"°F") -> °C | R56: =IF($AG$9=2,$W$1,$X$1) -> t_WWVL = | S56: =ROUND(IF($AG$9=1,AR56,Metric_to_US__Leistung__W__to__BTU_hr(AR56)),0) -> 55 | T56: =IF($AG$9=1,AS56,"°F") -> °C | AN56: =HFB!O56 -> tR = | AO56: =HFB!P56 -> 20 | AP56: =HFB!Q56 -> °C | AQ56: =HFB!R56 -> tWWVL = | AR56: =HFB!S56 -> 55 | AS56: =HFB!T56 -> °C
A58: ã LTG Aktiengesellschaft: 13-01-2025, EI - V3.6
A59: =L_Angabe -> Angaben zu Toleranzen sowie weitere Spezifikationen sind der aktuellen Technischen Dokumentation der LTG Aktiengesellschaft zu entnehmen.
A60: =L_Fehlerfreiheit -> Diese finden Sie auf www.LTG.de. Eine Fehlerfreiheit des Programms kann nicht zugesichert werden.
A61: =L_Programmierfehler -> Aus Programmierfehlern entstandener Schaden geht nicht zu Lasten der LTG Aktiengesellschaft. Technische Änderungen im Rahmen der Weiterentwicklung vorbehalten.

Sheet HFB (hidden)
A1: Tel. +49 (0)711 8201-212 | F1: Fax: -720 | Q1: Email: | R1: Info@LTG.de | AB1: Deutsch | AC1: 1 | AD1: Deutsch | AE1: =IF(AD1=AB1,AC1,IF(AD1=AB2,AC2,IF(AD1=AB3,AC3,IF(AD1=AB4,AC4,0)))) -> 1
A2: LTG Aktiengesellschaft | AB2: Englisch | AC2: 2
A3: Auslegetool: HFB 4L - Induktionsgerät mit Aluminiumlineargitter | AB3: Franzoesisch | AC3: 3
AB4: Italienisch | AC4: 4
I5: Kühlfall: | N5: Heizfall | X5: BG | Y5: WT | Z5: Verhältnis
A6: Projekt: | J6: Ansaugtemperatur: | K6: =HFB_!Z6 -> 26 | L6: °C | O6: =L_Ansaugtemperatur_K -> Ansaugtemperatur: | P6: =HFB_!AD6 -> 20 | Q6: °C | X6: BG 800 | Y6: 820 | Z6: =Y6/$Y$6 -> 1
J7: Primärlufttemperatur: | K7: =HFB_!Z7 -> 18 | L7: °C | O7: =L_Primaerlufttemp_K -> Primärlufttemperatur: | P7: =HFB_!AD7 -> 18 | Q7: °C | X7: BG 1000 | Y7: 1020 | Z7: =Y7/$Y$6 -> 1.243902439
A8: Datum: | B8: 2018-09-11 | J8: Kühlwasservorlauf (1): | K8: =HFB_!Z8 -> 16 | L8: °C | O8: Heizwasservorlauf: | P8: =HFB_!AD8 -> 60 | Q8: °C | X8: BG 630 | Y8: 590 | Z8: =Y8/$Y$6 -> 0.7195121951
A9: Bearbeiter: | B9: Tielmann, Thomas | J9: projektierte Leistung: | K9: =HFB_!Z9 -> 0 | L9: W | O9: =L_projektierte_Leistung_k -> projektierte Leistung: | Q9: W
J10: Raumtemperatur | K10: =HFB_!Z10 -> 26 | L10: °C | O10: =L_Raumtemperatur_K -> Raumtemperatur | P10: =HFB_!AD10 -> 20 | Q10: °C
I12: Kühlwasservorlauf kondensierender Betrieb (2): | K12: =HFB_!Z12 -> 6 | L12: °C
J13: relative Feuchte (2): | K13: =HFB_!Z13 -> 50 | L13: %
A15: Baugröße 630
B16: Primärvolumenstrom | F16: =HFB_!Z16 -> 60 | G16: m³/h | AE16: Korrektur
A18: Düsen-kasten | B18: VP [m³/h] | C18: dp - kühlen [Pa] | D18: dp - heizen [Pa] | E18: dp - Akustik [Pa] | F18: dp [Pa] | G18: LWA [dB(A)] | H18: LA18 [dB(A)] | I18: QPK [W] | J18: QSK1) [W] | K18: QKges1) [W] | L18: QTotal2) [W] | M18: QSK2) [W] | N18: QKges2) [W] | O18: QPH [W] | P18: QSH [W] | Q18: QHges [W] | R18: tKWRL [°C] | S18: tKWRL2) [°C] | T18: tWWRL [°C] | V18: qSK1) [W] | Y18: Koeffizienten | AB18: Induktionsverhältnis | AC18: Sekundärluft- menge BG630 | AD18: Sekundärluft- menge BG800 | AE18: Total | AF18: Total | AG18: Total | AH18: Sensibel | AI18: Sensibel | AJ18: Sensibel | AK18: Koeffizienten Total | AN18: Korrektur Total bei mW | AO18: Koeffizienten Total | AR18: Korrektur Sensibel bei mW
Y19: a | Z19: b | AA19: c | AB19: [-] | AC19: [m³/h] | AD19: [m³/h] | AE19: =Korrektur_BG800_mw120kg_h!$B$2 -> 120 | AF19: =Korrektur_BG800_mw200kg_h!$B$2 -> 200 | AG19: =Korrektur_BG800_mw280kg_h!$B$2 -> 280 | AH19: =Korrektur_BG800_mw120kg_h!$B$2 -> 120 | AI19: =Korrektur_BG800_mw200kg_h!$B$2 -> 200 | AJ19: =Korrektur_BG800_mw280kg_h!$B$2 -> 280
A20: S | B20: =IF(HFB_630_neu!B16=0,"",HFB_630_neu!B16) ->  | C20: =IF(HFB_630_neu!C16=0,"",HFB_630_neu!C16) -> 412.4171589 | D20: =IF(HFB_630_neu!D16=0,"",HFB_630_neu!D16) -> 409.2155443 | E20: =IF(HFB_630_neu!E16=0,"",HFB_630_neu!E16) -> 426.2051252 | F20: =IF(HFB_630_neu!F16=0,"",HFB_630_neu!F16) -> 426.2051252 | G20: =IF(HFB_630_neu!G16=0,"",HFB_630_neu!G16) -> 44.73391793 | H20: =IF(HFB_630_neu!H16=0,"",HFB_630_neu!H16) -> 38.23391793 | I20: =IF(HFB_630_neu!I16=0,"",HFB_630_neu!I16) ->  | J20: =IF(HFB_630_neu!J16=0,"",HFB_630_neu!J16) ->  | K20: =IF(HFB_630_neu!K16=0,"",HFB_630_neu!K16) ->  | L20: =IFERROR(V20*($K$6-$K$12)*AN20,"") ->  | M20: =IFERROR(V20*($K$6-$K$12)*AR20,"") ->  | N20: =IFERROR(M20+I20,"") ->  | O20: =IF(HFB_630_neu!L16=0,"",HFB_630_neu!L16) ->  | P20: =IF(HFB_630_neu!M16=0,"",HFB_630_neu!M16) ->  | Q20: =HFB_630_neu!N16 -> 0 | R20: =IF(IFERROR(IF(J20=0,,$K$8-((J20/(4.2*$I$25/3.6)))),)=0,"",IFERROR(IF(J20=0,,$K$8-((J20/(4.2*$I$25/3.6)))),)) ->  | S20: =IF(IFERROR(IF(M20=0,,$K$12-((M20/(4.2*$I$25/3.6)))),)=0,"",IFERROR(IF(M20=0,,$K$12-((M20/(4.2*$I$25/3.6)))),)) ->  | T20: =IF(IFERROR(IF(P20=0,,$P$8-((P20/(4.2*$I$26/3.6)))),)=0,"",IFERROR(IF(P20=0,,$P$8-((P20/(4.2*$I$26/3.6)))),)) ->  | V20: =IFERROR(J20/($K$6-$K$8),"") ->  | X20: =A20 -> S | Y20: =LINEST($AL$78:$AL$80,$F$78:$F$80^{0,1,2},0,0) -> -3.122434276e-06 | Z20: 0.002790312267 | AA20: 1.641627219 | AB20: =IF(OR(F20>300,F20<50),"",(Y20*F20^2+Z20*F20+AA20)) ->  | AC20: =IFERROR(AB20*$F$16,"") ->  | AD20: =IFERROR(AC20/$Z$8,"") ->  | AE20: =IFERROR(Korrektur_BG800_mw120kg_h!Q32,"") ->  | AF20: =IFERROR(Korrektur_BG800_mw200kg_h!Q32,"") ->  | AG20: =IFERROR(Korrektur_BG800_mw280kg_h!Q32,"") ->  | AH20: =IFERROR(Korrektur_BG800_mw120kg_h!S32,"") ->  | AI20: =IFERROR(Korrektur_BG800_mw200kg_h!S32,"") ->  | AJ20: =IFERROR(Korrektur_BG800_mw280kg_h!S32,"") ->  | AK20: =LINEST(TRANSPOSE(AE20:AG20),TRANSPOSE(AE19:AG19)^{0,1,2},0,0) ->  | AN20: =AK20*$I$25^2+AL20*$I$25+AM20 ->  | AO20: =LINEST(TRANSPOSE(AH20:AJ20),TRANSPOSE(AH19:AJ19)^{0,1,2},0,0) ->  | AR20: =AO20*$I$25^2+AP20*$I$25+AQ20 -> 
A21: M | B21: =IF(HFB_630_neu!B17=0,"",HFB_630_neu!B17) -> 60 | C21: =IF(HFB_630_neu!C17=0,"",HFB_630_neu!C17) -> 257.8778423 | D21: =IF(HFB_630_neu!D17=0,"",HFB_630_neu!D17) -> 256.0969636 | E21: =IF(HFB_630_neu!E17=0,"",HFB_630_neu!E17) -> 265.3120644 | F21: =IF(HFB_630_neu!F17=0,"",HFB_630_neu!F17) -> 265.3120644 | G21: =IF(HFB_630_neu!G17=0,"",HFB_630_neu!G17) -> 39.68474355 | H21: =IF(HFB_630_neu!H17=0,"",HFB_630_neu!H17) -> 33.18474355 | I21: =IF(HFB_630_neu!I17=0,"",HFB_630_neu!I17) -> -160 | J21: =IF(HFB_630_neu!J17=0,"",HFB_630_neu!J17) -> -340.6980653 | K21: =IF(HFB_630_neu!K17=0,"",HFB_630_neu!K17) -> -500.6980653 | L21: =IFERROR(V21*($K$6-$K$12)*AN21,"") -> -966.1092402 | M21: =IFERROR(V21*($K$6-$K$12)*AR21,"") -> -633.7140647 | N21: =IFERROR(M21+I21,"") -> -793.7140647 | O21: =IF(HFB_630_neu!L17=0,"",HFB_630_neu!L17) -> -40 | P21: =IF(HFB_630_neu!M17=0,"",HFB_630_neu!M17) -> 957.8331414 | Q21: =HFB_630_neu!N17 -> 917.8331414 | R21: =IF(IFERROR(IF(J21=0,,$K$8-((J21/(4.2*$I$25/3.6)))),)=0,"",IFERROR(IF(J21=0,,$K$8-((J21/(4.2*$I$25/3.6)))),)) -> 17.46013457 | S21: =IF(IFERROR(IF(M21=0,,$K$12-((M21/(4.2*$I$25/3.6)))),)=0,"",IFERROR(IF(M21=0,,$K$12-((M21/(4.2*$I$25/3.6)))),)) -> 8.71591742 | T21: =IF(IFERROR(IF(P21=0,,$P$8-((P21/(4.2*$I$26/3.6)))),)=0,"",IFERROR(IF(P21=0,,$P$8-((P21/(4.2*$I$26/3.6)))),)) -> 51.79000165 | V21: =IFERROR(J21/($K$6-$K$8),"") -> -34.06980653 | X21: =A21 -> M | Y21: =LINEST($AL$81:$AL$83,$F$81:$F$83^{0,1,2},0,0) -> -6.016788896e-06 | Z21: 0.003738871723 | AA21: 1.397117062 | AB21: =IF(OR(F21>300,F21<50),"",(Y21*F21^2+Z21*F21+AA21)) -> 1.965560109 | AC21: =IFERROR(AB21*$F$16,"") -> 117.9336066 | AD21: =IFERROR(AC21/$Z$8,"") -> 163.9077244 | AE21: =IFERROR(Korrektur_BG800_mw120kg_h!Q33,"") -> 1.262220203 | AF21: =IFERROR(Korrektur_BG800_mw200kg_h!Q33,"") -> 1.417837872 | AG21: =IFERROR(Korrektur_BG800_mw280kg_h!Q33,"") -> 1.478648696 | AH21: =IFERROR(Korrektur_BG800_mw120kg_h!S33,"") -> 0.8943665661 | AI21: =IFERROR(Korrektur_BG800_mw200kg_h!S33,"") -> 0.9300229869 | AJ21: =IFERROR(Korrektur_BG800_mw280kg_h!S33,"") -> 0.946414342 | AK21: =LINEST(TRANSPOSE(AE21:AG21),TRANSPOSE(AE19:AG19)^{0,1,2},0,0) -> -7.406784851e-06 | AL21: 0.004315392017 | AM21: 0.8510308631 | AN21: =AK21*$I$25^2+AL21*$I$25+AM21 -> 1.417837872 | AO21: =LINEST(TRANSPOSE(AH21:AJ21),TRANSPOSE(AH19:AJ19)^{0,1,2},0,0) -> -1.505083258e-06 | AP21: 0.0009273319026 | AQ21: 0.8047599367 | AR21: =AO21*$I$25^2+AP21*$I$25+AQ21 -> 0.9300229869
A22: L | B22: =IF(HFB_630_neu!B18=0,"",HFB_630_neu!B18) -> 60 | C22: =IF(HFB_630_neu!C18=0,"",HFB_630_neu!C18) -> 165.8662915 | D22: =IF(HFB_630_neu!D18=0,"",HFB_630_neu!D18) -> 164.8545673 | E22: =IF(HFB_630_neu!E18=0,"",HFB_630_neu!E18) -> 169.9334101 | F22: =IF(HFB_630_neu!F18=0,"",HFB_630_neu!F18) -> 169.9334101 | G22: =IF(HFB_630_neu!G18=0,"",HFB_630_neu!G18) -> 34.93929819 | H22: =IF(HFB_630_neu!H18=0,"",HFB_630_neu!H18) -> 28.43929819 | I22: =IF(HFB_630_neu!I18=0,"",HFB_630_neu!I18) -> -160 | J22: =IF(HFB_630_neu!J18=0,"",HFB_630_neu!J18) -> -288.1212349 | K22: =IF(HFB_630_neu!K18=0,"",HFB_630_neu!K18) -> -448.1212349 | L22: =IFERROR(V22*($K$6-$K$12)*AN22,"") -> -840.803545 | M22: =IFERROR(V22*($K$6-$K$12)*AR22,"") -> -543.0550897 | N22: =IFERROR(M22+I22,"") -> -703.0550897 | O22: =IF(HFB_630_neu!L18=0,"",HFB_630_neu!L18) -> -40 | P22: =IF(HFB_630_neu!M18=0,"",HFB_630_neu!M18) -> 869.8474469 | Q22: =HFB_630_neu!N18 -> 829.8474469 | R22: =IF(IFERROR(IF(J22=0,,$K$8-((J22/(4.2*$I$25/3.6)))),)=0,"",IFERROR(IF(J22=0,,$K$8-((J22/(4.2*$I$25/3.6)))),)) -> 17.23480529 | S22: =IF(IFERROR(IF(M22=0,,$K$12-((M22/(4.2*$I$25/3.6)))),)=0,"",IFERROR(IF(M22=0,,$K$12-((M22/(4.2*$I$25/3.6)))),)) -> 8.327378956 | T22: =IF(IFERROR(IF(P22=0,,$P$8-((P22/(4.2*$I$26/3.6)))),)=0,"",IFERROR(IF(P22=0,,$P$8-((P22/(4.2*$I$26/3.6)))),)) -> 52.54416474 | V22: =IFERROR(J22/($K$6-$K$8),"") -> -28.81212349 | X22: =A22 -> L | Y22: =LINEST($AL$84:$AL$86,$F$84:$F$86^{0,1,2},0,0) -> -7.666541653e-06 | Z22: 0.003871499319 | AA22: 1.164847113 | AB22: =IF(OR(F22>300,F22<50),"",(Y22*F22^2+Z22*F22+AA22)) -> 1.601354682 | AC22: =IFERROR(AB22*$F$16,"") -> 96.0812809 | AD22: =IFERROR(AC22/$Z$8,"") -> 133.5366955 | AE22: =IFERROR(Korrektur_BG800_mw120kg_h!Q34,"") -> 1.328437382 | AF22: =IFERROR(Korrektur_BG800_mw200kg_h!Q34,"") -> 1.459114156 | AG22: =IFERROR(Korrektur_BG800_mw280kg_h!Q34,"") -> 1.511182008 | AH22: =IFERROR(Korrektur_BG800_mw120kg_h!S34,"") -> 0.9075236279 | AI22: =IFERROR(Korrektur_BG800_mw200kg_h!S34,"") -> 0.9424072644 | AJ22: =IFERROR(Korrektur_BG800_mw280kg_h!S34,"") -> 0.9571809013 | AK22: =LINEST(TRANSPOSE(AE22:AG22),TRANSPOSE(AE19:AG19)^{0,1,2},0,0) -> -6.141322017e-06 | AL22: 0.003598682724 | AM22: 0.985030492 | AN22: =AK22*$I$25^2+AL22*$I$25+AM22 -> 1.459114156 | AO22: =LINEST(TRANSPOSE(AH22:AJ22),TRANSPOSE(AH19:AJ19)^{0,1,2},0,0) -> -1.571093724e-06 | AP22: 0.0009387954485 | AQ22: 0.8174919237 | AR22: =AO22*$I$25^2+AP22*$I$25+AQ22 -> 0.9424072644
A23: XL | B23: =IF(HFB_630_neu!B19=0,"",HFB_630_neu!B19) -> 60 | C23: =IF(HFB_630_neu!C19=0,"",HFB_630_neu!C19) -> 120.8984539 | D23: =IF(HFB_630_neu!D19=0,"",HFB_630_neu!D19) -> 120.2309155 | E23: =IF(HFB_630_neu!E19=0,"",HFB_630_neu!E19) -> 123.4910638 | F23: =IF(HFB_630_neu!F19=0,"",HFB_630_neu!F19) -> 123.4910638 | G23: =IF(HFB_630_neu!G19=0,"",HFB_630_neu!G19) -> 31.5387919 | H23: =IF(HFB_630_neu!H19=0,"",HFB_630_neu!H19) -> 25.0387919 | I23: =IF(HFB_630_neu!I19=0,"",HFB_630_neu!I19) -> -160 | J23: =IF(HFB_630_neu!J19=0,"",HFB_630_neu!J19) -> -247.0923608 | K23: =IF(HFB_630_neu!K19=0,"",HFB_630_neu!K19) -> -407.0923608 | L23: =IFERROR(V23*($K$6-$K$12)*AN23,"") -> -736.2460672 | M23: =IFERROR(V23*($K$6-$K$12)*AR23,"") -> -470.748934 | N23: =IFERROR(M23+I23,"") -> -630.748934 | O23: =IF(HFB_630_neu!L19=0,"",HFB_630_neu!L19) -> -40 | P23: =IF(HFB_630_neu!M19=0,"",HFB_630_neu!M19) -> 821.1723682 | Q23: =HFB_630_neu!N19 -> 781.1723682 | R23: =IF(IFERROR(IF(J23=0,,$K$8-((J23/(4.2*$I$25/3.6)))),)=0,"",IFERROR(IF(J23=0,,$K$8-((J23/(4.2*$I$25/3.6)))),)) -> 17.05896726 | S23: =IF(IFERROR(IF(M23=0,,$K$12-((M23/(4.2*$I$25/3.6)))),)=0,"",IFERROR(IF(M23=0,,$K$12-((M23/(4.2*$I$25/3.6)))),)) -> 8.017495431 | T23: =IF(IFERROR(IF(P23=0,,$P$8-((P23/(4.2*$I$26/3.6)))),)=0,"",IFERROR(IF(P23=0,,$P$8-((P23/(4.2*$I$26/3.6)))),)) -> 52.9613797 | V23: =IFERROR(J23/($K$6-$K$8),"") -> -24.70923608 | X23: =A23 -> XL | Y23: =LINEST($AL$87:$AL$89,$F$87:$F$89^{0,1,2},0,0) -> -8.624707657e-06 | Z23: 0.004282940211 | AA23: 0.932958633 | AB23: =IF(OR(F23>300,F23<50),"",(Y23*F23^2+Z23*F23+AA23)) -> 1.330336315 | AC23: =IFERROR(AB23*$F$16,"") -> 79.82017887 | AD23: =IFERROR(AC23/$Z$8,"") -> 110.9365198 | AE23: =IFERROR(Korrektur_BG800_mw120kg_h!Q35,"") -> 1.384178366 | AF23: =IFERROR(Korrektur_BG800_mw200kg_h!Q35,"") -> 1.489819566 | AG23: =IFERROR(Korrektur_BG800_mw280kg_h!Q35,"") -> 1.535910244 | AH23: =IFERROR(Korrektur_BG800_mw120kg_h!S35,"") -> 0.9208050361 | AI23: =IFERROR(Korrektur_BG800_mw200kg_h!S35,"") -> 0.9525768674 | AJ23: =IFERROR(Korrektur_BG800_mw280kg_h!S35,"") -> 0.9666936037 | AK23: =LINEST(TRANSPOSE(AE23:AG23),TRANSPOSE(AE19:AG19)^{0,1,2},0,0) -> -4.652384517e-06 | AL23: 0.002809278044 | AM23: 1.114059338 | AN23: =AK23*$I$25^2+AL23*$I$25+AM23 -> 1.489819566 | AO23: =LINEST(TRANSPOSE(AH23:AJ23),TRANSPOSE(AH19:AJ19)^{0,1,2},0,0) -> -1.379304299e-06 | AP23: 0.0008385252672 | AQ23: 0.8400439859 | AR23: =AO23*$I$25^2+AP23*$I$25+AQ23 -> 0.9525768674
B25: wOK= | F25: =wok -> 200 | G25: [kg/h] | H25: wK= | I25: =HFB_!AH25 -> 200 | J25: [kg/h] | L25: DpK = | M25: =HFB_630_neu!M21 -> 22.40221716 | N25: [kPa]
B26: wOH= | F26: =woh -> 100 | G26: [kg/h] | H26: wH= | I26: =HFB_!AH26 -> 100 | J26: [kg/h] | L26: DpH = | M26: =HFB_630_neu!M22 -> 1.3 | N26: [kPa] | O26: Eigenkonvektion Heizen Q_E:
H27: =IF(I25/F25<0.2,"Kaltwassermenge mind. 20% von Nennwassermenge!","") ->  | O27: 126 | P27: W
H28: =IF(I26/F26<0.4,"Heizwassermenge mind. 40% von Nennwassermenge!","") ->  | O28: tR = | P28: 20 | Q28: °C | R28: tWWVL = | S28: 55 | T28: °C
A29: Baugröße 800
B30: =L_Primärvolumenstrom -> Primärvolumenstrom | F30: =HFB_!Z30 -> 80 | G30: m³/h
AE31: Korrektur
A32: =L_Düsenkasten -> Düsen-kasten | B32: VP [m³/h] | C32: dp - kühlen [Pa] | D32: dp - heizen [Pa] | E32: dp - Akustik [Pa] | F32: dp [Pa] | G32: LWA [dB(A)] | H32: LA18 [dB(A)] | I32: QPK [W] | J32: QSK1) [W] | K32: QKges1) [W] | L32: QTotal2) [W] | M32: QSK2) [W] | N32: QKges2) [W] | O32: QPH [W] | P32: QSH [W] | Q32: QHges [W] | R32: tKWRL [°C] | S32: tKWRL2) [°C] | T32: tWWRL [°C] | V32: qSK1) [W] | Y32: Koeffizienten | AB32: Induktionsverhältnis | AC32: Sekundärluft- menge BG800 | AD32: Sekundärluft- menge BG800 | AE32: Total | AF32: Total | AG32: Total | AH32: Sensibel | AI32: Sensibel | AJ32: Sensibel | AK32: Koeffizienten Total | AN32: Korrektur Total bei mW | AO32: Koeffizienten Total | AR32: Korrektur Sensibel bei mW
Y33: a | Z33: b | AA33: c | AB33: [-] | AC33: [m³/h] | AD33: [m³/h] | AE33: =Korrektur_BG800_mw120kg_h!$B$2 -> 120 | AF33: =Korrektur_BG800_mw200kg_h!$B$2 -> 200 | AG33: =Korrektur_BG800_mw280kg_h!$B$2 -> 280 | AH33: =Korrektur_BG800_mw120kg_h!$B$2 -> 120 | AI33: =Korrektur_BG800_mw200kg_h!$B$2 -> 200 | AJ33: =Korrektur_BG800_mw280kg_h!$B$2 -> 280
A34: S | B34: =IF('HFB 800_neu'!B16=0,"",'HFB 800_neu'!B16) ->  | C34: =IF('HFB 800_neu'!C16=0,"",'HFB 800_neu'!C16) -> 388.226059 | D34: =IF('HFB 800_neu'!D16=0,"",'HFB 800_neu'!D16) -> 385.6555988 | E34: =IF('HFB 800_neu'!E16=0,"",'HFB 800_neu'!E16) -> 398.8234976 | F34: =IF('HFB 800_neu'!F16=0,"",'HFB 800_neu'!F16) -> 398.8234976 | G34: =IF('HFB 800_neu'!G16=0,"",'HFB 800_neu'!G16) -> 45.12781206 | H34: =IF('HFB 800_neu'!H16=0,"",'HFB 800_neu'!H16) -> 38.62781206 | I34: =IF('HFB 800_neu'!I16=0,"",'HFB 800_neu'!I16) ->  | J34: =IF('HFB 800_neu'!J16=0,"",'HFB 800_neu'!J16) ->  | K34: =IF('HFB 800_neu'!K16=0,"",'HFB 800_neu'!K16) ->  | L34: =IFERROR(V34*($K$6-$K$12)*AN34,"") ->  | M34: =IFERROR(V34*($K$6-$K$12)*AR34,"") ->  | N34: =IFERROR(M34+I34,"") ->  | O34: =IF('HFB 800_neu'!L16=0,"",'HFB 800_neu'!L16) ->  | P34: =IF('HFB 800_neu'!M16=0,"",'HFB 800_neu'!M16) ->  | Q34: ='HFB 800_neu'!N16 -> 0 | R34: =IF(IFERROR(IF(J34=0,,$K$8-((J34/(4.2*$I$39/3.6)))),)=0,"",IFERROR(IF(J34=0,,$K$8-((J34/(4.2*$I$39/3.6)))),)) ->  | S34: =IF(IFERROR(IF(M34=0,,$K$12-((M34/(4.2*$I$25/3.6)))),)=0,"",IFERROR(IF(M34=0,,$K$12-((M34/(4.2*$I$25/3.6)))),)) ->  | T34: =IF(IFERROR(IF(P34=0,,$P$8-((P34/(4.2*$I$40/3.6)))),)=0,"",IFERROR(IF(P34=0,,$P$8-((P34/(4.2*$I$40/3.6)))),)) ->  | V34: =IFERROR(J34/($K$6-$K$8),"") ->  | X34: =A34 -> S | Y34: =LINEST($AL$78:$AL$80,$F$78:$F$80^{0,1,2},0,0) -> -3.122434276e-06 | Z34: 0.002790312267 | AA34: 1.641627219 | AB34: =IF(OR(F34>300,F34<50),"",(Y34*F34^2+Z34*F34+AA34)) ->  | AC34: =IFERROR(AB34*$F$30,"") ->  | AD34: =IFERROR(AC34/$Z$6,"") ->  | AE34: =IFERROR(Korrektur_BG800_mw120kg_h!Q36,"") ->  | AF34: =IFERROR(Korrektur_BG800_mw200kg_h!Q36,"") ->  | AG34: =IFERROR(Korrektur_BG800_mw280kg_h!Q36,"") ->  | AH34: =IFERROR(Korrektur_BG800_mw120kg_h!S36,"") ->  | AI34: =IFERROR(Korrektur_BG800_mw200kg_h!S36,"") ->  | AJ34: =IFERROR(Korrektur_BG800_mw280kg_h!S36,"") ->  | AK34: =LINEST(TRANSPOSE(AE34:AG34),TRANSPOSE(AE33:AG33)^{0,1,2},0,0) ->  | AN34: =AK34*$I$39^2+AL34*$I$39+AM34 ->  | AO34: =LINEST(TRANSPOSE(AH34:AJ34),TRANSPOSE(AH33:AJ33)^{0,1,2},0,0) ->  | AR34: =AO34*$I$39^2+AP34*$I$39+AQ34 -> 
A35: M | B35: =IF('HFB 800_neu'!B17=0,"",'HFB 800_neu'!B17) -> 80 | C35: =IF('HFB 800_neu'!C17=0,"",'HFB 800_neu'!C17) -> 233.4323564 | D35: =IF('HFB 800_neu'!D17=0,"",'HFB 800_neu'!D17) -> 232.0196137 | E35: =IF('HFB 800_neu'!E17=0,"",'HFB 800_neu'!E17) -> 239.226315 | F35: =IF('HFB 800_neu'!F17=0,"",'HFB 800_neu'!F17) -> 239.226315 | G35: =IF('HFB 800_neu'!G17=0,"",'HFB 800_neu'!G17) -> 39.6981485 | H35: =IF('HFB 800_neu'!H17=0,"",'HFB 800_neu'!H17) -> 33.1981485 | I35: =IF('HFB 800_neu'!I17=0,"",'HFB 800_neu'!I17) -> -210 | J35: =IF('HFB 800_neu'!J17=0,"",'HFB 800_neu'!J17) -> -453.3269859 | K35: =IF('HFB 800_neu'!K17=0,"",'HFB 800_neu'!K17) -> -663.3269859 | L35: =IFERROR(V35*($K$6-$K$12)*AN35,"") -> -1295.439232 | M35: =IFERROR(V35*($K$6-$K$12)*AR35,"") -> -846.1694834 | N35: =IFERROR(M35+I35,"") -> -1056.169483 | O35: =IF('HFB 800_neu'!L17=0,"",'HFB 800_neu'!L17) -> -50 | P35: =IF('HFB 800_neu'!M17=0,"",'HFB 800_neu'!M17) -> 1235.501502 | Q35: ='HFB 800_neu'!N17 -> 1185.501502 | R35: =IF(IFERROR(IF(J35=0,,$K$8-((J35/(4.2*$I$39/3.6)))),)=0,"",IFERROR(IF(J35=0,,$K$8-((J35/(4.2*$I$39/3.6)))),)) -> 17.94282994 | S35: =IF(IFERROR(IF(M35=0,,$K$12-((M35/(4.2*$I$25/3.6)))),)=0,"",IFERROR(IF(M35=0,,$K$12-((M35/(4.2*$I$25/3.6)))),)) -> 9.626440643 | T35: =IF(IFERROR(IF(P35=0,,$P$8-((P35/(4.2*$I$40/3.6)))),)=0,"",IFERROR(IF(P35=0,,$P$8-((P35/(4.2*$I$40/3.6)))),)) -> 49.40998713 | V35: =IFERROR(J35/($K$6-$K$8),"") -> -45.33269859 | X35: =A35 -> M | Y35: =LINEST($AL$81:$AL$83,$F$81:$F$83^{0,1,2},0,0) -> -6.016788896e-06 | Z35: 0.003738871723 | AA35: 1.397117062 | AB35: =IF(OR(F35>300,F35<50),"",(Y35*F35^2+Z35*F35+AA35)) -> 1.947217372 | AC35: =IFERROR(AB35*$F$30,"") -> 155.7773898 | AD35: =IFERROR(AC35/$Z$6,"") -> 155.7773898 | AE35: =IFERROR(Korrektur_BG800_mw120kg_h!Q37,"") -> 1.278792667 | AF35: =IFERROR(Korrektur_BG800_mw200kg_h!Q37,"") -> 1.428813276 | AG35: =IFERROR(Korrektur_BG800_mw280kg_h!Q37,"") -> 1.486910365 | AH35: =IFERROR(Korrektur_BG800_mw120kg_h!S37,"") -> 0.8972562054 | AI35: =IFERROR(Korrektur_BG800_mw200kg_h!S37,"") -> 0.933288233 | AJ35: =IFERROR(Korrektur_BG800_mw280kg_h!S37,"") -> 0.9490251329 | AK35: =LINEST(TRANSPOSE(AE35:AG35),TRANSPOSE(AE33:AG33)^{0,1,2},0,0) -> -7.181525021e-06 | AL35: 0.004173345621 | AM35: 0.881405153 | AN35: =AK35*$I$39^2+AL35*$I$39+AM35 -> 1.428813276 | AO35: =LINEST(TRANSPOSE(AH35:AJ35),TRANSPOSE(AH33:AJ33)^{0,1,2},0,0) -> -1.585556855e-06 | AP35: 0.000957778539 | AQ35: 0.8051547994 | AR35: =AO35*$I$39^2+AP35*$I$39+AQ35 -> 0.933288233
A36: L | B36: =IF('HFB 800_neu'!B18=0,"",'HFB 800_neu'!B18) -> 80 | C36: =IF('HFB 800_neu'!C18=0,"",'HFB 800_neu'!C18) -> 148.7682271 | D36: =IF('HFB 800_neu'!D18=0,"",'HFB 800_neu'!D18) -> 147.9428811 | E36: =IF('HFB 800_neu'!E18=0,"",'HFB 800_neu'!E18) -> 152.1352425 | F36: =IF('HFB 800_neu'!F18=0,"",'HFB 800_neu'!F18) -> 152.1352425 | G36: =IF('HFB 800_neu'!G18=0,"",'HFB 800_neu'!G18) -> 34.88961632 | H36: =IF('HFB 800_neu'!H18=0,"",'HFB 800_neu'!H18) -> 28.38961632 | I36: =IF('HFB 800_neu'!I18=0,"",'HFB 800_neu'!I18) -> -210 | J36: =IF('HFB 800_neu'!J18=0,"",'HFB 800_neu'!J18) -> -383.6178657 | K36: =IF('HFB 800_neu'!K18=0,"",'HFB 800_neu'!K18) -> -593.6178657 | L36: =IFERROR(V36*($K$6-$K$12)*AN36,"") -> -1127.255579 | M36: =IFERROR(V36*($K$6-$K$12)*AR36,"") -> -725.5051537 | N36: =IFERROR(M36+I36,"") -> -935.5051537 | O36: =IF('HFB 800_neu'!L18=0,"",'HFB 800_neu'!L18) -> -50 | P36: =IF('HFB 800_neu'!M18=0,"",'HFB 800_neu'!M18) -> 1109.878594 | Q36: ='HFB 800_neu'!N18 -> 1059.878594 | R36: =IF(IFERROR(IF(J36=0,,$K$8-((J36/(4.2*$I$39/3.6)))),)=0,"",IFERROR(IF(J36=0,,$K$8-((J36/(4.2*$I$39/3.6)))),)) -> 17.64407657 | S36: =IF(IFERROR(IF(M36=0,,$K$12-((M36/(4.2*$I$25/3.6)))),)=0,"",IFERROR(IF(M36=0,,$K$12-((M36/(4.2*$I$25/3.6)))),)) -> 9.109307802 | T36: =IF(IFERROR(IF(P36=0,,$P$8-((P36/(4.2*$I$40/3.6)))),)=0,"",IFERROR(IF(P36=0,,$P$8-((P36/(4.2*$I$40/3.6)))),)) -> 50.48675491 | V36: =IFERROR(J36/($K$6-$K$8),"") -> -38.36178657 | X36: =A36 -> L | Y36: =LINEST($AL$84:$AL$86,$F$84:$F$86^{0,1,2},0,0) -> -7.666541653e-06 | Z36: 0.003871499319 | AA36: 1.164847113 | AB36: =IF(OR(F36>300,F36<50),"",(Y36*F36^2+Z36*F36+AA36)) -> 1.576395482 | AC36: =IFERROR(AB36*$F$30,"") -> 126.1116386 | AD36: =IFERROR(AC36/$Z$6,"") -> 126.1116386 | AE36: =IFERROR(Korrektur_BG800_mw120kg_h!Q38,"") -> 1.346234959 | AF36: =IFERROR(Korrektur_BG800_mw200kg_h!Q38,"") -> 1.469242807 | AG36: =IFERROR(Korrektur_BG800_mw280kg_h!Q38,"") -> 1.519451236 | AH36: =IFERROR(Korrektur_BG800_mw120kg_h!S38,"") -> 0.9116138294 | AI36: =IFERROR(Korrektur_BG800_mw200kg_h!S38,"") -> 0.9456091839 | AJ36: =IFERROR(Korrektur_BG800_mw280kg_h!S38,"") -> 0.9601884223 | AK36: =LINEST(TRANSPOSE(AE36:AG36),TRANSPOSE(AE33:AG33)^{0,1,2},0,0) -> -5.687454585e-06 | AL36: 0.003357583562 | AM36: 1.025224278 | AN36: =AK36*$I$39^2+AL36*$I$39+AM36 -> 1.469242807 | AO36: =LINEST(TRANSPOSE(AH36:AJ36),TRANSPOSE(AH33:AJ33)^{0,1,2},0,0) -> -1.516884062e-06 | AP36: 0.0009103448305 | AQ36: 0.8242155802 | AR36: =AO36*$I$39^2+AP36*$I$39+AQ36 -> 0.9456091839
A37: XL | B37: =IF('HFB 800_neu'!B19=0,"",'HFB 800_neu'!B19) -> 80 | C37: =IF('HFB 800_neu'!C19=0,"",'HFB 800_neu'!C19) -> 110.0065211 | D37: =IF('HFB 800_neu'!D19=0,"",'HFB 800_neu'!D19) -> 109.4333972 | E37: =IF('HFB 800_neu'!E19=0,"",'HFB 800_neu'!E19) -> 112.3352659 | F37: =IF('HFB 800_neu'!F19=0,"",'HFB 800_neu'!F19) -> 112.3352659 | G37: =IF('HFB 800_neu'!G19=0,"",'HFB 800_neu'!G19) -> 31.66776025 | H37: =IF('HFB 800_neu'!H19=0,"",'HFB 800_neu'!H19) -> 25.16776025 | I37: =IF('HFB 800_neu'!I19=0,"",'HFB 800_neu'!I19) -> -210 | J37: =IF('HFB 800_neu'!J19=0,"",'HFB 800_neu'!J19) -> -330.224912 | K37: =IF('HFB 800_neu'!K19=0,"",'HFB 800_neu'!K19) -> -540.224912 | L37: =IFERROR(V37*($K$6-$K$12)*AN37,"") -> -989.7279765 | M37: =IFERROR(V37*($K$6-$K$12)*AR37,"") -> -631.2522914 | N37: =IFERROR(M37+I37,"") -> -841.2522914 | O37: =IF('HFB 800_neu'!L19=0,"",'HFB 800_neu'!L19) -> -50 | P37: =IF('HFB 800_neu'!M19=0,"",'HFB 800_neu'!M19) -> 1050.005816 | Q37: ='HFB 800_neu'!N19 -> 1000.005816 | R37: =IF(IFERROR(IF(J37=0,,$K$8-((J37/(4.2*$I$39/3.6)))),)=0,"",IFERROR(IF(J37=0,,$K$8-((J37/(4.2*$I$39/3.6)))),)) -> 17.41524962 | S37: =IF(IFERROR(IF(M37=0,,$K$12-((M37/(4.2*$I$25/3.6)))),)=0,"",IFERROR(IF(M37=0,,$K$12-((M37/(4.2*$I$25/3.6)))),)) -> 8.705366963 | T37: =IF(IFERROR(IF(P37=0,,$P$8-((P37/(4.2*$I$40/3.6)))),)=0,"",IFERROR(IF(P37=0,,$P$8-((P37/(4.2*$I$40/3.6)))),)) -> 50.99995015 | V37: =IFERROR(J37/($K$6-$K$8),"") -> -33.0224912 | X37: =A37 -> XL | Y37: =LINEST($AL$87:$AL$89,$F$87:$F$89^{0,1,2},0,0) -> -8.624707657e-06 | Z37: 0.004282940211 | AA37: 0.932958633 | AB37: =IF(OR(F37>300,F37<50),"",(Y37*F37^2+Z37*F37+AA37)) -> 1.305246846 | AC37: =IFERROR(AB37*$F$30,"") -> 104.4197477 | AD37: =IFERROR(AC37/$Z$6,"") -> 104.4197477 | AE37: =IFERROR(Korrektur_BG800_mw120kg_h!Q39,"") -> 1.401029565 | AF37: =IFERROR(Korrektur_BG800_mw200kg_h!Q39,"") -> 1.498566493 | AG37: =IFERROR(Korrektur_BG800_mw280kg_h!Q39,"") -> 1.542609058 | AH37: =IFERROR(Korrektur_BG800_mw120kg_h!S39,"") -> 0.9250414999 | AI37: =IFERROR(Korrektur_BG800_mw200kg_h!S39,"") -> 0.9557914448 | AJ37: =IFERROR(Korrektur_BG800_mw280kg_h!S39,"") -> 0.9696122415 | AK37: =LINEST(TRANSPOSE(AE37:AG37),TRANSPOSE(AE33:AG33)^{0,1,2},0,0) -> -4.17924709e-06 | AL37: 0.002556570667 | AM37: 1.154422243 | AN37: =AK37*$I$39^2+AL37*$I$39+AM37 -> 1.498566493 | AO37: =LINEST(TRANSPOSE(AH37:AJ37),TRANSPOSE(AH33:AJ33)^{0,1,2},0,0) -> -1.322589704e-06 | AP37: 0.0008076030168 | AQ37: 0.8471744296 | AR37: =AO37*$I$39^2+AP37*$I$39+AQ37 -> 0.9557914448
B39: wOK= | F39: =wok -> 200 | G39: [kg/h] | H39: wK= | I39: =HFB_!AH39 -> 200 | J39: [kg/h] | L39: DpK = | M39: ='HFB 800_neu'!M21 -> 27.92230502 | N39: [kPa]
B40: wOH= | F40: =woh -> 100 | G40: [kg/h] | H40: wH= | I40: =HFB_!AH40 -> 100 | J40: [kg/h] | L40: DpH = | M40: ='HFB 800_neu'!M22 -> 1.6 | N40: [kPa] | O40: =L_Konvektion -> Eigenkonvektion Heizen Q_E:
H41: =IF(I39/F39<0.2,"Kaltwassermenge mind. 20% von Nennwassermenge!","") ->  | O41: 175 | P41: W
H42: =IF(I40/F40<0.4,"Heizwassermenge mind. 40% von Nennwassermenge!","") ->  | O42: tR = | P42: 20 | Q42: °C | R42: tWWVL = | S42: 55 | T42: °C
A43: Baugröße 1000
B44: =L_Primärvolumenstrom -> Primärvolumenstrom | F44: =HFB_!Z44 -> 127 | G44: m³/h
AE45: Korrektur
A46: =L_Düsenkasten -> Düsen-kasten | B46: VP [m³/h] | C46: dp - kühlen [Pa] | D46: dp - heizen [Pa] | E46: dp - Akustik [Pa] | F46: dp [Pa] | G46: LWA [dB(A)] | H46: LA18 [dB(A)] | I46: QPK [W] | J46: QSK1) [W] | K46: QKges1) [W] | L46: QTotal2) [W] | M46: QSK2) [W] | N46: QKges2) [W] | O46: QPH [W] | P46: QSH [W] | Q46: QHges [W] | R46: tKWRL [°C] | S46: tKWRL2) [°C] | T46: tWWRL [°C] | V46: qSK1) [W] | Y46: Koeffizienten | AB46: Induktionsverhältnis | AC46: Sekundärluft- menge BG1000 | AD46: Sekundärluft- menge BG800 | AE46: Total | AF46: Total | AG46: Total | AH46: Sensibel | AI46: Sensibel | AJ46: Sensibel | AK46: Koeffizienten Total | AN46: Korrektur Total bei mW | AO46: Koeffizienten Total | AR46: Korrektur Sensibel bei mW
Y47: a | Z47: b | AA47: c | AB47: [-] | AC47: [m³/h] | AD47: [m³/h] | AE47: =Korrektur_BG800_mw120kg_h!$B$2 -> 120 | AF47: =Korrektur_BG800_mw200kg_h!$B$2 -> 200 | AG47: =Korrektur_BG800_mw280kg_h!$B$2 -> 280 | AH47: =Korrektur_BG800_mw120kg_h!$B$2 -> 120 | AI47: =Korrektur_BG800_mw200kg_h!$B$2 -> 200 | AJ47: =Korrektur_BG800_mw280kg_h!$B$2 -> 280
A48: S | B48: =IF('HFB 1000_neu'!B16=0,"",'HFB 1000_neu'!B16) ->  | C48: =IF('HFB 1000_neu'!C16=0,"",'HFB 1000_neu'!C16) -> 633.9734171 | D48: =IF('HFB 1000_neu'!D16=0,"",'HFB 1000_neu'!D16) -> 625.3716667 | E48: =IF('HFB 1000_neu'!E16=0,"",'HFB 1000_neu'!E16) -> 675.3805846 | F48: =IF('HFB 1000_neu'!F16=0,"",'HFB 1000_neu'!F16) -> 675.3805846 | G48: =IF('HFB 1000_neu'!G16=0,"",'HFB 1000_neu'!G16) -> 53.61722318 | H48: =IF('HFB 1000_neu'!H16=0,"",'HFB 1000_neu'!H16) -> 47.11722318 | I48: =IF('HFB 1000_neu'!I16=0,"",'HFB 1000_neu'!I16) ->  | J48: =IF('HFB 1000_neu'!J16=0,"",'HFB 1000_neu'!J16) ->  | K48: =IF('HFB 1000_neu'!K16=0,"",'HFB 1000_neu'!K16) ->  | L48: =IFERROR(V48*($K$6-$K$12)*AN48,"") ->  | M48: =IFERROR(V48*($K$6-$K$12)*AR48,"") ->  | N48: =IFERROR(M48+I48,"") ->  | O48: =IF('HFB 1000_neu'!L16=0,"",'HFB 1000_neu'!L16) ->  | P48: =IF('HFB 1000_neu'!M16=0,"",'HFB 1000_neu'!M16) ->  | Q48: =IF('HFB 1000_neu'!N16=0,,'HFB 1000_neu'!N16) -> 0 | R48: =IF(IFERROR(IF(J48=0,,$K$8-((J48/(4.2*$I$53/3.6)))),)=0,"",IFERROR(IF(J48=0,,$K$8-((J48/(4.2*$I$53/3.6)))),)) ->  | S48: =IF(IFERROR(IF(M48=0,,$K$12-((M48/(4.2*$I$25/3.6)))),)=0,"",IFERROR(IF(M48=0,,$K$12-((M48/(4.2*$I$25/3.6)))),)) ->  | T48: =IF(IFERROR(IF(P48=0,,$P$8-((P48/(4.2*$I$54/3.6)))),)=0,"",IFERROR(IF(P48=0,,$P$8-((P48/(4.2*$I$54/3.6)))),)) ->  | V48: =IFERROR(J48/($K$6-$K$8),"") ->  | X48: =A48 -> S | Y48: =LINEST($AL$78:$AL$80,$F$78:$F$80^{0,1,2},0,0) -> -3.122434276e-06 | Z48: 0.002790312267 | AA48: 1.641627219 | AB48: =IF(OR(F48>300,F48<50),"",(Y48*F48^2+Z48*F48+AA48)) ->  | AC48: =IFERROR(AB48*$F$44,"") ->  | AD48: =IFERROR(AC48/$Z$7,"") ->  | AE48: =IFERROR(Korrektur_BG800_mw120kg_h!Q40,"") ->  | AF48: =IFERROR(Korrektur_BG800_mw200kg_h!Q40,"") ->  | AG48: =IFERROR(Korrektur_BG800_mw280kg_h!Q40,"") ->  | AH48: =IFERROR(Korrektur_BG800_mw120kg_h!S40,"") ->  | AI48: =IFERROR(Korrektur_BG800_mw200kg_h!S40,"") ->  | AJ48: =IFERROR(Korrektur_BG800_mw280kg_h!S40,"") ->  | AK48: =LINEST(TRANSPOSE(AE48:AG48),TRANSPOSE(AE47:AG47)^{0,1,2},0,0) ->  | AN48: =AK48*$I$53^2+AL48*$I$53+AM48 ->  | AO48: =LINEST(TRANSPOSE(AH48:AJ48),TRANSPOSE(AH47:AJ47)^{0,1,2},0,0) ->  | AR48: =AO48*$I$53^2+AP48*$I$53+AQ48 -> 
A49: M | B49: =IF('HFB 1000_neu'!B17=0,"",'HFB 1000_neu'!B17) ->  | C49: =IF('HFB 1000_neu'!C17=0,"",'HFB 1000_neu'!C17) -> 386.759286 | D49: =IF('HFB 1000_neu'!D17=0,"",'HFB 1000_neu'!D17) -> 382.5251994 | E49: =IF('HFB 1000_neu'!E17=0,"",'HFB 1000_neu'!E17) -> 405.339187 | F49: =IF('HFB 1000_neu'!F17=0,"",'HFB 1000_neu'!F17) -> 405.339187 | G49: =IF('HFB 1000_neu'!G17=0,"",'HFB 1000_neu'!G17) -> 48.10845625 | H49: =IF('HFB 1000_neu'!H17=0,"",'HFB 1000_neu'!H17) -> 41.60845625 | I49: =IF('HFB 1000_neu'!I17=0,"",'HFB 1000_neu'!I17) ->  | J49: =IF('HFB 1000_neu'!J17=0,"",'HFB 1000_neu'!J17) ->  | K49: =IF('HFB 1000_neu'!K17=0,"",'HFB 1000_neu'!K17) ->  | L49: =IFERROR(V49*($K$6-$K$12)*AN49,"") ->  | M49: =IFERROR(V49*($K$6-$K$12)*AR49,"") ->  | N49: =IFERROR(M49+I49,"") ->  | O49: =IF('HFB 1000_neu'!L17=0,"",'HFB 1000_neu'!L17) ->  | P49: =IF('HFB 1000_neu'!M17=0,"",'HFB 1000_neu'!M17) ->  | Q49: =IF('HFB 1000_neu'!N17=0,,'HFB 1000_neu'!N17) -> 0 | R49: =IF(IFERROR(IF(J49=0,,$K$8-((J49/(4.2*$I$53/3.6)))),)=0,"",IFERROR(IF(J49=0,,$K$8-((J49/(4.2*$I$53/3.6)))),)) ->  | S49: =IF(IFERROR(IF(M49=0,,$K$12-((M49/(4.2*$I$25/3.6)))),)=0,"",IFERROR(IF(M49=0,,$K$12-((M49/(4.2*$I$25/3.6)))),)) ->  | T49: =IF(IFERROR(IF(P49=0,,$P$8-((P49/(4.2*$I$54/3.6)))),)=0,"",IFERROR(IF(P49=0,,$P$8-((P49/(4.2*$I$54/3.6)))),)) ->  | V49: =IFERROR(J49/($K$6-$K$8),"") ->  | X49: =A49 -> M | Y49: =LINEST($AL$81:$AL$83,$F$81:$F$83^{0,1,2},0,0) -> -6.016788896e-06 | Z49: 0.003738871723 | AA49: 1.397117062 | AB49: =IF(OR(F49>300,F49<50),"",(Y49*F49^2+Z49*F49+AA49)) ->  | AC49: =IFERROR(AB49*$F$44,"") ->  | AD49: =IFERROR(AC49/$Z$7,"") ->  | AE49: =IFERROR(Korrektur_BG800_mw120kg_h!Q41,"") ->  | AF49: =IFERROR(Korrektur_BG800_mw200kg_h!Q41,"") ->  | AG49: =IFERROR(Korrektur_BG800_mw280kg_h!Q41,"") ->  | AH49: =IFERROR(Korrektur_BG800_mw120kg_h!S41,"") ->  | AI49: =IFERROR(Korrektur_BG800_mw200kg_h!S41,"") ->  | AJ49: =IFERROR(Korrektur_BG800_mw280kg_h!S41,"") ->  | AK49: =LINEST(TRANSPOSE(AE49:AG49),TRANSPOSE(AE47:AG47)^{0,1,2},0,0) ->  | AN49: =AK49*$I$53^2+AL49*$I$53+AM49 ->  | AO49: =LINEST(TRANSPOSE(AH49:AJ49),TRANSPOSE(AH47:AJ47)^{0,1,2},0,0) ->  | AR49: =AO49*$I$53^2+AP49*$I$53+AQ49 -> 
A50: L | B50: =IF('HFB 1000_neu'!B18=0,"",'HFB 1000_neu'!B18) -> 127 | C50: =IF('HFB 1000_neu'!C18=0,"",'HFB 1000_neu'!C18) -> 243.1812624 | D50: =IF('HFB 1000_neu'!D18=0,"",'HFB 1000_neu'!D18) -> 241.118831 | E50: =IF('HFB 1000_neu'!E18=0,"",'HFB 1000_neu'!E18) -> 250.9818119 | F50: =IF('HFB 1000_neu'!F18=0,"",'HFB 1000_neu'!F18) -> 250.9818119 | G50: =IF('HFB 1000_neu'!G18=0,"",'HFB 1000_neu'!G18) -> 42.93642245 | H50: =IF('HFB 1000_neu'!H18=0,"",'HFB 1000_neu'!H18) -> 36.43642245 | I50: =IF('HFB 1000_neu'!I18=0,"",'HFB 1000_neu'!I18) -> -340 | J50: =IF('HFB 1000_neu'!J18=0,"",'HFB 1000_neu'!J18) -> -590.7641512 | K50: =IF('HFB 1000_neu'!K18=0,"",'HFB 1000_neu'!K18) -> -930.7641512 | L50: =IFERROR(V50*($K$6-$K$12)*AN50,"") -> -1726.982321 | M50: =IFERROR(V50*($K$6-$K$12)*AR50,"") -> -1111.515367 | N50: =IFERROR(M50+I50,"") -> -1451.515367 | O50: =IF('HFB 1000_neu'!L18=0,"",'HFB 1000_neu'!L18) -> -90 | P50: =IF('HFB 1000_neu'!M18=0,"",'HFB 1000_neu'!M18) -> 1556.826657 | Q50: =IF('HFB 1000_neu'!N18=0,,'HFB 1000_neu'!N18) -> 1466.826657 | R50: =IF(IFERROR(IF(J50=0,,$K$8-((J50/(4.2*$I$53/3.6)))),)=0,"",IFERROR(IF(J50=0,,$K$8-((J50/(4.2*$I$53/3.6)))),)) -> 18.02547709 | S50: =IF(IFERROR(IF(M50=0,,$K$12-((M50/(4.2*$I$25/3.6)))),)=0,"",IFERROR(IF(M50=0,,$K$12-((M50/(4.2*$I$25/3.6)))),)) -> 10.76363729 | T50: =IF(IFERROR(IF(P50=0,,$P$8-((P50/(4.2*$I$54/3.6)))),)=0,"",IFERROR(IF(P50=0,,$P$8-((P50/(4.2*$I$54/3.6)))),)) -> 46.65577151 | V50: =IFERROR(J50/($K$6-$K$8),"") -> -59.07641512 | X50: =A50 -> L | Y50: =LINEST($AL$84:$AL$86,$F$84:$F$86^{0,1,2},0,0) -> -7.666541653e-06 | Z50: 0.003871499319 | AA50: 1.164847113 | AB50: =IF(OR(F50>300,F50<50),"",(Y50*F50^2+Z50*F50+AA50)) -> 1.653593232 | AC50: =IFERROR(AB50*$F$44,"") -> 210.0063405 | AD50: =IFERROR(AC50/$Z$7,"") -> 168.8286267 | AE50: =IFERROR(Korrektur_BG800_mw120kg_h!Q42,"") -> 1.252649046 | AF50: =IFERROR(Korrektur_BG800_mw200kg_h!Q42,"") -> 1.411242539 | AG50: =IFERROR(Korrektur_BG800_mw280kg_h!Q42,"") -> 1.473910427 | AH50: =IFERROR(Korrektur_BG800_mw120kg_h!S42,"") -> 0.8928716776 | AI50: =IFERROR(Korrektur_BG800_mw200kg_h!S42,"") -> 0.9280381627 | AJ50: =IFERROR(Korrektur_BG800_mw280kg_h!S42,"") -> 0.9449430561 | AK50: =LINEST(TRANSPOSE(AE50:AG50),TRANSPOSE(AE47:AG47)^{0,1,2},0,0) -> -7.494187833e-06 | AL50: 0.004380558761 | AM50: 0.8348982999 | AN50: =AK50*$I$53^2+AL50*$I$53+AM50 -> 1.461651251 | AO50: =LINEST(TRANSPOSE(AH50:AJ50),TRANSPOSE(AH47:AJ47)^{0,1,2},0,0) -> -1.426686848e-06 | AP50: 0.0008961208544 | AQ50: 0.8058814657 | AR50: =AO50*$I$53^2+AP50*$I$53+AQ50 -> 0.9407437513
A51: XL | B51: =IF('HFB 1000_neu'!B19=0,"",'HFB 1000_neu'!B19) -> 127 | C51: =IF('HFB 1000_neu'!C19=0,"",'HFB 1000_neu'!C19) -> 180.5935944 | D51: =IF('HFB 1000_neu'!D19=0,"",'HFB 1000_neu'!D19) -> 179.3482175 | E51: =IF('HFB 1000_neu'!E19=0,"",'HFB 1000_neu'!E19) -> 184.5609441 | F51: =IF('HFB 1000_neu'!F19=0,"",'HFB 1000_neu'!F19) -> 184.5609441 | G51: =IF('HFB 1000_neu'!G19=0,"",'HFB 1000_neu'!G19) -> 39.61962303 | H51: =IF('HFB 1000_neu'!H19=0,"",'HFB 1000_neu'!H19) -> 33.11962303 | I51: =IF('HFB 1000_neu'!I19=0,"",'HFB 1000_neu'!I19) -> -340 | J51: =IF('HFB 1000_neu'!J19=0,"",'HFB 1000_neu'!J19) -> -528.8826695 | K51: =IF('HFB 1000_neu'!K19=0,"",'HFB 1000_neu'!K19) -> -868.8826695 | L51: =IFERROR(V51*($K$6-$K$12)*AN51,"") -> -1572.770433 | M51: =IFERROR(V51*($K$6-$K$12)*AR51,"") -> -1004.003925 | N51: =IFERROR(M51+I51,"") -> -1344.003925 | O51: =IF('HFB 1000_neu'!L19=0,"",'HFB 1000_neu'!L19) -> -90 | P51: =IF('HFB 1000_neu'!M19=0,"",'HFB 1000_neu'!M19) -> 1496.188846 | Q51: =IF('HFB 1000_neu'!N19=0,,'HFB 1000_neu'!N19) -> 1406.188846 | R51: =IF(IFERROR(IF(J51=0,,$K$8-((J51/(4.2*$I$53/3.6)))),)=0,"",IFERROR(IF(J51=0,,$K$8-((J51/(4.2*$I$53/3.6)))),)) -> 17.81331201 | S51: =IF(IFERROR(IF(M51=0,,$K$12-((M51/(4.2*$I$25/3.6)))),)=0,"",IFERROR(IF(M51=0,,$K$12-((M51/(4.2*$I$25/3.6)))),)) -> 10.30287397 | T51: =IF(IFERROR(IF(P51=0,,$P$8-((P51/(4.2*$I$54/3.6)))),)=0,"",IFERROR(IF(P51=0,,$P$8-((P51/(4.2*$I$54/3.6)))),)) -> 47.17552417 | V51: =IFERROR(J51/($K$6-$K$8),"") -> -52.88826695 | X51: =A51 -> XL | Y51: =LINEST($AL$87:$AL$89,$F$87:$F$89^{0,1,2},0,0) -> -8.624707657e-06 | Z51: 0.004282940211 | AA51: 0.932958633 | AB51: =IF(OR(F51>300,F51<50),"",(Y51*F51^2+Z51*F51+AA51)) -> 1.429640929 | AC51: =IFERROR(AB51*$F$44,"") -> 181.564398 | AD51: =IFERROR(AC51/$Z$7,"") -> 145.9635357 | AE51: =IFERROR(Korrektur_BG800_mw120kg_h!Q43,"") -> 1.299968313 | AF51: =IFERROR(Korrektur_BG800_mw200kg_h!Q43,"") -> 1.442154092 | AG51: =IFERROR(Korrektur_BG800_mw280kg_h!Q43,"") -> 1.497418192 | AH51: =IFERROR(Korrektur_BG800_mw120kg_h!S43,"") -> 0.9013885893 | AI51: =IFERROR(Korrektur_BG800_mw200kg_h!S43,"") -> 0.9372529357 | AJ51: =IFERROR(Korrektur_BG800_mw280kg_h!S43,"") -> 0.9524529312 | AK51: =LINEST(TRANSPOSE(AE51:AG51),TRANSPOSE(AE47:AG47)^{0,1,2},0,0) -> -6.790756221e-06 | AL51: 0.003950364232 | AM51: 0.9237114949 | AN51: =AK51*$I$53^2+AL51*$I$53+AM51 -> 1.486880289 | AO51: =LINEST(TRANSPOSE(AH51:AJ51),TRANSPOSE(AH47:AJ47)^{0,1,2},0,0) -> -1.614402402e-06 | AP51: 0.0009649130977 | AQ51: 0.8088464122 | AR51: =AO51*$I$53^2+AP51*$I$53+AQ51 -> 0.9491745365
B53: wOK= | F53: =wok -> 200 | G53: [kg/h] | H53: wK= | I53: =HFB_!AH53 -> 250 | J53: [kg/h] | L53: DpK = | M53: ='HFB 1000_neu'!M21 -> 49.19854746 | N53: [kPa]
B54: wOH= | F54: =woh -> 100 | G54: [kg/h] | H54: wH= | I54: =HFB_!AH54 -> 100 | J54: [kg/h] | L54: DpH = | M54: ='HFB 1000_neu'!M22 -> 1.8 | N54: [kPa] | O54: =O40 -> Eigenkonvektion Heizen Q_E:
H55: =IF(I53/F53<0.2,"Kaltwassermenge mind. 20% von Nennwassermenge!","") ->  | O55: 218 | P55: W
H56: =IF(I54/F54<0.4,"Heizwassermenge mind. 40% von Nennwassermenge!","") ->  | O56: tR = | P56: 20 | Q56: °C | R56: tWWVL = | S56: 55 | T56: °C
A58: ã LTG Aktiengesellschaft: 22.08.2018, TT - V2.3
A59: Angaben zu Toleranzen sowie weitere Spezifikationen sind der aktuellen Technischen Dokumentation der LTG Aktiengesellschaft zu entnehmen.
A60: Diese finden Sie auf www.LTG.de. Eine Fehlerfreiheit des Programms kann nicht zugesichert werden. | HW60: 350 | HX60: 10 | HY60: 270 | HZ60: 10
A61: Aus Programmierfehlern entstandener Schaden geht nicht zu Lasten der LTG Aktiengesellschaft. Technische Änderungen im Rahmen der Weiterentwicklung vorbehalten. | DE61: 1072193 | DF61: 2.7 | DG61: 50 | DH61: =(1.2*EC61/3600*1004.5*(DX61-EK61)-DO61/3600*4180*DR61)/(1004.5*(DW61-DX61)/3600)/EC61 -> 2.314617079 | DI61: =(((4180/1004.5)*(DO61/(1.2*EC61))*(DR61))+(EK61-DX61))/(DX61-DW61) -> 1.928847566 | DJ61: =(1.2*EC61/3600*1004.5*(DX61-EK61)-DO61/3600*4180*DR61)/(1.2*1004.5*(DW61-DX61)/3600)/EC61 -> 1.928847566 | DK61: 2016-07-26 | DO61: 99.86139 | DP61: 64.13133333 | DQ61: 58.30433333 | DR61: 5.827 | DS61: 675.6377557 | DT61: 19.562878 | DU61: 117.636526 | DV61: 2.126451667 | DW61: 29.59455567 | DX61: 42.581778 | EB61: 11.9 | EC61: 55.320572 | ED61: 29.35666667 | EE61: 29.58333333 | EF61: 29.84666667 | EG61: 41.55 | EH61: 43.62 | EI61: 42.57666667 | EJ61: 29.12 | EK61: 31.15666667 | HW61: 400 | HX61: 10 | HY61: 280 | HZ61: 10
DE62: 1072193 | DF62: 2.7 | DG62: 100 | DH62: =(1.2*EC62/3600*1004.5*(DX62-EK62)-DO62/3600*4180*DR62)/(1004.5*(DW62-DX62)/3600)/EC62 -> 2.197238694 | DI62: =(((4180/1004.5)*(DO62/(1.2*EC62))*(DR62))+(EK62-DX62))/(DX62-DW62) -> 1.831032245 | DJ62: =(1.2*EC62/3600*1004.5*(DX62-EK62)-DO62/3600*4180*DR62)/(1.2*1004.5*(DW62-DX62)/3600)/EC62 -> 1.831032245 | DK62: 2016-07-26 | DO62: 103.399964 | DP62: 64.17266667 | DQ62: 56.611 | DR62: 7.561666667 | DS62: 907.8466197 | DT62: 26.10824833 | DU62: 155.7286487 | DV62: 1.986543667 | DW62: 29.400222 | DX62: 42.327222 | EB62: 24.4 | EC62: 78.391761 | ED62: 29.19666667 | EE62: 29.39 | EF62: 29.61666667 | EG62: 41.68333333 | EH62: 43.03666667 | EI62: 42.26333333 | EJ62: 29.14 | EK62: 31.41 | HW62: 400 | HX62: 100 | HY62: 280 | HZ62: 100
DE63: 1072193 | DF63: 2.9 | DG63: 150 | DH63: =(1.2*EC63/3600*1004.5*(DX63-EK63)-DO63/3600*4180*DR63)/(1004.5*(DW63-DX63)/3600)/EC63 -> 2.181401847 | DI63: =(((4180/1004.5)*(DO63/(1.2*EC63))*(DR63))+(EK63-DX63))/(DX63-DW63) -> 1.817834873 | DJ63: =(1.2*EC63/3600*1004.5*(DX63-EK63)-DO63/3600*4180*DR63)/(1.2*1004.5*(DW63-DX63)/3600)/EC63 -> 1.817834873 | DK63: 2016-07-26 | DO63: 101.525135 | DP63: 64.16066667 | DQ63: 55.387 | DR63: 8.773666667 | DS63: 1034.229 | DT63: 29.71773233 | DU63: 184.925786 | DV63: 1.946359333 | DW63: 29.358889 | DX63: 41.752 | EB63: 36.2 | EC63: 95.011117 | ED63: 29.19333333 | EE63: 29.34333333 | EF63: 29.54 | EG63: 41.35666667 | EH63: 42.27666667 | EI63: 41.62333333 | EJ63: 29.34333333 | EK63: 31.77 | HW63: 400 | HX63: 10 | HY63: 280 | HZ63: 10
AM71: y = | AN71: axn+bx(n-1)+...+nx+m
A74: BG | B74: 800 | AH74: Kontrolle
A75: Länge WT | B75: 820 | AF75: Eurocoil | AG75: Sekundärluftmenge | AH75: Sekundärluftmenge
A76: Düsen- kasten | B76: VP [m³/h] | C76: dp - kühlen [Pa] | D76: dp - heizen [Pa] | E76: dp - Akustik [Pa] | F76: dp [Pa] | G76: LWA [dB(A)] | H76: LA18 [dB(A)] | I76: QPK [W] | J76: qSK1) [W/K] | K76: QSK1) [W] | L76: QSK2) [W] | M76: QKSens2) [W] | N76: QPH [W] | O76: QSH [W] | P76: QHges [W] | Z76: gültig für Düsenanzahl | AA76: qSK1) [W] | AB76: QSK-trocken2) [W] | AC76: qSK-trocken2) [W] | AF76: Q_Trocken | AG76: aus Eurocoil rausgeschrieben | AH76: berechnet | AI76: QTK-(rf50%)2) [W] | AJ76: QSK-(rf50%)2) [W] | AL76: Induktion
AG77: Stützpunkte
A78: S | B78: 30.45 | C78: 56.21479076 | D78: 57.41335155 | E78: 50.02512858 | F78: 50.02512858 | G78: 15.37028319 | H78: 8.870283188 | I78: -80 | J78: =K78/10 -> -17.25392557 | K78: -172.5392557 | L78: =AI78*1000*-1 -> -940 | M78: =AJ78*1000*-1 -> -600 | N78: -20 | O78: 943.4636991 | P78: 923.4636991 | Z78: 33 | AA78: =K78/10 -> -17.25392557 | AB78: =AA78*20 -> -345.0785113 | AC78: =AB78/20 -> -17.25392557 | AF78: =ABS(AB78/1000) -> 0.3450785113 | AG78: 54 | AH78: =(AM78*F78^2+AM79*F78+AM80)*B78 -> 54 | AI78: 0.94 | AJ78: 0.6 | AL78: =AG78/B78 -> 1.773399015 | AM78: =TRANSPOSE(LINEST(AL78:AL80,F78:F80^{0,1,2},0,0)) -> -3.122434276e-06 | AN78: a =
A79: S | B79: 50.75582678 | C79: 156.2315684 | D79: 157.2383851 | E79: 150.0000141 | F79: 150.0000141 | G79: 31.11071689 | H79: 24.61071689 | I79: -140 | J79: =K79/10 -> -31.46569846 | K79: -314.6569846 | L79: 0 | M79: 0 | N79: -30 | O79: 1427.92929 | P79: 1397.92929 | Z79: 33 | AA79: -31.46569846 | AB79: =AA79*20 -> -629.3139692 | AC79: =AB79/20 -> -31.46569846 | AF79: 0.6293139692 | AG79: 101 | AH79: =(AM78*F79^2+AM79*F79+AM80)*B79 -> 101 | AL79: =AG79/B79 -> 1.989919314 | AM79: 0.002790312267 | AN79: b =
A80: S | B80: 70.07321477 | C80: 297.8361609 | D80: 296.9920104 | E80: 299.9995141 | F80: 299.9995141 | G80: 41.04634347 | H80: 34.54634347 | I80: -190 | J80: -44.9619983 | K80: -449.619983 | L80: 0 | M80: 0 | N80: -50 | O80: 1780.504291 | P80: 1730.504291 | Z80: 33 | AA80: -44.9619983 | AB80: -899.239966 | AC80: -44.9619983 | AF80: 0.899239966 | AG80: 154 | AH80: =(AM78*F80^2+AM79*F80+AM80)*B80 -> 154 | AL80: =AG80/B80 -> 2.197701369 | AM80: 1.641627219 | AN80: c =
A81: M | B81: 38.24045252 | C81: 52.16099348 | D81: 52.61750578 | E81: 50.00013197 | F81: 50.00013197 | G81: 17.4428691 | H81: 10.9428691 | I81: -100 | J81: -19.54760051 | K81: -195.4760051 | L81: 0 | M81: 0 | N81: -30 | O81: 941.5195297 | P81: 911.5195297 | Z81: 42 | AA81: -19.54760051 | AB81: -390.9520102 | AC81: -19.54760051 | AF81: 0.3909520102 | AG81: 60 | AH81: =(AM81*F81^2+AM82*F81+AM83)*B81 -> 60 | AL81: =AG81/B81 -> 1.56901909 | AM81: =TRANSPOSE(LINEST(AL81:AL83,F81:F83^{0,1,2},0,0)) -> -6.016788896e-06 | AN81: a =
A82: M | B82: 64.19506192 | C82: 149.3129621 | D82: 149.0650164 | E82: 150.0000121 | F82: 150.0000121 | G82: 33.06195074 | H82: 26.56195074 | I82: -170 | J82: -36.21788041 | K82: -362.1788041 | L82: 0 | M82: 0 | N82: -40 | O82: 1460.949512 | P82: 1420.949512 | Z82: 42 | AA82: -36.21788041 | AB82: -724.3576081 | AC82: -36.21788041 | AF82: 0.7243576081 | AG82: 117 | AH82: =(AM81*F82^2+AM82*F82+AM83)*B82 -> 117 | AL82: 1.822570094 | AM82: 0.003738871723 | AN82: b =
A83: M | B83: 89.01172937 | C83: 289.9182591 | D83: 287.5482352 | E83: 299.9994294 | F83: 299.9994294 | G83: 42.91648884 | H83: 36.41648884 | I83: -240 | J83: -50.17862134 | K83: -501.7862134 | L83: 0 | M83: 0 | N83: -60 | O83: 1807.862591 | P83: 1747.862591 | Z83: 42 | AA83: -50.17862134 | AB83: -1003.572427 | AC83: -50.17862134 | AF83: 1.003572427 | AG83: 176 | AH83: =(AM81*F83^2+AM82*F83+AM83)*B83 -> 176 | AL83: 1.977267505 | AM83: 1.397117062 | AN83: c =
A84: L | B84: 47.04102566 | C84: 49.91862275 | D84: 49.9678879 | E84: 50.00025387 | F84: 50.00025387 | G84: 19.18784764 | H84: 12.68784764 | I84: -130 | J84: -20.53158318 | K84: -205.3158318 | L84: 0 | M84: 0 | N84: -30 | O84: 983.2164241 | P84: 953.2164241 | Z84: 52 | AA84: -20.53158318 | AB84: -410.6316637 | AC84: -20.53158318 | AF84: 0.4106316637 | AG84: 63 | AH84: =(AM84*F84^2+AM85*F84+AM86)*B84 -> 63 | AL84: 1.339256513 | AM84: =TRANSPOSE(LINEST(AL84:AL86,F84:F86^{0,1,2},0,0)) -> -7.666541653e-06 | AN84: a =
A85: L | B85: 79.46220847 | C85: 146.7189042 | D85: 145.917067 | E85: 150.0000033 | F85: 150.0000033 | G85: 34.69016518 | H85: 28.19016518 | I85: -210 | J85: -38.10768168 | K85: -381.0768168 | L85: 0 | M85: 0 | N85: -50 | O85: 1518.844733 | P85: 1468.844733 | Z85: 52 | AA85: -38.10768168 | AB85: -762.1536335 | AC85: -38.10768168 | AF85: 0.7621536335 | AG85: 125 | AH85: =(AM84*F85^2+AM85*F85+AM86)*B85 -> 125 | AL85: 1.573074829 | AM85: 0.003871499319 | AN85: b =
A86: L | B86: 110.6148292 | C86: 289.6694041 | D86: 286.9133451 | E86: 299.99935 | F86: 299.99935 | G86: 44.47105268 | H86: 37.97105268 | I86: -300 | J86: -50.8125903 | K86: -508.125903 | L86: 0 | M86: 0 | N86: -70 | O86: 1849.546785 | P86: 1779.546785 | Z86: 52 | AA86: -50.8125903 | AB86: -1016.251806 | AC86: -50.8125903 | AF86: 1.016251806 | AG86: 181 | AH86: =(AM84*F86^2+AM85*F86+AM86)*B86 -> 181 | AL86: 1.636308634 | AM86: 1.164847113 | AN86: c =
A87: XL | B87: 54.19602138 | C87: 49.05101748 | D87: 48.93206805 | E87: 50.00000065 | F87: 50.00000065 | G87: 20.30429113 | H87: 13.80429113 | I87: -150 | J87: -19.82814709 | K87: -198.2814709 | L87: 0 | M87: 0 | N87: -40 | O87: 1050.611789 | P87: 1010.611789 | Z87: 60 | AA87: -19.82814709 | AB87: -396.5629417 | AC87: -19.82814709 | AF87: 0.3965629417 | AG87: 61 | AH87: =(AM87*F87^2+AM88*F87+AM89)*B87 -> 61 | AL87: 1.125543877 | AM87: =TRANSPOSE(LINEST(AL87:AL89,F87:F89^{0,1,2},0,0)) -> -8.624707657e-06 | AN87: a =
A88: XL | B88: 91.93946153 | C88: 146.7967663 | D88: 145.886214 | E88: 150.0000009 | F88: 150.0000009 | G88: 35.72688433 | H88: 29.22688433 | I88: -250 | J88: -38.37931936 | K88: -383.7931936 | L88: 0 | M88: 0 | N88: -60 | O88: 1593.431214 | P88: 1533.431214 | Z88: 60 | AA88: -38.37931936 | AB88: -767.5863871 | AC88: -38.37931936 | AF88: 0.7675863871 | AG88: 127 | AH88: =(AM87*F88^2+AM88*F88+AM89)*B88 -> 127 | AL88: 1.381343744 | AM88: 0.004282940211 | AN88: b =
A89: XL | B89: 128.3280638 | C89: 293.1441496 | D89: 290.6292774 | E89: 299.9992947 | F89: 299.9992947 | G89: 45.45742424 | H89: 38.95742424 | I89: -340 | J89: -51.78591848 | K89: -517.8591848 | L89: 0 | M89: 0 | N89: -90 | O89: 1923.803556 | P89: 1833.803556 | Z89: 60 | AA89: -51.78591848 | AB89: -1035.71837 | AC89: -51.78591848 | AF89: 1.03571837 | AG89: 185 | AH89: =(AM87*F89^2+AM88*F89+AM89)*B89 -> 185 | AL89: 1.441617636 | AM89: 0.932958633 | AN89: c =
A92: wOK= | E92: =wok -> 200 | F92: [kg/h] | G92: wK= | H92: 200 | I92: [kg/h]
A93: wOH= | E93: =woh -> 100 | F93: [kg/h] | G93: wH= | H93: 100 | I93: [kg/h]

Sheet Legende (hidden)
A2: Zellenname | B2: Deutsch | C2: Englisch | D2: Französisch | E2: Italienisch | F2: Portugues | G2: Turkish
A5: L_Kuehlfall | B5: Kühlfall: | C5: cooling mode: | D5: mode de refroidissement: | E5: in raffescamento:
A6: L_Ansaugtemperatur_K | B6: Ansaugtemperatur: | C6: intake air temperature | D6: température de l'air d'admission | E6: temperatura aria in ingresso
A7: L_Primaerlufttemp_K | B7: Primärlufttemperatur: | C7: primary air temperature: | D7: température de l'air primaire: | E7: temperatura dell'aria primaria:
A8: L_Kuehlwasservorlauf | B8: Kühlwasservorlauf (1): | C8: water supply temperature (1): | D8: température de l'eau (1): | E8: temperatura acqua in ingresso (1):
A9: L_Raumtemperatur_K | B9: Raumtemperatur | C9: room temperature: | D9: température ambiante: | E9: temperatura ambiente:
A10: L_Kuehlwasservorlauf_kon | B10: Kühlwasservorlauf kondensierender Betrieb (2): | C10: water supply temperature (condensation mode) (2): | D10: température de l'eau (Mode de condensation) (2): | E10: temperatura acqua in ingresso (2):
A11: L_rF_kon | B11: relative Feuchte (2): | C11: relative humidity (2): | D11: humidité relative (2):
A12: L_projektierte_Leistung_k | B12: projektierte Leistung: | C12: required capacity for design situation: | D12: capacité requise pour la conception: | E12: potenzialità richiesta di progetto:
A13: L_Heizwasservorlauf | B13: Heizwasservorlauf: | C13: water supply temperature: | D13: température de l'eau: | E13: temperatura acqua in ingresso:
A14: L_Primärvolumenstrom | B14: Primärvolumenstrom | C14: primary air flow rate | D14: débit d'air primaire | E14: flusso di aria primaria | F14: Caudal de ar
A15: L_Date | B15: Datum: | C15: Date: | D15: Data: | E15: Data: | F15: Data: | G15: Tarih:
A16: L_Projekt | B16: Projekt: | C16: Project: | D16: Projet: | E16: Progetto: | F16: Projecto: | G16: Proje
A17: L_Bearbeiter | B17: Bearbeiter: | C17: Editor: | D17: Responsable: | E17: Responsabile: | F17: Responsável: | G17: Hazirlayan:
A18: L_Auslegetool | B18: Auslegetool: HFB 4L - Induktionsgerät mit Aluminiumlineargitter | C18: Selection Software: HFB 4 pipe, induction unit with aluminum linear grid | D18: programme de calcul: HFB 4 pipe, appareil à induction avec grille linéaire en aluminium | E18: risultato del dimensionamento: Éjecto-convecteurs de plancher série HFB - 4p, con filtro
A19: L_BG630 | B19: Baugröße 630 | C19: Size 630 | D19: Taille 630 | E19: Grandezza 630
A20: L_BG800 | B20: Baugröße 800 | C20: Size 800 | D20: Taille 800 | E20: Grandezza 800
A21: L_BG1000 | B21: Baugröße 1000 | C21: Size 1000 | D21: Taille 1000 | E21: Grandezza 1000
A22: L_Düsenkasten | B22: Düsen-kasten | C22: type | D22: type d'attribut | E22: Variante
A23: L_Konvektion | B23: Eigenkonvektion Heizen Q_E: | C23: heating capacity by natural convection Q_E: | D23: puissance calorifique de convection propre Q_E: | E23: potenza calorifera a convezione naturale Q_E:
A24: L_Angabe | B24: Angaben zu Toleranzen sowie weitere Spezifikationen sind der aktuellen Technischen Dokumentation der LTG Aktiengesellschaft zu entnehmen. | C24: Information on tolerances as well as further technical specifications can be found in the current technical documentation of LTG | D24: Informations sur les tolérances et autres spécifications du portefeuille actuel de composants LTG se trouve dans. | E24: Informazioni sui tolleranze e altre specifiche della corrente portafoglio componente LTG può essere trovato in.
A25: L_Fehlerfreiheit | B25: Diese finden Sie auf www.LTG.de. Eine Fehlerfreiheit des Programms kann nicht zugesichert werden. | C25: These can be found at www.LTG.de. A fault-free program can not be guaranteed. | D25: Ceux-ci peuvent être trouvés à www.LTG.de. Une précision du programme ne peut pas être garantie. | E25: Questi possono essere trovati su www.LTG.de. Una precisione del programma non può essere garantita.
A26: L_Programmierfehler | B26: Aus Programmierfehlern entstandener Schaden geht nicht zu Lasten der LTG Aktiengesellschaft. Technische Änderungen im Rahmen der Weiterentwicklung vorbehalten. | C26: Damage resulting from programming errors shall not be charged to LTG Aktiengesellschaft. We reserve the right to make technical changes within the scope of further development | D26: découlant du mal des erreurs de programmation ne sont pas au détriment de LTG. Sous réserve de modifications techniques dans le cadre du développement. | E26: derivanti da errori di programmazione danno non va a scapito della LTG. Con riserva di modifiche tecniche come parte dello sviluppo.
A27: L_Konvektion | B27: Eigenkonvektion Heizen Q_E: | C27: heating capacity by natural convection Q_E(WOH): | D27: capacité de chauffage par convection naturelle (Q_E(WOH): | E27: capacità di riscaldamento per convezione naturale Q_E(WOH):
A28: L_Heizfall | B28: Heizfall | C28: heating mode: | D28: mode de chauffage: | E28: modalità di riscaldamento:
A29: L_LTG | B29: LTG Aktiengesellschaft | C29: LTG Incorporated | D29: LTG Aktiengesellschaft | E29: LTG Aktiengesellschaft
A84: L_Nennkühlwassermenge_K | B84: Nennwassermenge: | C84: Nominal Water Flow Rate: | D84: quantité d'eau nominale | E84: Portata acqua nominale:
A85: L_Istkühlwassermenge_K | B85: Wassermenge Kühlen: | C85: Cold Water Flow Rate: | D85: quantité d'eau: | E85: Portata acqua refrigerata:
A86: L_Heizfall | B86: Heizfall: | C86: Heating Mode: | D86: Mode chauffage | E86: In riscaldamento:
A88: L_Ansaugtemperatur_H | B88: Ansaugtemperatur: | C88: Intake Air Temperature | D88: Température de l'air d'admission | E88: Temperatura aria in ingresso
A89: L_projektierte_Leistung_h | B89: projektierte Leistung: | C89: Required Capacity For Design Situation: | D89: Capacité requise pour la conception: | E89: Potenzialità richiesta di progetto:
A90: L_Nennheizwassermenge_H | B90: Nennwassermenge: | C90: nominal water mass flow (heating): | D90: quantité d'eau nominale | E90: Portata acqua nominale:
A91: L_Istheizwassermenge_H | B91: Wassermenge Heizen: | C91: Hot Water Flow Rate: | D91: quantité d'eau: | E91: Portata acqua calda:
A92: L_Volumenstrom | B92: Volumenstrom | C92: Air flow rate | D92: Debit d`air | E92: Portata aria | F92: Caudal de ar
A93: L_Drehzahl | B93: Drehzahl | C93: Fan Speed | D93: nombre de révolutions | E93: Velocità del ventilatore
A95: L_Auslegung | B95: Auslegung | C95: calculation | D95: calculer | E95: calcole
A96: L_Kondensat | B96: Kondensat² | C96: condensate² | D96: condensé | E96: condensato²
A97: L_mitFilter | B97: mit Filter | C97: with filter | D97: avec filtre | E97: con filtro
A98: L_ohneFilter | B98: ohne Filter | C98: without filter | D98: sans filtre | E98: senza filtro
A99: L_mit3D | B99: mit 3D-Strömung | C99: with 3D-flow-application | D99: avec 3D-courent | E99: con 3D-corrente
A100: L_ohne3D | B100: ohne 3D-Strömung | C100: without 3D-flow-application
A101: L_mitSchalld | B101: mit Schalldämmung | C101: with sound insulation
A102: L_ohneSchalld | B102: ohne Schalldämmung | C102: without Schalldämmung
A103: L_Steuerspannung | B103: Steuerspannung (mit Filter) | C103: Control voltage (with filter) | D103: tension de commande (avec filtre) | E103: tensione di controllo (con filtro)
A107: L_BG1250 | B107: Baugröße 1250 | C107: Size 1250 | D107: Taille 1250 | E107: Grandezza 1250

Sheet HFB_630_neu (hidden)
A1: Tel. +49 (0)711 8201-212 | F1: Fax: -720 | H1: Email: | I1: Raumluft@LTG-AG.de | Z1: \\file\Daten\E\cer\Projekte\Produktpflege Kleinaufträge\2016\2016-03-17 HFB - Optimierung\Messungen\16-08-25 Kalorik HFB_Nullseriengerät_800_4L_Rohdaten und Auswertung.xlsx | AN1: \\file\Daten\E\cer\Projekte\Produktpflege Kleinaufträge\2016\2016-03-17 HFB - Optimierung\Messungen\16-08-25 Kalorik HFB_Nullseriengerät_800_4L_Rohdaten und Auswertung.xlsx | BY1: \\file\Daten\E\cer\Projekte\Produktpflege Kleinaufträge\2016\2016-03-17 HFB - Optimierung\Messungen\Akustik\2016-08-26 Akustik_HFB_800_4.xlsm
A2: LTG Auslegungstabelle HFB - Induktionsgerät für den Einbau in Doppelböden | Q2: LTG Aktiengesellschaft | Z2: Wassermengenvariation | AN2: Kalorische Leistung BG800 - ohne Schieber, mit Al-Lineargitter | AX2: y(f=Vpr) = Druck | BE2: y (Vpr)= spez. Leistung | BL2: y(f=Vpr) = Druck | BS2: y (Vpr)= spez. Leistung | BY2: Akustik BG800 - ohne Schieber | CD2: Abhängig von V_Primär | CY2: Für Auslegetool nicht verwendet
AT3: Matrix_Leistung_düsenkästen | CB3: Akustik_Matrix | DF3: =COLUMN(AU6) -> 47 | DG3: =ROW() -> 3 | DH3: =ADDRESS(DG3,DF3,4) -> AU3
A4: Kühlfall: | I4: Heizfall: | AQ4: offene_Düsen_kühlen | AU4: y = Druck x = V_Primär | AV4: y = | AW4: mxb | AX4: Druck_abhängig_von_Vpr_kühlen | AY4: y = Druck x = Anzahl Düsen | AZ4: y = | BA4: mxb | BB4: y = q_k x = V_Prim | BC4: y = | BD4: axn+bx(n-1)+...+nx+m | BE4: Leistung_abhängig_von_Vpr_kühlen | BF4: y = q_k x = Düsenanzahl | BG4: y = | BH4: axn+bx(n-1)+...+nx+m | BI4: y = Druck x = V_Primär | BJ4: y = | BK4: mxb | BL4: Druck_abhängig_von_Vpr_heizen | BM4: y = Druck x = Anzahl Düsen | BN4: y = | BO4: mxb | BP4: y = q_k x = V_Prim | BQ4: y = | BR4: axn+bx(n-1)+...+nx+m | BS4: Leistung_abhängig_von_Vpr_heizen | BT4: y = q_k x = Düsenanzahl | BU4: y = | BV4: axn+bx(n-1)+...+nx+m | BW4: Für BG630 Berechnung | BZ4: Akustik_AnzahlDüsen | CA4: y = L_wa x = V_Pr | CB4: y = | CC4: mLN(x) + b | CD4: LWAabhaengigvonVpr | CE4: y = L_wa (ab. Von Vpr) x = Anzahl Düse | CF4: y = mLN(x) + b | CG4: y = Druck x = V_Primär | CH4: y = | CI4: mxb | CJ4: Akustik_Druck_P_abhaengigvonVpr | CK4: y = Druck x = Anzahl Düse | CL4: y = | CM4: mxb | CN4: Für BG630 Berechnung | DA4: =INDIRECT(DH3) -> 0 | DB4: =LEFT(ADDRESS(DG3,DF3,4), 2) -> AU | DC4: =INDIRECT(DB4 & DG3) -> 0 | DF4: =COLUMN(AU7) -> 47 | DG4: =ROW() -> 4 | DH4: =ADDRESS(DG4,DF4,4) -> AU4
B5: Ansaugtemperatur: | F5: =HFB!K6 -> 26 | G5: °C | J5: Ansaugtemperatur: | K5: =HFB!P6 -> 20 | L5: °C | M5: Projekt: | N5: =HFB!B6 -> 0 | Z5: Tabellenblatt: 08-08-2016_kühlen Wassermengvar | AF5: Tabellenblatt: 26-07-2016_Heizen_WasserMengVar | AN5: Größe | AO5: Zeichnungsnummer | AP5: Düsenkasten | AQ5: offene Düsen | AR5: 1. Reihe | AS5: 2. Reihe | AT5: Kasten | AU5: m | AV5: b | AW5: R2 | AX5: Druck [Pa] | AY5: m | AZ5: b | BA5: R2 | BB5: a*x2 | BC5: b*x | BD5: m | BE5: spez. Leistung [W/K] | BF5: a*x2 | BG5: b*x | BH5: m | BI5: m | BJ5: b | BK5: R2 | BL5: Druck [Pa] | BM5: m | BN5: b | BO5: R2 | BP5: a*x2 | BQ5: b*x | BR5: m | BS5: spez. Leistung [W/K] | BT5: a*x2 | BU5: b*x | BV5: m | BW5: offene Düsen | BY5: Größe | BZ5: offene Düsen | CA5: m | CB5: b | CC5: R2 | CD5: y(Vpr) = ?? dB(A) | CE5: m | CF5: b | CG5: m | CH5: b | CI5: R2 | CJ5: y(Vpr) = ?? Pa | CK5: m | CL5: b | CM5: R2 | CN5: offene Düsen | DA5: =INDIRECT(DH4) -> y = Druck x = V_Primär | DB5: =LEFT(ADDRESS(DG4,DF4,4), 2) -> AU | DC5: =INDIRECT(DB5 & DG4) -> y = Druck x = V_Primär | DF5: =COLUMN(AU8) -> 47 | DG5: =ROW() -> 5 | DH5: =ADDRESS(DG5,DF5,4) -> AU5
B6: Primärlufttemperatur: | F6: =HFB!K7 -> 18 | G6: °C | J6: Primärlufttemperatur: | K6: =HFB!P7 -> 18 | L6: °C | N6: =HFB!B7 -> 0 | Z6: \\file\Daten\E\cer\Projekte\Produktpflege Kleinaufträge\2016\2016-03-17 HFB - Optimierung\Messungen\16-08-25 Kalorik HFB_Nullseriengerät_800_4L_Rohdaten und Auswertung.xlsx | AN6: S | AO6: 1072184 | AP6: 1 | AQ6: 33 | AR6: 30 | AS6: 3 | AT6: K4 | AU6: =INDEX(LOGEST(dP_1_kühlen,LN(V_Prim_1_kühlen),,TRUE),1,2) -> 0.06416449711 | AV6: =LN(INDEX(LOGEST(dP_1_kühlen,LN(V_Prim_1_kühlen),,TRUE),1,1)) -> 1.983311905 | AW6: =INDEX(LOGEST(dP_1_kühlen,LN(V_Prim_1_kühlen),,TRUE),3,1) -> 0.9996395894 | AX6: =AU6*V_pr^AV6 -> 414.4396131 | AY6: =INDEX(LOGEST(Druck_abhängig_von_Vpr_kühlen,LN(offene_Düsen_kühlen),,TRUE),1,2) -> 661409.7579 | AZ6: =LN(INDEX(LOGEST(Druck_abhängig_von_Vpr_kühlen,LN(offene_Düsen_kühlen),,TRUE),1,1)) -> -2.104247973 | BA6: =INDEX(LOGEST(Druck_abhängig_von_Vpr_kühlen,LN(offene_Düsen_kühlen),,TRUE),3,1) -> 0.9971972407 | BB6: =LINEST(qk_1_kühlen,V_Prim_1_kühlen^{0,1,2},0,0) -> 6.243210492e-05 | BC6: 0.694024678 | BD6: -3.921314452 | BE6: =BB6*V_pr^2+BC6*V_pr+BD6 -> 54.38743017 | BF6: =LINEST(Leistung_abhängig_von_Vpr_kühlen,offene_Düsen_kühlen^{0,1,2},0,0) -> 0.003168397564 | BG6: -1.022840277 | BH6: 84.55569505 | BI6: =INDEX(LOGEST(dP_1_heizen,LN(V_Prim_1_heizen),,TRUE),1,2) -> 0.06519442469 | BJ6: =LN(INDEX(LOGEST(dP_1_heizen,LN(V_Prim_1_heizen),,TRUE),1,1)) -> 1.978599559 | BK6: =INDEX(LOGEST(dP_1_heizen,LN(V_Prim_1_heizen),,TRUE),3,1) -> 0.9994230889 | BL6: =BI6*V_pr^BJ6 -> 412.4050474 | BM6: =INDEX(LOGEST(Druck_abhängig_von_Vpr_heizen,LN(offene_Düsen_kühlen),,TRUE),1,2) -> 647428.6039 | BN6: =LN(INDEX(LOGEST(Druck_abhängig_von_Vpr_heizen,LN(offene_Düsen_kühlen),,TRUE),1,1)) -> -2.100378347 | BO6: =INDEX(LOGEST(Druck_abhängig_von_Vpr_heizen,LN(offene_Düsen_kühlen),,TRUE),3,1) -> 0.9971511894 | BP6: =LINEST(qk_1_heizen,V_Prim_1_heizen^{0,1,2},0,0) -> -0.002584231179 | BQ6: 0.6469253803 | BR6: -0.3794809887 | BS6: =BP6*V_pr^2+BQ6*V_pr+BR6 -> 35.5971251 | BT6: =LINEST(Leistung_abhängig_von_Vpr_heizen,offene_Düsen_kühlen^{0,1,2},0,0) -> 0.006964229081 | BU6: -0.9666873474 | BV6: 59.99049025 | BW6: =H51 -> 33.3559322 | BY6: S | BZ6: 33 | CA6: =LINEST(Akustik_Lwa1,LN(Akustik_Vpr1),TRUE,FALSE) -> 30.94826518 | CB6: -90.44826622 | CD6: =CA6*LN(V_pr)+CB6 -> 46.45220079 | CE6: =LINEST(LWAabhaengigvonVpr,LN(Akustik_AnzahlDüsen),TRUE,FALSE) -> -22.62747162 | CF6: 125.5234111 | CG6: =INDEX(LOGEST(Akustik_P1,LN(Akustik_Vpr1),,TRUE),1,2) -> 0.03050372738 | CH6: =LN(INDEX(LOGEST(Akustik_P1,LN(Akustik_Vpr1),,TRUE),1,1)) -> 2.1636178 | CI6: =INDEX(LOGEST(Akustik_P1,LN(Akustik_Vpr1),,TRUE),3,1) -> 0.9999588777 | CJ6: =CG6*V_pr^CH6 -> 437.4288169 | CK6: =INDEX(LOGEST(Akustik_Druck_P_abhaengigvonVpr,LN(Akustik_AnzahlDüsen),,TRUE),1,2) -> 733209.5402 | CL6: =LN(INDEX(LOGEST(Akustik_Druck_P_abhaengigvonVpr,LN(Akustik_AnzahlDüsen),,TRUE),1,1)) -> -2.124255921 | CM6: =INDEX(LOGEST(Akustik_Druck_P_abhaengigvonVpr,LN(Akustik_AnzahlDüsen),,TRUE),3,1) -> 0.9998666592 | CN6: =H51 -> 33.3559322 | DB6: =LEFT(ADDRESS(DG5,DF5,4), 2) -> AU | DC6: =INDIRECT(DB6 & DG5) -> m | DF6: =COLUMN(BB9) -> 54 | DG6: =ROW() -> 6 | DH6: =ADDRESS(DG6,DF6,4) -> BB6
B7: Kühlwasservorlauf: | F7: =HFB!K8 -> 16 | G7: °C | J7: Heizwasservorlauf: | K7: =HFB!P8 -> 60 | L7: °C | M7: Datum: | Z7: kühlen - Wassermengenvariation - Messung vom 08.08.2016, mit Al-Lineargitter | AF7: Wassermengenvariation - Messung vom 27.07.2016 - Mit Al-Lineargitter | AN7: M | AO7: 1072187 | AP7: 2 | AQ7: 42 | AR7: 30 | AS7: 12 | AT7: K3 | AU7: =INDEX(LOGEST(dP_2_kühlen,LN(V_Prim_2_kühlen),,TRUE),1,2) -> 0.02795950547 | AV7: =LN(INDEX(LOGEST(dP_2_kühlen,LN(V_Prim_2_kühlen),,TRUE),1,1)) -> 2.064228963 | AW7: =INDEX(LOGEST(dP_2_kühlen,LN(V_Prim_2_kühlen),,TRUE),3,1) -> 0.9997758098 | AX7: =AU7*V_pr^AV7 -> 258.3133011 | AY7: =INDEX(LOGEST(Druck_abhängig_von_Vpr_kühlen,LN(offene_Düsen_kühlen),,TRUE),1,2) -> 661409.7579 | AZ7: =LN(INDEX(LOGEST(Druck_abhängig_von_Vpr_kühlen,LN(offene_Düsen_kühlen),,TRUE),1,1)) -> -2.104247973 | BA7: =INDEX(LOGEST(Druck_abhängig_von_Vpr_kühlen,LN(offene_Düsen_kühlen),,TRUE),3,1) -> 0.9971972407 | BB7: =LINEST(qk_2_kühlen,V_Prim_2_kühlen^{0,1,2},0,0) -> -0.001836489669 | BC7: 0.8270154933 | BD7: -9.393502097 | BE7: =BB7*V_pr^2+BC7*V_pr+BD7 -> 46.80048063 | BF7: =LINEST(Leistung_abhängig_von_Vpr_kühlen,offene_Düsen_kühlen^{0,1,2},0,0) -> 0.003168397564 | BG7: -1.022840277 | BH7: 84.55569505 | BI7: =INDEX(LOGEST(dP_2_heizen,LN(V_Prim_2_heizen),,TRUE),1,2) -> 0.03626793834 | BJ7: =LN(INDEX(LOGEST(dP_2_heizen,LN(V_Prim_2_heizen),,TRUE),1,1)) -> 2.002374491 | BK7: =INDEX(LOGEST(dP_2_heizen,LN(V_Prim_2_heizen),,TRUE),3,1) -> 0.9994677987 | BL7: =BI7*V_pr^BJ7 -> 254.8653039 | BM7: =INDEX(LOGEST(Druck_abhängig_von_Vpr_heizen,LN(offene_Düsen_kühlen),,TRUE),1,2) -> 647428.6039 | BN7: =LN(INDEX(LOGEST(Druck_abhängig_von_Vpr_heizen,LN(offene_Düsen_kühlen),,TRUE),1,1)) -> -2.100378347 | BO7: =INDEX(LOGEST(Druck_abhängig_von_Vpr_heizen,LN(offene_Düsen_kühlen),,TRUE),3,1) -> 0.9971511894 | BP7: =LINEST(qk_2_heizen,V_Prim_2_heizen^{0,1,2},0,0) -> -0.002128155037 | BQ7: 0.5732155464 | BR7: -1.108249906 | BS7: =BP7*V_pr^2+BQ7*V_pr+BR7 -> 31.89319701 | BT7: =LINEST(Leistung_abhängig_von_Vpr_heizen,offene_Düsen_kühlen^{0,1,2},0,0) -> 0.006964229081 | BU7: -0.9666873474 | BV7: 59.99049025 | BW7: =H52 -> 41.69491525 | BY7: M | BZ7: 42 | CA7: =LINEST(Akustik_Lwa2,LN(Akustik_Vpr2),TRUE,FALSE) -> 29.79313701 | CB7: -90.86797505 | CD7: =CA7*LN(V_pr)+CB7 -> 40.92275202 | CE7: =LINEST(LWAabhaengigvonVpr,LN(Akustik_AnzahlDüsen),TRUE,FALSE) -> -22.62747162 | CF7: 125.5234111 | CG7: =INDEX(LOGEST(Akustik_P2,LN(Akustik_Vpr2),,TRUE),1,2) -> 0.0250253582 | CH7: =LN(INDEX(LOGEST(Akustik_P2,LN(Akustik_Vpr2),,TRUE),1,1)) -> 2.091327342 | CI7: =INDEX(LOGEST(Akustik_P2,LN(Akustik_Vpr2),,TRUE),3,1) -> 0.9999415691 | CJ7: =CG7*V_pr^CH7 -> 260.6493442 | CK7: =INDEX(LOGEST(Akustik_Druck_P_abhaengigvonVpr,LN(Akustik_AnzahlDüsen),,TRUE),1,2) -> 733209.5402 | CL7: =LN(INDEX(LOGEST(Akustik_Druck_P_abhaengigvonVpr,LN(Akustik_AnzahlDüsen),,TRUE),1,1)) -> -2.124255921 | CM7: =INDEX(LOGEST(Akustik_Druck_P_abhaengigvonVpr,LN(Akustik_AnzahlDüsen),,TRUE),3,1) -> 0.9998666592 | CN7: =H52 -> 41.69491525
B8: projektierte Leistung: | F8: =HFB!K9 -> 0 | G8: W | J8: projektierte Leistung: | K8: =HFB!P9 -> 0 | L8: W | M8: Bearbeiter: | W8: Kühlen | X8: Heizen | Z8: Düsenkasten Stellung 3 (27 oben offen, unten 0 offen) | AF8: Düsenkasten K1 - 1072193 | AN8: L | AO8: 1072190 | AP8: 3 | AQ8: 52 | AR8: 30 | AS8: 22 | AT8: K2 | AU8: =INDEX(LOGEST(dP_3_kühlen,LN(V_Prim_3_kühlen),,TRUE),1,2) -> 0.01982224198 | AV8: =LN(INDEX(LOGEST(dP_3_kühlen,LN(V_Prim_3_kühlen),,TRUE),1,1)) -> 2.043644211 | AW8: =INDEX(LOGEST(dP_3_kühlen,LN(V_Prim_3_kühlen),,TRUE),3,1) -> 0.9996767047 | AX8: =AU8*V_pr^AV8 -> 167.1954372 | AY8: =INDEX(LOGEST(Druck_abhängig_von_Vpr_kühlen,LN(offene_Düsen_kühlen),,TRUE),1,2) -> 661409.7579 | AZ8: =LN(INDEX(LOGEST(Druck_abhängig_von_Vpr_kühlen,LN(offene_Düsen_kühlen),,TRUE),1,1)) -> -2.104247973 | BA8: =INDEX(LOGEST(Druck_abhängig_von_Vpr_kühlen,LN(offene_Düsen_kühlen),,TRUE),3,1) -> 0.9971972407 | BB8: =LINEST(qk_3_kühlen,V_Prim_3_kühlen^{0,1,2},0,0) -> -0.001828742799 | BC8: 0.7839006363 | BD8: -12.30686169 | BE8: =BB8*V_pr^2+BC8*V_pr+BD8 -> 40.3456511 | BF8: =LINEST(Leistung_abhängig_von_Vpr_kühlen,offene_Düsen_kühlen^{0,1,2},0,0) -> 0.003168397564 | BG8: -1.022840277 | BH8: 84.55569505 | BI8: =INDEX(LOGEST(dP_3_heizen,LN(V_Prim_3_heizen),,TRUE),1,2) -> 0.02053031936 | BJ8: =LN(INDEX(LOGEST(dP_3_heizen,LN(V_Prim_3_heizen),,TRUE),1,1)) -> 2.035267697 | BK8: =INDEX(LOGEST(dP_3_heizen,LN(V_Prim_3_heizen),,TRUE),3,1) -> 0.9996931822 | BL8: =BI8*V_pr^BJ8 -> 166.8687922 | BM8: =INDEX(LOGEST(Druck_abhängig_von_Vpr_heizen,LN(offene_Düsen_kühlen),,TRUE),1,2) -> 647428.6039 | BN8: =LN(INDEX(LOGEST(Druck_abhängig_von_Vpr_heizen,LN(offene_Düsen_kühlen),,TRUE),1,1)) -> -2.100378347 | BO8: =INDEX(LOGEST(Druck_abhängig_von_Vpr_heizen,LN(offene_Düsen_kühlen),,TRUE),3,1) -> 0.9971511894 | BP8: =LINEST(qk_3_heizen,V_Prim_3_heizen^{0,1,2},0,0) -> -0.001723752617 | BQ8: 0.5268280755 | BR8: -3.624401097 | BS8: =BP8*V_pr^2+BQ8*V_pr+BR8 -> 28.32096184 | BT8: =LINEST(Leistung_abhängig_von_Vpr_heizen,offene_Düsen_kühlen^{0,1,2},0,0) -> 0.006964229081 | BU8: -0.9666873474 | BV8: 59.99049025 | BW8: =H53 -> 51.42372881 | BY8: L | BZ8: 52 | CA8: =LINEST(Akustik_Lwa3,LN(Akustik_Vpr3),TRUE,FALSE) -> 29.87019339 | CB8: -96.1402398 | CD8: =CA8*LN(V_pr)+CB8 -> 35.99134822 | CE8: =LINEST(LWAabhaengigvonVpr,LN(Akustik_AnzahlDüsen),TRUE,FALSE) -> -22.62747162 | CF8: 125.5234111 | CG8: =INDEX(LOGEST(Akustik_P3,LN(Akustik_Vpr3),,TRUE),1,2) -> 0.01464897707 | CH8: =LN(INDEX(LOGEST(Akustik_P3,LN(Akustik_Vpr3),,TRUE),1,1)) -> 2.1085725 | CI8: =INDEX(LOGEST(Akustik_P3,LN(Akustik_Vpr3),,TRUE),3,1) -> 0.9999659914 | CJ8: =CG8*V_pr^CH8 -> 164.6696389 | CK8: =INDEX(LOGEST(Akustik_Druck_P_abhaengigvonVpr,LN(Akustik_AnzahlDüsen),,TRUE),1,2) -> 733209.5402 | CL8: =LN(INDEX(LOGEST(Akustik_Druck_P_abhaengigvonVpr,LN(Akustik_AnzahlDüsen),,TRUE),1,1)) -> -2.124255921 | CM8: =INDEX(LOGEST(Akustik_Druck_P_abhaengigvonVpr,LN(Akustik_AnzahlDüsen),,TRUE),3,1) -> 0.9998666592 | CN8: =H53 -> 51.42372881 | EO8: TWI | EP8: TWO | EQ8: QA | ER8: VA | ES8: TAI | ET8: UR | EU8: PT | EV8: PS | EW8: TAO | EX8: UR | EY8: QW | EZ8: VW | FA8: DPW | FB8: DPA | FC8: T_Misch | FD8: Q_Eurocoil | FE8: Q_KSP | FF8: Korrekturwert | FG8: q_Eurocoil | FH8: q / Düse | FI8: q_KSP | FJ8: q_KSP/Düse | FK8: Korrekturwert | FL8: V_Prim_KSP | FM8: Düsenanzahl | FN8: V_Prim/Düsenanzahl | FP8: Druck
B9: Raumtemperatur: | F9: =HFB!K10 -> 26 | G9: °C | J9: Raumtemperatur: | K9: =HFB!P10 -> 20 | L9: °C | W9: Wassermenge Korrekturfaktor | X9: Wasser-menge in % | AN9: XL | AO9: 1072193 | AP9: 4 | AQ9: 60 | AR9: 30 | AS9: 30 | AT9: K1 | AU9: =INDEX(LOGEST(dP_4_kühlen,LN(V_Prim_4_kühlen),,TRUE),1,2) -> 0.01226218207 | AV9: =LN(INDEX(LOGEST(dP_4_kühlen,LN(V_Prim_4_kühlen),,TRUE),1,1)) -> 2.070084039 | AW9: =INDEX(LOGEST(dP_4_kühlen,LN(V_Prim_4_kühlen),,TRUE),3,1) -> 0.9997809454 | AX9: =AU9*V_pr^AV9 -> 116.2608003 | AY9: =INDEX(LOGEST(Druck_abhängig_von_Vpr_kühlen,LN(offene_Düsen_kühlen),,TRUE),1,2) -> 661409.7579 | AZ9: =LN(INDEX(LOGEST(Druck_abhängig_von_Vpr_kühlen,LN(offene_Düsen_kühlen),,TRUE),1,1)) -> -2.104247973 | BA9: =INDEX(LOGEST(Druck_abhängig_von_Vpr_kühlen,LN(offene_Düsen_kühlen),,TRUE),3,1) -> 0.9971972407 | BB9: =LINEST(qk_4_kühlen,V_Prim_4_kühlen^{0,1,2},0,0) -> -0.00177113608 | BC9: 0.7440744465 | BD9: -15.3008999 | BE9: =BB9*V_pr^2+BC9*V_pr+BD9 -> 34.43110294 | BF9: =LINEST(Leistung_abhängig_von_Vpr_kühlen,offene_Düsen_kühlen^{0,1,2},0,0) -> 0.003168397564 | BG9: -1.022840277 | BH9: 84.55569505 | BI9: =INDEX(LOGEST(dP_4_heizen,LN(V_Prim_4_heizen),,TRUE),1,2) -> 0.01183358644 | BJ9: =LN(INDEX(LOGEST(dP_4_heizen,LN(V_Prim_4_heizen),,TRUE),1,1)) -> 2.076766455 | BK9: =INDEX(LOGEST(dP_4_heizen,LN(V_Prim_4_heizen),,TRUE),3,1) -> 0.9996132879 | BL9: =BI9*V_pr^BJ9 -> 115.563214 | BM9: =INDEX(LOGEST(Druck_abhängig_von_Vpr_heizen,LN(offene_Düsen_kühlen),,TRUE),1,2) -> 647428.6039 | BN9: =LN(INDEX(LOGEST(Druck_abhängig_von_Vpr_heizen,LN(offene_Düsen_kühlen),,TRUE),1,1)) -> -2.100378347 | BO9: =INDEX(LOGEST(Druck_abhängig_von_Vpr_heizen,LN(offene_Düsen_kühlen),,TRUE),3,1) -> 0.9971511894 | BP9: =LINEST(qk_4_heizen,V_Prim_4_heizen^{0,1,2},0,0) -> -0.001286962775 | BQ9: 0.4465470589 | BR9: -1.136530873 | BS9: =BP9*V_pr^2+BQ9*V_pr+BR9 -> 27.15158879 | BT9: =LINEST(Leistung_abhängig_von_Vpr_heizen,offene_Düsen_kühlen^{0,1,2},0,0) -> 0.006964229081 | BU9: -0.9666873474 | BV9: 59.99049025 | BW9: =H54 -> 59.76271186 | BY9: XL | BZ9: 60 | CA9: =LINEST(Akustik_Lwa4,LN(Akustik_Vpr4),TRUE,FALSE) -> 29.09636007 | CB9: -95.72363188 | CD9: =CA9*LN(V_pr)+CB9 -> 32.98488404 | CE9: =LINEST(LWAabhaengigvonVpr,LN(Akustik_AnzahlDüsen),TRUE,FALSE) -> -22.62747162 | CF9: 125.5234111 | CG9: =INDEX(LOGEST(Akustik_P4,LN(Akustik_Vpr4),,TRUE),1,2) -> 0.01241352925 | CH9: =LN(INDEX(LOGEST(Akustik_P4,LN(Akustik_Vpr4),,TRUE),1,1)) -> 2.080591655 | CI9: =INDEX(LOGEST(Akustik_P4,LN(Akustik_Vpr4),,TRUE),3,1) -> 0.9990849373 | CJ9: =CG9*V_pr^CH9 -> 123.2954752 | CK9: =INDEX(LOGEST(Akustik_Druck_P_abhaengigvonVpr,LN(Akustik_AnzahlDüsen),,TRUE),1,2) -> 733209.5402 | CL9: =LN(INDEX(LOGEST(Akustik_Druck_P_abhaengigvonVpr,LN(Akustik_AnzahlDüsen),,TRUE),1,1)) -> -2.124255921 | CM9: =INDEX(LOGEST(Akustik_Druck_P_abhaengigvonVpr,LN(Akustik_AnzahlDüsen),,TRUE),3,1) -> 0.9998666592 | CN9: =H54 -> 59.76271186 | CY9: Düsenstellung | CZ9: Dp - Wasserseitig [kPa] | DA9: Dp - Düsenkasten [Pa] | DB9: i (-) kontroller - Stand Labview | DC9: i (-) korrigiert | DD9: i (-) - Thomas | DE9: Date | DF9: Time | DG9: Name | DH9: Projekt | DI9: Wassermenge [kg/h] | DJ9: T Wasser Vorlauf [°C] | DK9: T Wasser Rücklauf [°C] | DL9: T Wasser Spreizung [°C] | DM9: Q Sek [W] | DN9: q Sek [W/K] | DO9: V Sek [m³/h] | DP9: i [-] | DQ9: T Ansaug mean [°C] | DR9: T Ausblas mean [°C] | DS9: T WT in [°C] | DT9: T WT out [°C] | DU9: Mess-strecke | DV9: Wirkdruck | DW9: V Prim [m³/h] | DX9: T Ansaug 1 | DY9: T Ansaug 2 | DZ9: T Ansaug 3 | EA9: T Ausblas 1 | EB9: T Ausblas 2 | EC9: T Ausblas 3 | ED9: T Primärluft | EE9: T Halle | EG9: Q wasser | EH9: qwasser | EI9: Vsek | EJ9: Vsek_Hallraum / Vsek_Berechnet | EO9: °C | EP9: °C | EQ9: m3/h | ER9: m/s | ES9: °C | ET9: % | EU9: kW | EV9: kW | EW9: °C | EX9: % | EY9: l/h | EZ9: m/s | FA9: kPa | FB9: Pa
W10: kühlen_Korrekturfaktor_Wasser | X10: heizen_Korrekturfaktor_Wasser | Z10: Dp - Düsenkasten = 150 Pa | AF10: Dp - Düsenkasten = 150 Pa | AN10: 1 | AO10: 2 | AP10: 3 | AQ10: 4 | AR10: 5 | AS10: 6 | AT10: 7 | AU10: 8 | AV10: 9 | AW10: 10 | AX10: 11 | AY10: 12 | AZ10: 13 | BA10: 14 | BB10: 15 | BC10: 16 | BD10: 17 | BE10: 18 | BF10: 19 | BG10: 20 | BH10: 21 | BI10: 22 | BJ10: 23 | BK10: 24 | BL10: 25 | BM10: 26 | BN10: 27 | BO10: 28 | BP10: 29 | BQ10: 30 | BR10: 31 | BS10: 32 | BT10: 33 | BU10: 34 | BV10: 35 | BW10: 36 | BY10: 1 | BZ10: 2 | CA10: 3 | CB10: 4 | CC10: 5 | CD10: 6 | CE10: 7 | CF10: 8 | CG10: 9 | CH10: 10 | CI10: 11 | CJ10: 12 | CK10: 13 | CL10: 14 | CM10: 15 | CN10: 16
B11: Primärvolumenstrom | F11: =HFB!F16 -> 60 | G11: m³/h | W11: =$I$21/$F$21 -> 1 | X11: =$I$22/$F$22 -> 1 | Z11: Wassermenge | AA11: spez. Leistung | AB11: Kühlleistung in % der Nennleistung | AC11: Wassermenge w in % der Nennwassermenge (200 kg/h) | AD11: wasserseit. Druckverlust - kühlen | AF11: Wassermenge | AG11: spez. Leistung | AH11: Kühlleistung in % der Nennleistung | AI11: Wassermenge w in % der Nennwassermenge (200 kg/h) | AJ11: wasserseit. Druckverlust - kühlen | AN11: Zeichnungs- nummer | AO11: Düsenanzahl | AP11: Düsenanzahl | AQ11: V Prim [m³/h] | AR11: q Sek [W/K] | AS11: Dp - Düsenkasten [Pa] | AT11: Dp - Düsenkasten [Pa] | AU11: i (-) korrigiert | BY11: Düsen [-] | BZ11: Volumenstrom [m³/h] | CA11: Druck im Düsenkasten [Pa] | CB11: Lwa (Hallraum) | CC11: Lwlin (Hallraum) | CD11: Diagramm bezeichnung
Z12: [kg/h] | AA12: [W/K] | AB12: [-] | AC12: [-] | AD12: [kPa] | AF12: [kg/h] | AG12: [W/K] | AH12: [-] | AI12: [-] | AJ12: [kPa] | BZ12: Akustik_Vpr1 | CA12: Akustik_P1 | CB12: Akustik_Lwa1 | CY12: kühlen ohne Schieber
A13: Baugröße 630 | Y13: Name des Bereichs | Z13: WM_Roh_wk | AA13: WM_Roh_qk | AB13: WM_Roh_qk_Proz | AC13: WM_Roh_wk_Proz | AD13: WM_kPa_kühlen | AF13: WM_Roh_wh | AG13: WM_Roh_qh | AH13: WM_Roh_qh_Proz | AI13: WM_Roh_wh_Proz | AJ13: WM_kPa_heizen | AN13: Messwerte | BY13: 33 | BZ13: 59.43358217 | CA13: 210 | CB13: 36 | CC13: 41 | CD13: M7;2554; Düsen 33 (30 / 3); mit Edelstahlgitter
A14: Düsen- kasten | B14: VP [m³/h] | C14: dp - kühlen [Pa] | D14: dp - heizen [Pa] | E14: dp - Akustik [Pa] | F14: dp [Pa] | G14: LWA [dB(A)] | H14: LA18 [dB(A)] | I14: QPK [W] | J14: QSK1) [W] | K14: QKges [W] | L14: QPH [W] | M14: QSH [W] | N14: QHges [W] | O14: tKWRL [°C] | P14: tWWRL [°C] | S14: qSK BG800 [W/K] | T14: qSK [W/K] | U14: qSH BG800 [W/K] | V14: qSH [W/K] | W14: Leist. in % bei versch. Wasserm. | X14: Leist. in % bei versch. Wasserm. | Z14: 75.524436 | AA14: 25.621321 | AB14: =AA14/AA$21 -> 0.8466534858 | AC14: =Z14/Z$21 -> 0.37762218 | AD14: 4.6 | AF14: 23.17932333 | AG14: 16.40583933 | AH14: =AG14/AG$21 -> 0.5516934249 | AI14: =AF14/AF$21 -> 0.2317932333 | AJ14: 0.1 | AN14: Kühlen - ohne Schieber, mit Al-Lineargitter (Tabellenblatt: 03-08-2016_kühlen ohne Schieber) | BY14: 33 | BZ14: 70.29549129 | CA14: 303 | CB14: 41.1 | CC14: 43.6 | CD14: M7;2555; Düsen 33 (30 / 3); mit Edelstahlgitter | CY14: Mittelwerte Ergebnis - Sortiert
Z15: 112.4647697 | AA15: 28.17968333 | AB15: =AA15/AA$21 -> 0.9311942629 | AC15: =Z15/Z$21 -> 0.5623238483 | AD15: 9.9 | AF15: 69.75128667 | AG15: 26.84882733 | AH15: 0.902868863 | AI15: 0.6975128667 | AJ15: 1.4 | AQ15: V_Prim_1_kühlen | AR15: qk_1_kühlen | AS15: dP_1_kühlen | BY15: 33 | BZ15: 80.24708722 | CA15: 402 | CB15: 45.3 | CC15: 46.7 | CD15: M7;2556; Düsen 33 (30 / 3); mit Edelstahlgitter | CY15: 2016-08-08
A16: =HFB!A20 -> S | B16: =IF(OR(F16>300,F16<50),,$F$11) -> 0 | C16: =VLOOKUP(A16,Matrix_Leistung_Düsenkästen,12,0)*VLOOKUP(A16,Matrix_Leistung_Düsenkästen,36,0)^VLOOKUP(A16,Matrix_Leistung_Düsenkästen,13,0) -> 412.4171589 | D16: =VLOOKUP(A16,Matrix_Leistung_Düsenkästen,26,0)*VLOOKUP(A16,Matrix_Leistung_Düsenkästen,36,0)^VLOOKUP(A16,Matrix_Leistung_Düsenkästen,27,0) -> 409.2155443 | E16: =VLOOKUP(A16,Akustik_Matrix,13,0)*(VLOOKUP(A16,Akustik_Matrix,16,0))^VLOOKUP(A16,Akustik_Matrix,14,0) -> 426.2051252 | F16: =E16 -> 426.2051252 | G16: =10*LOG($H$29/$H$27)+(VLOOKUP(A16,Akustik_Matrix,7,0)*LN(VLOOKUP(A16,Akustik_Matrix,16,0))+VLOOKUP(A16,Akustik_Matrix,8,0)) -> 44.73391793 | H16: =G16-6.5 -> 38.23391793 | I16: =IF(OR(F16>300,F16<50),"",IFERROR(ROUND(B16*1.2*1004.5*($F$6-$F$9)/3600,-1),0)) ->  | J16: =IF(OR(F16>300,F16<50),"",IF(A16=0,,IFERROR((T16*($F$7-$F$5))*W16,T16))) ->  | K16: =IFERROR((I16+J16),) -> 0 | L16: =IF(OR(F16>300,F16<50),"",IFERROR(ROUND(B16*1.2*1004.5*($K$6-$K$9)/3600,-1),)) ->  | M16: =IF(OR(F16>300,F16<50),"",IF(A16=0,,IFERROR((V16*($K$7-$K$5))*X16,V16))) ->  | N16: =IFERROR((L16+M16),) -> 0 | O16: =IFERROR(IF(J16=0,,$F$7-((J16/(4.2*$I$21/3.6)))),) -> 0 | P16: =IFERROR(IF(M16=0,,($K$7-((M16/(4.2*$I$22/3.6))))),) -> 0 | S16: =VLOOKUP(A16,Matrix_Leistung_Düsenkästen,19,0)*VLOOKUP(A16,Matrix_Leistung_Düsenkästen,36,0)^2+VLOOKUP(A16,Matrix_Leistung_Düsenkästen,20,0)*VLOOKUP(A16,Matrix_Leistung_Düsenkästen,36,0)+VLOOKUP(A16,Matrix_Leistung_Düsenkästen,21,0) -> 53.96312094 | T16: =($G$35*S16^$G$34+$H$35*S16^$H$34+$I$35*S16^$I$34+$J$35*S16^$J$34+$K$35*S16^$K$34+$L$35*S16^$L$34+$M$35)*S16 -> 38.99784438 | U16: =VLOOKUP(A16,Matrix_Leistung_Düsenkästen,33,0)*VLOOKUP(A16,Matrix_Leistung_Düsenkästen,36,0)^2+VLOOKUP(A16,Matrix_Leistung_Düsenkästen,34,0)*VLOOKUP(A16,Matrix_Leistung_Düsenkästen,36,0)+VLOOKUP(A16,Matrix_Leistung_Düsenkästen,35,0) -> 35.49426075 | V16: =($G$40*U16^$G$39+$H$40*U16^$H$39+$I$40*U16^$I$39+$J$40*U16^$J$39+$K$40*U16^$K$39+$L$40*U16^$L$39+$M$40)*U16 -> 26.6153643 | W16: =IF($W$11=100,100,$AB$23) -> 1 | X16: =IF($X$11=100,100,$AH$23) -> 1 | Z16: 158.7240233 | AA16: 29.48720067 | AB16: =AA16/AA$21 -> 0.9744010166 | AC16: =Z16/Z$21 -> 0.7936201167 | AD16: 18.4 | AF16: 101.525135 | AG16: 29.71773233 | AH16: 0.999344026 | AI16: 1.01525135 | AJ16: 2.9 | AN16: 1072184 | AO16: =VLOOKUP(AN16,Duesenkaesten_Groeßen_Matrix,3) -> 33 | AP16: =CONCATENATE(""&AO16&" Düsen ") -> 33 Düsen | AQ16: 28.603288 | AR16: 15.981152 | AS16: 50 | AT16: =CONCATENATE(""&AS16&" Pa ") -> 50 Pa | AU16: 1.943006135 | BZ16: Akustik_Vpr2 | CA16: Akustik_P2 | CB16: Akustik_Lwa2 | DI16: 5 | DJ16: 3 | DL16: 4 | DO16: 1 | DQ16: 2
A17: =HFB!A21 -> M | B17: =IF(OR(F17>300,F17<50),,$F$11) -> 60 | C17: =VLOOKUP(A17,Matrix_Leistung_Düsenkästen,12,0)*VLOOKUP(A17,Matrix_Leistung_Düsenkästen,36,0)^VLOOKUP(A17,Matrix_Leistung_Düsenkästen,13,0) -> 257.8778423 | D17: =VLOOKUP(A17,Matrix_Leistung_Düsenkästen,26,0)*VLOOKUP(A17,Matrix_Leistung_Düsenkästen,36,0)^VLOOKUP(A17,Matrix_Leistung_Düsenkästen,27,0) -> 256.0969636 | E17: =VLOOKUP(A17,Akustik_Matrix,13,0)*(VLOOKUP(A17,Akustik_Matrix,16,0))^VLOOKUP(A17,Akustik_Matrix,14,0) -> 265.3120644 | F17: =E17 -> 265.3120644 | G17: =10*LOG($H$29/$H$27)+(VLOOKUP(A17,Akustik_Matrix,7,0)*LN(VLOOKUP(A17,Akustik_Matrix,16,0))+VLOOKUP(A17,Akustik_Matrix,8,0)) -> 39.68474355 | H17: =G17-6.5 -> 33.18474355 | I17: =IF(OR(F17>300,F17<50),"",IFERROR(ROUND(B17*1.2*1004.5*($F$6-$F$9)/3600,-1),0)) -> -160 | J17: =IF(OR(F17>300,F17<50),"",IF(A17=0,,IFERROR((T17*($F$7-$F$5))*W17,T17))) -> -340.6980653 | K17: =IFERROR((I17+J17),) -> -500.6980653 | L17: =IF(OR(F17>300,F17<50),"",IFERROR(ROUND(B17*1.2*1004.5*($K$6-$K$9)/3600,-1),)) -> -40 | M17: =IF(OR(F17>300,F17<50),"",IF(A17=0,,IFERROR((V17*($K$7-$K$5))*X17,V17))) -> 957.8331414 | N17: =IFERROR((L17+M17),) -> 917.8331414 | O17: =IFERROR(IF(J17=0,,$F$7-((J17/(4.2*$I$21/3.6)))),) -> 17.46013457 | P17: =IFERROR(IF(M17=0,,($K$7-((M17/(4.2*$I$22/3.6))))),) -> 51.79000165 | S17: =VLOOKUP(A17,Matrix_Leistung_Düsenkästen,19,0)*VLOOKUP(A17,Matrix_Leistung_Düsenkästen,36,0)^2+VLOOKUP(A17,Matrix_Leistung_Düsenkästen,20,0)*VLOOKUP(A17,Matrix_Leistung_Düsenkästen,36,0)+VLOOKUP(A17,Matrix_Leistung_Düsenkästen,21,0) -> 47.41660768 | T17: =($G$35*S17^$G$34+$H$35*S17^$H$34+$I$35*S17^$I$34+$J$35*S17^$J$34+$K$35*S17^$K$34+$L$35*S17^$L$34+$M$35)*S17 -> 34.06980653 | U17: =VLOOKUP(A17,Matrix_Leistung_Düsenkästen,33,0)*VLOOKUP(A17,Matrix_Leistung_Düsenkästen,36,0)^2+VLOOKUP(A17,Matrix_Leistung_Düsenkästen,34,0)*VLOOKUP(A17,Matrix_Leistung_Düsenkästen,36,0)+VLOOKUP(A17,Matrix_Leistung_Düsenkästen,35,0) -> 31.79161841 | V17: =($G$40*U17^$G$39+$H$40*U17^$H$39+$I$40*U17^$I$39+$J$40*U17^$J$39+$K$40*U17^$K$39+$L$40*U17^$L$39+$M$40)*U17 -> 23.94582854 | W17: =IF($W$11=100,100,$AB$23) -> 1 | X17: =IF($X$11=100,100,$AH$23) -> 1 | Z17: 198.9685353 | AA17: 30.33612633 | AB17: =AA17/AA$21 -> 1.002453664 | AC17: =Z17/Z$21 -> 0.9948426767 | AD17: 27.7 | AF17: 151.7741887 | AG17: 31.959669 | AH17: 1.07473558 | AI17: 1.517741887 | AJ17: 6.2 | AN17: 1072184 | AO17: =VLOOKUP(AN17,Duesenkaesten_Groeßen_Matrix,3) -> 33 | AP17: =CONCATENATE(""&AO17&" Düsen ") -> 33 Düsen | AQ17: 50.449884 | AR17: 31.25105167 | AS17: 150 | AT17: =CONCATENATE(""&AS17&" Pa ") -> 150 Pa | AU17: 2.015154504 | BY17: 42 | BZ17: 104.5420822 | CA17: 419 | CB17: 47.7 | CC17: 49 | CD17: M6;2552; Düsen 42 (30 / 12); mit Al-Lineargitter
A18: =HFB!A22 -> L | B18: =IF(OR(F18>300,F18<50),,$F$11) -> 60 | C18: =VLOOKUP(A18,Matrix_Leistung_Düsenkästen,12,0)*VLOOKUP(A18,Matrix_Leistung_Düsenkästen,36,0)^VLOOKUP(A18,Matrix_Leistung_Düsenkästen,13,0) -> 165.8662915 | D18: =VLOOKUP(A18,Matrix_Leistung_Düsenkästen,26,0)*VLOOKUP(A18,Matrix_Leistung_Düsenkästen,36,0)^VLOOKUP(A18,Matrix_Leistung_Düsenkästen,27,0) -> 164.8545673 | E18: =VLOOKUP(A18,Akustik_Matrix,13,0)*(VLOOKUP(A18,Akustik_Matrix,16,0))^VLOOKUP(A18,Akustik_Matrix,14,0) -> 169.9334101 | F18: =E18 -> 169.9334101 | G18: =10*LOG($H$29/$H$27)+(VLOOKUP(A18,Akustik_Matrix,7,0)*LN(VLOOKUP(A18,Akustik_Matrix,16,0))+VLOOKUP(A18,Akustik_Matrix,8,0)) -> 34.93929819 | H18: =G18-6.5 -> 28.43929819 | I18: =IF(OR(F18>300,F18<50),"",IFERROR(ROUND(B18*1.2*1004.5*($F$6-$F$9)/3600,-1),0)) -> -160 | J18: =IF(OR(F18>300,F18<50),"",IF(A18=0,,IFERROR((T18*($F$7-$F$5))*W18,T18))) -> -288.1212349 | K18: =IFERROR((I18+J18),) -> -448.1212349 | L18: =IF(OR(F18>300,F18<50),"",IFERROR(ROUND(B18*1.2*1004.5*($K$6-$K$9)/3600,-1),)) -> -40 | M18: =IF(OR(F18>300,F18<50),"",IF(A18=0,,IFERROR((V18*($K$7-$K$5))*X18,V18))) -> 869.8474469 | N18: =IFERROR((L18+M18),) -> 829.8474469 | O18: =IFERROR(IF(J18=0,,$F$7-((J18/(4.2*$I$21/3.6)))),) -> 17.23480529 | P18: =IFERROR(IF(M18=0,,($K$7-((M18/(4.2*$I$22/3.6))))),) -> 52.54416474 | S18: =VLOOKUP(A18,Matrix_Leistung_Düsenkästen,19,0)*VLOOKUP(A18,Matrix_Leistung_Düsenkästen,36,0)^2+VLOOKUP(A18,Matrix_Leistung_Düsenkästen,20,0)*VLOOKUP(A18,Matrix_Leistung_Düsenkästen,36,0)+VLOOKUP(A18,Matrix_Leistung_Düsenkästen,21,0) -> 40.33594417 | T18: =($G$35*S18^$G$34+$H$35*S18^$H$34+$I$35*S18^$I$34+$J$35*S18^$J$34+$K$35*S18^$K$34+$L$35*S18^$L$34+$M$35)*S18 -> 28.81212349 | U18: =VLOOKUP(A18,Matrix_Leistung_Düsenkästen,33,0)*VLOOKUP(A18,Matrix_Leistung_Düsenkästen,36,0)^2+VLOOKUP(A18,Matrix_Leistung_Düsenkästen,34,0)*VLOOKUP(A18,Matrix_Leistung_Düsenkästen,36,0)+VLOOKUP(A18,Matrix_Leistung_Düsenkästen,35,0) -> 28.69602883 | V18: =($G$40*U18^$G$39+$H$40*U18^$H$39+$I$40*U18^$I$39+$J$40*U18^$J$39+$K$40*U18^$K$39+$L$40*U18^$L$39+$M$40)*U18 -> 21.74618617 | W18: =IF($W$11=100,100,$AB$23) -> 1 | X18: =IF($X$11=100,100,$AH$23) -> 1 | Z18: 325.3458537 | AA18: 31.22387433 | AB18: =AA18/AA$21 -> 1.03178919 | AC18: =Z18/Z$21 -> 1.626729268 | AD18: 67.5 | AF18: 199.2563427 | AG18: 32.91787767 | AH18: 1.106958096 | AI18: 1.992563427 | AJ18: 10.7 | AN18: 1072184 | AO18: =VLOOKUP(AN18,Duesenkaesten_Groeßen_Matrix,3) -> 33 | AP18: =CONCATENATE(""&AO18&" Düsen ") -> 33 Düsen | AQ18: 70.412696 | AR18: 45.25636933 | AS18: 300 | AT18: =CONCATENATE(""&AS18&" Pa ") -> 300 Pa | AU18: 2.219359957 | BY18: 42 | BZ18: 89.33314951 | CA18: 300 | CB18: 42.9 | CC18: 45 | CD18: M6;2553; Düsen 42 (30 / 12); mit Al-Lineargitter
A19: =HFB!A23 -> XL | B19: =IF(OR(F19>300,F19<50),,$F$11) -> 60 | C19: =VLOOKUP(A19,Matrix_Leistung_Düsenkästen,12,0)*VLOOKUP(A19,Matrix_Leistung_Düsenkästen,36,0)^VLOOKUP(A19,Matrix_Leistung_Düsenkästen,13,0) -> 120.8984539 | D19: =VLOOKUP(A19,Matrix_Leistung_Düsenkästen,26,0)*VLOOKUP(A19,Matrix_Leistung_Düsenkästen,36,0)^VLOOKUP(A19,Matrix_Leistung_Düsenkästen,27,0) -> 120.2309155 | E19: =VLOOKUP(A19,Akustik_Matrix,13,0)*(VLOOKUP(A19,Akustik_Matrix,16,0))^VLOOKUP(A19,Akustik_Matrix,14,0) -> 123.4910638 | F19: =E19 -> 123.4910638 | G19: =10*LOG($H$29/$H$27)+(VLOOKUP(A19,Akustik_Matrix,7,0)*LN(VLOOKUP(A19,Akustik_Matrix,16,0))+VLOOKUP(A19,Akustik_Matrix,8,0)) -> 31.5387919 | H19: =G19-6.5 -> 25.0387919 | I19: =IF(OR(F19>300,F19<50),"",IFERROR(ROUND(B19*1.2*1004.5*($F$6-$F$9)/3600,-1),0)) -> -160 | J19: =IF(OR(F19>300,F19<50),"",IF(A19=0,,IFERROR((T19*($F$7-$F$5))*W19,T19))) -> -247.0923608 | K19: =IFERROR((I19+J19),) -> -407.0923608 | L19: =IF(OR(F19>300,F19<50),"",IFERROR(ROUND(B19*1.2*1004.5*($K$6-$K$9)/3600,-1),)) -> -40 | M19: =IF(OR(F19>300,F19<50),"",IF(A19=0,,IFERROR((V19*($K$7-$K$5))*X19,V19))) -> 821.1723682 | N19: =IFERROR((L19+M19),) -> 781.1723682 | O19: =IFERROR(IF(J19=0,,$F$7-((J19/(4.2*$I$21/3.6)))),) -> 17.05896726 | P19: =IFERROR(IF(M19=0,,($K$7-((M19/(4.2*$I$22/3.6))))),) -> 52.9613797 | S19: =VLOOKUP(A19,Matrix_Leistung_Düsenkästen,19,0)*VLOOKUP(A19,Matrix_Leistung_Düsenkästen,36,0)^2+VLOOKUP(A19,Matrix_Leistung_Düsenkästen,20,0)*VLOOKUP(A19,Matrix_Leistung_Düsenkästen,36,0)+VLOOKUP(A19,Matrix_Leistung_Düsenkästen,21,0) -> 34.74417713 | T19: =($G$35*S19^$G$34+$H$35*S19^$H$34+$I$35*S19^$I$34+$J$35*S19^$J$34+$K$35*S19^$K$34+$L$35*S19^$L$34+$M$35)*S19 -> 24.70923608 | U19: =VLOOKUP(A19,Matrix_Leistung_Düsenkästen,33,0)*VLOOKUP(A19,Matrix_Leistung_Düsenkästen,36,0)^2+VLOOKUP(A19,Matrix_Leistung_Düsenkästen,34,0)*VLOOKUP(A19,Matrix_Leistung_Düsenkästen,36,0)+VLOOKUP(A19,Matrix_Leistung_Düsenkästen,35,0) -> 27.09194619 | V19: =($G$40*U19^$G$39+$H$40*U19^$H$39+$I$40*U19^$I$39+$J$40*U19^$J$39+$K$40*U19^$K$39+$L$40*U19^$L$39+$M$40)*U19 -> 20.52930921 | W19: =IF($W$11=100,100,$AB$23) -> 1 | X19: =IF($X$11=100,100,$AH$23) -> 1 | AF19: 250.331756 | AG19: 33.65616433 | AH19: 1.131785104 | AI19: 2.50331756 | AJ19: 16.7 | AQ19: V_Prim_2_kühlen | AR19: qk_2_kühlen | AS19: dP_2_kühlen | BY19: 42 | BZ19: 72.53579932 | CA19: 195 | CB19: 36.8 | CC19: 40.7 | CD19: M6;; Düsen 42 (30 / 12); mit Al-Lineargitter | CY19: 1072184 | CZ19: 27.8 | DA19: 50 | DB19: =(1.2*DW19/3600*1004.5*(DR19-ED19)-DI19/3600*4180*DL19)/(1004.5*(DQ19-DR19)/3600)/DW19 -> 2.331607362 | DC19: =(((4180/1004.5)*(DI19/(1.2*DW19))*(DL19))+(ED19-DR19))/(DR19-DQ19) -> 1.943006135 | DD19: =(1.2*DW19/3600*1004.5*(DR19-ED19)-DI19/3600*4180*DL19)/(1.2*1004.5*(DQ19-DR19)/3600)/DW19 -> 1.943006135 | DE19: 2016-08-04 | DI19: 198.0668493 | DJ19: 15.93366667 | DK19: 16.742 | DL19: -0.8083333333 | DM19: -185.8981697 | DN19: 15.981152 | DO19: 66.68185467 | DP19: 2.331265333 | DQ19: 27.566 | DR19: 21.49977767 | DW19: 28.603288 | DX19: 27.73333333 | DY19: 27.6 | DZ19: 27.36 | EA19: 22.10333333 | EB19: 21.16333333 | EC19: 21.23333333 | ED19: 29.12333333 | EE19: 27.97333333 | EI19: =(1.2*DW19/3600*1004.5*(DR19-ED19)-DI19/3600*4180*DL19)/(1004.5*(DQ19-DR19)/3600) -> 66.69163689 | EO19: 15.9 | EP19: 17 | EQ19: 67 | ER19: 0.1 | ES19: 27.6 | ET19: 40 | EU19: 0.25 | EV19: 0.25 | EW19: 16.15 | EX19: 80.4 | EY19: 198 | EZ19: 0.8 | FA19: 20.5 | FB19: 0 | FC19: =(EQ19*EW19+DW19*ED19)/(EQ19+DW19) -> 20.03145635 | FD19: =-EU19*1000 -> -250 | FE19: =DM19 -> -185.8981697 | FF19: =FE19/FD19 -> 0.7435926787 | FG19: =EU19*1000/(ES19-EO19) -> 21.36752137 | FH19: =FG19/FM19 -> 0.6475006475 | FI19: =DN19 -> 15.981152 | FJ19: =FI19/FM19 -> 0.4842773333 | FK19: =FI19/FG19 -> 0.7479179136 | FL19: =DW19 -> 28.603288 | FM19: 33 | FN19: =FL19/FM19 -> 0.866766303 | FO19: =FI19/FN19 -> 18.43767108 | FP19: 50
Z20: wok | AF20: woh | AN20: 1072187 | AO20: =VLOOKUP(AN20,Duesenkaesten_Groeßen_Matrix,3) -> 42 | AP20: =CONCATENATE(""&AO20&" Düsen ") -> 42 Düsen | AQ20: 37.532281 | AR20: 19.059264 | AS20: 50 | AT20: =CONCATENATE(""&AS20&" Pa ") -> 50 Pa | AU20: 1.794433259 | BZ20: Akustik_Vpr3 | CA20: Akustik_P3 | CB20: Akustik_Lwa3 | CY20: 1072184 | CZ20: 27.8 | DA20: 150 | DB20: =(1.2*DW20/3600*1004.5*(DR20-ED20)-DI20/3600*4180*DL20)/(1004.5*(DQ20-DR20)/3600)/DW20 -> 2.418185405 | DC20: =(((4180/1004.5)*(DI20/(1.2*DW20))*(DL20))+(ED20-DR20))/(DR20-DQ20) -> 2.015154504 | DD20: =(1.2*DW20/3600*1004.5*(DR20-ED20)-DI20/3600*4180*DL20)/(1.2*1004.5*(DQ20-DR20)/3600)/DW20 -> 2.015154504 | DE20: 2016-08-04 | DI20: 199.0797403 | DJ20: 15.944 | DK20: 17.54133333 | DL20: -1.597333333 | DM20: -369.2145583 | DN20: 31.25105167 | DO20: 121.9851053 | DP20: 2.417946333 | DQ20: 27.75844467 | DR20: 21.184 | DW20: 50.449884 | DX20: 27.89333333 | DY20: 27.76333333 | DZ20: 27.62333333 | EA20: 21.16666667 | EB20: 21.11666667 | EC20: 21.27 | ED20: 29.79333333 | EE20: 27.98666667 | EI20: =(1.2*DW20/3600*1004.5*(DR20-ED20)-DI20/3600*4180*DL20)/(1004.5*(DQ20-DR20)/3600) -> 121.9971732 | EO20: 15.9 | EP20: 17.8 | EQ20: 122 | ER20: 0.2 | ES20: 27.8 | ET20: 40 | EU20: 0.43 | EV20: 0.43 | EW20: 16.85 | EX20: 77.8 | EY20: 199 | EZ20: 0.8 | FA20: 20.6 | FB20: 0 | FC20: =(EQ20*EW20+DW20*ED20)/(EQ20+DW20) -> 20.63654743 | FD20: =-EU20*1000 -> -430 | FE20: =DM20 -> -369.2145583 | FF20: =FE20/FD20 -> 0.8586385078 | FG20: =EU20*1000/(ES20-EO20) -> 36.13445378 | FH20: =FG20/FM20 -> 1.094983448 | FI20: =DN20 -> 31.25105167 | FJ20: =FI20/FM20 -> 0.9470015657 | FK20: =FI20/FG20 -> 0.8648546857 | FL20: =DW20 -> 50.449884 | FM20: 33 | FN20: =FL20/FM20 -> 1.528784364 | FO20: =FI20/FN20 -> 20.44176563 | FP20: 150
B21: wOK= | F21: =wok -> 200 | G21: [kg/h] | H21: wK= | I21: =HFB!I25 -> 200 | J21: [kg/h] | L21: DpK = | M21: =AA38*$I$21^AB38*J29 -> 22.40221716 | N21: [kPa] | Z21: 200 | AA21: =Z30*Z21^Z29+AA30*Z21^AA29+AB30*Z21^AB29+AC30*Z21^AC29+AD30 -> 30.26187387 | AB21: =Z47*AC21^Z46+AA47*AC21^AA46+AB47*AC21^AB46+AC47*AC21^AC46+AD47 -> 1 | AC21: =wok/wok -> 1 | AD21: =AA38*Z21^AB38 -> 27.92230502 | AF21: 100 | AG21: =AF30*AF21^4+AG30*AF21^3+AH30*AF21^2+AI30*AF21+AJ30 -> 29.73723919 | AH21: =AF47*AI21^AF46+AG47*AI21^AG46+AH47*AI21^AH46+AI47*AI21^AI46+AJ47 -> 1 | AI21: =woh/woh -> 1 | AJ21: =AG38*AF21^AH38 -> 2.561828505 | AN21: 1072187 | AO21: =VLOOKUP(AN21,Duesenkaesten_Groeßen_Matrix,3) -> 42 | AP21: =CONCATENATE(""&AO21&" Düsen ") -> 42 Düsen | AQ21: 64.566884 | AR21: 36.34820167 | AS21: 150 | AT21: =CONCATENATE(""&AS21&" Pa ") -> 150 Pa | AU21: 1.830884263 | BY21: 52 | BZ21: 125.9071889 | CA21: 392 | CB21: 48.3 | CC21: 49.8 | CD21: M4;2547; Düsen 52 (30 / 22); mit Edelstahlgitter | CY21: 1072184 | CZ21: 27.8 | DA21: 300 | DB21: =(1.2*DW21/3600*1004.5*(DR21-ED21)-DI21/3600*4180*DL21)/(1004.5*(DQ21-DR21)/3600)/DW21 -> 2.663231948 | DC21: =(((4180/1004.5)*(DI21/(1.2*DW21))*(DL21))+(ED21-DR21))/(DR21-DQ21) -> 2.219359957 | DD21: =(1.2*DW21/3600*1004.5*(DR21-ED21)-DI21/3600*4180*DL21)/(1.2*1004.5*(DQ21-DR21)/3600)/DW21 -> 2.219359957 | DE21: 2016-08-04 | DI21: 199.2585247 | DJ21: 15.95466667 | DK21: 18.104 | DL21: -2.149333333 | DM21: -497.271474 | DN21: 45.25636933 | DO21: 187.541943 | DP21: 2.663468 | DQ21: 26.94255533 | DR21: 21.42766667 | DW21: 70.412696 | DX21: 26.91666667 | DY21: 26.76666667 | DZ21: 27.14666667 | EA21: 21.18666667 | EB21: 21.39666667 | EC21: 21.69666667 | ED21: 30.28 | EE21: 27.99333333 | EI21: =(1.2*DW21/3600*1004.5*(DR21-ED21)-DI21/3600*4180*DL21)/(1004.5*(DQ21-DR21)/3600) -> 187.5253416 | EO21: 16 | EP21: 18.4 | EQ21: 188 | ER21: 0.4 | ES21: 26.9 | ET21: 40 | EU21: 0.56 | EV21: 0.56 | EW21: 17.72 | EX21: 69.8 | EY21: 199 | EZ21: 0.8 | FA21: 20.6 | FB21: 1 | FC21: =(EQ21*EW21+DW21*ED21)/(EQ21+DW21) -> 21.14236847 | FD21: =-EU21*1000 -> -560 | FE21: =DM21 -> -497.271474 | FF21: =FE21/FD21 -> 0.887984775 | FG21: =EU21*1000/(ES21-EO21) -> 51.37614679 | FH21: =FG21/FM21 -> 1.556852933 | FI21: =DN21 -> 45.25636933 | FJ21: =FI21/FM21 -> 1.371405131 | FK21: =FI21/FG21 -> 0.8808829031 | FL21: =DW21 -> 70.412696 | FM21: 33 | FN21: =FL21/FM21 -> 2.133718061 | FO21: =FI21/FN21 -> 21.21009808 | FP21: 300
B22: wOH= | F22: =woh -> 100 | G22: [kg/h] | H22: wH= | I22: =HFB!I26 -> 100 | J22: [kg/h] | L22: DpH = | M22: =(AH32/100^AI32)*I22^AI32 -> 1.3 | N22: [kPa] | O22: Eigenkonvektion Heizen QE: | Z22: wk | AF22: wh | AN22: 1072187 | AO22: =VLOOKUP(AN22,Duesenkaesten_Groeßen_Matrix,3) -> 42 | AP22: =CONCATENATE(""&AO22&" Düsen ") -> 42 Düsen | AQ22: 89.238556 | AR22: 49.78324433 | AS22: 300 | AT22: =CONCATENATE(""&AS22&" Pa ") -> 300 Pa | AU22: 1.950294244 | BY22: 52 | BZ22: 110.8819483 | CA22: 301 | CB22: 44.5 | CC22: 46.6 | CD22: M4;2548; Düsen 52 (30 / 22); mit Edelstahlgitter
H23: =IF(I21/F21<0.2,"Kaltwassermenge mind. 20% von Nennwassermenge!",0) -> 0 | O23: 126 W bei WWVL= 55°C | Z23: =I21 -> 200 | AA23: =Z30*Z23^Z29+AA30*Z23^AA29+AB30*Z23^AB29+AC30*Z23^AC29+AD30 -> 30.26187387 | AB23: =Z47*Wassermenge_Faktor_kühlen^Z46+AA47*Wassermenge_Faktor_kühlen^AA46+AB47*Wassermenge_Faktor_kühlen^AB46+AC47*Wassermenge_Faktor_kühlen^AC46+AD47 -> 1 | AC23: =Wassermenge_Faktor_kühlen -> 1 | AD23: =AA38*Z23^AB38 -> 27.92230502 | AF23: =I22 -> 100 | AG23: =AF30*AF23^4+AG30*AF23^3+AH30*AF23^2+AI30*AF23+AJ30 -> 29.73723919 | AH23: =AF47*Wassermenge_Faktor_heizen^AF46+AG47*Wassermenge_Faktor_heizen^AG46+AH47*Wassermenge_Faktor_heizen^AH46+AI47*Wassermenge_Faktor_heizen^AI46+AJ47 -> 1 | AI23: =Wassermenge_Faktor_heizen -> 1 | AJ23: =AG38*AF23^AH38 -> 2.561828505 | AQ23: V_Prim_3_kühlen | AR23: qk_3_kühlen | AS23: dP_3_kühlen | BC23: S | BD23: 60 | BY23: 52 | BZ23: 90.38975113 | CA23: 195 | CB23: 38.4 | CC23: 42 | CD23: M4;2549; Düsen 52 (30 / 22); mit Edelstahlgitter | CY23: 1072187 | CZ23: 28.3 | DA23: 50 | DB23: =(1.2*DW23/3600*1004.5*(DR23-ED23)-DI23/3600*4180*DL23)/(1004.5*(DQ23-DR23)/3600)/DW23 -> 2.15331991 | DC23: =(((4180/1004.5)*(DI23/(1.2*DW23))*(DL23))+(ED23-DR23))/(DR23-DQ23) -> 1.794433259 | DD23: =(1.2*DW23/3600*1004.5*(DR23-ED23)-DI23/3600*4180*DL23)/(1.2*1004.5*(DQ23-DR23)/3600)/DW23 -> 1.794433259 | DE23: 2016-08-04 | DI23: 200.516411 | DJ23: 15.92733333 | DK23: 16.86333333 | DL23: -0.936 | DM23: -217.9223973 | DN23: 19.059264 | DO23: 80.84454433 | DP23: 2.154000333 | DQ23: 27.36255567 | DR23: 21.74666667 | DW23: 37.532281 | DX23: 27.54 | DY23: 27.22 | DZ23: 27.33 | EA23: 22.14333333 | EB23: 21.57 | EC23: 21.52666667 | ED23: 29.01 | EE23: 27.89666667 | EI23: =(1.2*DW23/3600*1004.5*(DR23-ED23)-DI23/3600*4180*DL23)/(1004.5*(DQ23-DR23)/3600) -> 80.81900796 | EO23: 15.9 | EP23: 17.1 | EQ23: 81 | ER23: 0.2 | ES23: 27.4 | ET23: 40 | EU23: 0.29 | EV23: 0.29 | EW23: 16.3 | EX23: 78.8 | EY23: 201 | EZ23: 0.8 | FA23: 20.9 | FB23: 0 | FC23: =(EQ23*EW23+DW23*ED23)/(EQ23+DW23) -> 20.32451794 | FD23: =-EU23*1000 -> -290 | FE23: =DM23 -> -217.9223973 | FF23: =FE23/FD23 -> 0.7514565425 | FG23: =EU23*1000/(ES23-EO23) -> 25.2173913 | FH23: =FG23/FM23 -> 0.6004140787 | FI23: =DN23 -> 19.059264 | FJ23: =FI23/FM23 -> 0.453792 | FK23: =FI23/FG23 -> 0.7557984 | FL23: =DW23 -> 37.532281 | FM23: 42 | FN23: =FL23/FM23 -> 0.8936257381 | FO23: =FI23/FN23 -> 21.32801596 | FP23: 50
H24: =IF(I22/F22<0.4,"Heizwassermenge mind. 40% von Nennwassermenge!",0) -> 0 | O24: (bei tR = 20 °C und Nennwasserm.) | Z24: y = qk x = wk | AF24: y = qh x = wh | AN24: 1072190 | AO24: =VLOOKUP(AN24,Duesenkaesten_Groeßen_Matrix,3) -> 52 | AP24: =CONCATENATE(""&AO24&" Düsen ") -> 52 Düsen | AQ24: 46.038504 | AR24: 19.90665033 | AS24: 50 | AT24: =CONCATENATE(""&AS24&" Pa ") -> 50 Pa | AU24: 1.403428775 | BZ24: Akustik_Vpr4 | CA24: Akustik_P4 | CB24: Akustik_Lwa4 | CY24: 1072187 | CZ24: 28.7 | DA24: 150 | DB24: =(1.2*DW24/3600*1004.5*(DR24-ED24)-DI24/3600*4180*DL24)/(1004.5*(DQ24-DR24)/3600)/DW24 -> 2.197061115 | DC24: =(((4180/1004.5)*(DI24/(1.2*DW24))*(DL24))+(ED24-DR24))/(DR24-DQ24) -> 1.830884263 | DD24: =(1.2*DW24/3600*1004.5*(DR24-ED24)-DI24/3600*4180*DL24)/(1.2*1004.5*(DQ24-DR24)/3600)/DW24 -> 1.830884263 | DE24: 2016-08-03 | DI24: 202.019715 | DJ24: 15.98933333 | DK24: 17.75466667 | DL24: -1.765333333 | DM24: -414.0869063 | DN24: 36.34820167 | DO24: 141.876346 | DP24: 2.197354667 | DQ24: 27.382 | DR24: 21.885778 | DW24: 64.566884 | DX24: 27.53 | DY24: 27 | DZ24: 27.61 | EA24: 21.80666667 | EB24: 22.01666667 | EC24: 21.83 | ED24: 30.97666667 | EE24: 29.04 | EI24: =(1.2*DW24/3600*1004.5*(DR24-ED24)-DI24/3600*4180*DL24)/(1004.5*(DQ24-DR24)/3600) -> 141.8573902 | EO24: 16 | EP24: 18 | EQ24: 142 | ER24: 0.3 | ES24: 27.4 | ET24: 40 | EU24: 0.47 | EV24: 0.47 | EW24: 17.18 | EX24: 74.4 | EY24: 202 | EZ24: 0.8 | FA24: 21.1 | FB24: 0 | FC24: =(EQ24*EW24+DW24*ED24)/(EQ24+DW24) -> 21.49244234 | FD24: =-EU24*1000 -> -470 | FE24: =DM24 -> -414.0869063 | FF24: =FE24/FD24 -> 0.8810359709 | FG24: =EU24*1000/(ES24-EO24) -> 41.22807018 | FH24: =FG24/FM24 -> 0.9816207185 | FI24: =DN24 -> 36.34820167 | FJ24: =FI24/FM24 -> 0.865433373 | FK24: =FI24/FG24 -> 0.8816372319 | FL24: =DW24 -> 64.566884 | FM24: 42 | FN24: =FL24/FM24 -> 1.537306762 | FO24: =FI24/FN24 -> 23.64407844 | FP24: 150
AN25: 1072190 | AO25: =VLOOKUP(AN25,Duesenkaesten_Groeßen_Matrix,3) -> 52 | AP25: =CONCATENATE(""&AO25&" Düsen ") -> 52 Düsen | AQ25: 79.798111 | AR25: 38.60197233 | AS25: 150 | AT25: =CONCATENATE(""&AS25&" Pa ") -> 150 Pa | AU25: 1.574171452 | BY25: 60 | BZ25: 93.49321919 | CA25: 156 | CB25: 36.3 | CC25: 41.3 | CD25: M1;2538; Düsen 60 (30 / 30); mit Edelstahlgitter | CY25: 1072187 | CZ25: 28.5 | DA25: 300 | DB25: =(1.2*DW25/3600*1004.5*(DR25-ED25)-DI25/3600*4180*DL25)/(1004.5*(DQ25-DR25)/3600)/DW25 -> 2.340353093 | DC25: =(((4180/1004.5)*(DI25/(1.2*DW25))*(DL25))+(ED25-DR25))/(DR25-DQ25) -> 1.950294244 | DD25: =(1.2*DW25/3600*1004.5*(DR25-ED25)-DI25/3600*4180*DL25)/(1.2*1004.5*(DQ25-DR25)/3600)/DW25 -> 1.950294244 | DE25: 2016-08-03 | DI25: 201.9129747 | DJ25: 15.98566667 | DK25: 18.395 | DL25: -2.409333333 | DM25: -564.8564493 | DN25: 49.78324433 | DO25: 208.8751863 | DP25: 2.340638333 | DQ25: 27.33222233 | DR25: 22.219889 | DW25: 89.238556 | DX25: 27.18333333 | DY25: 27.16 | DZ25: 27.65333333 | EA25: 21.96333333 | EB25: 22.46333333 | EC25: 22.23333333 | ED25: 31.15333333 | EE25: 28.95 | EI25: =(1.2*DW25/3600*1004.5*(DR25-ED25)-DI25/3600*4180*DL25)/(1004.5*(DQ25-DR25)/3600) -> 208.8497306 | EO25: 16 | EP25: 18.7 | EQ25: 209 | ER25: 0.4 | ES25: 27.3 | ET25: 40 | EU25: 0.63 | EV25: 0.63 | EW25: 18.04 | EX25: 70 | EY25: 202 | EZ25: 0.8 | FA25: 21 | FB25: 1 | FC25: =(EQ25*EW25+DW25*ED25)/(EQ25+DW25) -> 21.96375468 | FD25: =-EU25*1000 -> -630 | FE25: =DM25 -> -564.8564493 | FF25: =FE25/FD25 -> 0.8965975386 | FG25: =EU25*1000/(ES25-EO25) -> 55.75221239 | FH25: =FG25/FM25 -> 1.327433628 | FI25: =DN25 -> 49.78324433 | FJ25: =FI25/FM25 -> 1.185315341 | FK25: =FI25/FG25 -> 0.8929375571 | FL25: =DW25 -> 89.238556 | FM25: 42 | FN25: =FL25/FM25 -> 2.124727524 | FO25: =FI25/FN25 -> 23.43041344 | FP25: 300
G26: BG | H26: WT | I26: Verhältnis | J26: korrektur kühlen | K26: korrektur - heizen | Z26: y = | AA26: axn+bx(n-1)+...+nx+m | AF26: y = | AG26: axn+bx(n-1)+...+nx+m | AN26: 1072190 | AO26: =VLOOKUP(AN26,Duesenkaesten_Groeßen_Matrix,3) -> 52 | AP26: =CONCATENATE(""&AO26&" Düsen ") -> 52 Düsen | AQ26: 110.374885 | AR26: 51.937211 | AS26: 300 | AT26: =CONCATENATE(""&AS26&" Pa ") -> 300 Pa | AU26: 1.606350583 | BY26: 60 | BZ26: 114.342701 | CA26: 241 | CB26: 42.3 | CC26: 48 | CD26: M1;2539; Düsen 60 (30 / 30); mit Edelstahlgitter
G27: BG 800 | H27: 820 | I27: =H27/$H$27 -> 1 | J27: =1 -> 1 | K27: =1 -> 1 | Z27: Polynom | AA27: 3 | AB27: Ordnung | AF27: Polynom | AG27: 4 | AH27: Ordnung | AQ27: V_Prim_4_kühlen | AR27: qk_4_kühlen | AS27: dP_4_kühlen | BY27: 60 | BZ27: 115.2798326 | CA27: 240 | CB27: 42.3 | CC27: 45.4 | CD27: M1;2540; Düsen 60 (30 / 30); mit Edelstahlgitter | CY27: 1072190 | CZ27: 28.7 | DA27: 50 | DB27: =(1.2*DW27/3600*1004.5*(DR27-ED27)-DI27/3600*4180*DL27)/(1004.5*(DQ27-DR27)/3600)/DW27 -> 1.684114529 | DC27: =(((4180/1004.5)*(DI27/(1.2*DW27))*(DL27))+(ED27-DR27))/(DR27-DQ27) -> 1.403428775 | DD27: =(1.2*DW27/3600*1004.5*(DR27-ED27)-DI27/3600*4180*DL27)/(1.2*1004.5*(DQ27-DR27)/3600)/DW27 -> 1.403428775 | DE27: 2016-08-03 | DI27: 202.0863747 | DJ27: 15.97533333 | DK27: 17.016 | DL27: -1.040666667 | DM27: -244.1910097 | DN27: 19.90665033 | DO27: 77.51354833 | DP27: 1.683668 | DQ27: 28.24200033 | DR27: 22.651667 | DW27: 46.038504 | DX27: 28.45 | DY27: 28.14333333 | DZ27: 28.13 | EA27: 22.63666667 | EB27: 22.36 | EC27: 22.96 | ED27: 30.64666667 | EE27: 29.03666667 | EI27: =(1.2*DW27/3600*1004.5*(DR27-ED27)-DI27/3600*4180*DL27)/(1004.5*(DQ27-DR27)/3600) -> 77.5341135 | EL27: 240 | EN27: S | EO27: 16 | EP27: 17.3 | EQ27: 77 | ER27: 0.2 | ES27: 28.2 | ET27: 40 | EU27: 0.3 | EV27: 0.3 | EW27: 16.38 | EX27: 82.1 | EY27: 202 | EZ27: 0.8 | FA27: 21.1 | FB27: 0 | FC27: =(EQ27*EW27+DW27*ED27)/(EQ27+DW27) -> 21.7182963 | FD27: =-EU27*1000 -> -300 | FE27: =DM27 -> -244.1910097 | FF27: =FE27/FD27 -> 0.8139700322 | FG27: =EU27*1000/(ES27-EO27) -> 24.59016393 | FH27: =FG27/FM27 -> 0.472887768 | FI27: =DN27 -> 19.90665033 | FJ27: =FI27/FM27 -> 0.3828201987 | FK27: =FI27/FG27 -> 0.8095371136 | FL27: =DW27 -> 46.038504 | FM27: 52 | FN27: =FL27/FM27 -> 0.8853558462 | FO27: =FI27/FN27 -> 22.48434956 | FP27: 50
G28: BG 1000 | H28: 1020 | I28: =H28/$H$27 -> 1.243902439 | J28: =Druckverlust_Wasser!G4 -> 1.170275085 | K28: =Druckverlust_Wasser!H4 -> 1.160440361 | O28: =175*I29 -> 125.9146341 | Z28: a = | AA28: b = | AB28: c = | AC28: d = | AD28: m = | AE28: R2 = | AF28: a = | AG28: b = | AH28: c = | AI28: d = | AJ28: e = | AK28: R2 = | AM28: Keine Messungen -> Extrapolierte Werte (mit höherer Düsenzahl maximale Leistung aus Diagramm) | AN28: 1072193 | AO28: 60 | AP28: =CONCATENATE(""&AO28&" Düsen ") -> 60 Düsen | AQ28: =AQ60 -> 55.320572 | AR28: =-0.00566*60^2 + 0.68029*60 -> 20.4414 | AS28: 50 | AT28: =CONCATENATE(""&AS28&" Pa ") -> 50 Pa | BY28: 60 | BZ28: 133.6537843 | CA28: 328 | CB28: 46.7 | CC28: 48.9 | CD28: M1;2541; Düsen 60 (30 / 30); mit Edelstahlgitter | CY28: 1072190 | CZ28: 28.7 | DA28: 150 | DB28: =(1.2*DW28/3600*1004.5*(DR28-ED28)-DI28/3600*4180*DL28)/(1004.5*(DQ28-DR28)/3600)/DW28 -> 1.889005742 | DC28: =(((4180/1004.5)*(DI28/(1.2*DW28))*(DL28))+(ED28-DR28))/(DR28-DQ28) -> 1.574171452 | DD28: =(1.2*DW28/3600*1004.5*(DR28-ED28)-DI28/3600*4180*DL28)/(1.2*1004.5*(DQ28-DR28)/3600)/DW28 -> 1.574171452 | DE28: 2016-08-03 | DI28: 202.1124377 | DJ28: 15.972 | DK28: 17.90133333 | DL28: -1.929333333 | DM28: -452.7665397 | DN28: 38.60197233 | DO28: 150.727441 | DP28: 1.888859667 | DQ28: 27.701 | DR28: 22.472222 | DW28: 79.798111 | DX28: 27.9 | DY28: 27.51 | DZ28: 27.69 | EA28: 22.22 | EB28: 22.18666667 | EC28: 23.01 | ED28: 31.18666667 | EE28: 29.03 | EI28: =(1.2*DW28/3600*1004.5*(DR28-ED28)-DI28/3600*4180*DL28)/(1004.5*(DQ28-DR28)/3600) -> 150.7390899 | EO28: 16 | EP28: 18.2 | EQ28: 151 | ER28: 0.3 | ES28: 27.7 | ET28: 40 | EU28: 0.51 | EV28: 0.51 | EW28: 17.33 | EX28: 74.9 | EY28: 202 | EZ28: 0.8 | FA28: 21.1 | FB28: 1 | FC28: =(EQ28*EW28+DW28*ED28)/(EQ28+DW28) -> 22.12092233 | FD28: =-EU28*1000 -> -510 | FE28: =DM28 -> -452.7665397 | FF28: =FE28/FD28 -> 0.8877775288 | FG28: =EU28*1000/(ES28-EO28) -> 43.58974359 | FH28: =FG28/FM28 -> 0.8382642998 | FI28: =DN28 -> 38.60197233 | FJ28: =FI28/FM28 -> 0.7423456218 | FK28: =FI28/FG28 -> 0.8855746594 | FL28: =DW28 -> 79.798111 | FM28: 52 | FN28: =FL28/FM28 -> 1.534579058 | FO28: =FI28/FN28 -> 25.15476289 | FP28: 150
G29: BG 630 | H29: 590 | I29: =H29/$H$27 -> 0.7195121951 | J29: =Druckverlust_Wasser!G5 -> 0.8023054378 | K29: =Druckverlust_Wasser!H5 -> 0.8194232081 | Z29: 4 | AA29: 3 | AB29: 2 | AC29: 1 | AD29: 0 | AF29: 4 | AG29: 3 | AH29: 2 | AI29: 1 | AN29: 1072193 | AO29: 60 | AP29: =CONCATENATE(""&AO29&" Düsen ") -> 60 Düsen | AQ29: =AQ62 -> 95.011117 | AR29: =-0.01105*60^2 + 1.31977*60 -> 39.4062 | AS29: 150 | AT29: =CONCATENATE(""&AS29&" Pa ") -> 150 Pa | CY29: 1072190 | CZ29: 28.6 | DA29: 300 | DB29: =(1.2*DW29/3600*1004.5*(DR29-ED29)-DI29/3600*4180*DL29)/(1004.5*(DQ29-DR29)/3600)/DW29 -> 1.9276207 | DC29: =(((4180/1004.5)*(DI29/(1.2*DW29))*(DL29))+(ED29-DR29))/(DR29-DQ29) -> 1.606350583 | DD29: =(1.2*DW29/3600*1004.5*(DR29-ED29)-DI29/3600*4180*DL29)/(1.2*1004.5*(DQ29-DR29)/3600)/DW29 -> 1.606350583 | DE29: 2016-08-03 | DI29: 202.4224537 | DJ29: 15.989 | DK29: 18.58766667 | DL29: -2.598666667 | DM29: -610.7664487 | DN29: 51.937211 | DO29: 212.753901 | DP29: 1.927557 | DQ29: 27.74866667 | DR29: 22.77288867 | DW29: 110.374885 | DX29: 27.83333333 | DY29: 27.63333333 | DZ29: 27.77666667 | EA29: 22.33666667 | EB29: 22.56666667 | EC29: 23.41666667 | ED29: 31.30666667 | EE29: 28.95333333 | EI29: =(1.2*DW29/3600*1004.5*(DR29-ED29)-DI29/3600*4180*DL29)/(1004.5*(DQ29-DR29)/3600) -> 212.7609131 | EO29: 16 | EP29: 18.8 | EQ29: 213 | ER29: 0.4 | ES29: 27.7 | ET29: 40 | EU29: 0.66 | EV29: 0.66 | EW29: 18.15 | EX29: 71.1 | EY29: 202 | EZ29: 0.8 | FA29: 21.1 | FB29: 1 | FC29: =(EQ29*EW29+DW29*ED29)/(EQ29+DW29) -> 22.64065663 | FD29: =-EU29*1000 -> -660 | FE29: =DM29 -> -610.7664487 | FF29: =FE29/FD29 -> 0.9254037101 | FG29: =EU29*1000/(ES29-EO29) -> 56.41025641 | FH29: =FG29/FM29 -> 1.084812623 | FI29: =DN29 -> 51.937211 | FJ29: =FI29/FM29 -> 0.9987925192 | FK29: =FI29/FG29 -> 0.9207051041 | FL29: =DW29 -> 110.374885 | FM29: 52 | FN29: =FL29/FM29 -> 2.122593942 | FO29: =FI29/FN29 -> 24.46874551 | FP29: 300
Y30: Exponent | Z30: 0 | AA30: =LINEST(WM_Roh_qk,WM_Roh_wk^{0,1,2,3},0,0) -> 9.110256216e-07 | AB30: -0.0006642636947 | AC30: 0.1645222726 | AD30: 16.63976216 | AE30: =RSQ(WM_Roh_qk,TREND(WM_Roh_qk,WM_Roh_wk^{0,1,2,3},WM_Roh_wk^{0,1,2,3})) -> 0.9968576676 | AF30: =LINEST(WM_Roh_qh,WM_Roh_wh^{0,1,2,3,4},0,0) -> -1.849318093e-08 | AG30: 1.35611032e-05 | AH30: -0.003747095357 | AI30: 0.4846233809 | AJ30: 7.03406956 | AK30: =RSQ(WM_Roh_qh,TREND(WM_Roh_qh,WM_Roh_wh^{0,1,2,3,4},WM_Roh_wh^{0,1,2,3,4})) -> 0.9998530946 | AN30: 1072193 | AO30: 60 | AP30: =CONCATENATE(""&AO30&" Düsen ") -> 60 Düsen | AQ30: =AQ65 -> 131.214168 | AR30: =-0.01944*52^2 + 2.00777*52 -> 51.83828 | AS30: 300 | AT30: =CONCATENATE(""&AS30&" Pa ") -> 300 Pa
G31: Vprimär BG800 | AF31: dp_H an HFBsf angepasst | AG31: BG | AH31: a | AI31: b
G32: =F11/I29 -> 83.38983051 | AF32: 2025-01-13 | AG32: 630 | AH32: 1.3 | AI32: 1.802884 | AJ32: (1,3/(100^1,802884))*m_w^1,802884
G33: Korrekturfaktor für BG 630 - Kühlen | AG33: 800 | AH33: 1.6 | AI33: 1.788496 | AJ33: (1,6/(100^1,788496))*m_w^1,788496
G34: 6 | H34: 5 | I34: 4 | J34: 3 | K34: 2 | L34: 1 | M34: 0 | Z34: y = Druck dp [kPa] x = Wassermenge wk | AF34: y = Druck dp [kPa] x = Wassermenge wk | AG34: 1000 | AH34: 1.8 | AI34: 1.769775 | AJ34: (1,8/(100^1,769775))*m_w^1,769775
G35: =LINEST('Eurocoil_kühlen_26°C (2)'!$Y$12:$Y$79,'Eurocoil_kühlen_26°C (2)'!$S$12:$S$79^{0,1,2,3,4,5,6},0,0) -> -3.701343158e-13 | H35: 1.073498042e-10 | I35: -1.223813104e-08 | J35: 7.061458457e-07 | K35: -1.888464777e-05 | L35: 0.0006811930773 | M35: 0.6937383475 | N35: 0
Z36: y = | AA36: mxb | AF36: y = | AG36: mxb
AA37: m | AB37: b | AC37: R2 | AG37: m | AH37: b | AI37: R2
G38: Korrekturfaktor für BG 630 - Heizen | AA38: =INDEX(LOGEST(WM_kPa_kühlen,LN(WM_Roh_wk),,TRUE),1,2) -> 0.001683972432 | AB38: =LN(INDEX(LOGEST(WM_kPa_kühlen,LN(WM_Roh_wk),,TRUE),1,1)) -> 1.83379456 | AC38: =INDEX(LOGEST(WM_kPa_kühlen,LN(WM_Roh_wk),,TRUE),3,1) -> 0.999807125 | AG38: =INDEX(LOGEST(WM_kPa_heizen,LN(WM_Roh_wh),,TRUE),1,2) -> 0.0001357446827 | AH38: =LN(INDEX(LOGEST(WM_kPa_heizen,LN(WM_Roh_wh),,TRUE),1,1)) -> 2.137913613 | AI38: =INDEX(LOGEST(WM_kPa_heizen,LN(WM_Roh_wh),,TRUE),3,1) -> 0.9965449264
G39: 6 | H39: 5 | I39: 4 | J39: 3 | K39: 2 | L39: 1 | M39: 0 | FC39: =2/7 -> 0.2857142857
G40: =LINEST(Eurocoil_heizen_26°C!X12:X89,Eurocoil_heizen_26°C!R12:R89^{0,1,2,3,4,5,6},0,0) -> -4.035184452e-09 | H40: 6.359516172e-07 | I40: -3.889095543e-05 | J40: 0.00116749228 | K40: -0.0179772488 | L40: 0.1378629806 | M40: 0.2674013067
Z41: y = qk in % x = wk in % | AF41: y = qh in % x = wh in %
H42: BG 800 | I42: BG 630 | J42: BG1000
H43: Düsen | I43: Düsen | J43: Düsen | Z43: y = | AA43: axn+bx(n-1)+...+nx+m | AF43: y = | AG43: axn+bx(n-1)+...+nx+m
G44: S | H44: 33 | I44: =H44*$I$29 -> 23.74390244 | J44: =H44*$I$28 -> 41.04878049 | Z44: Polynom | AA44: 3 | AB44: Ordnung | AF44: Polynom | AG44: 4 | AH44: Ordnung
G45: M | H45: 42 | I45: =H45*$I$29 -> 30.2195122 | J45: =H45*$I$28 -> 52.24390244 | Z45: a = | AA45: b = | AB45: c = | AC45: d = | AD45: m = | AE45: R2 = | AF45: a = | AG45: b = | AH45: c = | AI45: d = | AJ45: e = | AK45: R2 = | AN45: Heizen - ohne Schieber, mit Al-Lineargitter (Tabellenblatt: 26-07-2016_Heizen)
G46: L | H46: 52 | I46: =H46*$I$29 -> 37.41463415 | J46: =H46*$I$28 -> 64.68292683 | Z46: 4 | AA46: 3 | AB46: 2 | AC46: 1 | AD46: 0 | AF46: 4 | AG46: 3 | AH46: 2 | AI46: 1 | AN46: 1072193 | AO46: =VLOOKUP(AN46,Duesenkaesten_Groeßen_Matrix,3) -> 60 | AP46: =CONCATENATE(""&AO46&" Düsen ") -> 60 Düsen | AQ46: 0 | AR46: 6.209656333 | AS46: 0 | AT46: =CONCATENATE(""&AS46&" Pa ") -> 0 Pa | BI46: =CONCATENATE(" V_pr = " &ROUND(V_pr,0)&" m³/h") -> V_pr = 83 m³/h | CY46: 1072193 | CZ46: 2.7 | DA46: 0 | DB46: =(1.2*DW46/3600*1004.5*(DR46-EE46)-DI46/3600*4180*DL46)/(1004.5*(DQ46-DR46)/3600)/DW46 ->  | DC46: =(((4180/1004.5)*(DI46/(1.2*DW46))*(DL46))+(EE46-DR46))/(DR46-DQ46) ->  | DD46: =(1.2*DW46/3600*1004.5*(DR46-EE46)-DI46/3600*4180*DL46)/(1.2*1004.5*(DQ46-DR46)/3600)/DW46 ->  | DE46: 2016-07-26 | DI46: 91.72246867 | DJ46: 64.02066667 | DK46: 62.377 | DL46: 1.643666667 | DM46: 175.0529543 | DN46: 6.209656333 | DO46: -244.7613133 | DQ46: 35.829889 | DR46: 33.26566633 | DV46: 0 | DW46: 0 | DX46: 32.95666667 | DY46: 34.76 | DZ46: 39.76666667 | EA46: 32.10333333 | EB46: 33.73666667 | EC46: 33.96 | ED46: 28.80666667 | EE46: 28.96666667
G47: XL | H47: 60 | I47: =H47*$I$29 -> 43.17073171 | J47: =H47*$I$28 -> 74.63414634 | Z47: 0 | AA47: =LINEST(WM_Roh_qk_Proz,WM_Roh_wk_Proz^{0,1,2,3},0,0) -> 0.240837861 | AB47: -0.8780205713 | AC47: 1.087323761 | AD47: 0.5498589488 | AE47: =RSQ(WM_Roh_qk,TREND(WM_Roh_qk,WM_Roh_wk^{0,1,2,3},WM_Roh_wk^{0,1,2,3})) -> 0.9968576676 | AF47: =LINEST(WM_Roh_qh_Proz,WM_Roh_wh_Proz^{0,1,2,3,4},0,0) -> -0.06218862758 | AG47: 0.4560310092 | AH47: -1.260068338 | AI47: 1.629685183 | AJ47: 0.2365407735 | AK47: =RSQ(WM_Roh_qh,TREND(WM_Roh_qh,WM_Roh_wh^{0,1,2,3,4},WM_Roh_wh^{0,1,2,3,4})) -> 0.9998530946 | AQ47: V_Prim_1_heizen | AR47: qk_1_heizen | AS47: dP_1_heizen | CY47: heizen ohne Schieber
AN48: 1072184 | AO48: =VLOOKUP(AN48,Duesenkaesten_Groeßen_Matrix,3) -> 33 | AP48: =CONCATENATE(""&AO48&" Düsen ") -> 33 Düsen | AQ48: 28.575463 | AR48: 15.996539 | AS48: 50 | AT48: =CONCATENATE(""&AS48&" Pa ") -> 50 Pa | AU48: 2.834569034 | CY48: 1072184 | CZ48: 2.7 | DA48: 50 | DB48: =(1.2*DW48/3600*1004.5*(DR48-EE48)-DI48/3600*4180*DL48)/(1004.5*(DQ48-DR48)/3600)/DW48 -> 3.401482841 | DC48: =(((4180/1004.5)*(DI48/(1.2*DW48))*(DL48))+(EE48-DR48))/(DR48-DQ48) -> 2.834569034 | DD48: =(1.2*DW48/3600*1004.5*(DR48-EE48)-DI48/3600*4180*DL48)/(1.2*1004.5*(DQ48-DR48)/3600)/DW48 -> 2.834569034 | DE48: 2016-08-02 | DI48: 98.86940967 | DJ48: 64.07166667 | DK48: 59.28833333 | DL48: 4.783333333 | DM48: 549.1236947 | DN48: 15.996539 | DO48: 94.06413767 | DP48: 3.29178 | DQ48: 29.744 | DR48: 44.81055567 | DV48: 3 | DW48: 28.575463 | DX48: 29.39666667 | DY48: 29.84333333 | DZ48: 29.99 | EA48: 44.85 | EB48: 44.8 | EC48: 44.78333333 | ED48: 28.75 | EE48: 30.12666667
H49: BG 800 | I49: BG 630 | K49: BG1000 | AN49: 1072184 | AO49: =VLOOKUP(AN49,Duesenkaesten_Groeßen_Matrix,3) -> 33 | AP49: =CONCATENATE(""&AO49&" Düsen ") -> 33 Düsen | AQ49: 50.647323 | AR49: 25.75661367 | AS49: 150 | AT49: =CONCATENATE(""&AS49&" Pa ") -> 150 Pa | AU49: 2.751047355 | CB49: =CONCATENATE(" V_pr = " &V_pr&" m³/h") -> V_pr = 83,3898305084746 m³/h | CY49: 1072184 | CZ49: 2.8 | DA49: 150 | DB49: =(1.2*DW49/3600*1004.5*(DR49-EE49)-DI49/3600*4180*DL49)/(1004.5*(DQ49-DR49)/3600)/DW49 -> 3.301256826 | DC49: =(((4180/1004.5)*(DI49/(1.2*DW49))*(DL49))+(EE49-DR49))/(DR49-DQ49) -> 2.751047355 | DD49: =(1.2*DW49/3600*1004.5*(DR49-EE49)-DI49/3600*4180*DL49)/(1.2*1004.5*(DQ49-DR49)/3600)/DW49 -> 2.751047355 | DE49: 2016-08-02 | DI49: 98.62381867 | DJ49: 64.06966667 | DK49: 56.21166667 | DL49: 7.858 | DM49: 899.8423203 | DN49: 25.75661367 | DO49: 159.433694 | DP49: 3.147919667 | DQ49: 29.13333333 | DR49: 43.63644433 | DV49: 9.9 | DW49: 50.647323 | DX49: 28.96333333 | DY49: 29.16333333 | DZ49: 29.27 | EA49: 43.08 | EB49: 43.73 | EC49: 44.10333333 | ED49: 28.62 | EE49: 30.47333333
H50: Düsen | I50: Düsen | K50: Düsen | AN50: 1072184 | AO50: =VLOOKUP(AN50,Duesenkaesten_Groeßen_Matrix,3) -> 33 | AP50: =CONCATENATE(""&AO50&" Düsen ") -> 33 Düsen | AQ50: 70.439526 | AR50: 32.367387 | AS50: 300 | AT50: =CONCATENATE(""&AS50&" Pa ") -> 300 Pa | AU50: 2.797125774 | CY50: 1072184 | CZ50: 2.8 | DA50: 300 | DB50: =(1.2*DW50/3600*1004.5*(DR50-EE50)-DI50/3600*4180*DL50)/(1004.5*(DQ50-DR50)/3600)/DW50 -> 3.356550928 | DC50: =(((4180/1004.5)*(DI50/(1.2*DW50))*(DL50))+(EE50-DR50))/(DR50-DQ50) -> 2.797125774 | DD50: =(1.2*DW50/3600*1004.5*(DR50-EE50)-DI50/3600*4180*DL50)/(1.2*1004.5*(DQ50-DR50)/3600)/DW50 -> 2.797125774 | DE50: 2016-07-29 | DI50: 100.4918683 | DJ50: 64.16833333 | DK50: 54.66 | DL50: 9.508333333 | DM50: 1109.453227 | DN50: 32.367387 | DO50: 223.7503207 | DP50: 3.176488333 | DQ50: 29.89144433 | DR50: 42.79722233 | DV50: 19.5 | DW50: 70.439526 | DX50: 29.75333333 | DY50: 29.91333333 | DZ50: 30.00333333 | EA50: 42.65666667 | EB50: 42.62666667 | EC50: 43.10666667 | ED50: 29.92 | EE50: 31.85666667
G51: S | H51: =I51/$I$29 -> 33.3559322 | I51: 24 | J51: =K51/$I$28 -> 32.96078431 | K51: 41 | AQ51: V_Prim_2_heizen | AR51: qk_2_heizen | AS51: dP_2_heizen
G52: M | H52: =I52/$I$29 -> 41.69491525 | I52: 30 | J52: =K52/$I$28 -> 41.80392157 | K52: 52 | AN52: 1072187 | AO52: =VLOOKUP(AN52,Duesenkaesten_Groeßen_Matrix,3) -> 42 | AP52: =CONCATENATE(""&AO52&" Düsen ") -> 42 Düsen | AQ52: 36.810483 | AR52: 17.10841633 | AS52: 50 | AT52: =CONCATENATE(""&AS52&" Pa ") -> 50 Pa | AU52: 2.562673461 | CY52: 1072187 | CZ52: 2.8 | DA52: 50 | DB52: =(1.2*DW52/3600*1004.5*(DR52-EE52)-DI52/3600*4180*DL52)/(1004.5*(DQ52-DR52)/3600)/DW52 -> 3.075208153 | DC52: =(((4180/1004.5)*(DI52/(1.2*DW52))*(DL52))+(EE52-DR52))/(DR52-DQ52) -> 2.562673461 | DD52: =(1.2*DW52/3600*1004.5*(DR52-EE52)-DI52/3600*4180*DL52)/(1.2*1004.5*(DQ52-DR52)/3600)/DW52 -> 2.562673461 | DE52: 2016-07-28 | DI52: 98.363556 | DJ52: 64.11966667 | DK52: 59.058 | DL52: 5.061666667 | DM52: 578.099116 | DN52: 17.10841633 | DO52: 108.4546043 | DP52: 2.946296667 | DQ52: 30.32933333 | DR52: 43.75288867 | DV52: 5.1 | DW52: 36.810483 | DX52: 30.05333333 | DY52: 30.56333333 | DZ52: 30.37333333 | EA52: 42.59666667 | EB52: 43.97666667 | EC52: 44.68333333 | ED52: 29.81 | EE52: 31.25
G53: L | H53: =I53/$I$29 -> 51.42372881 | I53: 37 | J53: =K53/$I$28 -> 52.25490196 | K53: 65 | AN53: 1072187 | AO53: =VLOOKUP(AN53,Duesenkaesten_Groeßen_Matrix,3) -> 42 | AP53: =CONCATENATE(""&AO53&" Düsen ") -> 42 Düsen | AQ53: 64.758817 | AR53: 27.08765767 | AS53: 150 | AT53: =CONCATENATE(""&AS53&" Pa ") -> 150 Pa | AU53: 2.229271269 | CY53: 1072187 | CZ53: 2.8 | DA53: 150 | DB53: =(1.2*DW53/3600*1004.5*(DR53-EE53)-DI53/3600*4180*DL53)/(1004.5*(DQ53-DR53)/3600)/DW53 -> 2.675125522 | DC53: =(((4180/1004.5)*(DI53/(1.2*DW53))*(DL53))+(EE53-DR53))/(DR53-DQ53) -> 2.229271269 | DD53: =(1.2*DW53/3600*1004.5*(DR53-EE53)-DI53/3600*4180*DL53)/(1.2*1004.5*(DQ53-DR53)/3600)/DW53 -> 2.229271269 | DE53: 2016-07-29 | DI53: 100.6666177 | DJ53: 64.14866667 | DK53: 56.24733333 | DL53: 7.901333333 | DM53: 923.5482687 | DN53: 27.08765767 | DO53: 162.1664617 | DP53: 2.504160333 | DQ53: 30.05388867 | DR53: 43.753111 | DV53: 16.4 | DW53: 64.758817 | DX53: 29.85666667 | DY53: 30.19666667 | DZ53: 30.10666667 | EA53: 43.59333333 | EB53: 43.78333333 | EC53: 43.87666667 | ED53: 29.75 | EE53: 31.7
G54: XL | H54: =I54/$I$29 -> 59.76271186 | I54: 43 | J54: =K54/$I$28 -> 60.29411765 | K54: 75 | AN54: 1072187 | AO54: =VLOOKUP(AN54,Duesenkaesten_Groeßen_Matrix,3) -> 42 | AP54: =CONCATENATE(""&AO54&" Düsen ") -> 42 Düsen | AQ54: 89.78586 | AR54: 33.20227767 | AS54: 300 | AT54: =CONCATENATE(""&AS54&" Pa ") -> 300 Pa | AU54: 2.202405059 | CY54: 1072187 | CZ54: 2.8 | DA54: 300 | DB54: =(1.2*DW54/3600*1004.5*(DR54-EE54)-DI54/3600*4180*DL54)/(1004.5*(DQ54-DR54)/3600)/DW54 -> 2.642886071 | DC54: =(((4180/1004.5)*(DI54/(1.2*DW54))*(DL54))+(EE54-DR54))/(DR54-DQ54) -> 2.202405059 | DD54: =(1.2*DW54/3600*1004.5*(DR54-EE54)-DI54/3600*4180*DL54)/(1.2*1004.5*(DQ54-DR54)/3600)/DW54 -> 2.202405059 | DE54: 2016-07-29 | DI54: 100.7336717 | DJ54: 64.173 | DK54: 54.46833333 | DL54: 9.704666667 | DM54: 1135.085416 | DN54: 33.20227767 | DO54: 218.9786323 | DP54: 2.438899 | DQ54: 29.986 | DR54: 42.43411133 | DV54: 32.1 | DW54: 89.78586 | DX54: 29.86 | DY54: 30.07333333 | DZ54: 30.02333333 | EA54: 42.43666667 | EB54: 42.52666667 | EC54: 42.34 | ED54: 29.97666667 | EE54: 32.09333333
AQ55: V_Prim_3_heizen | AR55: qk_3_heizen | AS55: dP_3_heizen
AN56: 1072190 | AO56: =VLOOKUP(AN56,Duesenkaesten_Groeßen_Matrix,3) -> 52 | AP56: =CONCATENATE(""&AO56&" Düsen ") -> 52 Düsen | AQ56: 45.974066 | AR56: 16.95267867 | AS56: 50 | AT56: =CONCATENATE(""&AS56&" Pa ") -> 50 Pa | AU56: 2.031702081 | CY56: 1072190 | CZ56: 2.8 | DA56: 50 | DB56: =(1.2*DW56/3600*1004.5*(DR56-EE56)-DI56/3600*4180*DL56)/(1004.5*(DQ56-DR56)/3600)/DW56 -> 2.438042498 | DC56: =(((4180/1004.5)*(DI56/(1.2*DW56))*(DL56))+(EE56-DR56))/(DR56-DQ56) -> 2.031702081 | DD56: =(1.2*DW56/3600*1004.5*(DR56-EE56)-DI56/3600*4180*DL56)/(1.2*1004.5*(DQ56-DR56)/3600)/DW56 -> 2.031702081 | DE56: 2016-07-28 | DI56: 101.657721 | DJ56: 64.13033333 | DK56: 59.219 | DL56: 4.911333333 | DM56: 579.7137767 | DN56: 16.95267867 | DO56: 103.9942243 | DP56: 2.262019333 | DQ56: 29.93422233 | DR56: 42.76366667 | DV56: 8.1 | DW56: 45.974066 | DX56: 29.52666667 | DY56: 30.29666667 | DZ56: 29.98 | EA56: 42.18666667 | EB56: 42.80666667 | EC56: 43.29666667 | ED56: 29.28666667 | EE56: 31.17
AN57: 1072190 | AO57: =VLOOKUP(AN57,Duesenkaesten_Groeßen_Matrix,3) -> 52 | AP57: =CONCATENATE(""&AO57&" Düsen ") -> 52 Düsen | AQ57: 79.841606 | AR57: 27.45002367 | AS57: 150 | AT57: =CONCATENATE(""&AS57&" Pa ") -> 150 Pa | AU57: 1.934416394 | CY57: 1072190 | CZ57: 2.9 | DA57: 150 | DB57: =(1.2*DW57/3600*1004.5*(DR57-EE57)-DI57/3600*4180*DL57)/(1004.5*(DQ57-DR57)/3600)/DW57 -> 2.321299673 | DC57: =(((4180/1004.5)*(DI57/(1.2*DW57))*(DL57))+(EE57-DR57))/(DR57-DQ57) -> 1.934416394 | DD57: =(1.2*DW57/3600*1004.5*(DR57-EE57)-DI57/3600*4180*DL57)/(1.2*1004.5*(DQ57-DR57)/3600)/DW57 -> 1.934416394 | DE57: 2016-07-28 | DI57: 102.206977 | DJ57: 64.14533333 | DK57: 56.14666667 | DL57: 7.998666667 | DM57: 949.2309957 | DN57: 27.45002367 | DO57: 167.151776 | DP57: 2.093542333 | DQ57: 29.565 | DR57: 42.40866667 | DV57: 25.3 | DW57: 79.841606 | DX57: 29.30666667 | DY57: 29.81333333 | DZ57: 29.57333333 | EA57: 42.41666667 | EB57: 42.38333333 | EC57: 42.43 | ED57: 29.31 | EE57: 31.74666667
AN58: 1072190 | AO58: =VLOOKUP(AN58,Duesenkaesten_Groeßen_Matrix,3) -> 52 | AP58: =CONCATENATE(""&AO58&" Düsen ") -> 52 Düsen | AQ58: 110.625279 | AR58: 33.56089933 | AS58: 300 | AT58: =CONCATENATE(""&AS58&" Pa ") -> 300 Pa | AU58: 1.94285892 | CY58: 1072190 | CZ58: 2.9 | DA58: 300 | DB58: =(1.2*DW58/3600*1004.5*(DR58-EE58)-DI58/3600*4180*DL58)/(1004.5*(DQ58-DR58)/3600)/DW58 -> 2.331430705 | DC58: =(((4180/1004.5)*(DI58/(1.2*DW58))*(DL58))+(EE58-DR58))/(DR58-DQ58) -> 1.94285892 | DD58: =(1.2*DW58/3600*1004.5*(DR58-EE58)-DI58/3600*4180*DL58)/(1.2*1004.5*(DQ58-DR58)/3600)/DW58 -> 1.94285892 | DE58: 2016-07-28 | DI58: 101.7980237 | DJ58: 64.15933333 | DK58: 54.28233333 | DL58: 9.877 | DM58: 1167.44905 | DN58: 33.56089933 | DO58: 228.427901 | DP58: 2.064889 | DQ58: 29.37333333 | DR58: 40.96899967 | DV58: 49.36666667 | DW58: 110.625279 | DX58: 29.17 | DY58: 29.58666667 | DZ58: 29.36666667 | EA58: 41.1 | EB58: 40.98666667 | EC58: 40.82333333 | ED58: 29.40333333 | EE58: 31.98
A59: ã LTG Aktiengesellschaft - Letzte Änderung: 01.03.2009 | AQ59: V_Prim_4_heizen | AR59: qk_4_heizen | AS59: dP_4_heizen
A60: Angaben zu Toleranzen sowie weitere Spezifikationen sind der aktuellen Bauteilmappe der LTG Aktiengesellschaft zu entnehmen. | AN60: 1072193 | AO60: =VLOOKUP(AN60,Duesenkaesten_Groeßen_Matrix,3) -> 60 | AP60: =CONCATENATE(""&AO60&" Düsen ") -> 60 Düsen | AQ60: 55.320572 | AR60: 19.562878 | AS60: 50 | AT60: =CONCATENATE(""&AS60&" Pa ") -> 50 Pa | AU60: 1.928847566 | CY60: 1072193 | CZ60: 2.7 | DA60: 50 | DB60: =(1.2*DW60/3600*1004.5*(DR60-EE60)-DI60/3600*4180*DL60)/(1004.5*(DQ60-DR60)/3600)/DW60 -> 2.314617079 | DC60: =(((4180/1004.5)*(DI60/(1.2*DW60))*(DL60))+(EE60-DR60))/(DR60-DQ60) -> 1.928847566 | DD60: =(1.2*DW60/3600*1004.5*(DR60-EE60)-DI60/3600*4180*DL60)/(1.2*1004.5*(DQ60-DR60)/3600)/DW60 -> 1.928847566 | DE60: 2016-07-26 | DI60: 99.86139 | DJ60: 64.13133333 | DK60: 58.30433333 | DL60: 5.827 | DM60: 675.6377557 | DN60: 19.562878 | DO60: 117.636526 | DP60: 2.126451667 | DQ60: 29.59455567 | DR60: 42.581778 | DV60: 11.9 | DW60: 55.320572 | DX60: 29.35666667 | DY60: 29.58333333 | DZ60: 29.84666667 | EA60: 41.55 | EB60: 43.62 | EC60: 42.57666667 | ED60: 29.12 | EE60: 31.15666667
A61: Eine Fehlerfreiheit des Programms kann nicht zugesichert werden. Im Zweifel gelten die technischen Daten der aktuellen Bauteilmappe der LTG Aktiengesellschaft. | AN61: 1072193 | AO61: 60 | AP61: 60 Düsen | AQ61: 78.391761 | AR61: 26.10824833 | AS61: 100 | AT61: 100 Pa | AU61: 1.831032245 | CY61: 1072193 | CZ61: 2.7 | DA61: 100 | DB61: 2.197238694 | DC61: 1.831032245 | DD61: 1.831032245 | DE61: 2016-07-26 | DI61: 103.399964 | DJ61: 64.17266667 | DK61: 56.611 | DL61: 7.561666667 | DM61: 907.8466197 | DN61: 26.10824833 | DO61: 155.7286487 | DP61: 1.986543667 | DQ61: 29.400222 | DR61: 42.327222 | DV61: 24.4 | DW61: 78.391761 | DX61: 29.19666667 | DY61: 29.39 | DZ61: 29.61666667 | EA61: 41.68333333 | EB61: 43.03666667 | EC61: 42.26333333 | ED61: 29.14 | EE61: 31.41
A62: Aus Programmierfehlern entstandener Schaden geht nicht zu Lasten der LTG Aktiengesellschaft. Technische Änderungen im Rahmen der Weiterentwicklung vorbehalten. | AN62: 1072193 | AO62: 60 | AP62: 60 Düsen | AQ62: 95.011117 | AR62: 29.71773233 | AS62: 150 | AT62: 150 Pa | AU62: 1.817834873 | CY62: 1072193 | CZ62: 2.9 | DA62: 150 | DB62: 2.181401847 | DC62: 1.817834873 | DD62: 1.817834873 | DE62: 2016-07-26 | DI62: 101.525135 | DJ62: 64.16066667 | DK62: 55.387 | DL62: 8.773666667 | DM62: 1034.229 | DN62: 29.71773233 | DO62: 184.925786 | DP62: 1.946359333 | DQ62: 29.358889 | DR62: 41.752 | DV62: 36.2 | DW62: 95.011117 | DX62: 29.19333333 | DY62: 29.34333333 | DZ62: 29.54 | EA62: 41.35666667 | EB62: 42.27666667 | EC62: 41.62333333 | ED62: 29.34333333 | EE62: 31.77
AN63: 1072193 | AO63: 60 | AP63: 60 Düsen | AQ63: 109.007487 | AR63: 32.06143033 | AS63: 200 | AT63: 200 Pa | AU63: 1.842652945 | CY63: 1072193 | CZ63: 2.8 | DA63: 200 | DB63: 2.211183534 | DC63: 1.842652945 | DD63: 1.842652945 | DE63: 2016-07-27 | DI63: 99.354398 | DJ63: 64.106 | DK63: 54.37766667 | DL63: 9.728333333 | DM63: 1122.289954 | DN63: 32.06143033 | DO63: 220.6435673 | DP63: 2.024114 | DQ63: 29.10166667 | DR63: 40.39844433 | DV63: 47.9 | DW63: 109.007487 | DX63: 28.93333333 | DY63: 29.28666667 | DZ63: 29.08333333 | EA63: 40.08333333 | EB63: 40.82333333 | EC63: 40.29 | ED63: 28.7 | EE63: 30.46666667
AN64: 1072193 | AO64: 60 | AP64: 60 Düsen | AQ64: 120.494177 | AR64: 33.95253333 | AS64: 250 | AT64: 250 Pa | AU64: 1.800551391 | CY64: 1072193 | CZ64: 2.9 | DA64: 250 | DB64: 2.160661669 | DC64: 1.800551391 | DD64: 1.800551391 | DE64: 2016-07-27 | DI64: 102.0338797 | DJ64: 64.156 | DK64: 54.139 | DL64: 10.017 | DM64: 1186.735493 | DN64: 33.95253333 | DO64: 226.5553697 | DP64: 1.880218333 | DQ64: 29.20311133 | DR64: 40.54422233 | DV64: 58.8 | DW64: 120.494177 | DX64: 29.09333333 | DY64: 29.36333333 | DZ64: 29.15 | EA64: 40.27333333 | EB64: 40.94666667 | EC64: 40.41333333 | ED64: 28.9 | EE64: 31.55
AN65: 1072193 | AO65: 60 | AP65: 60 Düsen | AQ65: 131.214168 | AR65: 35.38994267 | AS65: 300 | AT65: 300 Pa | AU65: 1.790667691 | CY65: 1072193 | CZ65: 2.9 | DA65: 300 | DB65: 2.148801229 | DC65: 1.790667691 | DD65: 1.790667691 | DE65: 2016-07-27 | DI65: 101.8647367 | DJ65: 64.16633333 | DK65: 53.69366667 | DL65: 10.47266667 | DM65: 1238.663088 | DN65: 35.38994267 | DO65: 239.778681 | DP65: 1.827384 | DQ65: 29.16577767 | DR65: 40.278111 | DV65: 70 | DW65: 131.214168 | DX65: 29.09666667 | DY65: 29.29333333 | DZ65: 29.10333333 | EA65: 40.07 | EB65: 40.65 | EC65: 40.11666667 | ED65: 29.00666667 | EE65: 31.98333333
H71: BG 630 | I71: BG1000 | J71: BG 800
H72: Düsen | I72: Düsen | J72: Düsen
G73: S | H73: 24 | I73: 41 | J73: 33
G74: M | H74: 30 | I74: 52 | J74: 42
G75: L | H75: 37 | I75: 65 | J75: 52
G76: XL | H76: 43 | I76: 75 | J76: 60

Sheet HFB 800_neu (hidden)
A1: Tel. +49 (0)711 8201-212 | F1: Fax: -720 | H1: Email: | I1: Raumluft@LTG-AG.de | Y1: \\file\Daten\E\cer\Projekte\Produktpflege Kleinaufträge\2016\2016-03-17 HFB - Optimierung\Messungen\16-08-25 Kalorik HFB_Nullseriengerät_800_4L_Rohdaten und Auswertung.xlsx | AM1: \\file\Daten\E\cer\Projekte\Produktpflege Kleinaufträge\2016\2016-03-17 HFB - Optimierung\Messungen\16-08-25 Kalorik HFB_Nullseriengerät_800_4L_Rohdaten und Auswertung.xlsx | BX1: \\file\Daten\E\cer\Projekte\Produktpflege Kleinaufträge\2016\2016-03-17 HFB - Optimierung\Messungen\Akustik\2016-08-26 Akustik_HFB_800_4.xlsm
A2: LTG Auslegungstabelle HFB - Induktionsgerät für den Einbau in Doppelböden | Q2: LTG Aktiengesellschaft | Y2: Wassermengenvariation | AM2: Kalorische Leistung BG800 - ohne Schieber, mit Al-Lineargitter | AW2: y(f=Vpr) = Druck | BD2: y (Vpr)= spez. Leistung | BK2: y(f=Vpr) = Druck | BR2: y (Vpr)= spez. Leistung | BX2: Akustik BG800 - ohne Schieber | CC2: Abhängig von V_Primär | CX2: Für Auslegetool nicht verwendet
AS3: gesamte_Matrix_Düsenkasten | CA3: Akustik_Matrix | DE3: =COLUMN(AT6) -> 46 | DF3: =ROW() -> 3 | DG3: =ADDRESS(DF3,DE3,4) -> AT3
A4: Kühlfall: | I4: Heizfall: | AP4: offene_Düsen_kühlen | AT4: y = Druck x = V_Primär | AU4: y = | AV4: mxb | AW4: Druck_abhängig_von_Vpr_kühlen | AX4: y = Druck x = Anzahl Düsen | AY4: y = | AZ4: mxb | BA4: y = q_k x = V_Prim | BB4: y = | BC4: axn+bx(n-1)+...+nx+m | BD4: Leistung_abhängig_von_Vpr_kühlen | BE4: y = q_k x = Düsenanzahl | BF4: y = | BG4: axn+bx(n-1)+...+nx+m | BH4: y = Druck x = V_Primär | BI4: y = | BJ4: mxb | BK4: Druck_abhängig_von_Vpr_heizen | BL4: y = Druck x = Anzahl Düsen | BM4: y = | BN4: mxb | BO4: y = q_k x = V_Prim | BP4: y = | BQ4: axn+bx(n-1)+...+nx+m | BR4: Leistung_abhängig_von_Vpr_heizen | BS4: y = q_k x = Düsenanzahl | BT4: y = | BU4: axn+bx(n-1)+...+nx+m | BV4: Für andere Düsenzahlberechnung | BY4: Akustik_AnzahlDüsen | BZ4: y = L_wa x = V_Pr | CA4: y = | CB4: mLN(x) + b | CC4: LWAabhaengigvonVpr | CD4: y = L_wa (ab. Von Vpr) x = Anzahl Düse | CE4: y = mLN(x) + b | CF4: y = Druck x = V_Primär | CG4: y = | CH4: mxb | CI4: Akustik_Druck_P_abhaengigvonVpr | CJ4: y = Druck x = Anzahl Düse | CK4: y = | CL4: mxb | CM4: Für andere Düsenzahlberechnung | CZ4: =INDIRECT(DG3) -> 0 | DA4: =LEFT(ADDRESS(DF3,DE3,4), 2) -> AT | DB4: =INDIRECT(DA4 & DF3) -> 0 | DE4: =COLUMN(AT7) -> 46 | DF4: =ROW() -> 4 | DG4: =ADDRESS(DF4,DE4,4) -> AT4
B5: Ansaugtemperatur: | F5: =HFB!K6 -> 26 | G5: °C | J5: Ansaugtemperatur: | K5: =HFB!P6 -> 20 | L5: °C | M5: Projekt: | Y5: Tabellenblatt: 08-08-2016_kühlen Wassermengvar | AE5: Tabellenblatt: 26-07-2016_Heizen_WasserMengVar | AM5: Größe | AN5: Zeichnungsnummer | AO5: Düsenkasten | AP5: offene Düsen | AQ5: 1. Reihe | AR5: 2. Reihe | AS5: Kasten | AT5: m | AU5: b | AV5: R2 | AW5: Druck [Pa] | AX5: m | AY5: b | AZ5: R2 | BA5: a*x2 | BB5: b*x | BC5: m | BD5: spez. Leistung [W/K] | BE5: a*x2 | BF5: b*x | BG5: m | BH5: m | BI5: b | BJ5: R2 | BK5: Druck [Pa] | BL5: m | BM5: b | BN5: R2 | BO5: a*x2 | BP5: b*x | BQ5: m | BR5: spez. Leistung [W/K] | BS5: a*x2 | BT5: b*x | BU5: m | BV5: offene Düsen | BX5: Größe | BY5: offene Düsen | BZ5: m | CA5: b | CB5: R2 | CC5: y(Vpr) = ?? dB(A) | CD5: m | CE5: b | CF5: m | CG5: b | CH5: R2 | CI5: y(Vpr) = ?? Pa | CJ5: m | CK5: b | CL5: R2 | CM5: offene Düsen | CZ5: =INDIRECT(DG4) -> y = Druck x = V_Primär | DA5: =LEFT(ADDRESS(DF4,DE4,4), 2) -> AT | DB5: =INDIRECT(DA5 & DF4) -> y = Druck x = V_Primär | DE5: =COLUMN(AT8) -> 46 | DF5: =ROW() -> 5 | DG5: =ADDRESS(DF5,DE5,4) -> AT5
B6: Primärlufttemperatur: | F6: =HFB!K7 -> 18 | G6: °C | J6: Primärlufttemperatur: | K6: =HFB!P7 -> 18 | L6: °C | AM6: S | AN6: 1072184 | AO6: 1 | AP6: 33 | AQ6: 30 | AR6: 3 | AS6: K4 | AT6: =INDEX(LOGEST(dP_1_kühlen,LN(V_Prim_1_kühlen),,TRUE),1,2) -> 0.06416449711 | AU6: =LN(INDEX(LOGEST(dP_1_kühlen,LN(V_Prim_1_kühlen),,TRUE),1,1)) -> 1.983311905 | AV6: =INDEX(LOGEST(dP_1_kühlen,LN(V_Prim_1_kühlen),,TRUE),3,1) -> 0.9996395894 | AW6: =AT6*V_pr^AU6 -> 381.6944301 | AX6: =INDEX(LOGEST(Druck_abhängig_von_Vpr_kühlen,LN(offene_Düsen_kühlen),,TRUE),1,2) -> 619674.7055 | AY6: =LN(INDEX(LOGEST(Druck_abhängig_von_Vpr_kühlen,LN(offene_Düsen_kühlen),,TRUE),1,1)) -> -2.109351124 | AZ6: =INDEX(LOGEST(Druck_abhängig_von_Vpr_kühlen,LN(offene_Düsen_kühlen),,TRUE),3,1) -> 0.9972625761 | BA6: =LINEST(qk_1_kühlen,V_Prim_1_kühlen^{0,1,2},0,0) -> 6.243210492e-05 | BB6: 0.694024678 | BC6: -3.921314452 | BD6: =BA6*V_pr^2+BB6*V_pr+BC6 -> 52.00022526 | BE6: =LINEST(Leistung_abhängig_von_Vpr_kühlen,offene_Düsen_kühlen^{0,1,2},0,0) -> 0.001648848976 | BF6: -0.8520830064 | BG6: 78.21161527 | BH6: =INDEX(LOGEST(dP_1_heizen,LN(V_Prim_1_heizen),,TRUE),1,2) -> 0.06519442469 | BI6: =LN(INDEX(LOGEST(dP_1_heizen,LN(V_Prim_1_heizen),,TRUE),1,1)) -> 1.978599559 | BJ6: =INDEX(LOGEST(dP_1_heizen,LN(V_Prim_1_heizen),,TRUE),3,1) -> 0.9994230889 | BK6: =BH6*V_pr^BI6 -> 379.8949024 | BL6: =INDEX(LOGEST(Druck_abhängig_von_Vpr_heizen,LN(offene_Düsen_kühlen),,TRUE),1,2) -> 610482.3379 | BM6: =LN(INDEX(LOGEST(Druck_abhängig_von_Vpr_heizen,LN(offene_Düsen_kühlen),,TRUE),1,1)) -> -2.106976682 | BN6: =INDEX(LOGEST(Druck_abhängig_von_Vpr_heizen,LN(offene_Düsen_kühlen),,TRUE),3,1) -> 0.9970949445 | BO6: =LINEST(qk_1_heizen,V_Prim_1_heizen^{0,1,2},0,0) -> -0.002584231179 | BP6: 0.6469253803 | BQ6: -0.3794809887 | BR6: =BO6*V_pr^2+BP6*V_pr+BQ6 -> 34.83546989 | BS6: =LINEST(Leistung_abhängig_von_Vpr_heizen,offene_Düsen_kühlen^{0,1,2},0,0) -> 0.007053046594 | BT6: -0.9770436493 | BU6: 59.48179662 | BV6: =H29 -> 33 | BX6: S | BY6: 33 | BZ6: =LINEST(Akustik_Lwa1,LN(Akustik_Vpr1),TRUE,FALSE) -> 30.94826518 | CA6: -90.44826622 | CC6: =BZ6*LN(V_pr)+CA6 -> 45.16785612 | CD6: =LINEST(LWAabhaengigvonVpr,LN(Akustik_AnzahlDüsen),TRUE,FALSE) -> -22.51458472 | CE6: 123.8502278 | CF6: =INDEX(LOGEST(Akustik_P1,LN(Akustik_Vpr1),,TRUE),1,2) -> 0.03050372738 | CG6: =LN(INDEX(LOGEST(Akustik_P1,LN(Akustik_Vpr1),,TRUE),1,1)) -> 2.1636178 | CH6: =INDEX(LOGEST(Akustik_P1,LN(Akustik_Vpr1),,TRUE),3,1) -> 0.9999588777 | CI6: =CF6*V_pr^CG6 -> 399.863977 | CJ6: =INDEX(LOGEST(Akustik_Druck_P_abhaengigvonVpr,LN(Akustik_AnzahlDüsen),,TRUE),1,2) -> 659259.8492 | CK6: =LN(INDEX(LOGEST(Akustik_Druck_P_abhaengigvonVpr,LN(Akustik_AnzahlDüsen),,TRUE),1,1)) -> -2.119358805 | CL6: =INDEX(LOGEST(Akustik_Druck_P_abhaengigvonVpr,LN(Akustik_AnzahlDüsen),,TRUE),3,1) -> 0.9998658627 | CM6: =H29 -> 33 | DA6: =LEFT(ADDRESS(DF5,DE5,4), 2) -> AT | DB6: =INDIRECT(DA6 & DF5) -> m | DE6: =COLUMN(BA9) -> 53 | DF6: =ROW() -> 6 | DG6: =ADDRESS(DF6,DE6,4) -> BA6
B7: Kühlwasservorlauf: | F7: =HFB!K8 -> 16 | G7: °C | J7: Heizwasservorlauf: | K7: =HFB!P8 -> 60 | L7: °C | M7: Datum: | Y7: kühlen - Wassermengenvariation - Messung vom 08.08.2016, mit Al-Lineargitter | AE7: Wassermengenvariation - Messung vom 27.07.2016 - Mit Al-Lineargitter | AM7: M | AN7: 1072187 | AO7: 2 | AP7: 42 | AQ7: 30 | AR7: 12 | AS7: K3 | AT7: =INDEX(LOGEST(dP_2_kühlen,LN(V_Prim_2_kühlen),,TRUE),1,2) -> 0.02795950547 | AU7: =LN(INDEX(LOGEST(dP_2_kühlen,LN(V_Prim_2_kühlen),,TRUE),1,1)) -> 2.064228963 | AV7: =INDEX(LOGEST(dP_2_kühlen,LN(V_Prim_2_kühlen),,TRUE),3,1) -> 0.9997758098 | AW7: =AT7*V_pr^AU7 -> 237.1062249 | AX7: =INDEX(LOGEST(Druck_abhängig_von_Vpr_kühlen,LN(offene_Düsen_kühlen),,TRUE),1,2) -> 619674.7055 | AY7: =LN(INDEX(LOGEST(Druck_abhängig_von_Vpr_kühlen,LN(offene_Düsen_kühlen),,TRUE),1,1)) -> -2.109351124 | AZ7: =INDEX(LOGEST(Druck_abhängig_von_Vpr_kühlen,LN(offene_Düsen_kühlen),,TRUE),3,1) -> 0.9972625761 | BA7: =LINEST(qk_2_kühlen,V_Prim_2_kühlen^{0,1,2},0,0) -> -0.001836489669 | BB7: 0.8270154933 | BC7: -9.393502097 | BD7: =BA7*V_pr^2+BB7*V_pr+BC7 -> 45.01420349 | BE7: =LINEST(Leistung_abhängig_von_Vpr_kühlen,offene_Düsen_kühlen^{0,1,2},0,0) -> 0.001648848976 | BF7: -0.8520830064 | BG7: 78.21161527 | BH7: =INDEX(LOGEST(dP_2_heizen,LN(V_Prim_2_heizen),,TRUE),1,2) -> 0.03626793834 | BI7: =LN(INDEX(LOGEST(dP_2_heizen,LN(V_Prim_2_heizen),,TRUE),1,1)) -> 2.002374491 | BJ7: =INDEX(LOGEST(dP_2_heizen,LN(V_Prim_2_heizen),,TRUE),3,1) -> 0.9994677987 | BK7: =BH7*V_pr^BI7 -> 234.542588 | BL7: =INDEX(LOGEST(Druck_abhängig_von_Vpr_heizen,LN(offene_Düsen_kühlen),,TRUE),1,2) -> 610482.3379 | BM7: =LN(INDEX(LOGEST(Druck_abhängig_von_Vpr_heizen,LN(offene_Düsen_kühlen),,TRUE),1,1)) -> -2.106976682 | BN7: =INDEX(LOGEST(Druck_abhängig_von_Vpr_heizen,LN(offene_Düsen_kühlen),,TRUE),3,1) -> 0.9970949445 | BO7: =LINEST(qk_2_heizen,V_Prim_2_heizen^{0,1,2},0,0) -> -0.002128155037 | BP7: 0.5732155464 | BQ7: -1.108249906 | BR7: =BO7*V_pr^2+BP7*V_pr+BQ7 -> 31.12880157 | BS7: =LINEST(Leistung_abhängig_von_Vpr_heizen,offene_Düsen_kühlen^{0,1,2},0,0) -> 0.007053046594 | BT7: -0.9770436493 | BU7: 59.48179662 | BV7: =H30 -> 42 | BX7: M | BY7: 42 | BZ7: =LINEST(Akustik_Lwa2,LN(Akustik_Vpr2),TRUE,FALSE) -> 29.79313701 | CA7: -90.86797505 | CC7: =BZ7*LN(V_pr)+CA7 -> 39.68634485 | CD7: =LINEST(LWAabhaengigvonVpr,LN(Akustik_AnzahlDüsen),TRUE,FALSE) -> -22.51458472 | CE7: 123.8502278 | CF7: =INDEX(LOGEST(Akustik_P2,LN(Akustik_Vpr2),,TRUE),1,2) -> 0.0250253582 | CG7: =LN(INDEX(LOGEST(Akustik_P2,LN(Akustik_Vpr2),,TRUE),1,1)) -> 2.091327342 | CH7: =INDEX(LOGEST(Akustik_P2,LN(Akustik_Vpr2),,TRUE),3,1) -> 0.9999415691 | CI7: =CF7*V_pr^CG7 -> 238.9815789 | CJ7: =INDEX(LOGEST(Akustik_Druck_P_abhaengigvonVpr,LN(Akustik_AnzahlDüsen),,TRUE),1,2) -> 659259.8492 | CK7: =LN(INDEX(LOGEST(Akustik_Druck_P_abhaengigvonVpr,LN(Akustik_AnzahlDüsen),,TRUE),1,1)) -> -2.119358805 | CL7: =INDEX(LOGEST(Akustik_Druck_P_abhaengigvonVpr,LN(Akustik_AnzahlDüsen),,TRUE),3,1) -> 0.9998658627 | CM7: =H30 -> 42
B8: projektierte Leistung: | F8: =HFB!K9 -> 0 | G8: W | J8: projektierte Leistung: | K8: =HFB!P9 -> 0 | L8: W | M8: Bearbeiter: | V8: Kühlen | W8: Heizen | Y8: Düsenkasten Stellung 3 (27 oben offen, unten 0 offen) | AE8: Düsenkasten K1 - 1072193 | AM8: L | AN8: 1072190 | AO8: 3 | AP8: 52 | AQ8: 30 | AR8: 22 | AS8: K2 | AT8: =INDEX(LOGEST(dP_3_kühlen,LN(V_Prim_3_kühlen),,TRUE),1,2) -> 0.01982224198 | AU8: =LN(INDEX(LOGEST(dP_3_kühlen,LN(V_Prim_3_kühlen),,TRUE),1,1)) -> 2.043644211 | AV8: =INDEX(LOGEST(dP_3_kühlen,LN(V_Prim_3_kühlen),,TRUE),3,1) -> 0.9996767047 | AW8: =AT8*V_pr^AU8 -> 153.6001391 | AX8: =INDEX(LOGEST(Druck_abhängig_von_Vpr_kühlen,LN(offene_Düsen_kühlen),,TRUE),1,2) -> 619674.7055 | AY8: =LN(INDEX(LOGEST(Druck_abhängig_von_Vpr_kühlen,LN(offene_Düsen_kühlen),,TRUE),1,1)) -> -2.109351124 | AZ8: =INDEX(LOGEST(Druck_abhängig_von_Vpr_kühlen,LN(offene_Düsen_kühlen),,TRUE),3,1) -> 0.9972625761 | BA8: =LINEST(qk_3_kühlen,V_Prim_3_kühlen^{0,1,2},0,0) -> -0.001828742799 | BB8: 0.7839006363 | BC8: -12.30686169 | BD8: =BA8*V_pr^2+BB8*V_pr+BC8 -> 38.7012353 | BE8: =LINEST(Leistung_abhängig_von_Vpr_kühlen,offene_Düsen_kühlen^{0,1,2},0,0) -> 0.001648848976 | BF8: -0.8520830064 | BG8: 78.21161527 | BH8: =INDEX(LOGEST(dP_3_heizen,LN(V_Prim_3_heizen),,TRUE),1,2) -> 0.02053031936 | BI8: =LN(INDEX(LOGEST(dP_3_heizen,LN(V_Prim_3_heizen),,TRUE),1,1)) -> 2.035267697 | BJ8: =INDEX(LOGEST(dP_3_heizen,LN(V_Prim_3_heizen),,TRUE),3,1) -> 0.9996931822 | BK8: =BH8*V_pr^BI8 -> 153.3533547 | BL8: =INDEX(LOGEST(Druck_abhängig_von_Vpr_heizen,LN(offene_Düsen_kühlen),,TRUE),1,2) -> 610482.3379 | BM8: =LN(INDEX(LOGEST(Druck_abhängig_von_Vpr_heizen,LN(offene_Düsen_kühlen),,TRUE),1,1)) -> -2.106976682 | BN8: =INDEX(LOGEST(Druck_abhängig_von_Vpr_heizen,LN(offene_Düsen_kühlen),,TRUE),3,1) -> 0.9970949445 | BO8: =LINEST(qk_3_heizen,V_Prim_3_heizen^{0,1,2},0,0) -> -0.001723752617 | BP8: 0.5268280755 | BQ8: -3.624401097 | BR8: =BO8*V_pr^2+BP8*V_pr+BQ8 -> 27.48982819 | BS8: =LINEST(Leistung_abhängig_von_Vpr_heizen,offene_Düsen_kühlen^{0,1,2},0,0) -> 0.007053046594 | BT8: -0.9770436493 | BU8: 59.48179662 | BV8: =H31 -> 52 | BX8: L | BY8: 52 | BZ8: =LINEST(Akustik_Lwa3,LN(Akustik_Vpr3),TRUE,FALSE) -> 29.87019339 | CA8: -96.1402398 | CC8: =BZ8*LN(V_pr)+CA8 -> 34.75174324 | CD8: =LINEST(LWAabhaengigvonVpr,LN(Akustik_AnzahlDüsen),TRUE,FALSE) -> -22.51458472 | CE8: 123.8502278 | CF8: =INDEX(LOGEST(Akustik_P3,LN(Akustik_Vpr3),,TRUE),1,2) -> 0.01464897707 | CG8: =LN(INDEX(LOGEST(Akustik_P3,LN(Akustik_Vpr3),,TRUE),1,1)) -> 2.1085725 | CH8: =INDEX(LOGEST(Akustik_P3,LN(Akustik_Vpr3),,TRUE),3,1) -> 0.9999659914 | CI8: =CF8*V_pr^CG8 -> 150.8726475 | CJ8: =INDEX(LOGEST(Akustik_Druck_P_abhaengigvonVpr,LN(Akustik_AnzahlDüsen),,TRUE),1,2) -> 659259.8492 | CK8: =LN(INDEX(LOGEST(Akustik_Druck_P_abhaengigvonVpr,LN(Akustik_AnzahlDüsen),,TRUE),1,1)) -> -2.119358805 | CL8: =INDEX(LOGEST(Akustik_Druck_P_abhaengigvonVpr,LN(Akustik_AnzahlDüsen),,TRUE),3,1) -> 0.9998658627 | CM8: =H31 -> 52 | EN8: TWI | EO8: TWO | EP8: QA | EQ8: VA | ER8: TAI | ES8: UR | ET8: PT | EU8: PS | EV8: TAO | EW8: UR | EX8: QW | EY8: VW | EZ8: DPW | FA8: DPA | FB8: T_Misch | FC8: Q_Eurocoil | FD8: Q_KSP | FE8: Korrekturwert | FF8: q_Eurocoil | FG8: q / Düse | FH8: q_KSP | FI8: q_KSP/Düse | FJ8: Korrekturwert | FK8: V_Prim_KSP | FL8: Düsenanzahl | FM8: V_Prim/Düsenanzahl | FO8: Druck
B9: Raumtemperatur: | F9: =HFB!K10 -> 26 | G9: °C | J9: Raumtemperatur: | K9: =HFB!P10 -> 20 | L9: °C | V9: Wassermenge Korrekturfaktor | W9: Wasser-menge in % | AM9: XL | AN9: 1072193 | AO9: 4 | AP9: 60 | AQ9: 30 | AR9: 30 | AS9: K1 | AT9: =INDEX(LOGEST(dP_4_kühlen,LN(V_Prim_4_kühlen),,TRUE),1,2) -> 0.01226218207 | AU9: =LN(INDEX(LOGEST(dP_4_kühlen,LN(V_Prim_4_kühlen),,TRUE),1,1)) -> 2.070084039 | AV9: =INDEX(LOGEST(dP_4_kühlen,LN(V_Prim_4_kühlen),,TRUE),3,1) -> 0.9997809454 | AW9: =AT9*V_pr^AU9 -> 106.6900621 | AX9: =INDEX(LOGEST(Druck_abhängig_von_Vpr_kühlen,LN(offene_Düsen_kühlen),,TRUE),1,2) -> 619674.7055 | AY9: =LN(INDEX(LOGEST(Druck_abhängig_von_Vpr_kühlen,LN(offene_Düsen_kühlen),,TRUE),1,1)) -> -2.109351124 | AZ9: =INDEX(LOGEST(Druck_abhängig_von_Vpr_kühlen,LN(offene_Düsen_kühlen),,TRUE),3,1) -> 0.9972625761 | BA9: =LINEST(qk_4_kühlen,V_Prim_4_kühlen^{0,1,2},0,0) -> -0.00177113608 | BB9: 0.7440744465 | BC9: -15.3008999 | BD9: =BA9*V_pr^2+BB9*V_pr+BC9 -> 32.8897849 | BE9: =LINEST(Leistung_abhängig_von_Vpr_kühlen,offene_Düsen_kühlen^{0,1,2},0,0) -> 0.001648848976 | BF9: -0.8520830064 | BG9: 78.21161527 | BH9: =INDEX(LOGEST(dP_4_heizen,LN(V_Prim_4_heizen),,TRUE),1,2) -> 0.01183358644 | BI9: =LN(INDEX(LOGEST(dP_4_heizen,LN(V_Prim_4_heizen),,TRUE),1,1)) -> 2.076766455 | BJ9: =INDEX(LOGEST(dP_4_heizen,LN(V_Prim_4_heizen),,TRUE),3,1) -> 0.9996132879 | BK9: =BH9*V_pr^BI9 -> 106.0204965 | BL9: =INDEX(LOGEST(Druck_abhängig_von_Vpr_heizen,LN(offene_Düsen_kühlen),,TRUE),1,2) -> 610482.3379 | BM9: =LN(INDEX(LOGEST(Druck_abhängig_von_Vpr_heizen,LN(offene_Düsen_kühlen),,TRUE),1,1)) -> -2.106976682 | BN9: =INDEX(LOGEST(Druck_abhängig_von_Vpr_heizen,LN(offene_Düsen_kühlen),,TRUE),3,1) -> 0.9970949445 | BO9: =LINEST(qk_4_heizen,V_Prim_4_heizen^{0,1,2},0,0) -> -0.001286962775 | BP9: 0.4465470589 | BQ9: -1.136530873 | BR9: =BO9*V_pr^2+BP9*V_pr+BQ9 -> 26.35067208 | BS9: =LINEST(Leistung_abhängig_von_Vpr_heizen,offene_Düsen_kühlen^{0,1,2},0,0) -> 0.007053046594 | BT9: -0.9770436493 | BU9: 59.48179662 | BV9: =H32 -> 60 | BX9: XL | BY9: 60 | BZ9: =LINEST(Akustik_Lwa4,LN(Akustik_Vpr4),TRUE,FALSE) -> 29.09636007 | CA9: -95.72363188 | CC9: =BZ9*LN(V_pr)+CA9 -> 31.77739293 | CD9: =LINEST(LWAabhaengigvonVpr,LN(Akustik_AnzahlDüsen),TRUE,FALSE) -> -22.51458472 | CE9: 123.8502278 | CF9: =INDEX(LOGEST(Akustik_P4,LN(Akustik_Vpr4),,TRUE),1,2) -> 0.01241352925 | CG9: =LN(INDEX(LOGEST(Akustik_P4,LN(Akustik_Vpr4),,TRUE),1,1)) -> 2.080591655 | CH9: =INDEX(LOGEST(Akustik_P4,LN(Akustik_Vpr4),,TRUE),3,1) -> 0.9990849373 | CI9: =CF9*V_pr^CG9 -> 113.0963056 | CJ9: =INDEX(LOGEST(Akustik_Druck_P_abhaengigvonVpr,LN(Akustik_AnzahlDüsen),,TRUE),1,2) -> 659259.8492 | CK9: =LN(INDEX(LOGEST(Akustik_Druck_P_abhaengigvonVpr,LN(Akustik_AnzahlDüsen),,TRUE),1,1)) -> -2.119358805 | CL9: =INDEX(LOGEST(Akustik_Druck_P_abhaengigvonVpr,LN(Akustik_AnzahlDüsen),,TRUE),3,1) -> 0.9998658627 | CM9: =H32 -> 60 | CX9: Düsenstellung | CY9: Dp - Wasserseitig [kPa] | CZ9: Dp - Düsenkasten [Pa] | DA9: i (-) kontroller - Stand Labview | DB9: i (-) korrigiert | DC9: i (-) - Thomas | DD9: Date | DE9: Time | DF9: Name | DG9: Projekt | DH9: Wassermenge [kg/h] | DI9: T Wasser Vorlauf [°C] | DJ9: T Wasser Rücklauf [°C] | DK9: T Wasser Spreizung [°C] | DL9: Q Sek [W] | DM9: q Sek [W/K] | DN9: V Sek [m³/h] | DO9: i [-] | DP9: T Ansaug mean [°C] | DQ9: T Ausblas mean [°C] | DR9: T WT in [°C] | DS9: T WT out [°C] | DT9: Mess-strecke | DU9: Wirkdruck | DV9: V Prim [m³/h] | DW9: T Ansaug 1 | DX9: T Ansaug 2 | DY9: T Ansaug 3 | DZ9: T Ausblas 1 | EA9: T Ausblas 2 | EB9: T Ausblas 3 | EC9: T Primärluft | ED9: T Halle | EF9: Q wasser | EG9: qwasser | EH9: Vsek | EI9: Vsek_Hallraum / Vsek_Berechnet | EN9: °C | EO9: °C | EP9: m3/h | EQ9: m/s | ER9: °C | ES9: % | ET9: kW | EU9: kW | EV9: °C | EW9: % | EX9: l/h | EY9: m/s | EZ9: kPa | FA9: Pa
V10: kühlen_Korrekturfaktor_Wasser | W10: heizen_Korrekturfaktor_Wasser | Y10: Dp - Düsenkasten = 150 Pa | AE10: Dp - Düsenkasten = 150 Pa | AM10: 1 | AN10: 2 | AO10: 3 | AP10: 4 | AQ10: 5 | AR10: 6 | AS10: 7 | AT10: 8 | AU10: 9 | AV10: 10 | AW10: 11 | AX10: 12 | AY10: 13 | AZ10: 14 | BA10: 15 | BB10: 16 | BC10: 17 | BD10: 18 | BE10: 19 | BF10: 20 | BG10: 21 | BH10: 22 | BI10: 23 | BJ10: 24 | BK10: 25 | BL10: 26 | BM10: 27 | BN10: 28 | BO10: 29 | BP10: 30 | BQ10: 31 | BR10: 32 | BS10: 33 | BT10: 34 | BU10: 35 | BV10: 36 | BX10: 1 | BY10: 2 | BZ10: 3 | CA10: 4 | CB10: 5 | CC10: 6 | CD10: 7 | CE10: 8 | CF10: 9 | CG10: 10 | CH10: 11 | CI10: 12 | CJ10: 13 | CK10: 14 | CL10: 15 | CM10: 16
B11: Primärvolumenstrom | F11: =HFB!F30 -> 80 | G11: m³/h | V11: =$I$21/$F$21 -> 1 | W11: =$I$22/$F$22 -> 1 | Y11: Wassermenge | Z11: spez. Leistung | AA11: Kühlleistung in % der Nennleistung | AB11: Wassermenge w in % der Nennwassermenge (200 kg/h) | AC11: wasserseit. Druckverlust - kühlen | AE11: Wassermenge | AF11: spez. Leistung | AG11: Kühlleistung in % der Nennleistung | AH11: Wassermenge w in % der Nennwassermenge (200 kg/h) | AI11: wasserseit. Druckverlust - kühlen | AM11: Zeichnungs- nummer | AN11: Düsenanzahl | AO11: Düsenanzahl | AP11: V Prim [m³/h] | AQ11: q Sek [W/K] | AR11: Dp - Düsenkasten [Pa] | AS11: Dp - Düsenkasten [Pa] | AT11: i (-) korrigiert | BX11: Düsen [-] | BY11: Volumenstrom [m³/h] | BZ11: Druck im Düsenkasten [Pa] | CA11: Lwa (Hallraum) | CB11: Lwlin (Hallraum) | CC11: Diagramm bezeichnung
Y12: [kg/h] | Z12: [W/K] | AA12: [-] | AB12: [-] | AC12: [kPa] | AE12: [kg/h] | AF12: [W/K] | AG12: [-] | AH12: [-] | AI12: [kPa] | BY12: Akustik_Vpr1 | BZ12: Akustik_P1 | CA12: Akustik_Lwa1 | CX12: kühlen ohne Schieber
A13: Baugröße 800 | X13: Name des Bereichs | Y13: WM_Roh_wk | Z13: WM_Roh_qk | AA13: WM_Roh_qk_Proz | AB13: WM_Roh_wk_Proz | AC13: WM_kPa_kühlen | AE13: WM_Roh_wh | AF13: WM_Roh_qh | AG13: WM_Roh_qh_Proz | AH13: WM_Roh_wh_Proz | AI13: WM_kPa_heizen | AM13: Messwerte | BX13: 33 | BY13: 59.43358217 | BZ13: 210 | CA13: 36 | CB13: 41 | CC13: M7;2554; Düsen 33 (30 / 3); mit Edelstahlgitter | HP13: Koordinatensystem y | HR13: Koordinatensystem Hilfslinien
A14: Düsen- kasten | B14: VP [m³/h] | C14: dp - kühlen [Pa] | D14: dp - heizen [Pa] | E14: dp - Akustik [Pa] | F14: dp [Pa] | G14: LWA [dB(A)] | H14: LA18 [dB(A)] | I14: QPK [W] | J14: QSK1) [W] | K14: QKges [W] | L14: QPH [W] | M14: QSH [W] | N14: QHges [W] | O14: tKWRL [°C] | P14: tWWRL [°C] | T14: qSK [W/K] | U14: qSH [W/K] | V14: Leist. in % bei versch. Wasserm. | W14: Leist. in % bei versch. Wasserm. | Y14: 75.524436 | Z14: 25.621321 | AA14: =Z14/Z$21 -> 0.8466534858 | AB14: =Y14/Y$21 -> 0.37762218 | AC14: 4.6 | AE14: 23.17932333 | AF14: 16.40583933 | AG14: =AF14/AF$21 -> 0.5516934249 | AH14: =AE14/AE$21 -> 0.2317932333 | AI14: 0.1 | AM14: Kühlen - ohne Schieber, mit Al-Lineargitter (Tabellenblatt: 03-08-2016_kühlen ohne Schieber) | BX14: 33 | BY14: 70.29549129 | BZ14: 303 | CA14: 41.1 | CB14: 43.6 | CC14: M7;2555; Düsen 33 (30 / 3); mit Edelstahlgitter | CX14: Mittelwerte Ergebnis - Sortiert | HP14: V | HQ14: Y | HR14: V | HS14: Y
Y15: 112.4647697 | Z15: 28.17968333 | AA15: =Z15/Z$21 -> 0.9311942629 | AB15: =Y15/Y$21 -> 0.5623238483 | AC15: 9.9 | AE15: 69.75128667 | AF15: 26.84882733 | AG15: 0.902868863 | AH15: 0.6975128667 | AI15: 1.4 | AP15: V_Prim_1_kühlen | AQ15: qk_1_kühlen | AR15: dP_1_kühlen | BX15: 33 | BY15: 80.24708722 | BZ15: 402 | CA15: 45.3 | CB15: 46.7 | CC15: M7;2556; Düsen 33 (30 / 3); mit Edelstahlgitter | CX15: 2016-08-08 | HP15: 10 | HQ15: 10 | HR15: 100 | HS15: 10
A16: =HFB!A34 -> S | B16: =IF(OR(F16>300,F16<50),,$F$11) -> 0 | C16: =VLOOKUP(A16,Matrix_Leistung_Düsenkästen,12,0)*VLOOKUP(A16,Matrix_Leistung_Düsenkästen,36,0)^VLOOKUP(A16,Matrix_Leistung_Düsenkästen,13,0) -> 388.226059 | D16: =VLOOKUP(A16,Matrix_Leistung_Düsenkästen,26,0)*VLOOKUP(A16,Matrix_Leistung_Düsenkästen,36,0)^VLOOKUP(A16,Matrix_Leistung_Düsenkästen,27,0) -> 385.6555988 | E16: =VLOOKUP(A16,Akustik_Matrix,13,0)*(VLOOKUP(A16,Akustik_Matrix,16,0))^VLOOKUP(A16,Akustik_Matrix,14,0) -> 398.8234976 | F16: =E16 -> 398.8234976 | G16: =VLOOKUP(A16,Akustik_Matrix,7,0)*LN(VLOOKUP(A16,Akustik_Matrix,16,0))+VLOOKUP(A16,Akustik_Matrix,8,0) -> 45.12781206 | H16: =G16-6.5 -> 38.62781206 | I16: =IF(OR(F16>300,F16<50),"",IFERROR(ROUND(B16*1.2*1004.5*($F$6-$F$9)/3600,-1),0)) ->  | J16: =IF(OR(F16>300,F16<50),"",IF(A16=0,,IFERROR((T16*($F$7-$F$5))*V16,T16))) ->  | K16: =IFERROR((I16+J16),) -> 0 | L16: =IF(OR(F16>300,F16<50),"",IFERROR(ROUND(B16*1.2*1004.5*($K$6-$K$9)/3600,-1),)) ->  | M16: =IF(OR(F16>300,F16<50),"",IF(A16=0,,IFERROR((U16*($K$7-$K$5))*W16,U16))) ->  | N16: =IFERROR((L16+M16),) -> 0 | O16: =IFERROR(IF(J16=0,,$F$7-((J16/(4.2*$I$21/3.6)))),) -> 0 | P16: =IFERROR(IF(M16=0,,($K$7-((M16/(4.2*$I$22/3.6))))),) -> 0 | T16: =VLOOKUP(A16,Matrix_Leistung_Düsenkästen,19,0)*VLOOKUP(A16,Matrix_Leistung_Düsenkästen,36,0)^2+VLOOKUP(A16,Matrix_Leistung_Düsenkästen,20,0)*VLOOKUP(A16,Matrix_Leistung_Düsenkästen,36,0)+VLOOKUP(A16,Matrix_Leistung_Düsenkästen,21,0) -> 51.88847259 | U16: =VLOOKUP(A16,Matrix_Leistung_Düsenkästen,33,0)*VLOOKUP(A16,Matrix_Leistung_Düsenkästen,36,0)^2+VLOOKUP(A16,Matrix_Leistung_Düsenkästen,34,0)*VLOOKUP(A16,Matrix_Leistung_Düsenkästen,36,0)+VLOOKUP(A16,Matrix_Leistung_Düsenkästen,35,0) -> 34.92012394 | V16: =IF($V$11=100,100,$AA$23) -> 1 | W16: =IF($W$11=100,100,$AG$23) -> 1 | Y16: 158.7240233 | Z16: 29.48720067 | AA16: =Z16/Z$21 -> 0.9744010166 | AB16: =Y16/Y$21 -> 0.7936201167 | AC16: 18.4 | AE16: 101.525135 | AF16: 29.71773233 | AG16: 0.999344026 | AH16: 1.01525135 | AI16: 2.9 | AM16: 1072184 | AN16: =VLOOKUP(AM16,Duesenkaesten_Groeßen_Matrix,3) -> 33 | AO16: =CONCATENATE(""&AN16&" Düsen ") -> 33 Düsen | AP16: 28.603288 | AQ16: 15.981152 | AR16: 50 | AS16: =CONCATENATE(""&AR16&" Pa ") -> 50 Pa | AT16: 1.943006135 | BY16: Akustik_Vpr2 | BZ16: Akustik_P2 | CA16: Akustik_Lwa2 | DH16: 5 | DI16: 3 | DK16: 4 | DN16: 1 | DP16: 2 | HP16: 10 | HQ16: 100 | HR16: 100 | HS16: 100
A17: =HFB!A35 -> M | B17: =IF(OR(F17>300,F17<50),,$F$11) -> 80 | C17: =VLOOKUP(A17,Matrix_Leistung_Düsenkästen,12,0)*VLOOKUP(A17,Matrix_Leistung_Düsenkästen,36,0)^VLOOKUP(A17,Matrix_Leistung_Düsenkästen,13,0) -> 233.4323564 | D17: =VLOOKUP(A17,Matrix_Leistung_Düsenkästen,26,0)*VLOOKUP(A17,Matrix_Leistung_Düsenkästen,36,0)^VLOOKUP(A17,Matrix_Leistung_Düsenkästen,27,0) -> 232.0196137 | E17: =VLOOKUP(A17,Akustik_Matrix,13,0)*(VLOOKUP(A17,Akustik_Matrix,16,0))^VLOOKUP(A17,Akustik_Matrix,14,0) -> 239.226315 | F17: =E17 -> 239.226315 | G17: =VLOOKUP(A17,Akustik_Matrix,7,0)*LN(VLOOKUP(A17,Akustik_Matrix,16,0))+VLOOKUP(A17,Akustik_Matrix,8,0) -> 39.6981485 | H17: =G17-6.5 -> 33.1981485 | I17: =IF(OR(F17>300,F17<50),"",IFERROR(ROUND(B17*1.2*1004.5*($F$6-$F$9)/3600,-1),0)) -> -210 | J17: =IF(OR(F17>300,F17<50),"",IF(A17=0,,IFERROR((T17*($F$7-$F$5))*V17,T17))) -> -453.3269859 | K17: =IFERROR((I17+J17),) -> -663.3269859 | L17: =IF(OR(F17>300,F17<50),"",IFERROR(ROUND(B17*1.2*1004.5*($K$6-$K$9)/3600,-1),)) -> -50 | M17: =IF(OR(F17>300,F17<50),"",IF(A17=0,,IFERROR((U17*($K$7-$K$5))*W17,U17))) -> 1235.501502 | N17: =IFERROR((L17+M17),) -> 1185.501502 | O17: =IFERROR(IF(J17=0,,$F$7-((J17/(4.2*$I$21/3.6)))),) -> 17.94282994 | P17: =IFERROR(IF(M17=0,,($K$7-((M17/(4.2*$I$22/3.6))))),) -> 49.40998713 | T17: =VLOOKUP(A17,Matrix_Leistung_Düsenkästen,19,0)*VLOOKUP(A17,Matrix_Leistung_Düsenkästen,36,0)^2+VLOOKUP(A17,Matrix_Leistung_Düsenkästen,20,0)*VLOOKUP(A17,Matrix_Leistung_Düsenkästen,36,0)+VLOOKUP(A17,Matrix_Leistung_Düsenkästen,21,0) -> 45.33269859 | U17: =VLOOKUP(A17,Matrix_Leistung_Düsenkästen,33,0)*VLOOKUP(A17,Matrix_Leistung_Düsenkästen,36,0)^2+VLOOKUP(A17,Matrix_Leistung_Düsenkästen,34,0)*VLOOKUP(A17,Matrix_Leistung_Düsenkästen,36,0)+VLOOKUP(A17,Matrix_Leistung_Düsenkästen,35,0) -> 30.88753754 | V17: =IF($V$11=100,100,$AA$23) -> 1 | W17: =IF($W$11=100,100,$AG$23) -> 1 | Y17: 198.9685353 | Z17: 30.33612633 | AA17: =Z17/Z$21 -> 1.002453664 | AB17: =Y17/Y$21 -> 0.9948426767 | AC17: 27.7 | AE17: 151.7741887 | AF17: 31.959669 | AG17: 1.07473558 | AH17: 1.517741887 | AI17: 6.2 | AM17: 1072184 | AN17: =VLOOKUP(AM17,Duesenkaesten_Groeßen_Matrix,3) -> 33 | AO17: =CONCATENATE(""&AN17&" Düsen ") -> 33 Düsen | AP17: 50.449884 | AQ17: 31.25105167 | AR17: 150 | AS17: =CONCATENATE(""&AR17&" Pa ") -> 150 Pa | AT17: 2.015154504 | BX17: 42 | BY17: 104.5420822 | BZ17: 419 | CA17: 47.7 | CB17: 49 | CC17: M6;2552; Düsen 42 (30 / 12); mit Al-Lineargitter | HP17: 10 | HQ17: 10 | HR17: 100 | HS17: 10
A18: =HFB!A36 -> L | B18: =IF(OR(F18>300,F18<50),,$F$11) -> 80 | C18: =VLOOKUP(A18,Matrix_Leistung_Düsenkästen,12,0)*VLOOKUP(A18,Matrix_Leistung_Düsenkästen,36,0)^VLOOKUP(A18,Matrix_Leistung_Düsenkästen,13,0) -> 148.7682271 | D18: =VLOOKUP(A18,Matrix_Leistung_Düsenkästen,26,0)*VLOOKUP(A18,Matrix_Leistung_Düsenkästen,36,0)^VLOOKUP(A18,Matrix_Leistung_Düsenkästen,27,0) -> 147.9428811 | E18: =VLOOKUP(A18,Akustik_Matrix,13,0)*(VLOOKUP(A18,Akustik_Matrix,16,0))^VLOOKUP(A18,Akustik_Matrix,14,0) -> 152.1352425 | F18: =E18 -> 152.1352425 | G18: =VLOOKUP(A18,Akustik_Matrix,7,0)*LN(VLOOKUP(A18,Akustik_Matrix,16,0))+VLOOKUP(A18,Akustik_Matrix,8,0) -> 34.88961632 | H18: =G18-6.5 -> 28.38961632 | I18: =IF(OR(F18>300,F18<50),"",IFERROR(ROUND(B18*1.2*1004.5*($F$6-$F$9)/3600,-1),0)) -> -210 | J18: =IF(OR(F18>300,F18<50),"",IF(A18=0,,IFERROR((T18*($F$7-$F$5))*V18,T18))) -> -383.6178657 | K18: =IFERROR((I18+J18),) -> -593.6178657 | L18: =IF(OR(F18>300,F18<50),"",IFERROR(ROUND(B18*1.2*1004.5*($K$6-$K$9)/3600,-1),)) -> -50 | M18: =IF(OR(F18>300,F18<50),"",IF(A18=0,,IFERROR((U18*($K$7-$K$5))*W18,U18))) -> 1109.878594 | N18: =IFERROR((L18+M18),) -> 1059.878594 | O18: =IFERROR(IF(J18=0,,$F$7-((J18/(4.2*$I$21/3.6)))),) -> 17.64407657 | P18: =IFERROR(IF(M18=0,,($K$7-((M18/(4.2*$I$22/3.6))))),) -> 50.48675491 | T18: =VLOOKUP(A18,Matrix_Leistung_Düsenkästen,19,0)*VLOOKUP(A18,Matrix_Leistung_Düsenkästen,36,0)^2+VLOOKUP(A18,Matrix_Leistung_Düsenkästen,20,0)*VLOOKUP(A18,Matrix_Leistung_Düsenkästen,36,0)+VLOOKUP(A18,Matrix_Leistung_Düsenkästen,21,0) -> 38.36178657 | U18: =VLOOKUP(A18,Matrix_Leistung_Düsenkästen,33,0)*VLOOKUP(A18,Matrix_Leistung_Düsenkästen,36,0)^2+VLOOKUP(A18,Matrix_Leistung_Düsenkästen,34,0)*VLOOKUP(A18,Matrix_Leistung_Düsenkästen,36,0)+VLOOKUP(A18,Matrix_Leistung_Düsenkästen,35,0) -> 27.74696485 | V18: =IF($V$11=100,100,$AA$23) -> 1 | W18: =IF($W$11=100,100,$AG$23) -> 1 | Y18: 325.3458537 | Z18: 31.22387433 | AA18: =Z18/Z$21 -> 1.03178919 | AB18: =Y18/Y$21 -> 1.626729268 | AC18: 67.5 | AE18: 199.2563427 | AF18: 32.91787767 | AG18: 1.106958096 | AH18: 1.992563427 | AI18: 10.7 | AM18: 1072184 | AN18: =VLOOKUP(AM18,Duesenkaesten_Groeßen_Matrix,3) -> 33 | AO18: =CONCATENATE(""&AN18&" Düsen ") -> 33 Düsen | AP18: 70.412696 | AQ18: 45.25636933 | AR18: 300 | AS18: =CONCATENATE(""&AR18&" Pa ") -> 300 Pa | AT18: 2.219359957 | BX18: 42 | BY18: 89.33314951 | BZ18: 300 | CA18: 42.9 | CB18: 45 | CC18: M6;2553; Düsen 42 (30 / 12); mit Al-Lineargitter | HP18: 20 | HQ18: 10 | HR18: 110 | HS18: 10
A19: =HFB!A37 -> XL | B19: =IF(OR(F19>300,F19<50),,$F$11) -> 80 | C19: =VLOOKUP(A19,Matrix_Leistung_Düsenkästen,12,0)*VLOOKUP(A19,Matrix_Leistung_Düsenkästen,36,0)^VLOOKUP(A19,Matrix_Leistung_Düsenkästen,13,0) -> 110.0065211 | D19: =VLOOKUP(A19,Matrix_Leistung_Düsenkästen,26,0)*VLOOKUP(A19,Matrix_Leistung_Düsenkästen,36,0)^VLOOKUP(A19,Matrix_Leistung_Düsenkästen,27,0) -> 109.4333972 | E19: =VLOOKUP(A19,Akustik_Matrix,13,0)*(VLOOKUP(A19,Akustik_Matrix,16,0))^VLOOKUP(A19,Akustik_Matrix,14,0) -> 112.3352659 | F19: =E19 -> 112.3352659 | G19: =VLOOKUP(A19,Akustik_Matrix,7,0)*LN(VLOOKUP(A19,Akustik_Matrix,16,0))+VLOOKUP(A19,Akustik_Matrix,8,0) -> 31.66776025 | H19: =G19-6.5 -> 25.16776025 | I19: =IF(OR(F19>300,F19<50),"",IFERROR(ROUND(B19*1.2*1004.5*($F$6-$F$9)/3600,-1),0)) -> -210 | J19: =IF(OR(F19>300,F19<50),"",IF(A19=0,,IFERROR((T19*($F$7-$F$5))*V19,T19))) -> -330.224912 | K19: =IFERROR((I19+J19),) -> -540.224912 | L19: =IF(OR(F19>300,F19<50),"",IFERROR(ROUND(B19*1.2*1004.5*($K$6-$K$9)/3600,-1),)) -> -50 | M19: =IF(OR(F19>300,F19<50),"",IF(A19=0,,IFERROR((U19*($K$7-$K$5))*W19,U19))) -> 1050.005816 | N19: =IFERROR((L19+M19),) -> 1000.005816 | O19: =IFERROR(IF(J19=0,,$F$7-((J19/(4.2*$I$21/3.6)))),) -> 17.41524962 | P19: =IFERROR(IF(M19=0,,($K$7-((M19/(4.2*$I$22/3.6))))),) -> 50.99995015 | T19: =VLOOKUP(A19,Matrix_Leistung_Düsenkästen,19,0)*VLOOKUP(A19,Matrix_Leistung_Düsenkästen,36,0)^2+VLOOKUP(A19,Matrix_Leistung_Düsenkästen,20,0)*VLOOKUP(A19,Matrix_Leistung_Düsenkästen,36,0)+VLOOKUP(A19,Matrix_Leistung_Düsenkästen,21,0) -> 33.0224912 | U19: =VLOOKUP(A19,Matrix_Leistung_Düsenkästen,33,0)*VLOOKUP(A19,Matrix_Leistung_Düsenkästen,36,0)^2+VLOOKUP(A19,Matrix_Leistung_Düsenkästen,34,0)*VLOOKUP(A19,Matrix_Leistung_Düsenkästen,36,0)+VLOOKUP(A19,Matrix_Leistung_Düsenkästen,35,0) -> 26.2501454 | V19: =IF($V$11=100,100,$AA$23) -> 1 | W19: =IF($W$11=100,100,$AG$23) -> 1 | AE19: 250.331756 | AF19: 33.65616433 | AG19: 1.131785104 | AH19: 2.50331756 | AI19: 16.7 | AP19: V_Prim_2_kühlen | AQ19: qk_2_kühlen | AR19: dP_2_kühlen | BX19: 42 | BY19: 72.53579932 | BZ19: 195 | CA19: 36.8 | CB19: 40.7 | CC19: M6;; Düsen 42 (30 / 12); mit Al-Lineargitter | CX19: 1072184 | CY19: 27.8 | CZ19: 50 | DA19: =(1.2*DV19/3600*1004.5*(DQ19-EC19)-DH19/3600*4180*DK19)/(1004.5*(DP19-DQ19)/3600)/DV19 -> 2.331607362 | DB19: =(((4180/1004.5)*(DH19/(1.2*DV19))*(DK19))+(EC19-DQ19))/(DQ19-DP19) -> 1.943006135 | DC19: =(1.2*DV19/3600*1004.5*(DQ19-EC19)-DH19/3600*4180*DK19)/(1.2*1004.5*(DP19-DQ19)/3600)/DV19 -> 1.943006135 | DD19: 2016-08-04 | DH19: 198.0668493 | DI19: 15.93366667 | DJ19: 16.742 | DK19: -0.8083333333 | DL19: -185.8981697 | DM19: 15.981152 | DN19: 66.68185467 | DO19: 2.331265333 | DP19: 27.566 | DQ19: 21.49977767 | DV19: 28.603288 | DW19: 27.73333333 | DX19: 27.6 | DY19: 27.36 | DZ19: 22.10333333 | EA19: 21.16333333 | EB19: 21.23333333 | EC19: 29.12333333 | ED19: 27.97333333 | EH19: =(1.2*DV19/3600*1004.5*(DQ19-EC19)-DH19/3600*4180*DK19)/(1004.5*(DP19-DQ19)/3600) -> 66.69163689 | EN19: 15.9 | EO19: 17 | EP19: 67 | EQ19: 0.1 | ER19: 27.6 | ES19: 40 | ET19: 0.25 | EU19: 0.25 | EV19: 16.15 | EW19: 80.4 | EX19: 198 | EY19: 0.8 | EZ19: 20.5 | FA19: 0 | FB19: =(EP19*EV19+DV19*EC19)/(EP19+DV19) -> 20.03145635 | FC19: =-ET19*1000 -> -250 | FD19: =DL19 -> -185.8981697 | FE19: =FD19/FC19 -> 0.7435926787 | FF19: =ET19*1000/(ER19-EN19) -> 21.36752137 | FG19: =FF19/FL19 -> 0.6475006475 | FH19: =DM19 -> 15.981152 | FI19: =FH19/FL19 -> 0.4842773333 | FJ19: =FH19/FF19 -> 0.7479179136 | FK19: =DV19 -> 28.603288 | FL19: 33 | FM19: =FK19/FL19 -> 0.866766303 | FN19: =FH19/FM19 -> 18.43767108 | FO19: 50 | HP19: 20 | HQ19: 100 | HR19: 110 | HS19: 100
Y20: wok | AE20: woh | AM20: 1072187 | AN20: =VLOOKUP(AM20,Duesenkaesten_Groeßen_Matrix,3) -> 42 | AO20: =CONCATENATE(""&AN20&" Düsen ") -> 42 Düsen | AP20: 37.532281 | AQ20: 19.059264 | AR20: 50 | AS20: =CONCATENATE(""&AR20&" Pa ") -> 50 Pa | AT20: 1.794433259 | BY20: Akustik_Vpr3 | BZ20: Akustik_P3 | CA20: Akustik_Lwa3 | CX20: 1072184 | CY20: 27.8 | CZ20: 150 | DA20: =(1.2*DV20/3600*1004.5*(DQ20-EC20)-DH20/3600*4180*DK20)/(1004.5*(DP20-DQ20)/3600)/DV20 -> 2.418185405 | DB20: =(((4180/1004.5)*(DH20/(1.2*DV20))*(DK20))+(EC20-DQ20))/(DQ20-DP20) -> 2.015154504 | DC20: =(1.2*DV20/3600*1004.5*(DQ20-EC20)-DH20/3600*4180*DK20)/(1.2*1004.5*(DP20-DQ20)/3600)/DV20 -> 2.015154504 | DD20: 2016-08-04 | DH20: 199.0797403 | DI20: 15.944 | DJ20: 17.54133333 | DK20: -1.597333333 | DL20: -369.2145583 | DM20: 31.25105167 | DN20: 121.9851053 | DO20: 2.417946333 | DP20: 27.75844467 | DQ20: 21.184 | DV20: 50.449884 | DW20: 27.89333333 | DX20: 27.76333333 | DY20: 27.62333333 | DZ20: 21.16666667 | EA20: 21.11666667 | EB20: 21.27 | EC20: 29.79333333 | ED20: 27.98666667 | EH20: =(1.2*DV20/3600*1004.5*(DQ20-EC20)-DH20/3600*4180*DK20)/(1004.5*(DP20-DQ20)/3600) -> 121.9971732 | EN20: 15.9 | EO20: 17.8 | EP20: 122 | EQ20: 0.2 | ER20: 27.8 | ES20: 40 | ET20: 0.43 | EU20: 0.43 | EV20: 16.85 | EW20: 77.8 | EX20: 199 | EY20: 0.8 | EZ20: 20.6 | FA20: 0 | FB20: =(EP20*EV20+DV20*EC20)/(EP20+DV20) -> 20.63654743 | FC20: =-ET20*1000 -> -430 | FD20: =DL20 -> -369.2145583 | FE20: =FD20/FC20 -> 0.8586385078 | FF20: =ET20*1000/(ER20-EN20) -> 36.13445378 | FG20: =FF20/FL20 -> 1.094983448 | FH20: =DM20 -> 31.25105167 | FI20: =FH20/FL20 -> 0.9470015657 | FJ20: =FH20/FF20 -> 0.8648546857 | FK20: =DV20 -> 50.449884 | FL20: 33 | FM20: =FK20/FL20 -> 1.528784364 | FN20: =FH20/FM20 -> 20.44176563 | FO20: 150 | HP20: 20 | HQ20: 10 | HR20: 110 | HS20: 10
B21: wOK= | F21: =wok -> 200 | G21: [kg/h] | H21: wK= | I21: =HFB!I39 -> 200 | J21: [kg/h] | L21: DpK = | M21: =Z38*$I$21^AA38 -> 27.92230502 | N21: [kPa] | Y21: 200 | Z21: =Y30*Y21^Y29+Z30*Y21^Z29+AA30*Y21^AA29+AB30*Y21^AB29+AC30 -> 30.26187387 | AA21: =Y47*AB21^Y46+Z47*AB21^Z46+AA47*AB21^AA46+AB47*AB21^AB46+AC47 -> 1 | AB21: =wok/wok -> 1 | AC21: =Z38*Y21^AA38 -> 27.92230502 | AE21: 100 | AF21: =AE30*AE21^4+AF30*AE21^3+AG30*AE21^2+AH30*AE21+AI30 -> 29.73723919 | AG21: =AE47*AH21^AE46+AF47*AH21^AF46+AG47*AH21^AG46+AH47*AH21^AH46+AI47 -> 1 | AH21: =woh/woh -> 1 | AI21: =AF38*AE21^AG38 -> 2.561828505 | AM21: 1072187 | AN21: =VLOOKUP(AM21,Duesenkaesten_Groeßen_Matrix,3) -> 42 | AO21: =CONCATENATE(""&AN21&" Düsen ") -> 42 Düsen | AP21: 64.566884 | AQ21: 36.34820167 | AR21: 150 | AS21: =CONCATENATE(""&AR21&" Pa ") -> 150 Pa | AT21: 1.830884263 | BX21: 52 | BY21: 125.9071889 | BZ21: 392 | CA21: 48.3 | CB21: 49.8 | CC21: M4;2547; Düsen 52 (30 / 22); mit Edelstahlgitter | CX21: 1072184 | CY21: 27.8 | CZ21: 300 | DA21: =(1.2*DV21/3600*1004.5*(DQ21-EC21)-DH21/3600*4180*DK21)/(1004.5*(DP21-DQ21)/3600)/DV21 -> 2.663231948 | DB21: =(((4180/1004.5)*(DH21/(1.2*DV21))*(DK21))+(EC21-DQ21))/(DQ21-DP21) -> 2.219359957 | DC21: =(1.2*DV21/3600*1004.5*(DQ21-EC21)-DH21/3600*4180*DK21)/(1.2*1004.5*(DP21-DQ21)/3600)/DV21 -> 2.219359957 | DD21: 2016-08-04 | DH21: 199.2585247 | DI21: 15.95466667 | DJ21: 18.104 | DK21: -2.149333333 | DL21: -497.271474 | DM21: 45.25636933 | DN21: 187.541943 | DO21: 2.663468 | DP21: 26.94255533 | DQ21: 21.42766667 | DV21: 70.412696 | DW21: 26.91666667 | DX21: 26.76666667 | DY21: 27.14666667 | DZ21: 21.18666667 | EA21: 21.39666667 | EB21: 21.69666667 | EC21: 30.28 | ED21: 27.99333333 | EH21: =(1.2*DV21/3600*1004.5*(DQ21-EC21)-DH21/3600*4180*DK21)/(1004.5*(DP21-DQ21)/3600) -> 187.5253416 | EN21: 16 | EO21: 18.4 | EP21: 188 | EQ21: 0.4 | ER21: 26.9 | ES21: 40 | ET21: 0.56 | EU21: 0.56 | EV21: 17.72 | EW21: 69.8 | EX21: 199 | EY21: 0.8 | EZ21: 20.6 | FA21: 1 | FB21: =(EP21*EV21+DV21*EC21)/(EP21+DV21) -> 21.14236847 | FC21: =-ET21*1000 -> -560 | FD21: =DL21 -> -497.271474 | FE21: =FD21/FC21 -> 0.887984775 | FF21: =ET21*1000/(ER21-EN21) -> 51.37614679 | FG21: =FF21/FL21 -> 1.556852933 | FH21: =DM21 -> 45.25636933 | FI21: =FH21/FL21 -> 1.371405131 | FJ21: =FH21/FF21 -> 0.8808829031 | FK21: =DV21 -> 70.412696 | FL21: 33 | FM21: =FK21/FL21 -> 2.133718061 | FN21: =FH21/FM21 -> 21.21009808 | FO21: 300 | HP21: 30 | HQ21: 10 | HR21: 120 | HS21: 10
B22: wOH= | F22: =woh -> 100 | G22: [kg/h] | H22: wH= | I22: =HFB!I40 -> 100 | J22: [kg/h] | L22: DpH = | M22: =(AH33/100^AI33)*I22^AI33 -> 1.6 | N22: [kPa] | O22: Eigenkonvektion Heizen QE: | Y22: wk | AE22: wh | AM22: 1072187 | AN22: =VLOOKUP(AM22,Duesenkaesten_Groeßen_Matrix,3) -> 42 | AO22: =CONCATENATE(""&AN22&" Düsen ") -> 42 Düsen | AP22: 89.238556 | AQ22: 49.78324433 | AR22: 300 | AS22: =CONCATENATE(""&AR22&" Pa ") -> 300 Pa | AT22: 1.950294244 | BX22: 52 | BY22: 110.8819483 | BZ22: 301 | CA22: 44.5 | CB22: 46.6 | CC22: M4;2548; Düsen 52 (30 / 22); mit Edelstahlgitter | HP22: 30 | HQ22: 100 | HR22: 120 | HS22: 100
H23: =IF(I21/F21<0.2,"Kaltwassermenge mind. 20% von Nennwassermenge!",0) -> 0 | O23: 175 W bei WWVL= 55°C | Y23: =I21 -> 200 | Z23: =Y30*Y23^Y29+Z30*Y23^Z29+AA30*Y23^AA29+AB30*Y23^AB29+AC30 -> 30.26187387 | AA23: =Y47*Wassermenge_Faktor_kühlen^Y46+Z47*Wassermenge_Faktor_kühlen^Z46+AA47*Wassermenge_Faktor_kühlen^AA46+AB47*Wassermenge_Faktor_kühlen^AB46+AC47 -> 1 | AB23: =Wassermenge_Faktor_kühlen -> 1 | AC23: =Z38*Y23^AA38 -> 27.92230502 | AE23: =I22 -> 100 | AF23: =AE30*AE23^4+AF30*AE23^3+AG30*AE23^2+AH30*AE23+AI30 -> 29.73723919 | AG23: =AE47*Wassermenge_Faktor_heizen^AE46+AF47*Wassermenge_Faktor_heizen^AF46+AG47*Wassermenge_Faktor_heizen^AG46+AH47*Wassermenge_Faktor_heizen^AH46+AI47 -> 1 | AH23: =Wassermenge_Faktor_heizen -> 1 | AI23: =AF38*AE23^AG38 -> 2.561828505 | AP23: V_Prim_3_kühlen | AQ23: qk_3_kühlen | AR23: dP_3_kühlen | BB23: S | BC23: 60 | BX23: 52 | BY23: 90.38975113 | BZ23: 195 | CA23: 38.4 | CB23: 42 | CC23: M4;2549; Düsen 52 (30 / 22); mit Edelstahlgitter | CX23: 1072187 | CY23: 28.3 | CZ23: 50 | DA23: =(1.2*DV23/3600*1004.5*(DQ23-EC23)-DH23/3600*4180*DK23)/(1004.5*(DP23-DQ23)/3600)/DV23 -> 2.15331991 | DB23: =(((4180/1004.5)*(DH23/(1.2*DV23))*(DK23))+(EC23-DQ23))/(DQ23-DP23) -> 1.794433259 | DC23: =(1.2*DV23/3600*1004.5*(DQ23-EC23)-DH23/3600*4180*DK23)/(1.2*1004.5*(DP23-DQ23)/3600)/DV23 -> 1.794433259 | DD23: 2016-08-04 | DH23: 200.516411 | DI23: 15.92733333 | DJ23: 16.86333333 | DK23: -0.936 | DL23: -217.9223973 | DM23: 19.059264 | DN23: 80.84454433 | DO23: 2.154000333 | DP23: 27.36255567 | DQ23: 21.74666667 | DV23: 37.532281 | DW23: 27.54 | DX23: 27.22 | DY23: 27.33 | DZ23: 22.14333333 | EA23: 21.57 | EB23: 21.52666667 | EC23: 29.01 | ED23: 27.89666667 | EH23: =(1.2*DV23/3600*1004.5*(DQ23-EC23)-DH23/3600*4180*DK23)/(1004.5*(DP23-DQ23)/3600) -> 80.81900796 | EN23: 15.9 | EO23: 17.1 | EP23: 81 | EQ23: 0.2 | ER23: 27.4 | ES23: 40 | ET23: 0.29 | EU23: 0.29 | EV23: 16.3 | EW23: 78.8 | EX23: 201 | EY23: 0.8 | EZ23: 20.9 | FA23: 0 | FB23: =(EP23*EV23+DV23*EC23)/(EP23+DV23) -> 20.32451794 | FC23: =-ET23*1000 -> -290 | FD23: =DL23 -> -217.9223973 | FE23: =FD23/FC23 -> 0.7514565425 | FF23: =ET23*1000/(ER23-EN23) -> 25.2173913 | FG23: =FF23/FL23 -> 0.6004140787 | FH23: =DM23 -> 19.059264 | FI23: =FH23/FL23 -> 0.453792 | FJ23: =FH23/FF23 -> 0.7557984 | FK23: =DV23 -> 37.532281 | FL23: 42 | FM23: =FK23/FL23 -> 0.8936257381 | FN23: =FH23/FM23 -> 21.32801596 | FO23: 50 | HP23: 30 | HQ23: 10 | HR23: 120 | HS23: 10
H24: =IF(I22/F22<0.4,"Heizwassermenge mind. 40% von Nennwassermenge!",0) -> 0 | O24: (bei tR = 20 °C und Nennwasserm.) | Y24: y = qk x = wk | AE24: y = qh x = wh | AM24: 1072190 | AN24: =VLOOKUP(AM24,Duesenkaesten_Groeßen_Matrix,3) -> 52 | AO24: =CONCATENATE(""&AN24&" Düsen ") -> 52 Düsen | AP24: 46.038504 | AQ24: 19.90665033 | AR24: 50 | AS24: =CONCATENATE(""&AR24&" Pa ") -> 50 Pa | AT24: 1.403428775 | BY24: Akustik_Vpr4 | BZ24: Akustik_P4 | CA24: Akustik_Lwa4 | CX24: 1072187 | CY24: 28.7 | CZ24: 150 | DA24: =(1.2*DV24/3600*1004.5*(DQ24-EC24)-DH24/3600*4180*DK24)/(1004.5*(DP24-DQ24)/3600)/DV24 -> 2.197061115 | DB24: =(((4180/1004.5)*(DH24/(1.2*DV24))*(DK24))+(EC24-DQ24))/(DQ24-DP24) -> 1.830884263 | DC24: =(1.2*DV24/3600*1004.5*(DQ24-EC24)-DH24/3600*4180*DK24)/(1.2*1004.5*(DP24-DQ24)/3600)/DV24 -> 1.830884263 | DD24: 2016-08-03 | DH24: 202.019715 | DI24: 15.98933333 | DJ24: 17.75466667 | DK24: -1.765333333 | DL24: -414.0869063 | DM24: 36.34820167 | DN24: 141.876346 | DO24: 2.197354667 | DP24: 27.382 | DQ24: 21.885778 | DV24: 64.566884 | DW24: 27.53 | DX24: 27 | DY24: 27.61 | DZ24: 21.80666667 | EA24: 22.01666667 | EB24: 21.83 | EC24: 30.97666667 | ED24: 29.04 | EH24: =(1.2*DV24/3600*1004.5*(DQ24-EC24)-DH24/3600*4180*DK24)/(1004.5*(DP24-DQ24)/3600) -> 141.8573902 | EN24: 16 | EO24: 18 | EP24: 142 | EQ24: 0.3 | ER24: 27.4 | ES24: 40 | ET24: 0.47 | EU24: 0.47 | EV24: 17.18 | EW24: 74.4 | EX24: 202 | EY24: 0.8 | EZ24: 21.1 | FA24: 0 | FB24: =(EP24*EV24+DV24*EC24)/(EP24+DV24) -> 21.49244234 | FC24: =-ET24*1000 -> -470 | FD24: =DL24 -> -414.0869063 | FE24: =FD24/FC24 -> 0.8810359709 | FF24: =ET24*1000/(ER24-EN24) -> 41.22807018 | FG24: =FF24/FL24 -> 0.9816207185 | FH24: =DM24 -> 36.34820167 | FI24: =FH24/FL24 -> 0.865433373 | FJ24: =FH24/FF24 -> 0.8816372319 | FK24: =DV24 -> 64.566884 | FL24: 42 | FM24: =FK24/FL24 -> 1.537306762 | FN24: =FH24/FM24 -> 23.64407844 | FO24: 150 | HP24: 40 | HQ24: 10 | HR24: 130 | HS24: 10
AM25: 1072190 | AN25: =VLOOKUP(AM25,Duesenkaesten_Groeßen_Matrix,3) -> 52 | AO25: =CONCATENATE(""&AN25&" Düsen ") -> 52 Düsen | AP25: 79.798111 | AQ25: 38.60197233 | AR25: 150 | AS25: =CONCATENATE(""&AR25&" Pa ") -> 150 Pa | AT25: 1.574171452 | BX25: 60 | BY25: 93.49321919 | BZ25: 156 | CA25: 36.3 | CB25: 41.3 | CC25: M1;2538; Düsen 60 (30 / 30); mit Edelstahlgitter | CX25: 1072187 | CY25: 28.5 | CZ25: 300 | DA25: =(1.2*DV25/3600*1004.5*(DQ25-EC25)-DH25/3600*4180*DK25)/(1004.5*(DP25-DQ25)/3600)/DV25 -> 2.340353093 | DB25: =(((4180/1004.5)*(DH25/(1.2*DV25))*(DK25))+(EC25-DQ25))/(DQ25-DP25) -> 1.950294244 | DC25: =(1.2*DV25/3600*1004.5*(DQ25-EC25)-DH25/3600*4180*DK25)/(1.2*1004.5*(DP25-DQ25)/3600)/DV25 -> 1.950294244 | DD25: 2016-08-03 | DH25: 201.9129747 | DI25: 15.98566667 | DJ25: 18.395 | DK25: -2.409333333 | DL25: -564.8564493 | DM25: 49.78324433 | DN25: 208.8751863 | DO25: 2.340638333 | DP25: 27.33222233 | DQ25: 22.219889 | DV25: 89.238556 | DW25: 27.18333333 | DX25: 27.16 | DY25: 27.65333333 | DZ25: 21.96333333 | EA25: 22.46333333 | EB25: 22.23333333 | EC25: 31.15333333 | ED25: 28.95 | EH25: =(1.2*DV25/3600*1004.5*(DQ25-EC25)-DH25/3600*4180*DK25)/(1004.5*(DP25-DQ25)/3600) -> 208.8497306 | EN25: 16 | EO25: 18.7 | EP25: 209 | EQ25: 0.4 | ER25: 27.3 | ES25: 40 | ET25: 0.63 | EU25: 0.63 | EV25: 18.04 | EW25: 70 | EX25: 202 | EY25: 0.8 | EZ25: 21 | FA25: 1 | FB25: =(EP25*EV25+DV25*EC25)/(EP25+DV25) -> 21.96375468 | FC25: =-ET25*1000 -> -630 | FD25: =DL25 -> -564.8564493 | FE25: =FD25/FC25 -> 0.8965975386 | FF25: =ET25*1000/(ER25-EN25) -> 55.75221239 | FG25: =FF25/FL25 -> 1.327433628 | FH25: =DM25 -> 49.78324433 | FI25: =FH25/FL25 -> 1.185315341 | FJ25: =FH25/FF25 -> 0.8929375571 | FK25: =DV25 -> 89.238556 | FL25: 42 | FM25: =FK25/FL25 -> 2.124727524 | FN25: =FH25/FM25 -> 23.43041344 | FO25: 300 | HP25: 40 | HQ25: 100 | HR25: 130 | HS25: 100
Y26: y = | Z26: axn+bx(n-1)+...+nx+m | AE26: y = | AF26: axn+bx(n-1)+...+nx+m | AM26: 1072190 | AN26: =VLOOKUP(AM26,Duesenkaesten_Groeßen_Matrix,3) -> 52 | AO26: =CONCATENATE(""&AN26&" Düsen ") -> 52 Düsen | AP26: 110.374885 | AQ26: 51.937211 | AR26: 300 | AS26: =CONCATENATE(""&AR26&" Pa ") -> 300 Pa | AT26: 1.606350583 | BX26: 60 | BY26: 114.342701 | BZ26: 241 | CA26: 42.3 | CB26: 48 | CC26: M1;2539; Düsen 60 (30 / 30); mit Edelstahlgitter | HP26: 40 | HQ26: 10 | HR26: 130 | HS26: 10
H27: BG 800 | Y27: Polynom | Z27: 3 | AA27: Ordnung | AE27: Polynom | AF27: 4 | AG27: Ordnung | AP27: V_Prim_4_kühlen | AQ27: qk_4_kühlen | AR27: dP_4_kühlen | BX27: 60 | BY27: 115.2798326 | BZ27: 240 | CA27: 42.3 | CB27: 45.4 | CC27: M1;2540; Düsen 60 (30 / 30); mit Edelstahlgitter | CX27: 1072190 | CY27: 28.7 | CZ27: 50 | DA27: =(1.2*DV27/3600*1004.5*(DQ27-EC27)-DH27/3600*4180*DK27)/(1004.5*(DP27-DQ27)/3600)/DV27 -> 1.684114529 | DB27: =(((4180/1004.5)*(DH27/(1.2*DV27))*(DK27))+(EC27-DQ27))/(DQ27-DP27) -> 1.403428775 | DC27: =(1.2*DV27/3600*1004.5*(DQ27-EC27)-DH27/3600*4180*DK27)/(1.2*1004.5*(DP27-DQ27)/3600)/DV27 -> 1.403428775 | DD27: 2016-08-03 | DH27: 202.0863747 | DI27: 15.97533333 | DJ27: 17.016 | DK27: -1.040666667 | DL27: -244.1910097 | DM27: 19.90665033 | DN27: 77.51354833 | DO27: 1.683668 | DP27: 28.24200033 | DQ27: 22.651667 | DV27: 46.038504 | DW27: 28.45 | DX27: 28.14333333 | DY27: 28.13 | DZ27: 22.63666667 | EA27: 22.36 | EB27: 22.96 | EC27: 30.64666667 | ED27: 29.03666667 | EH27: =(1.2*DV27/3600*1004.5*(DQ27-EC27)-DH27/3600*4180*DK27)/(1004.5*(DP27-DQ27)/3600) -> 77.5341135 | EK27: 240 | EM27: S | EN27: 16 | EO27: 17.3 | EP27: 77 | EQ27: 0.2 | ER27: 28.2 | ES27: 40 | ET27: 0.3 | EU27: 0.3 | EV27: 16.38 | EW27: 82.1 | EX27: 202 | EY27: 0.8 | EZ27: 21.1 | FA27: 0 | FB27: =(EP27*EV27+DV27*EC27)/(EP27+DV27) -> 21.7182963 | FC27: =-ET27*1000 -> -300 | FD27: =DL27 -> -244.1910097 | FE27: =FD27/FC27 -> 0.8139700322 | FF27: =ET27*1000/(ER27-EN27) -> 24.59016393 | FG27: =FF27/FL27 -> 0.472887768 | FH27: =DM27 -> 19.90665033 | FI27: =FH27/FL27 -> 0.3828201987 | FJ27: =FH27/FF27 -> 0.8095371136 | FK27: =DV27 -> 46.038504 | FL27: 52 | FM27: =FK27/FL27 -> 0.8853558462 | FN27: =FH27/FM27 -> 22.48434956 | FO27: 50 | HP27: 50 | HQ27: 10 | HR27: 140 | HS27: 10
H28: Düsen | Y28: a = | Z28: b = | AA28: c = | AB28: d = | AC28: m = | AD28: R2 = | AE28: a = | AF28: b = | AG28: c = | AH28: d = | AI28: e = | AJ28: R2 = | AL28: Keine Messungen -> Extrapolierte Werte (mit höherer Düsenzahl maximale Leistung aus Diagramm) | AM28: 1072193 | AN28: 60 | AO28: =CONCATENATE(""&AN28&" Düsen ") -> 60 Düsen | AP28: =AP60 -> 55.320572 | AQ28: =-0.00566*60^2 + 0.68029*60 -> 20.4414 | AR28: 50 | AS28: =CONCATENATE(""&AR28&" Pa ") -> 50 Pa | BX28: 60 | BY28: 133.6537843 | BZ28: 328 | CA28: 46.7 | CB28: 48.9 | CC28: M1;2541; Düsen 60 (30 / 30); mit Edelstahlgitter | CX28: 1072190 | CY28: 28.7 | CZ28: 150 | DA28: =(1.2*DV28/3600*1004.5*(DQ28-EC28)-DH28/3600*4180*DK28)/(1004.5*(DP28-DQ28)/3600)/DV28 -> 1.889005742 | DB28: =(((4180/1004.5)*(DH28/(1.2*DV28))*(DK28))+(EC28-DQ28))/(DQ28-DP28) -> 1.574171452 | DC28: =(1.2*DV28/3600*1004.5*(DQ28-EC28)-DH28/3600*4180*DK28)/(1.2*1004.5*(DP28-DQ28)/3600)/DV28 -> 1.574171452 | DD28: 2016-08-03 | DH28: 202.1124377 | DI28: 15.972 | DJ28: 17.90133333 | DK28: -1.929333333 | DL28: -452.7665397 | DM28: 38.60197233 | DN28: 150.727441 | DO28: 1.888859667 | DP28: 27.701 | DQ28: 22.472222 | DV28: 79.798111 | DW28: 27.9 | DX28: 27.51 | DY28: 27.69 | DZ28: 22.22 | EA28: 22.18666667 | EB28: 23.01 | EC28: 31.18666667 | ED28: 29.03 | EH28: =(1.2*DV28/3600*1004.5*(DQ28-EC28)-DH28/3600*4180*DK28)/(1004.5*(DP28-DQ28)/3600) -> 150.7390899 | EN28: 16 | EO28: 18.2 | EP28: 151 | EQ28: 0.3 | ER28: 27.7 | ES28: 40 | ET28: 0.51 | EU28: 0.51 | EV28: 17.33 | EW28: 74.9 | EX28: 202 | EY28: 0.8 | EZ28: 21.1 | FA28: 1 | FB28: =(EP28*EV28+DV28*EC28)/(EP28+DV28) -> 22.12092233 | FC28: =-ET28*1000 -> -510 | FD28: =DL28 -> -452.7665397 | FE28: =FD28/FC28 -> 0.8877775288 | FF28: =ET28*1000/(ER28-EN28) -> 43.58974359 | FG28: =FF28/FL28 -> 0.8382642998 | FH28: =DM28 -> 38.60197233 | FI28: =FH28/FL28 -> 0.7423456218 | FJ28: =FH28/FF28 -> 0.8855746594 | FK28: =DV28 -> 79.798111 | FL28: 52 | FM28: =FK28/FL28 -> 1.534579058 | FN28: =FH28/FM28 -> 25.15476289 | FO28: 150 | HP28: 50 | HQ28: 100 | HR28: 140 | HS28: 100
G29: S | H29: 33 | Y29: 4 | Z29: 3 | AA29: 2 | AB29: 1 | AC29: 0 | AE29: 4 | AF29: 3 | AG29: 2 | AH29: 1 | AM29: 1072193 | AN29: 60 | AO29: =CONCATENATE(""&AN29&" Düsen ") -> 60 Düsen | AP29: =AP62 -> 95.011117 | AQ29: =-0.01105*60^2 + 1.31977*60 -> 39.4062 | AR29: 150 | AS29: =CONCATENATE(""&AR29&" Pa ") -> 150 Pa | CX29: 1072190 | CY29: 28.6 | CZ29: 300 | DA29: =(1.2*DV29/3600*1004.5*(DQ29-EC29)-DH29/3600*4180*DK29)/(1004.5*(DP29-DQ29)/3600)/DV29 -> 1.9276207 | DB29: =(((4180/1004.5)*(DH29/(1.2*DV29))*(DK29))+(EC29-DQ29))/(DQ29-DP29) -> 1.606350583 | DC29: =(1.2*DV29/3600*1004.5*(DQ29-EC29)-DH29/3600*4180*DK29)/(1.2*1004.5*(DP29-DQ29)/3600)/DV29 -> 1.606350583 | DD29: 2016-08-03 | DH29: 202.4224537 | DI29: 15.989 | DJ29: 18.58766667 | DK29: -2.598666667 | DL29: -610.7664487 | DM29: 51.937211 | DN29: 212.753901 | DO29: 1.927557 | DP29: 27.74866667 | DQ29: 22.77288867 | DV29: 110.374885 | DW29: 27.83333333 | DX29: 27.63333333 | DY29: 27.77666667 | DZ29: 22.33666667 | EA29: 22.56666667 | EB29: 23.41666667 | EC29: 31.30666667 | ED29: 28.95333333 | EH29: =(1.2*DV29/3600*1004.5*(DQ29-EC29)-DH29/3600*4180*DK29)/(1004.5*(DP29-DQ29)/3600) -> 212.7609131 | EN29: 16 | EO29: 18.8 | EP29: 213 | EQ29: 0.4 | ER29: 27.7 | ES29: 40 | ET29: 0.66 | EU29: 0.66 | EV29: 18.15 | EW29: 71.1 | EX29: 202 | EY29: 0.8 | EZ29: 21.1 | FA29: 1 | FB29: =(EP29*EV29+DV29*EC29)/(EP29+DV29) -> 22.64065663 | FC29: =-ET29*1000 -> -660 | FD29: =DL29 -> -610.7664487 | FE29: =FD29/FC29 -> 0.9254037101 | FF29: =ET29*1000/(ER29-EN29) -> 56.41025641 | FG29: =FF29/FL29 -> 1.084812623 | FH29: =DM29 -> 51.937211 | FI29: =FH29/FL29 -> 0.9987925192 | FJ29: =FH29/FF29 -> 0.9207051041 | FK29: =DV29 -> 110.374885 | FL29: 52 | FM29: =FK29/FL29 -> 2.122593942 | FN29: =FH29/FM29 -> 24.46874551 | FO29: 300 | HP29: 50 | HQ29: 10 | HR29: 140 | HS29: 10
G30: M | H30: 42 | X30: Exponent | Y30: 0 | Z30: =LINEST(WM_Roh_qk,WM_Roh_wk^{0,1,2,3},0,0) -> 9.110256216e-07 | AA30: -0.0006642636947 | AB30: 0.1645222726 | AC30: 16.63976216 | AD30: =RSQ(WM_Roh_qk,TREND(WM_Roh_qk,WM_Roh_wk^{0,1,2,3},WM_Roh_wk^{0,1,2,3})) -> 0.9968576676 | AE30: =LINEST(WM_Roh_qh,WM_Roh_wh^{0,1,2,3,4},0,0) -> -1.849318093e-08 | AF30: 1.35611032e-05 | AG30: -0.003747095357 | AH30: 0.4846233809 | AI30: 7.03406956 | AJ30: =RSQ(WM_Roh_qh,TREND(WM_Roh_qh,WM_Roh_wh^{0,1,2,3,4},WM_Roh_wh^{0,1,2,3,4})) -> 0.9998530946 | AM30: 1072193 | AN30: 60 | AO30: =CONCATENATE(""&AN30&" Düsen ") -> 60 Düsen | AP30: =AP65 -> 131.214168 | AQ30: =-0.01944*52^2 + 2.00777*52 -> 51.83828 | AR30: 300 | AS30: =CONCATENATE(""&AR30&" Pa ") -> 300 Pa | HP30: 60 | HQ30: 10 | HR30: 160 | HS30: 10
G31: L | H31: 52 | AF31: dp_H an HFBsf angepasst | AG31: BG | AH31: a | AI31: b | HP31: 60 | HQ31: 100 | HR31: 160 | HS31: 100
G32: XL | H32: 60 | AF32: 2025-01-13 | AG32: 630 | AH32: 1.3 | AI32: 1.802884 | AJ32: (1,3/(100^1,802884))*m_w^1,802884 | HP32: 60 | HQ32: 10 | HR32: 160 | HS32: 10
AG33: 800 | AH33: 1.6 | AI33: 1.788496 | AJ33: (1,6/(100^1,788496))*m_w^1,788496 | HP33: 70 | HQ33: 10 | HR33: 170 | HS33: 10
Y34: y = Druck dp [kPa] x = Wassermenge wk | AE34: y = Druck dp [kPa] x = Wassermenge wk | AF34: y = Druck dp [kPa] x = Wassermenge wk | AG34: 1000 | AH34: 1.8 | AI34: 1.769775 | AJ34: (1,8/(100^1,769775))*m_w^1,769775 | HP34: 70 | HQ34: 100 | HR34: 170 | HS34: 100
HP35: 70 | HQ35: 10 | HR35: 170 | HS35: 10
F36: Korrekturfaktor | Y36: y = | Z36: mxb | AE36: y = | AF36: mxb | HP36: 80 | HQ36: 10 | HR36: 180 | HS36: 10
B37: Kühlwassermenge | F37: Total | G37: Sensibel | Z37: m | AA37: b | AB37: R2 | AF37: m | AG37: b | AH37: R2 | HP37: 80 | HQ37: 100 | HR37: 180 | HS37: 100
B38: =Korrektur_BG800_mw120kg_h!D2 -> 120 | F38: =Korrektur_BG800_mw120kg_h!O25 -> 1.576492778 | Z38: =INDEX(LOGEST(WM_kPa_kühlen,LN(WM_Roh_wk),,TRUE),1,2) -> 0.001683972432 | AA38: =LN(INDEX(LOGEST(WM_kPa_kühlen,LN(WM_Roh_wk),,TRUE),1,1)) -> 1.83379456 | AB38: =INDEX(LOGEST(WM_kPa_kühlen,LN(WM_Roh_wk),,TRUE),3,1) -> 0.999807125 | AF38: =INDEX(LOGEST(WM_kPa_heizen,LN(WM_Roh_wh),,TRUE),1,2) -> 0.0001357446827 | AG38: =LN(INDEX(LOGEST(WM_kPa_heizen,LN(WM_Roh_wh),,TRUE),1,1)) -> 2.137913613 | AH38: =INDEX(LOGEST(WM_kPa_heizen,LN(WM_Roh_wh),,TRUE),3,1) -> 0.9965449264 | HP38: 80 | HQ38: 10 | HR38: 180 | HS38: 10
FB39: =2/7 -> 0.2857142857 | HP39: 90 | HQ39: 10 | HR39: 190 | HS39: 10
HP40: 90 | HQ40: 100 | HR40: 190 | HS40: 100
Y41: y = qk in % x = wk in % | AE41: y = qh in % x = wh in % | HP41: 90 | HQ41: 10 | HR41: 190 | HS41: 10
HP42: 100 | HQ42: 10 | HR42: 210 | HS42: 10
Y43: y = | Z43: axn+bx(n-1)+...+nx+m | AE43: y = | AF43: axn+bx(n-1)+...+nx+m | HP43: 100 | HQ43: 100 | HR43: 210 | HS43: 100
Y44: Polynom | Z44: 3 | AA44: Ordnung | AE44: Polynom | AF44: 4 | AG44: Ordnung | HP44: 100 | HQ44: 10 | HR44: 210 | HS44: 10
Y45: a = | Z45: b = | AA45: c = | AB45: d = | AC45: m = | AD45: R2 = | AE45: a = | AF45: b = | AG45: c = | AH45: d = | AI45: e = | AJ45: R2 = | AM45: Heizen - ohne Schieber, mit Al-Lineargitter (Tabellenblatt: 26-07-2016_Heizen) | HP45: 150 | HQ45: 10 | HR45: 220 | HS45: 10
Y46: 4 | Z46: 3 | AA46: 2 | AB46: 1 | AC46: 0 | AE46: 4 | AF46: 3 | AG46: 2 | AH46: 1 | AM46: 1072193 | AN46: =VLOOKUP(AM46,Duesenkaesten_Groeßen_Matrix,3) -> 60 | AO46: =CONCATENATE(""&AN46&" Düsen ") -> 60 Düsen | AP46: 0 | AQ46: 6.209656333 | AR46: 0 | AS46: =CONCATENATE(""&AR46&" Pa ") -> 0 Pa | BH46: =CONCATENATE(" V_pr = " &V_pr&" m³/h") -> V_pr = 80 m³/h | CX46: 1072193 | CY46: 2.7 | CZ46: 0 | DA46: =(1.2*DV46/3600*1004.5*(DQ46-ED46)-DH46/3600*4180*DK46)/(1004.5*(DP46-DQ46)/3600)/DV46 ->  | DB46: =(((4180/1004.5)*(DH46/(1.2*DV46))*(DK46))+(ED46-DQ46))/(DQ46-DP46) ->  | DC46: =(1.2*DV46/3600*1004.5*(DQ46-ED46)-DH46/3600*4180*DK46)/(1.2*1004.5*(DP46-DQ46)/3600)/DV46 ->  | DD46: 2016-07-26 | DH46: 91.72246867 | DI46: 64.02066667 | DJ46: 62.377 | DK46: 1.643666667 | DL46: 175.0529543 | DM46: 6.209656333 | DN46: -244.7613133 | DP46: 35.829889 | DQ46: 33.26566633 | DU46: 0 | DV46: 0 | DW46: 32.95666667 | DX46: 34.76 | DY46: 39.76666667 | DZ46: 32.10333333 | EA46: 33.73666667 | EB46: 33.96 | EC46: 28.80666667 | ED46: 28.96666667 | HP46: 150 | HQ46: 100 | HR46: 220 | HS46: 100
Y47: 0 | Z47: =LINEST(WM_Roh_qk_Proz,WM_Roh_wk_Proz^{0,1,2,3},0,0) -> 0.240837861 | AA47: -0.8780205713 | AB47: 1.087323761 | AC47: 0.5498589488 | AD47: =RSQ(WM_Roh_qk,TREND(WM_Roh_qk,WM_Roh_wk^{0,1,2,3},WM_Roh_wk^{0,1,2,3})) -> 0.9968576676 | AE47: =LINEST(WM_Roh_qh_Proz,WM_Roh_wh_Proz^{0,1,2,3,4},0,0) -> -0.06218862758 | AF47: 0.4560310092 | AG47: -1.260068338 | AH47: 1.629685183 | AI47: 0.2365407735 | AJ47: =RSQ(WM_Roh_qh,TREND(WM_Roh_qh,WM_Roh_wh^{0,1,2,3,4},WM_Roh_wh^{0,1,2,3,4})) -> 0.9998530946 | AP47: V_Prim_1_heizen | AQ47: qk_1_heizen | AR47: dP_1_heizen | CX47: heizen ohne Schieber | HP47: 150 | HQ47: 10 | HR47: 220 | HS47: 10
AM48: 1072184 | AN48: =VLOOKUP(AM48,Duesenkaesten_Groeßen_Matrix,3) -> 33 | AO48: =CONCATENATE(""&AN48&" Düsen ") -> 33 Düsen | AP48: 28.575463 | AQ48: 15.996539 | AR48: 50 | AS48: =CONCATENATE(""&AR48&" Pa ") -> 50 Pa | AT48: 2.834569034 | CX48: 1072184 | CY48: 2.7 | CZ48: 50 | DA48: =(1.2*DV48/3600*1004.5*(DQ48-ED48)-DH48/3600*4180*DK48)/(1004.5*(DP48-DQ48)/3600)/DV48 -> 3.401482841 | DB48: =(((4180/1004.5)*(DH48/(1.2*DV48))*(DK48))+(ED48-DQ48))/(DQ48-DP48) -> 2.834569034 | DC48: =(1.2*DV48/3600*1004.5*(DQ48-ED48)-DH48/3600*4180*DK48)/(1.2*1004.5*(DP48-DQ48)/3600)/DV48 -> 2.834569034 | DD48: 2016-08-02 | DH48: 98.86940967 | DI48: 64.07166667 | DJ48: 59.28833333 | DK48: 4.783333333 | DL48: 549.1236947 | DM48: 15.996539 | DN48: 94.06413767 | DO48: 3.29178 | DP48: 29.744 | DQ48: 44.81055567 | DU48: 3 | DV48: 28.575463 | DW48: 29.39666667 | DX48: 29.84333333 | DY48: 29.99 | DZ48: 44.85 | EA48: 44.8 | EB48: 44.78333333 | EC48: 28.75 | ED48: 30.12666667 | HP48: 200 | HQ48: 10 | HR48: 230 | HS48: 10
AM49: 1072184 | AN49: =VLOOKUP(AM49,Duesenkaesten_Groeßen_Matrix,3) -> 33 | AO49: =CONCATENATE(""&AN49&" Düsen ") -> 33 Düsen | AP49: 50.647323 | AQ49: 25.75661367 | AR49: 150 | AS49: =CONCATENATE(""&AR49&" Pa ") -> 150 Pa | AT49: 2.751047355 | CA49: =CONCATENATE(" V_pr = " &V_pr&" m³/h") -> V_pr = 80 m³/h | CX49: 1072184 | CY49: 2.8 | CZ49: 150 | DA49: =(1.2*DV49/3600*1004.5*(DQ49-ED49)-DH49/3600*4180*DK49)/(1004.5*(DP49-DQ49)/3600)/DV49 -> 3.301256826 | DB49: =(((4180/1004.5)*(DH49/(1.2*DV49))*(DK49))+(ED49-DQ49))/(DQ49-DP49) -> 2.751047355 | DC49: =(1.2*DV49/3600*1004.5*(DQ49-ED49)-DH49/3600*4180*DK49)/(1.2*1004.5*(DP49-DQ49)/3600)/DV49 -> 2.751047355 | DD49: 2016-08-02 | DH49: 98.62381867 | DI49: 64.06966667 | DJ49: 56.21166667 | DK49: 7.858 | DL49: 899.8423203 | DM49: 25.75661367 | DN49: 159.433694 | DO49: 3.147919667 | DP49: 29.13333333 | DQ49: 43.63644433 | DU49: 9.9 | DV49: 50.647323 | DW49: 28.96333333 | DX49: 29.16333333 | DY49: 29.27 | DZ49: 43.08 | EA49: 43.73 | EB49: 44.10333333 | EC49: 28.62 | ED49: 30.47333333 | HP49: 200 | HQ49: 100 | HR49: 230 | HS49: 100
AM50: 1072184 | AN50: =VLOOKUP(AM50,Duesenkaesten_Groeßen_Matrix,3) -> 33 | AO50: =CONCATENATE(""&AN50&" Düsen ") -> 33 Düsen | AP50: 70.439526 | AQ50: 32.367387 | AR50: 300 | AS50: =CONCATENATE(""&AR50&" Pa ") -> 300 Pa | AT50: 2.797125774 | CX50: 1072184 | CY50: 2.8 | CZ50: 300 | DA50: =(1.2*DV50/3600*1004.5*(DQ50-ED50)-DH50/3600*4180*DK50)/(1004.5*(DP50-DQ50)/3600)/DV50 -> 3.356550928 | DB50: =(((4180/1004.5)*(DH50/(1.2*DV50))*(DK50))+(ED50-DQ50))/(DQ50-DP50) -> 2.797125774 | DC50: =(1.2*DV50/3600*1004.5*(DQ50-ED50)-DH50/3600*4180*DK50)/(1.2*1004.5*(DP50-DQ50)/3600)/DV50 -> 2.797125774 | DD50: 2016-07-29 | DH50: 100.4918683 | DI50: 64.16833333 | DJ50: 54.66 | DK50: 9.508333333 | DL50: 1109.453227 | DM50: 32.367387 | DN50: 223.7503207 | DO50: 3.176488333 | DP50: 29.89144433 | DQ50: 42.79722233 | DU50: 19.5 | DV50: 70.439526 | DW50: 29.75333333 | DX50: 29.91333333 | DY50: 30.00333333 | DZ50: 42.65666667 | EA50: 42.62666667 | EB50: 43.10666667 | EC50: 29.92 | ED50: 31.85666667 | HP50: 200 | HQ50: 10 | HR50: 230 | HS50: 10
AP51: V_Prim_2_heizen | AQ51: qk_2_heizen | AR51: dP_2_heizen | HP51: 250 | HQ51: 10 | HR51: 240 | HS51: 10
AM52: 1072187 | AN52: =VLOOKUP(AM52,Duesenkaesten_Groeßen_Matrix,3) -> 42 | AO52: =CONCATENATE(""&AN52&" Düsen ") -> 42 Düsen | AP52: 36.810483 | AQ52: 17.10841633 | AR52: 50 | AS52: =CONCATENATE(""&AR52&" Pa ") -> 50 Pa | AT52: 2.562673461 | CX52: 1072187 | CY52: 2.8 | CZ52: 50 | DA52: =(1.2*DV52/3600*1004.5*(DQ52-ED52)-DH52/3600*4180*DK52)/(1004.5*(DP52-DQ52)/3600)/DV52 -> 3.075208153 | DB52: =(((4180/1004.5)*(DH52/(1.2*DV52))*(DK52))+(ED52-DQ52))/(DQ52-DP52) -> 2.562673461 | DC52: =(1.2*DV52/3600*1004.5*(DQ52-ED52)-DH52/3600*4180*DK52)/(1.2*1004.5*(DP52-DQ52)/3600)/DV52 -> 2.562673461 | DD52: 2016-07-28 | DH52: 98.363556 | DI52: 64.11966667 | DJ52: 59.058 | DK52: 5.061666667 | DL52: 578.099116 | DM52: 17.10841633 | DN52: 108.4546043 | DO52: 2.946296667 | DP52: 30.32933333 | DQ52: 43.75288867 | DU52: 5.1 | DV52: 36.810483 | DW52: 30.05333333 | DX52: 30.56333333 | DY52: 30.37333333 | DZ52: 42.59666667 | EA52: 43.97666667 | EB52: 44.68333333 | EC52: 29.81 | ED52: 31.25 | HP52: 250 | HQ52: 100 | HR52: 240 | HS52: 100
AM53: 1072187 | AN53: =VLOOKUP(AM53,Duesenkaesten_Groeßen_Matrix,3) -> 42 | AO53: =CONCATENATE(""&AN53&" Düsen ") -> 42 Düsen | AP53: 64.758817 | AQ53: 27.08765767 | AR53: 150 | AS53: =CONCATENATE(""&AR53&" Pa ") -> 150 Pa | AT53: 2.229271269 | CX53: 1072187 | CY53: 2.8 | CZ53: 150 | DA53: =(1.2*DV53/3600*1004.5*(DQ53-ED53)-DH53/3600*4180*DK53)/(1004.5*(DP53-DQ53)/3600)/DV53 -> 2.675125522 | DB53: =(((4180/1004.5)*(DH53/(1.2*DV53))*(DK53))+(ED53-DQ53))/(DQ53-DP53) -> 2.229271269 | DC53: =(1.2*DV53/3600*1004.5*(DQ53-ED53)-DH53/3600*4180*DK53)/(1.2*1004.5*(DP53-DQ53)/3600)/DV53 -> 2.229271269 | DD53: 2016-07-29 | DH53: 100.6666177 | DI53: 64.14866667 | DJ53: 56.24733333 | DK53: 7.901333333 | DL53: 923.5482687 | DM53: 27.08765767 | DN53: 162.1664617 | DO53: 2.504160333 | DP53: 30.05388867 | DQ53: 43.753111 | DU53: 16.4 | DV53: 64.758817 | DW53: 29.85666667 | DX53: 30.19666667 | DY53: 30.10666667 | DZ53: 43.59333333 | EA53: 43.78333333 | EB53: 43.87666667 | EC53: 29.75 | ED53: 31.7 | HP53: 250 | HQ53: 10 | HR53: 240 | HS53: 10
AM54: 1072187 | AN54: =VLOOKUP(AM54,Duesenkaesten_Groeßen_Matrix,3) -> 42 | AO54: =CONCATENATE(""&AN54&" Düsen ") -> 42 Düsen | AP54: 89.78586 | AQ54: 33.20227767 | AR54: 300 | AS54: =CONCATENATE(""&AR54&" Pa ") -> 300 Pa | AT54: 2.202405059 | CX54: 1072187 | CY54: 2.8 | CZ54: 300 | DA54: =(1.2*DV54/3600*1004.5*(DQ54-ED54)-DH54/3600*4180*DK54)/(1004.5*(DP54-DQ54)/3600)/DV54 -> 2.642886071 | DB54: =(((4180/1004.5)*(DH54/(1.2*DV54))*(DK54))+(ED54-DQ54))/(DQ54-DP54) -> 2.202405059 | DC54: =(1.2*DV54/3600*1004.5*(DQ54-ED54)-DH54/3600*4180*DK54)/(1.2*1004.5*(DP54-DQ54)/3600)/DV54 -> 2.202405059 | DD54: 2016-07-29 | DH54: 100.7336717 | DI54: 64.173 | DJ54: 54.46833333 | DK54: 9.704666667 | DL54: 1135.085416 | DM54: 33.20227767 | DN54: 218.9786323 | DO54: 2.438899 | DP54: 29.986 | DQ54: 42.43411133 | DU54: 32.1 | DV54: 89.78586 | DW54: 29.86 | DX54: 30.07333333 | DY54: 30.02333333 | DZ54: 42.43666667 | EA54: 42.52666667 | EB54: 42.34 | EC54: 29.97666667 | ED54: 32.09333333 | HP54: 300 | HQ54: 10 | HR54: 260 | HS54: 10
AP55: V_Prim_3_heizen | AQ55: qk_3_heizen | AR55: dP_3_heizen | HP55: 300 | HQ55: 100 | HR55: 260 | HS55: 100
AM56: 1072190 | AN56: =VLOOKUP(AM56,Duesenkaesten_Groeßen_Matrix,3) -> 52 | AO56: =CONCATENATE(""&AN56&" Düsen ") -> 52 Düsen | AP56: 45.974066 | AQ56: 16.95267867 | AR56: 50 | AS56: =CONCATENATE(""&AR56&" Pa ") -> 50 Pa | AT56: 2.031702081 | CX56: 1072190 | CY56: 2.8 | CZ56: 50 | DA56: =(1.2*DV56/3600*1004.5*(DQ56-ED56)-DH56/3600*4180*DK56)/(1004.5*(DP56-DQ56)/3600)/DV56 -> 2.438042498 | DB56: =(((4180/1004.5)*(DH56/(1.2*DV56))*(DK56))+(ED56-DQ56))/(DQ56-DP56) -> 2.031702081 | DC56: =(1.2*DV56/3600*1004.5*(DQ56-ED56)-DH56/3600*4180*DK56)/(1.2*1004.5*(DP56-DQ56)/3600)/DV56 -> 2.031702081 | DD56: 2016-07-28 | DH56: 101.657721 | DI56: 64.13033333 | DJ56: 59.219 | DK56: 4.911333333 | DL56: 579.7137767 | DM56: 16.95267867 | DN56: 103.9942243 | DO56: 2.262019333 | DP56: 29.93422233 | DQ56: 42.76366667 | DU56: 8.1 | DV56: 45.974066 | DW56: 29.52666667 | DX56: 30.29666667 | DY56: 29.98 | DZ56: 42.18666667 | EA56: 42.80666667 | EB56: 43.29666667 | EC56: 29.28666667 | ED56: 31.17 | HP56: 300 | HQ56: 10 | HR56: 260 | HS56: 10
AM57: 1072190 | AN57: =VLOOKUP(AM57,Duesenkaesten_Groeßen_Matrix,3) -> 52 | AO57: =CONCATENATE(""&AN57&" Düsen ") -> 52 Düsen | AP57: 79.841606 | AQ57: 27.45002367 | AR57: 150 | AS57: =CONCATENATE(""&AR57&" Pa ") -> 150 Pa | AT57: 1.934416394 | CX57: 1072190 | CY57: 2.9 | CZ57: 150 | DA57: =(1.2*DV57/3600*1004.5*(DQ57-ED57)-DH57/3600*4180*DK57)/(1004.5*(DP57-DQ57)/3600)/DV57 -> 2.321299673 | DB57: =(((4180/1004.5)*(DH57/(1.2*DV57))*(DK57))+(ED57-DQ57))/(DQ57-DP57) -> 1.934416394 | DC57: =(1.2*DV57/3600*1004.5*(DQ57-ED57)-DH57/3600*4180*DK57)/(1.2*1004.5*(DP57-DQ57)/3600)/DV57 -> 1.934416394 | DD57: 2016-07-28 | DH57: 102.206977 | DI57: 64.14533333 | DJ57: 56.14666667 | DK57: 7.998666667 | DL57: 949.2309957 | DM57: 27.45002367 | DN57: 167.151776 | DO57: 2.093542333 | DP57: 29.565 | DQ57: 42.40866667 | DU57: 25.3 | DV57: 79.841606 | DW57: 29.30666667 | DX57: 29.81333333 | DY57: 29.57333333 | DZ57: 42.41666667 | EA57: 42.38333333 | EB57: 42.43 | EC57: 29.31 | ED57: 31.74666667 | HP57: 350 | HQ57: 10 | HR57: 270 | HS57: 10
AM58: 1072190 | AN58: =VLOOKUP(AM58,Duesenkaesten_Groeßen_Matrix,3) -> 52 | AO58: =CONCATENATE(""&AN58&" Düsen ") -> 52 Düsen | AP58: 110.625279 | AQ58: 33.56089933 | AR58: 300 | AS58: =CONCATENATE(""&AR58&" Pa ") -> 300 Pa | AT58: 1.94285892 | CX58: 1072190 | CY58: 2.9 | CZ58: 300 | DA58: =(1.2*DV58/3600*1004.5*(DQ58-ED58)-DH58/3600*4180*DK58)/(1004.5*(DP58-DQ58)/3600)/DV58 -> 2.331430705 | DB58: =(((4180/1004.5)*(DH58/(1.2*DV58))*(DK58))+(ED58-DQ58))/(DQ58-DP58) -> 1.94285892 | DC58: =(1.2*DV58/3600*1004.5*(DQ58-ED58)-DH58/3600*4180*DK58)/(1.2*1004.5*(DP58-DQ58)/3600)/DV58 -> 1.94285892 | DD58: 2016-07-28 | DH58: 101.7980237 | DI58: 64.15933333 | DJ58: 54.28233333 | DK58: 9.877 | DL58: 1167.44905 | DM58: 33.56089933 | DN58: 228.427901 | DO58: 2.064889 | DP58: 29.37333333 | DQ58: 40.96899967 | DU58: 49.36666667 | DV58: 110.625279 | DW58: 29.17 | DX58: 29.58666667 | DY58: 29.36666667 | DZ58: 41.1 | EA58: 40.98666667 | EB58: 40.82333333 | EC58: 29.40333333 | ED58: 31.98 | HP58: 350 | HQ58: 100 | HR58: 270 | HS58: 100
A59: ã LTG Aktiengesellschaft - Letzte Änderung: 01.03.2009 | AP59: V_Prim_4_heizen | AQ59: qk_4_heizen | AR59: dP_4_heizen | HP59: 350 | HQ59: 10 | HR59: 270 | HS59: 10
A60: Angaben zu Toleranzen sowie weitere Spezifikationen sind der aktuellen Bauteilmappe der LTG Aktiengesellschaft zu entnehmen. | AM60: 1072193 | AN60: =VLOOKUP(AM60,Duesenkaesten_Groeßen_Matrix,3) -> 60 | AO60: =CONCATENATE(""&AN60&" Düsen ") -> 60 Düsen | AP60: 55.320572 | AQ60: 19.562878 | AR60: 50 | AS60: =CONCATENATE(""&AR60&" Pa ") -> 50 Pa | AT60: 1.928847566 | CX60: 1072193 | CY60: 2.7 | CZ60: 50 | DA60: =(1.2*DV60/3600*1004.5*(DQ60-ED60)-DH60/3600*4180*DK60)/(1004.5*(DP60-DQ60)/3600)/DV60 -> 2.314617079 | DB60: =(((4180/1004.5)*(DH60/(1.2*DV60))*(DK60))+(ED60-DQ60))/(DQ60-DP60) -> 1.928847566 | DC60: =(1.2*DV60/3600*1004.5*(DQ60-ED60)-DH60/3600*4180*DK60)/(1.2*1004.5*(DP60-DQ60)/3600)/DV60 -> 1.928847566 | DD60: 2016-07-26 | DH60: 99.86139 | DI60: 64.13133333 | DJ60: 58.30433333 | DK60: 5.827 | DL60: 675.6377557 | DM60: 19.562878 | DN60: 117.636526 | DO60: 2.126451667 | DP60: 29.59455567 | DQ60: 42.581778 | DU60: 11.9 | DV60: 55.320572 | DW60: 29.35666667 | DX60: 29.58333333 | DY60: 29.84666667 | DZ60: 41.55 | EA60: 43.62 | EB60: 42.57666667 | EC60: 29.12 | ED60: 31.15666667 | HP60: 400 | HQ60: 10 | HR60: 280 | HS60: 10
A61: Eine Fehlerfreiheit des Programms kann nicht zugesichert werden. Im Zweifel gelten die technischen Daten der aktuellen Bauteilmappe der LTG Aktiengesellschaft. | AM61: 1072193 | AN61: 60 | AO61: 60 Düsen | AP61: 78.391761 | AQ61: 26.10824833 | AR61: 100 | AS61: 100 Pa | AT61: 1.831032245 | CX61: 1072193 | CY61: 2.7 | CZ61: 100 | DA61: 2.197238694 | DB61: 1.831032245 | DC61: 1.831032245 | DD61: 2016-07-26 | DH61: 103.399964 | DI61: 64.17266667 | DJ61: 56.611 | DK61: 7.561666667 | DL61: 907.8466197 | DM61: 26.10824833 | DN61: 155.7286487 | DO61: 1.986543667 | DP61: 29.400222 | DQ61: 42.327222 | DU61: 24.4 | DV61: 78.391761 | DW61: 29.19666667 | DX61: 29.39 | DY61: 29.61666667 | DZ61: 41.68333333 | EA61: 43.03666667 | EB61: 42.26333333 | EC61: 29.14 | ED61: 31.41 | HP61: 400 | HQ61: 100 | HR61: 280 | HS61: 100
A62: Aus Programmierfehlern entstandener Schaden geht nicht zu Lasten der LTG Aktiengesellschaft. Technische Änderungen im Rahmen der Weiterentwicklung vorbehalten. | AM62: 1072193 | AN62: 60 | AO62: 60 Düsen | AP62: 95.011117 | AQ62: 29.71773233 | AR62: 150 | AS62: 150 Pa | AT62: 1.817834873 | CX62: 1072193 | CY62: 2.9 | CZ62: 150 | DA62: 2.181401847 | DB62: 1.817834873 | DC62: 1.817834873 | DD62: 2016-07-26 | DH62: 101.525135 | DI62: 64.16066667 | DJ62: 55.387 | DK62: 8.773666667 | DL62: 1034.229 | DM62: 29.71773233 | DN62: 184.925786 | DO62: 1.946359333 | DP62: 29.358889 | DQ62: 41.752 | DU62: 36.2 | DV62: 95.011117 | DW62: 29.19333333 | DX62: 29.34333333 | DY62: 29.54 | DZ62: 41.35666667 | EA62: 42.27666667 | EB62: 41.62333333 | EC62: 29.34333333 | ED62: 31.77 | HP62: 400 | HQ62: 10 | HR62: 280 | HS62: 10
AM63: 1072193 | AN63: 60 | AO63: 60 Düsen | AP63: 109.007487 | AQ63: 32.06143033 | AR63: 200 | AS63: 200 Pa | AT63: 1.842652945 | CX63: 1072193 | CY63: 2.8 | CZ63: 200 | DA63: 2.211183534 | DB63: 1.842652945 | DC63: 1.842652945 | DD63: 2016-07-27 | DH63: 99.354398 | DI63: 64.106 | DJ63: 54.37766667 | DK63: 9.728333333 | DL63: 1122.289954 | DM63: 32.06143033 | DN63: 220.6435673 | DO63: 2.024114 | DP63: 29.10166667 | DQ63: 40.39844433 | DU63: 47.9 | DV63: 109.007487 | DW63: 28.93333333 | DX63: 29.28666667 | DY63: 29.08333333 | DZ63: 40.08333333 | EA63: 40.82333333 | EB63: 40.29 | EC63: 28.7 | ED63: 30.46666667 | HP63: 450 | HQ63: 10 | HR63: 290 | HS63: 10
AM64: 1072193 | AN64: 60 | AO64: 60 Düsen | AP64: 120.494177 | AQ64: 33.95253333 | AR64: 250 | AS64: 250 Pa | AT64: 1.800551391 | CX64: 1072193 | CY64: 2.9 | CZ64: 250 | DA64: 2.160661669 | DB64: 1.800551391 | DC64: 1.800551391 | DD64: 2016-07-27 | DH64: 102.0338797 | DI64: 64.156 | DJ64: 54.139 | DK64: 10.017 | DL64: 1186.735493 | DM64: 33.95253333 | DN64: 226.5553697 | DO64: 1.880218333 | DP64: 29.20311133 | DQ64: 40.54422233 | DU64: 58.8 | DV64: 120.494177 | DW64: 29.09333333 | DX64: 29.36333333 | DY64: 29.15 | DZ64: 40.27333333 | EA64: 40.94666667 | EB64: 40.41333333 | EC64: 28.9 | ED64: 31.55 | HP64: 450 | HQ64: 100 | HR64: 290 | HS64: 100
AM65: 1072193 | AN65: 60 | AO65: 60 Düsen | AP65: 131.214168 | AQ65: 35.38994267 | AR65: 300 | AS65: 300 Pa | AT65: 1.790667691 | CX65: 1072193 | CY65: 2.9 | CZ65: 300 | DA65: 2.148801229 | DB65: 1.790667691 | DC65: 1.790667691 | DD65: 2016-07-27 | DH65: 101.8647367 | DI65: 64.16633333 | DJ65: 53.69366667 | DK65: 10.47266667 | DL65: 1238.663088 | DM65: 35.38994267 | DN65: 239.778681 | DO65: 1.827384 | DP65: 29.16577767 | DQ65: 40.278111 | DU65: 70 | DV65: 131.214168 | DW65: 29.09666667 | DX65: 29.29333333 | DY65: 29.10333333 | DZ65: 40.07 | EA65: 40.65 | EB65: 40.11666667 | EC65: 29.00666667 | ED65: 31.98333333 | HP65: 450 | HQ65: 10 | HR65: 290 | HS65: 10
HP66: 500 | HQ66: 10 | HR66: 310 | HS66: 10
HP67: 500 | HQ67: 100 | HR67: 310 | HS67: 100
HP68: 500 | HQ68: 10 | HR68: 310 | HS68: 10
HP69: 550 | HQ69: 10 | HR69: 320 | HS69: 10
HP70: 550 | HQ70: 100 | HR70: 320 | HS70: 100
HP71: 550 | HQ71: 10 | HR71: 320 | HS71: 10
HR72: 330 | HS72: 10
HR73: 330 | HS73: 100
HR74: 330 | HS74: 10
HR75: 340 | HS75: 10
HR76: 340 | HS76: 100
HR77: 340 | HS77: 10
HR78: 360 | HS78: 10
HR79: 360 | HS79: 100
HR80: 360 | HS80: 10
HR81: 370 | HS81: 10
HR82: 370 | HS82: 100
HR83: 370 | HS83: 10
HR84: 380 | HS84: 10
HR85: 380 | HS85: 100
HR86: 380 | HS86: 10
HR87: 390 | HS87: 10
HR88: 390 | HS88: 100
HR89: 390 | HS89: 10
HR90: 410 | HS90: 10
HR91: 410 | HS91: 100
HR92: 410 | HS92: 10
HR93: 420 | HS93: 10
HR94: 420 | HS94: 100
HR95: 420 | HS95: 10
HR96: 430 | HS96: 10
HR97: 430 | HS97: 100
HR98: 430 | HS98: 10
HR99: 440 | HS99: 10
HR100: 440 | HS100: 100
HR101: 440 | HS101: 10

Sheet HFB 1000_neu (hidden)
A1: Tel. +49 (0)711 8201-212 | F1: Fax: -720 | H1: Email: | I1: Raumluft@LTG-AG.de | Z1: \\file\Daten\E\cer\Projekte\Produktpflege Kleinaufträge\2016\2016-03-17 HFB - Optimierung\Messungen\16-08-25 Kalorik HFB_Nullseriengerät_800_4L_Rohdaten und Auswertung.xlsx | AN1: \\file\Daten\E\cer\Projekte\Produktpflege Kleinaufträge\2016\2016-03-17 HFB - Optimierung\Messungen\16-08-25 Kalorik HFB_Nullseriengerät_800_4L_Rohdaten und Auswertung.xlsx | BY1: \\file\Daten\E\cer\Projekte\Produktpflege Kleinaufträge\2016\2016-03-17 HFB - Optimierung\Messungen\Akustik\2016-08-26 Akustik_HFB_800_4.xlsm
A2: LTG Auslegungstabelle HFB - Induktionsgerät für den Einbau in Doppelböden | Q2: LTG Aktiengesellschaft | Z2: Wassermengenvariation | AN2: Kalorische Leistung BG800 - ohne Schieber, mit Al-Lineargitter | AX2: y(f=Vpr) = Druck | BE2: y (Vpr)= spez. Leistung | BL2: y(f=Vpr) = Druck | BS2: y (Vpr)= spez. Leistung | BY2: Akustik BG800 - ohne Schieber | CD2: Abhängig von V_Primär | CY2: Für Auslegetool nicht verwendet
AT3: gesamte_Matrix_Düsenkasten | CB3: Akustik_Matrix | DF3: =COLUMN(AU6) -> 47 | DG3: =ROW() -> 3 | DH3: =ADDRESS(DG3,DF3,4) -> AU3
A4: Kühlfall: | I4: Heizfall: | AQ4: offene_Düsen_kühlen | AU4: y = Druck x = V_Primär | AV4: y = | AW4: mxb | AX4: Druck_abhängig_von_Vpr_kühlen | AY4: y = Druck x = Anzahl Düsen | AZ4: y = | BA4: mxb | BB4: y = q_k x = V_Prim | BC4: y = | BD4: axn+bx(n-1)+...+nx+m | BE4: Leistung_abhängig_von_Vpr_kühlen | BF4: y = q_k x = Düsenanzahl | BG4: y = | BH4: axn+bx(n-1)+...+nx+m | BI4: y = Druck x = V_Primär | BJ4: y = | BK4: mxb | BL4: Druck_abhängig_von_Vpr_heizen | BM4: y = Druck x = Anzahl Düsen | BN4: y = | BO4: mxb | BP4: y = q_k x = V_Prim | BQ4: y = | BR4: axn+bx(n-1)+...+nx+m | BS4: Leistung_abhängig_von_Vpr_heizen | BT4: y = q_k x = Düsenanzahl | BU4: y = | BV4: axn+bx(n-1)+...+nx+m | BW4: Für BG630 Berechnung | BZ4: Akustik_AnzahlDüsen | CA4: y = L_wa x = V_Pr | CB4: y = | CC4: mLN(x) + b | CD4: LWAabhaengigvonVpr | CE4: y = L_wa (ab. Von Vpr) x = Anzahl Düse | CF4: y = mLN(x) + b | CG4: y = Druck x = V_Primär | CH4: y = | CI4: mxb | CJ4: Akustik_Druck_P_abhaengigvonVpr | CK4: y = Druck x = Anzahl Düse | CL4: y = | CM4: mxb | CN4: Für BG630 Berechnung | DA4: =INDIRECT(DH3) -> 0 | DB4: =LEFT(ADDRESS(DG3,DF3,4), 2) -> AU | DC4: =INDIRECT(DB4 & DG3) -> 0 | DF4: =COLUMN(AU7) -> 47 | DG4: =ROW() -> 4 | DH4: =ADDRESS(DG4,DF4,4) -> AU4
B5: Ansaugtemperatur: | F5: =HFB!K6 -> 26 | G5: °C | J5: Ansaugtemperatur: | K5: =HFB!P6 -> 20 | L5: °C | M5: Projekt: | Z5: Tabellenblatt: 08-08-2016_kühlen Wassermengvar | AF5: Tabellenblatt: 26-07-2016_Heizen_WasserMengVar | AN5: Größe | AO5: Zeichnungsnummer | AP5: Düsenkasten | AQ5: offene Düsen | AR5: 1. Reihe | AS5: 2. Reihe | AT5: Kasten | AU5: m | AV5: b | AW5: R2 | AX5: Druck [Pa] | AY5: m | AZ5: b | BA5: R2 | BB5: a*x2 | BC5: b*x | BD5: m | BE5: spez. Leistung [W/K] | BF5: a*x2 | BG5: b*x | BH5: m | BI5: m | BJ5: b | BK5: R2 | BL5: Druck [Pa] | BM5: m | BN5: b | BO5: R2 | BP5: a*x2 | BQ5: b*x | BR5: m | BS5: spez. Leistung [W/K] | BT5: a*x2 | BU5: b*x | BV5: m | BW5: offene Düsen | BY5: Größe | BZ5: offene Düsen | CA5: m | CB5: b | CC5: R2 | CD5: y(Vpr) = ?? dB(A) | CE5: m | CF5: b | CG5: m | CH5: b | CI5: R2 | CJ5: y(Vpr) = ?? Pa | CK5: m | CL5: b | CM5: R2 | CN5: offene Düsen | DA5: =INDIRECT(DH4) -> y = Druck x = V_Primär | DB5: =LEFT(ADDRESS(DG4,DF4,4), 2) -> AU | DC5: =INDIRECT(DB5 & DG4) -> y = Druck x = V_Primär | DF5: =COLUMN(AU8) -> 47 | DG5: =ROW() -> 5 | DH5: =ADDRESS(DG5,DF5,4) -> AU5
B6: Primärlufttemperatur: | F6: =HFB!K7 -> 18 | G6: °C | J6: Primärlufttemperatur: | K6: =HFB!P7 -> 18 | L6: °C | Z6: \\file\Daten\E\cer\Projekte\Produktpflege Kleinaufträge\2016\2016-03-17 HFB - Optimierung\Messungen\16-08-25 Kalorik HFB_Nullseriengerät_800_4L_Rohdaten und Auswertung.xlsx | AN6: S | AO6: 1072184 | AP6: 1 | AQ6: 33 | AR6: 30 | AS6: 3 | AT6: K4 | AU6: =INDEX(LOGEST(dP_1_kühlen,LN(V_Prim_1_kühlen),,TRUE),1,2) -> 0.06416449711 | AV6: =LN(INDEX(LOGEST(dP_1_kühlen,LN(V_Prim_1_kühlen),,TRUE),1,1)) -> 1.983311905 | AW6: =INDEX(LOGEST(dP_1_kühlen,LN(V_Prim_1_kühlen),,TRUE),3,1) -> 0.9996395894 | AX6: =AU6*V_pr^AV6 -> 619.1600476 | AY6: =INDEX(LOGEST(Druck_abhängig_von_Vpr_kühlen,LN(offene_Düsen_kühlen),,TRUE),1,2) -> 908932.9487 | AZ6: =LN(INDEX(LOGEST(Druck_abhängig_von_Vpr_kühlen,LN(offene_Düsen_kühlen),,TRUE),1,1)) -> -2.079358313 | BA6: =INDEX(LOGEST(Druck_abhängig_von_Vpr_kühlen,LN(offene_Düsen_kühlen),,TRUE),3,1) -> 0.9967789587 | BB6: =LINEST(qk_1_kühlen,V_Prim_1_kühlen^{0,1,2},0,0) -> 6.243210492e-05 | BC6: 0.694024678 | BD6: -3.921314452 | BE6: =BB6*V_pr^2+BC6*V_pr+BD6 -> 67.5880372 | BF6: =LINEST(Leistung_abhängig_von_Vpr_kühlen,offene_Düsen_kühlen^{0,1,2},0,0) -> 0.01409729359 | BG6: -2.226648238 | BH6: 125.4130597 | BI6: =INDEX(LOGEST(dP_1_heizen,LN(V_Prim_1_heizen),,TRUE),1,2) -> 0.06519442469 | BJ6: =LN(INDEX(LOGEST(dP_1_heizen,LN(V_Prim_1_heizen),,TRUE),1,1)) -> 1.978599559 | BK6: =INDEX(LOGEST(dP_1_heizen,LN(V_Prim_1_heizen),,TRUE),3,1) -> 0.9994230889 | BL6: =BI6*V_pr^BJ6 -> 615.5330858 | BM6: =INDEX(LOGEST(Druck_abhängig_von_Vpr_heizen,LN(offene_Düsen_kühlen),,TRUE),1,2) -> 862293.1638 | BN6: =LN(INDEX(LOGEST(Druck_abhängig_von_Vpr_heizen,LN(offene_Düsen_kühlen),,TRUE),1,1)) -> -2.068196202 | BO6: =INDEX(LOGEST(Druck_abhängig_von_Vpr_heizen,LN(offene_Düsen_kühlen),,TRUE),3,1) -> 0.9974208947 | BP6: =LINEST(qk_1_heizen,V_Prim_1_heizen^{0,1,2},0,0) -> -0.002584231179 | BQ6: 0.6469253803 | BR6: -0.3794809887 | BS6: =BP6*V_pr^2+BQ6*V_pr+BR6 -> 38.73228121 | BT6: =LINEST(Leistung_abhängig_von_Vpr_heizen,offene_Düsen_kühlen^{0,1,2},0,0) -> 0.006505032673 | BU6: -0.8929337359 | BV6: 61.15284125 | BW6: =J51 -> 32.96078431 | BY6: S | BZ6: 33 | CA6: =LINEST(Akustik_Lwa1,LN(Akustik_Vpr1),TRUE,FALSE) -> 30.94826518 | CB6: -90.44826622 | CD6: =CA6*LN(V_pr)+CB6 -> 52.7163511 | CE6: =LINEST(LWAabhaengigvonVpr,LN(Akustik_AnzahlDüsen),TRUE,FALSE) -> -23.17805631 | CF6: 133.684049 | CG6: =INDEX(LOGEST(Akustik_P1,LN(Akustik_Vpr1),,TRUE),1,2) -> 0.03050372738 | CH6: =LN(INDEX(LOGEST(Akustik_P1,LN(Akustik_Vpr1),,TRUE),1,1)) -> 2.1636178 | CI6: =INDEX(LOGEST(Akustik_P1,LN(Akustik_Vpr1),,TRUE),3,1) -> 0.9999588777 | CJ6: =CG6*V_pr^CH6 -> 677.7955619 | CK6: =INDEX(LOGEST(Akustik_Druck_P_abhaengigvonVpr,LN(Akustik_AnzahlDüsen),,TRUE),1,2) -> 1231461.516 | CL6: =LN(INDEX(LOGEST(Akustik_Druck_P_abhaengigvonVpr,LN(Akustik_AnzahlDüsen),,TRUE),1,1)) -> -2.148140687 | CM6: =INDEX(LOGEST(Akustik_Druck_P_abhaengigvonVpr,LN(Akustik_AnzahlDüsen),,TRUE),3,1) -> 0.9998050723 | CN6: =J51 -> 32.96078431 | DB6: =LEFT(ADDRESS(DG5,DF5,4), 2) -> AU | DC6: =INDIRECT(DB6 & DG5) -> m | DF6: =COLUMN(BB9) -> 54 | DG6: =ROW() -> 6 | DH6: =ADDRESS(DG6,DF6,4) -> BB6
B7: Kühlwasservorlauf: | F7: =HFB!K8 -> 16 | G7: °C | J7: Heizwasservorlauf: | K7: =HFB!P8 -> 60 | L7: °C | M7: Datum: | Z7: kühlen - Wassermengenvariation - Messung vom 08.08.2016, mit Al-Lineargitter | AF7: Wassermengenvariation - Messung vom 27.07.2016 - Mit Al-Lineargitter | AN7: M | AO7: 1072187 | AP7: 2 | AQ7: 42 | AR7: 30 | AS7: 12 | AT7: K3 | AU7: =INDEX(LOGEST(dP_2_kühlen,LN(V_Prim_2_kühlen),,TRUE),1,2) -> 0.02795950547 | AV7: =LN(INDEX(LOGEST(dP_2_kühlen,LN(V_Prim_2_kühlen),,TRUE),1,1)) -> 2.064228963 | AW7: =INDEX(LOGEST(dP_2_kühlen,LN(V_Prim_2_kühlen),,TRUE),3,1) -> 0.9997758098 | AX7: =AU7*V_pr^AV7 -> 392.284721 | AY7: =INDEX(LOGEST(Druck_abhängig_von_Vpr_kühlen,LN(offene_Düsen_kühlen),,TRUE),1,2) -> 908932.9487 | AZ7: =LN(INDEX(LOGEST(Druck_abhängig_von_Vpr_kühlen,LN(offene_Düsen_kühlen),,TRUE),1,1)) -> -2.079358313 | BA7: =INDEX(LOGEST(Druck_abhängig_von_Vpr_kühlen,LN(offene_Düsen_kühlen),,TRUE),3,1) -> 0.9967789587 | BB7: =LINEST(qk_2_kühlen,V_Prim_2_kühlen^{0,1,2},0,0) -> -0.001836489669 | BC7: 0.8270154933 | BD7: -9.393502097 | BE7: =BB7*V_pr^2+BC7*V_pr+BD7 -> 55.89957221 | BF7: =LINEST(Leistung_abhängig_von_Vpr_kühlen,offene_Düsen_kühlen^{0,1,2},0,0) -> 0.01409729359 | BG7: -2.226648238 | BH7: 125.4130597 | BI7: =INDEX(LOGEST(dP_2_heizen,LN(V_Prim_2_heizen),,TRUE),1,2) -> 0.03626793834 | BJ7: =LN(INDEX(LOGEST(dP_2_heizen,LN(V_Prim_2_heizen),,TRUE),1,1)) -> 2.002374491 | BK7: =INDEX(LOGEST(dP_2_heizen,LN(V_Prim_2_heizen),,TRUE),3,1) -> 0.9994677987 | BL7: =BI7*V_pr^BJ7 -> 382.2329003 | BM7: =INDEX(LOGEST(Druck_abhängig_von_Vpr_heizen,LN(offene_Düsen_kühlen),,TRUE),1,2) -> 862293.1638 | BN7: =LN(INDEX(LOGEST(Druck_abhängig_von_Vpr_heizen,LN(offene_Düsen_kühlen),,TRUE),1,1)) -> -2.068196202 | BO7: =INDEX(LOGEST(Druck_abhängig_von_Vpr_heizen,LN(offene_Düsen_kühlen),,TRUE),3,1) -> 0.9974208947 | BP7: =LINEST(qk_2_heizen,V_Prim_2_heizen^{0,1,2},0,0) -> -0.002128155037 | BQ7: 0.5732155464 | BR7: -1.108249906 | BS7: =BP7*V_pr^2+BQ7*V_pr+BR7 -> 35.23202487 | BT7: =LINEST(Leistung_abhängig_von_Vpr_heizen,offene_Düsen_kühlen^{0,1,2},0,0) -> 0.006505032673 | BU7: -0.8929337359 | BV7: 61.15284125 | BW7: =J52 -> 41.80392157 | BY7: M | BZ7: 42 | CA7: =LINEST(Akustik_Lwa2,LN(Akustik_Vpr2),TRUE,FALSE) -> 29.79313701 | CB7: -90.86797505 | CD7: =CA7*LN(V_pr)+CB7 -> 46.95309612 | CE7: =LINEST(LWAabhaengigvonVpr,LN(Akustik_AnzahlDüsen),TRUE,FALSE) -> -23.17805631 | CF7: 133.684049 | CG7: =INDEX(LOGEST(Akustik_P2,LN(Akustik_Vpr2),,TRUE),1,2) -> 0.0250253582 | CH7: =LN(INDEX(LOGEST(Akustik_P2,LN(Akustik_Vpr2),,TRUE),1,1)) -> 2.091327342 | CI7: =INDEX(LOGEST(Akustik_P2,LN(Akustik_Vpr2),,TRUE),3,1) -> 0.9999415691 | CJ7: =CG7*V_pr^CH7 -> 398.0093956 | CK7: =INDEX(LOGEST(Akustik_Druck_P_abhaengigvonVpr,LN(Akustik_AnzahlDüsen),,TRUE),1,2) -> 1231461.516 | CL7: =LN(INDEX(LOGEST(Akustik_Druck_P_abhaengigvonVpr,LN(Akustik_AnzahlDüsen),,TRUE),1,1)) -> -2.148140687 | CM7: =INDEX(LOGEST(Akustik_Druck_P_abhaengigvonVpr,LN(Akustik_AnzahlDüsen),,TRUE),3,1) -> 0.9998050723 | CN7: =J52 -> 41.80392157
B8: projektierte Leistung: | F8: =HFB!K9 -> 0 | G8: W | J8: projektierte Leistung: | K8: =HFB!P9 -> 0 | L8: W | M8: Bearbeiter: | W8: Kühlen | X8: Heizen | Z8: Düsenkasten Stellung 3 (27 oben offen, unten 0 offen) | AF8: Düsenkasten K1 - 1072193 | AN8: L | AO8: 1072190 | AP8: 3 | AQ8: 52 | AR8: 30 | AS8: 22 | AT8: K2 | AU8: =INDEX(LOGEST(dP_3_kühlen,LN(V_Prim_3_kühlen),,TRUE),1,2) -> 0.01982224198 | AV8: =LN(INDEX(LOGEST(dP_3_kühlen,LN(V_Prim_3_kühlen),,TRUE),1,1)) -> 2.043644211 | AW8: =INDEX(LOGEST(dP_3_kühlen,LN(V_Prim_3_kühlen),,TRUE),3,1) -> 0.9996767047 | AX8: =AU8*V_pr^AV8 -> 252.8538418 | AY8: =INDEX(LOGEST(Druck_abhängig_von_Vpr_kühlen,LN(offene_Düsen_kühlen),,TRUE),1,2) -> 908932.9487 | AZ8: =LN(INDEX(LOGEST(Druck_abhängig_von_Vpr_kühlen,LN(offene_Düsen_kühlen),,TRUE),1,1)) -> -2.079358313 | BA8: =INDEX(LOGEST(Druck_abhängig_von_Vpr_kühlen,LN(offene_Düsen_kühlen),,TRUE),3,1) -> 0.9967789587 | BB8: =LINEST(qk_3_kühlen,V_Prim_3_kühlen^{0,1,2},0,0) -> -0.001828742799 | BC8: 0.7839006363 | BD8: -12.30686169 | BE8: =BB8*V_pr^2+BC8*V_pr+BD8 -> 48.6650237 | BF8: =LINEST(Leistung_abhängig_von_Vpr_kühlen,offene_Düsen_kühlen^{0,1,2},0,0) -> 0.01409729359 | BG8: -2.226648238 | BH8: 125.4130597 | BI8: =INDEX(LOGEST(dP_3_heizen,LN(V_Prim_3_heizen),,TRUE),1,2) -> 0.02053031936 | BJ8: =LN(INDEX(LOGEST(dP_3_heizen,LN(V_Prim_3_heizen),,TRUE),1,1)) -> 2.035267697 | BK8: =INDEX(LOGEST(dP_3_heizen,LN(V_Prim_3_heizen),,TRUE),3,1) -> 0.9996931822 | BL8: =BI8*V_pr^BJ8 -> 251.9323433 | BM8: =INDEX(LOGEST(Druck_abhängig_von_Vpr_heizen,LN(offene_Düsen_kühlen),,TRUE),1,2) -> 862293.1638 | BN8: =LN(INDEX(LOGEST(Druck_abhängig_von_Vpr_heizen,LN(offene_Düsen_kühlen),,TRUE),1,1)) -> -2.068196202 | BO8: =INDEX(LOGEST(Druck_abhängig_von_Vpr_heizen,LN(offene_Düsen_kühlen),,TRUE),3,1) -> 0.9974208947 | BP8: =LINEST(qk_3_heizen,V_Prim_3_heizen^{0,1,2},0,0) -> -0.001723752617 | BQ8: 0.5268280755 | BR8: -3.624401097 | BS8: =BP8*V_pr^2+BQ8*V_pr+BR8 -> 32.19529856 | BT8: =LINEST(Leistung_abhängig_von_Vpr_heizen,offene_Düsen_kühlen^{0,1,2},0,0) -> 0.006505032673 | BU8: -0.8929337359 | BV8: 61.15284125 | BW8: =J53 -> 52.25490196 | BY8: L | BZ8: 52 | CA8: =LINEST(Akustik_Lwa3,LN(Akustik_Vpr3),TRUE,FALSE) -> 29.87019339 | CB8: -96.1402398 | CD8: =CA8*LN(V_pr)+CB8 -> 42.03728908 | CE8: =LINEST(LWAabhaengigvonVpr,LN(Akustik_AnzahlDüsen),TRUE,FALSE) -> -23.17805631 | CF8: 133.684049 | CG8: =INDEX(LOGEST(Akustik_P3,LN(Akustik_Vpr3),,TRUE),1,2) -> 0.01464897707 | CH8: =LN(INDEX(LOGEST(Akustik_P3,LN(Akustik_Vpr3),,TRUE),1,1)) -> 2.1085725 | CI8: =INDEX(LOGEST(Akustik_P3,LN(Akustik_Vpr3),,TRUE),3,1) -> 0.9999659914 | CJ8: =CG8*V_pr^CH8 -> 252.3284064 | CK8: =INDEX(LOGEST(Akustik_Druck_P_abhaengigvonVpr,LN(Akustik_AnzahlDüsen),,TRUE),1,2) -> 1231461.516 | CL8: =LN(INDEX(LOGEST(Akustik_Druck_P_abhaengigvonVpr,LN(Akustik_AnzahlDüsen),,TRUE),1,1)) -> -2.148140687 | CM8: =INDEX(LOGEST(Akustik_Druck_P_abhaengigvonVpr,LN(Akustik_AnzahlDüsen),,TRUE),3,1) -> 0.9998050723 | CN8: =J53 -> 52.25490196 | EO8: TWI | EP8: TWO | EQ8: QA | ER8: VA | ES8: TAI | ET8: UR | EU8: PT | EV8: PS | EW8: TAO | EX8: UR | EY8: QW | EZ8: VW | FA8: DPW | FB8: DPA | FC8: T_Misch | FD8: Q_Eurocoil | FE8: Q_KSP | FF8: Korrekturwert | FG8: q_Eurocoil | FH8: q / Düse | FI8: q_KSP | FJ8: q_KSP/Düse | FK8: Korrekturwert | FL8: V_Prim_KSP | FM8: Düsenanzahl | FN8: V_Prim/Düsenanzahl | FP8: Druck
B9: Raumtemperatur: | F9: =HFB!K10 -> 26 | G9: °C | J9: Raumtemperatur: | K9: =HFB!P10 -> 20 | L9: °C | W9: Wassermenge Korrekturfaktor | X9: Wasser-menge in % | AN9: XL | AO9: 1072193 | AP9: 4 | AQ9: 60 | AR9: 30 | AS9: 30 | AT9: K1 | AU9: =INDEX(LOGEST(dP_4_kühlen,LN(V_Prim_4_kühlen),,TRUE),1,2) -> 0.01226218207 | AV9: =LN(INDEX(LOGEST(dP_4_kühlen,LN(V_Prim_4_kühlen),,TRUE),1,1)) -> 2.070084039 | AW9: =INDEX(LOGEST(dP_4_kühlen,LN(V_Prim_4_kühlen),,TRUE),3,1) -> 0.9997809454 | AX9: =AU9*V_pr^AV9 -> 176.7675808 | AY9: =INDEX(LOGEST(Druck_abhängig_von_Vpr_kühlen,LN(offene_Düsen_kühlen),,TRUE),1,2) -> 908932.9487 | AZ9: =LN(INDEX(LOGEST(Druck_abhängig_von_Vpr_kühlen,LN(offene_Düsen_kühlen),,TRUE),1,1)) -> -2.079358313 | BA9: =INDEX(LOGEST(Druck_abhängig_von_Vpr_kühlen,LN(offene_Düsen_kühlen),,TRUE),3,1) -> 0.9967789587 | BB9: =LINEST(qk_4_kühlen,V_Prim_4_kühlen^{0,1,2},0,0) -> -0.00177113608 | BC9: 0.7440744465 | BD9: -15.3008999 | BE9: =BB9*V_pr^2+BC9*V_pr+BD9 -> 42.20530259 | BF9: =LINEST(Leistung_abhängig_von_Vpr_kühlen,offene_Düsen_kühlen^{0,1,2},0,0) -> 0.01409729359 | BG9: -2.226648238 | BH9: 125.4130597 | BI9: =INDEX(LOGEST(dP_4_heizen,LN(V_Prim_4_heizen),,TRUE),1,2) -> 0.01183358644 | BJ9: =LN(INDEX(LOGEST(dP_4_heizen,LN(V_Prim_4_heizen),,TRUE),1,1)) -> 2.076766455 | BK9: =INDEX(LOGEST(dP_4_heizen,LN(V_Prim_4_heizen),,TRUE),3,1) -> 0.9996132879 | BL9: =BI9*V_pr^BJ9 -> 175.9447591 | BM9: =INDEX(LOGEST(Druck_abhängig_von_Vpr_heizen,LN(offene_Düsen_kühlen),,TRUE),1,2) -> 862293.1638 | BN9: =LN(INDEX(LOGEST(Druck_abhängig_von_Vpr_heizen,LN(offene_Düsen_kühlen),,TRUE),1,1)) -> -2.068196202 | BO9: =INDEX(LOGEST(Druck_abhängig_von_Vpr_heizen,LN(offene_Düsen_kühlen),,TRUE),3,1) -> 0.9974208947 | BP9: =LINEST(qk_4_heizen,V_Prim_4_heizen^{0,1,2},0,0) -> -0.001286962775 | BQ9: 0.4465470589 | BR9: -1.136530873 | BS9: =BP9*V_pr^2+BQ9*V_pr+BR9 -> 31.03973592 | BT9: =LINEST(Leistung_abhängig_von_Vpr_heizen,offene_Düsen_kühlen^{0,1,2},0,0) -> 0.006505032673 | BU9: -0.8929337359 | BV9: 61.15284125 | BW9: =J54 -> 60.29411765 | BY9: XL | BZ9: 60 | CA9: =LINEST(Akustik_Lwa4,LN(Akustik_Vpr4),TRUE,FALSE) -> 29.09636007 | CB9: -95.72363188 | CD9: =CA9*LN(V_pr)+CB9 -> 38.8741955 | CE9: =LINEST(LWAabhaengigvonVpr,LN(Akustik_AnzahlDüsen),TRUE,FALSE) -> -23.17805631 | CF9: 133.684049 | CG9: =INDEX(LOGEST(Akustik_P4,LN(Akustik_Vpr4),,TRUE),1,2) -> 0.01241352925 | CH9: =LN(INDEX(LOGEST(Akustik_P4,LN(Akustik_Vpr4),,TRUE),1,1)) -> 2.080591655 | CI9: =INDEX(LOGEST(Akustik_P4,LN(Akustik_Vpr4),,TRUE),3,1) -> 0.9990849373 | CJ9: =CG9*V_pr^CH9 -> 187.8625069 | CK9: =INDEX(LOGEST(Akustik_Druck_P_abhaengigvonVpr,LN(Akustik_AnzahlDüsen),,TRUE),1,2) -> 1231461.516 | CL9: =LN(INDEX(LOGEST(Akustik_Druck_P_abhaengigvonVpr,LN(Akustik_AnzahlDüsen),,TRUE),1,1)) -> -2.148140687 | CM9: =INDEX(LOGEST(Akustik_Druck_P_abhaengigvonVpr,LN(Akustik_AnzahlDüsen),,TRUE),3,1) -> 0.9998050723 | CN9: =J54 -> 60.29411765 | CY9: Düsenstellung | CZ9: Dp - Wasserseitig [kPa] | DA9: Dp - Düsenkasten [Pa] | DB9: i (-) kontroller - Stand Labview | DC9: i (-) korrigiert | DD9: i (-) - Thomas | DE9: Date | DF9: Time | DG9: Name | DH9: Projekt | DI9: Wassermenge [kg/h] | DJ9: T Wasser Vorlauf [°C] | DK9: T Wasser Rücklauf [°C] | DL9: T Wasser Spreizung [°C] | DM9: Q Sek [W] | DN9: q Sek [W/K] | DO9: V Sek [m³/h] | DP9: i [-] | DQ9: T Ansaug mean [°C] | DR9: T Ausblas mean [°C] | DS9: T WT in [°C] | DT9: T WT out [°C] | DU9: Mess-strecke | DV9: Wirkdruck | DW9: V Prim [m³/h] | DX9: T Ansaug 1 | DY9: T Ansaug 2 | DZ9: T Ansaug 3 | EA9: T Ausblas 1 | EB9: T Ausblas 2 | EC9: T Ausblas 3 | ED9: T Primärluft | EE9: T Halle | EG9: Q wasser | EH9: qwasser | EI9: Vsek | EJ9: Vsek_Hallraum / Vsek_Berechnet | EO9: °C | EP9: °C | EQ9: m3/h | ER9: m/s | ES9: °C | ET9: % | EU9: kW | EV9: kW | EW9: °C | EX9: % | EY9: l/h | EZ9: m/s | FA9: kPa | FB9: Pa
W10: kühlen_Korrekturfaktor_Wasser | X10: heizen_Korrekturfaktor_Wasser | Z10: Dp - Düsenkasten = 150 Pa | AF10: Dp - Düsenkasten = 150 Pa | AN10: 1 | AO10: 2 | AP10: 3 | AQ10: 4 | AR10: 5 | AS10: 6 | AT10: 7 | AU10: 8 | AV10: 9 | AW10: 10 | AX10: 11 | AY10: 12 | AZ10: 13 | BA10: 14 | BB10: 15 | BC10: 16 | BD10: 17 | BE10: 18 | BF10: 19 | BG10: 20 | BH10: 21 | BI10: 22 | BJ10: 23 | BK10: 24 | BL10: 25 | BM10: 26 | BN10: 27 | BO10: 28 | BP10: 29 | BQ10: 30 | BR10: 31 | BS10: 32 | BT10: 33 | BU10: 34 | BV10: 35 | BW10: 36 | BY10: 1 | BZ10: 2 | CA10: 3 | CB10: 4 | CC10: 5 | CD10: 6 | CE10: 7 | CF10: 8 | CG10: 9 | CH10: 10 | CI10: 11 | CJ10: 12 | CK10: 13 | CL10: 14 | CM10: 15 | CN10: 16
B11: Primärvolumenstrom | F11: =HFB!F44 -> 127 | G11: m³/h | W11: =$I$21/$F$21 -> 1.25 | X11: =$I$22/$F$22 -> 1 | Z11: Wassermenge | AA11: spez. Leistung | AB11: Kühlleistung in % der Nennleistung | AC11: Wassermenge w in % der Nennwassermenge (200 kg/h) | AD11: wasserseit. Druckverlust - kühlen | AF11: Wassermenge | AG11: spez. Leistung | AH11: Kühlleistung in % der Nennleistung | AI11: Wassermenge w in % der Nennwassermenge (200 kg/h) | AJ11: wasserseit. Druckverlust - kühlen | AN11: Zeichnungs- nummer | AO11: Düsenanzahl | AP11: Düsenanzahl | AQ11: V Prim [m³/h] | AR11: q Sek [W/K] | AS11: Dp - Düsenkasten [Pa] | AT11: Dp - Düsenkasten [Pa] | AU11: i (-) korrigiert | BY11: Düsen [-] | BZ11: Volumenstrom [m³/h] | CA11: Druck im Düsenkasten [Pa] | CB11: Lwa (Hallraum) | CC11: Lwlin (Hallraum) | CD11: Diagramm bezeichnung
Z12: [kg/h] | AA12: [W/K] | AB12: [-] | AC12: [-] | AD12: [kPa] | AF12: [kg/h] | AG12: [W/K] | AH12: [-] | AI12: [-] | AJ12: [kPa] | BZ12: Akustik_Vpr1 | CA12: Akustik_P1 | CB12: Akustik_Lwa1 | CY12: kühlen ohne Schieber
A13: Baugröße 800 | Y13: Name des Bereichs | Z13: WM_Roh_wk | AA13: WM_Roh_qk | AB13: WM_Roh_qk_Proz | AC13: WM_Roh_wk_Proz | AD13: WM_kPa_kühlen | AF13: WM_Roh_wh | AG13: WM_Roh_qh | AH13: WM_Roh_qh_Proz | AI13: WM_Roh_wh_Proz | AJ13: WM_kPa_heizen | AN13: Messwerte | BY13: 33 | BZ13: 59.43358217 | CA13: 210 | CB13: 36 | CC13: 41 | CD13: M7;2554; Düsen 33 (30 / 3); mit Edelstahlgitter | HQ13: Koordinatensystem y | HS13: Koordinatensystem Hilfslinien
A14: Düsen- kasten | B14: VP [m³/h] | C14: dp - kühlen [Pa] | D14: dp - heizen [Pa] | E14: dp - Akustik [Pa] | F14: dp [Pa] | G14: LWA [dB(A)] | H14: LA18 [dB(A)] | I14: QPK [W] | J14: QSK1) [W] | K14: QKges [W] | L14: QPH [W] | M14: QSH [W] | N14: QHges [W] | O14: tKWRL [°C] | P14: tWWRL [°C] | S14: qSK 800 [W/K] | T14: qSK [W/K] | U14: qSH 800 [W/K] | V14: qSH [W/K] | W14: Leist. in % bei versch. Wasserm. | X14: Leist. in % bei versch. Wasserm. | Z14: 75.524436 | AA14: 25.621321 | AB14: =AA14/AA$21 -> 0.8466534858 | AC14: =Z14/Z$21 -> 0.37762218 | AD14: 4.6 | AF14: 23.17932333 | AG14: 16.40583933 | AH14: =AG14/AG$21 -> 0.5516934249 | AI14: =AF14/AF$21 -> 0.2317932333 | AJ14: 0.1 | AN14: Kühlen - ohne Schieber, mit Al-Lineargitter (Tabellenblatt: 03-08-2016_kühlen ohne Schieber) | BY14: 33 | BZ14: 70.29549129 | CA14: 303 | CB14: 41.1 | CC14: 43.6 | CD14: M7;2555; Düsen 33 (30 / 3); mit Edelstahlgitter | CY14: Mittelwerte Ergebnis - Sortiert | HQ14: V | HR14: Y | HS14: V | HT14: Y
Z15: 112.4647697 | AA15: 28.17968333 | AB15: =AA15/AA$21 -> 0.9311942629 | AC15: =Z15/Z$21 -> 0.5623238483 | AD15: 9.9 | AF15: 69.75128667 | AG15: 26.84882733 | AH15: 0.902868863 | AI15: 0.6975128667 | AJ15: 1.4 | AQ15: V_Prim_1_kühlen | AR15: qk_1_kühlen | AS15: dP_1_kühlen | BY15: 33 | BZ15: 80.24708722 | CA15: 402 | CB15: 45.3 | CC15: 46.7 | CD15: M7;2556; Düsen 33 (30 / 3); mit Edelstahlgitter | CY15: 2016-08-08 | HQ15: 10 | HR15: 10 | HS15: 100 | HT15: 10
A16: =HFB!A48 -> S | B16: =IF(OR(F16>300,F16<50),,$F$11) -> 0 | C16: =VLOOKUP(A16,Matrix_Leistung_Düsenkästen,12,0)*VLOOKUP(A16,Matrix_Leistung_Düsenkästen,36,0)^VLOOKUP(A16,Matrix_Leistung_Düsenkästen,13,0) -> 633.9734171 | D16: =VLOOKUP(A16,Matrix_Leistung_Düsenkästen,26,0)*VLOOKUP(A16,Matrix_Leistung_Düsenkästen,36,0)^VLOOKUP(A16,Matrix_Leistung_Düsenkästen,27,0) -> 625.3716667 | E16: =VLOOKUP(A16,Akustik_Matrix,13,0)*(VLOOKUP(A16,Akustik_Matrix,16,0))^VLOOKUP(A16,Akustik_Matrix,14,0) -> 675.3805846 | F16: =E16 -> 675.3805846 | G16: =10*LOG($H$28/$H$27)+(VLOOKUP(A16,Akustik_Matrix,7,0)*LN(VLOOKUP(A16,Akustik_Matrix,16,0))+VLOOKUP(A16,Akustik_Matrix,8,0)) -> 53.61722318 | H16: =G16-6.5 -> 47.11722318 | I16: =IF(OR(F16>300,F16<50),"",IFERROR(ROUND(B16*1.2*1004.5*($F$6-$F$9)/3600,-1),0)) ->  | J16: =IF(OR(F16>300,F16<50),"",IF(A16=0,,IFERROR((T16*($F$7-$F$5))*W16,T16))) ->  | K16: =IFERROR((I16+J16),) -> 0 | L16: =IF(OR(F16>300,F16<50),"",IFERROR(ROUND(B16*1.2*1004.5*($K$6-$K$9)/3600,-1),)) ->  | M16: =IF(OR(F16>300,F16<50),"",IF(A16=0,,IFERROR((V16*($K$7-$K$5))*X16,V16))) ->  | N16: =IFERROR((L16+M16),) -> 0 | O16: =IFERROR(IF(J16=0,,$F$7-((J16/(4.2*$I$21/3.6)))),) -> 0 | P16: =IFERROR(IF(M16=0,,($K$7-((M16/(4.2*$I$22/3.6))))),) -> 0 | S16: =VLOOKUP(A16,Matrix_Leistung_Düsenkästen,19,0)*VLOOKUP(A16,Matrix_Leistung_Düsenkästen,36,0)^2+VLOOKUP(A16,Matrix_Leistung_Düsenkästen,20,0)*VLOOKUP(A16,Matrix_Leistung_Düsenkästen,36,0)+VLOOKUP(A16,Matrix_Leistung_Düsenkästen,21,0) -> 67.33647468 | T16: =($G$35*S16^$G$34+$H$35*S16^$H$34+$I$35*S16^$I$34+$J$35*S16^$J$34+$K$35*S16^$K$34+$L$35*S16^$L$34+$M$35)*S16 -> 81.66442061 | U16: =VLOOKUP(A16,Matrix_Leistung_Düsenkästen,33,0)*VLOOKUP(A16,Matrix_Leistung_Düsenkästen,36,0)^2+VLOOKUP(A16,Matrix_Leistung_Düsenkästen,34,0)*VLOOKUP(A16,Matrix_Leistung_Düsenkästen,36,0)+VLOOKUP(A16,Matrix_Leistung_Düsenkästen,35,0) -> 38.788199 | V16: =($G$40*U16^$G$39+$H$40*U16^$H$39+$I$40*U16^$I$39+$J$40*U16^$J$39+$K$40*U16^$K$39+$L$40*U16^$L$39+$M$40)*U16 -> 45.83341564 | W16: =IF($W$11=100,100,$AB$23) -> 1.007492955 | X16: =IF($X$11=100,100,$AH$23) -> 1 | Z16: 158.7240233 | AA16: 29.48720067 | AB16: =AA16/AA$21 -> 0.9744010166 | AC16: =Z16/Z$21 -> 0.7936201167 | AD16: 18.4 | AF16: 101.525135 | AG16: 29.71773233 | AH16: 0.999344026 | AI16: 1.01525135 | AJ16: 2.9 | AN16: 1072184 | AO16: =VLOOKUP(AN16,Duesenkaesten_Groeßen_Matrix,3) -> 33 | AP16: =CONCATENATE(""&AO16&" Düsen ") -> 33 Düsen | AQ16: 28.603288 | AR16: 15.981152 | AS16: 50 | AT16: =CONCATENATE(""&AS16&" Pa ") -> 50 Pa | AU16: 1.943006135 | BZ16: Akustik_Vpr2 | CA16: Akustik_P2 | CB16: Akustik_Lwa2 | DI16: 5 | DJ16: 3 | DL16: 4 | DO16: 1 | DQ16: 2 | HQ16: 10 | HR16: 100 | HS16: 100 | HT16: 100
A17: =HFB!A49 -> M | B17: =IF(OR(F17>300,F17<50),,$F$11) -> 0 | C17: =VLOOKUP(A17,Matrix_Leistung_Düsenkästen,12,0)*VLOOKUP(A17,Matrix_Leistung_Düsenkästen,36,0)^VLOOKUP(A17,Matrix_Leistung_Düsenkästen,13,0) -> 386.759286 | D17: =VLOOKUP(A17,Matrix_Leistung_Düsenkästen,26,0)*VLOOKUP(A17,Matrix_Leistung_Düsenkästen,36,0)^VLOOKUP(A17,Matrix_Leistung_Düsenkästen,27,0) -> 382.5251994 | E17: =VLOOKUP(A17,Akustik_Matrix,13,0)*(VLOOKUP(A17,Akustik_Matrix,16,0))^VLOOKUP(A17,Akustik_Matrix,14,0) -> 405.339187 | F17: =E17 -> 405.339187 | G17: =10*LOG($H$28/$H$27)+(VLOOKUP(A17,Akustik_Matrix,7,0)*LN(VLOOKUP(A17,Akustik_Matrix,16,0))+VLOOKUP(A17,Akustik_Matrix,8,0)) -> 48.10845625 | H17: =G17-6.5 -> 41.60845625 | I17: =IF(OR(F17>300,F17<50),"",IFERROR(ROUND(B17*1.2*1004.5*($F$6-$F$9)/3600,-1),0)) ->  | J17: =IF(OR(F17>300,F17<50),"",IF(A17=0,,IFERROR((T17*($F$7-$F$5))*W17,T17))) ->  | K17: =IFERROR((I17+J17),) -> 0 | L17: =IF(OR(F17>300,F17<50),"",IFERROR(ROUND(B17*1.2*1004.5*($K$6-$K$9)/3600,-1),)) ->  | M17: =IF(OR(F17>300,F17<50),"",IF(A17=0,,IFERROR((V17*($K$7-$K$5))*X17,V17))) ->  | N17: =IFERROR((L17+M17),) -> 0 | O17: =IFERROR(IF(J17=0,,$F$7-((J17/(4.2*$I$21/3.6)))),) -> 0 | P17: =IFERROR(IF(M17=0,,($K$7-((M17/(4.2*$I$22/3.6))))),) -> 0 | S17: =VLOOKUP(A17,Matrix_Leistung_Düsenkästen,19,0)*VLOOKUP(A17,Matrix_Leistung_Düsenkästen,36,0)^2+VLOOKUP(A17,Matrix_Leistung_Düsenkästen,20,0)*VLOOKUP(A17,Matrix_Leistung_Düsenkästen,36,0)+VLOOKUP(A17,Matrix_Leistung_Düsenkästen,21,0) -> 56.96640857 | T17: =($G$35*S17^$G$34+$H$35*S17^$H$34+$I$35*S17^$I$34+$J$35*S17^$J$34+$K$35*S17^$K$34+$L$35*S17^$L$34+$M$35)*S17 -> 69.7178058 | U17: =VLOOKUP(A17,Matrix_Leistung_Düsenkästen,33,0)*VLOOKUP(A17,Matrix_Leistung_Düsenkästen,36,0)^2+VLOOKUP(A17,Matrix_Leistung_Düsenkästen,34,0)*VLOOKUP(A17,Matrix_Leistung_Düsenkästen,36,0)+VLOOKUP(A17,Matrix_Leistung_Düsenkästen,35,0) -> 35.1926954 | V17: =($G$40*U17^$G$39+$H$40*U17^$H$39+$I$40*U17^$I$39+$J$40*U17^$J$39+$K$40*U17^$K$39+$L$40*U17^$L$39+$M$40)*U17 -> 42.09420226 | W17: =IF($W$11=100,100,$AB$23) -> 1.007492955 | X17: =IF($X$11=100,100,$AH$23) -> 1 | Z17: 198.9685353 | AA17: 30.33612633 | AB17: =AA17/AA$21 -> 1.002453664 | AC17: =Z17/Z$21 -> 0.9948426767 | AD17: 27.7 | AF17: 151.7741887 | AG17: 31.959669 | AH17: 1.07473558 | AI17: 1.517741887 | AJ17: 6.2 | AN17: 1072184 | AO17: =VLOOKUP(AN17,Duesenkaesten_Groeßen_Matrix,3) -> 33 | AP17: =CONCATENATE(""&AO17&" Düsen ") -> 33 Düsen | AQ17: 50.449884 | AR17: 31.25105167 | AS17: 150 | AT17: =CONCATENATE(""&AS17&" Pa ") -> 150 Pa | AU17: 2.015154504 | BY17: 42 | BZ17: 104.5420822 | CA17: 419 | CB17: 47.7 | CC17: 49 | CD17: M6;2552; Düsen 42 (30 / 12); mit Al-Lineargitter | HQ17: 10 | HR17: 10 | HS17: 100 | HT17: 10
A18: =HFB!A50 -> L | B18: =IF(OR(F18>300,F18<50),,$F$11) -> 127 | C18: =VLOOKUP(A18,Matrix_Leistung_Düsenkästen,12,0)*VLOOKUP(A18,Matrix_Leistung_Düsenkästen,36,0)^VLOOKUP(A18,Matrix_Leistung_Düsenkästen,13,0) -> 243.1812624 | D18: =VLOOKUP(A18,Matrix_Leistung_Düsenkästen,26,0)*VLOOKUP(A18,Matrix_Leistung_Düsenkästen,36,0)^VLOOKUP(A18,Matrix_Leistung_Düsenkästen,27,0) -> 241.118831 | E18: =VLOOKUP(A18,Akustik_Matrix,13,0)*(VLOOKUP(A18,Akustik_Matrix,16,0))^VLOOKUP(A18,Akustik_Matrix,14,0) -> 250.9818119 | F18: =E18 -> 250.9818119 | G18: =10*LOG($H$28/$H$27)+(VLOOKUP(A18,Akustik_Matrix,7,0)*LN(VLOOKUP(A18,Akustik_Matrix,16,0))+VLOOKUP(A18,Akustik_Matrix,8,0)) -> 42.93642245 | H18: =G18-6.5 -> 36.43642245 | I18: =IF(OR(F18>300,F18<50),"",IFERROR(ROUND(B18*1.2*1004.5*($F$6-$F$9)/3600,-1),0)) -> -340 | J18: =IF(OR(F18>300,F18<50),"",IF(A18=0,,IFERROR((T18*($F$7-$F$5))*W18,T18))) -> -590.7641512 | K18: =IFERROR((I18+J18),) -> -930.7641512 | L18: =IF(OR(F18>300,F18<50),"",IFERROR(ROUND(B18*1.2*1004.5*($K$6-$K$9)/3600,-1),)) -> -90 | M18: =IF(OR(F18>300,F18<50),"",IF(A18=0,,IFERROR((V18*($K$7-$K$5))*X18,V18))) -> 1556.826657 | N18: =IFERROR((L18+M18),) -> 1466.826657 | O18: =IFERROR(IF(J18=0,,$F$7-((J18/(4.2*$I$21/3.6)))),) -> 18.02547709 | P18: =IFERROR(IF(M18=0,,($K$7-((M18/(4.2*$I$22/3.6))))),) -> 46.65577151 | S18: =VLOOKUP(A18,Matrix_Leistung_Düsenkästen,19,0)*VLOOKUP(A18,Matrix_Leistung_Düsenkästen,36,0)^2+VLOOKUP(A18,Matrix_Leistung_Düsenkästen,20,0)*VLOOKUP(A18,Matrix_Leistung_Düsenkästen,36,0)+VLOOKUP(A18,Matrix_Leistung_Düsenkästen,21,0) -> 47.55348865 | T18: =($G$35*S18^$G$34+$H$35*S18^$H$34+$I$35*S18^$I$34+$J$35*S18^$J$34+$K$35*S18^$K$34+$L$35*S18^$L$34+$M$35)*S18 -> 58.63705032 | U18: =VLOOKUP(A18,Matrix_Leistung_Düsenkästen,33,0)*VLOOKUP(A18,Matrix_Leistung_Düsenkästen,36,0)^2+VLOOKUP(A18,Matrix_Leistung_Düsenkästen,34,0)*VLOOKUP(A18,Matrix_Leistung_Düsenkästen,36,0)+VLOOKUP(A18,Matrix_Leistung_Düsenkästen,35,0) -> 32.25515457 | V18: =($G$40*U18^$G$39+$H$40*U18^$H$39+$I$40*U18^$I$39+$J$40*U18^$J$39+$K$40*U18^$K$39+$L$40*U18^$L$39+$M$40)*U18 -> 38.92066643 | W18: =IF($W$11=100,100,$AB$23) -> 1.007492955 | X18: =IF($X$11=100,100,$AH$23) -> 1 | Z18: 325.3458537 | AA18: 31.22387433 | AB18: =AA18/AA$21 -> 1.03178919 | AC18: =Z18/Z$21 -> 1.626729268 | AD18: 67.5 | AF18: 199.2563427 | AG18: 32.91787767 | AH18: 1.106958096 | AI18: 1.992563427 | AJ18: 10.7 | AN18: 1072184 | AO18: =VLOOKUP(AN18,Duesenkaesten_Groeßen_Matrix,3) -> 33 | AP18: =CONCATENATE(""&AO18&" Düsen ") -> 33 Düsen | AQ18: 70.412696 | AR18: 45.25636933 | AS18: 300 | AT18: =CONCATENATE(""&AS18&" Pa ") -> 300 Pa | AU18: 2.219359957 | BY18: 42 | BZ18: 89.33314951 | CA18: 300 | CB18: 42.9 | CC18: 45 | CD18: M6;2553; Düsen 42 (30 / 12); mit Al-Lineargitter | HQ18: 20 | HR18: 10 | HS18: 110 | HT18: 10
A19: =HFB!A51 -> XL | B19: =IF(OR(F19>300,F19<50),,$F$11) -> 127 | C19: =VLOOKUP(A19,Matrix_Leistung_Düsenkästen,12,0)*VLOOKUP(A19,Matrix_Leistung_Düsenkästen,36,0)^VLOOKUP(A19,Matrix_Leistung_Düsenkästen,13,0) -> 180.5935944 | D19: =VLOOKUP(A19,Matrix_Leistung_Düsenkästen,26,0)*VLOOKUP(A19,Matrix_Leistung_Düsenkästen,36,0)^VLOOKUP(A19,Matrix_Leistung_Düsenkästen,27,0) -> 179.3482175 | E19: =VLOOKUP(A19,Akustik_Matrix,13,0)*(VLOOKUP(A19,Akustik_Matrix,16,0))^VLOOKUP(A19,Akustik_Matrix,14,0) -> 184.5609441 | F19: =E19 -> 184.5609441 | G19: =10*LOG($H$28/$H$27)+(VLOOKUP(A19,Akustik_Matrix,7,0)*LN(VLOOKUP(A19,Akustik_Matrix,16,0))+VLOOKUP(A19,Akustik_Matrix,8,0)) -> 39.61962303 | H19: =G19-6.5 -> 33.11962303 | I19: =IF(OR(F19>300,F19<50),"",IFERROR(ROUND(B19*1.2*1004.5*($F$6-$F$9)/3600,-1),0)) -> -340 | J19: =IF(OR(F19>300,F19<50),"",IF(A19=0,,IFERROR((T19*($F$7-$F$5))*W19,T19))) -> -528.8826695 | K19: =IFERROR((I19+J19),) -> -868.8826695 | L19: =IF(OR(F19>300,F19<50),"",IFERROR(ROUND(B19*1.2*1004.5*($K$6-$K$9)/3600,-1),)) -> -90 | M19: =IF(OR(F19>300,F19<50),"",IF(A19=0,,IFERROR((V19*($K$7-$K$5))*X19,V19))) -> 1496.188846 | N19: =IFERROR((L19+M19),) -> 1406.188846 | O19: =IFERROR(IF(J19=0,,$F$7-((J19/(4.2*$I$21/3.6)))),) -> 17.81331201 | P19: =IFERROR(IF(M19=0,,($K$7-((M19/(4.2*$I$22/3.6))))),) -> 47.17552417 | S19: =VLOOKUP(A19,Matrix_Leistung_Düsenkästen,19,0)*VLOOKUP(A19,Matrix_Leistung_Düsenkästen,36,0)^2+VLOOKUP(A19,Matrix_Leistung_Düsenkästen,20,0)*VLOOKUP(A19,Matrix_Leistung_Düsenkästen,36,0)+VLOOKUP(A19,Matrix_Leistung_Düsenkästen,21,0) -> 42.40829682 | T19: =($G$35*S19^$G$34+$H$35*S19^$H$34+$I$35*S19^$I$34+$J$35*S19^$J$34+$K$35*S19^$K$34+$L$35*S19^$L$34+$M$35)*S19 -> 52.49492483 | U19: =VLOOKUP(A19,Matrix_Leistung_Düsenkästen,33,0)*VLOOKUP(A19,Matrix_Leistung_Düsenkästen,36,0)^2+VLOOKUP(A19,Matrix_Leistung_Düsenkästen,34,0)*VLOOKUP(A19,Matrix_Leistung_Düsenkästen,36,0)+VLOOKUP(A19,Matrix_Leistung_Düsenkästen,35,0) -> 30.96245925 | V19: =($G$40*U19^$G$39+$H$40*U19^$H$39+$I$40*U19^$I$39+$J$40*U19^$J$39+$K$40*U19^$K$39+$L$40*U19^$L$39+$M$40)*U19 -> 37.40472116 | W19: =IF($W$11=100,100,$AB$23) -> 1.007492955 | X19: =IF($X$11=100,100,$AH$23) -> 1 | AF19: 250.331756 | AG19: 33.65616433 | AH19: 1.131785104 | AI19: 2.50331756 | AJ19: 16.7 | AQ19: V_Prim_2_kühlen | AR19: qk_2_kühlen | AS19: dP_2_kühlen | BY19: 42 | BZ19: 72.53579932 | CA19: 195 | CB19: 36.8 | CC19: 40.7 | CD19: M6;; Düsen 42 (30 / 12); mit Al-Lineargitter | CY19: 1072184 | CZ19: 27.8 | DA19: 50 | DB19: =(1.2*DW19/3600*1004.5*(DR19-ED19)-DI19/3600*4180*DL19)/(1004.5*(DQ19-DR19)/3600)/DW19 -> 2.331607362 | DC19: =(((4180/1004.5)*(DI19/(1.2*DW19))*(DL19))+(ED19-DR19))/(DR19-DQ19) -> 1.943006135 | DD19: =(1.2*DW19/3600*1004.5*(DR19-ED19)-DI19/3600*4180*DL19)/(1.2*1004.5*(DQ19-DR19)/3600)/DW19 -> 1.943006135 | DE19: 2016-08-04 | DI19: 198.0668493 | DJ19: 15.93366667 | DK19: 16.742 | DL19: -0.8083333333 | DM19: -185.8981697 | DN19: 15.981152 | DO19: 66.68185467 | DP19: 2.331265333 | DQ19: 27.566 | DR19: 21.49977767 | DW19: 28.603288 | DX19: 27.73333333 | DY19: 27.6 | DZ19: 27.36 | EA19: 22.10333333 | EB19: 21.16333333 | EC19: 21.23333333 | ED19: 29.12333333 | EE19: 27.97333333 | EI19: =(1.2*DW19/3600*1004.5*(DR19-ED19)-DI19/3600*4180*DL19)/(1004.5*(DQ19-DR19)/3600) -> 66.69163689 | EO19: 15.9 | EP19: 17 | EQ19: 67 | ER19: 0.1 | ES19: 27.6 | ET19: 40 | EU19: 0.25 | EV19: 0.25 | EW19: 16.15 | EX19: 80.4 | EY19: 198 | EZ19: 0.8 | FA19: 20.5 | FB19: 0 | FC19: =(EQ19*EW19+DW19*ED19)/(EQ19+DW19) -> 20.03145635 | FD19: =-EU19*1000 -> -250 | FE19: =DM19 -> -185.8981697 | FF19: =FE19/FD19 -> 0.7435926787 | FG19: =EU19*1000/(ES19-EO19) -> 21.36752137 | FH19: =FG19/FM19 -> 0.6475006475 | FI19: =DN19 -> 15.981152 | FJ19: =FI19/FM19 -> 0.4842773333 | FK19: =FI19/FG19 -> 0.7479179136 | FL19: =DW19 -> 28.603288 | FM19: 33 | FN19: =FL19/FM19 -> 0.866766303 | FO19: =FI19/FN19 -> 18.43767108 | FP19: 50 | HQ19: 20 | HR19: 100 | HS19: 110 | HT19: 100
Z20: wok | AF20: woh | AN20: 1072187 | AO20: =VLOOKUP(AN20,Duesenkaesten_Groeßen_Matrix,3) -> 42 | AP20: =CONCATENATE(""&AO20&" Düsen ") -> 42 Düsen | AQ20: 37.532281 | AR20: 19.059264 | AS20: 50 | AT20: =CONCATENATE(""&AS20&" Pa ") -> 50 Pa | AU20: 1.794433259 | BZ20: Akustik_Vpr3 | CA20: Akustik_P3 | CB20: Akustik_Lwa3 | CY20: 1072184 | CZ20: 27.8 | DA20: 150 | DB20: =(1.2*DW20/3600*1004.5*(DR20-ED20)-DI20/3600*4180*DL20)/(1004.5*(DQ20-DR20)/3600)/DW20 -> 2.418185405 | DC20: =(((4180/1004.5)*(DI20/(1.2*DW20))*(DL20))+(ED20-DR20))/(DR20-DQ20) -> 2.015154504 | DD20: =(1.2*DW20/3600*1004.5*(DR20-ED20)-DI20/3600*4180*DL20)/(1.2*1004.5*(DQ20-DR20)/3600)/DW20 -> 2.015154504 | DE20: 2016-08-04 | DI20: 199.0797403 | DJ20: 15.944 | DK20: 17.54133333 | DL20: -1.597333333 | DM20: -369.2145583 | DN20: 31.25105167 | DO20: 121.9851053 | DP20: 2.417946333 | DQ20: 27.75844467 | DR20: 21.184 | DW20: 50.449884 | DX20: 27.89333333 | DY20: 27.76333333 | DZ20: 27.62333333 | EA20: 21.16666667 | EB20: 21.11666667 | EC20: 21.27 | ED20: 29.79333333 | EE20: 27.98666667 | EI20: =(1.2*DW20/3600*1004.5*(DR20-ED20)-DI20/3600*4180*DL20)/(1004.5*(DQ20-DR20)/3600) -> 121.9971732 | EO20: 15.9 | EP20: 17.8 | EQ20: 122 | ER20: 0.2 | ES20: 27.8 | ET20: 40 | EU20: 0.43 | EV20: 0.43 | EW20: 16.85 | EX20: 77.8 | EY20: 199 | EZ20: 0.8 | FA20: 20.6 | FB20: 0 | FC20: =(EQ20*EW20+DW20*ED20)/(EQ20+DW20) -> 20.63654743 | FD20: =-EU20*1000 -> -430 | FE20: =DM20 -> -369.2145583 | FF20: =FE20/FD20 -> 0.8586385078 | FG20: =EU20*1000/(ES20-EO20) -> 36.13445378 | FH20: =FG20/FM20 -> 1.094983448 | FI20: =DN20 -> 31.25105167 | FJ20: =FI20/FM20 -> 0.9470015657 | FK20: =FI20/FG20 -> 0.8648546857 | FL20: =DW20 -> 50.449884 | FM20: 33 | FN20: =FL20/FM20 -> 1.528784364 | FO20: =FI20/FN20 -> 20.44176563 | FP20: 150 | HQ20: 20 | HR20: 10 | HS20: 110 | HT20: 10
B21: wOK= | F21: =wok -> 200 | G21: [kg/h] | H21: wK= | I21: =HFB!I53 -> 250 | J21: [kg/h] | L21: DpK = | M21: =AA38*$I$21^AB38*J28 -> 49.19854746 | N21: [kPa] | Z21: 200 | AA21: =Z30*Z21^Z29+AA30*Z21^AA29+AB30*Z21^AB29+AC30*Z21^AC29+AD30 -> 30.26187387 | AB21: =Z47*AC21^Z46+AA47*AC21^AA46+AB47*AC21^AB46+AC47*AC21^AC46+AD47 -> 1 | AC21: =wok/wok -> 1 | AD21: =AA38*Z21^AB38 -> 27.92230502 | AF21: 100 | AG21: =AF30*AF21^4+AG30*AF21^3+AH30*AF21^2+AI30*AF21+AJ30 -> 29.73723919 | AH21: =AF47*AI21^AF46+AG47*AI21^AG46+AH47*AI21^AH46+AI47*AI21^AI46+AJ47 -> 1 | AI21: =woh/woh -> 1 | AJ21: =AG38*AF21^AH38 -> 2.561828505 | AN21: 1072187 | AO21: =VLOOKUP(AN21,Duesenkaesten_Groeßen_Matrix,3) -> 42 | AP21: =CONCATENATE(""&AO21&" Düsen ") -> 42 Düsen | AQ21: 64.566884 | AR21: 36.34820167 | AS21: 150 | AT21: =CONCATENATE(""&AS21&" Pa ") -> 150 Pa | AU21: 1.830884263 | BY21: 52 | BZ21: 125.9071889 | CA21: 392 | CB21: 48.3 | CC21: 49.8 | CD21: M4;2547; Düsen 52 (30 / 22); mit Edelstahlgitter | CY21: 1072184 | CZ21: 27.8 | DA21: 300 | DB21: =(1.2*DW21/3600*1004.5*(DR21-ED21)-DI21/3600*4180*DL21)/(1004.5*(DQ21-DR21)/3600)/DW21 -> 2.663231948 | DC21: =(((4180/1004.5)*(DI21/(1.2*DW21))*(DL21))+(ED21-DR21))/(DR21-DQ21) -> 2.219359957 | DD21: =(1.2*DW21/3600*1004.5*(DR21-ED21)-DI21/3600*4180*DL21)/(1.2*1004.5*(DQ21-DR21)/3600)/DW21 -> 2.219359957 | DE21: 2016-08-04 | DI21: 199.2585247 | DJ21: 15.95466667 | DK21: 18.104 | DL21: -2.149333333 | DM21: -497.271474 | DN21: 45.25636933 | DO21: 187.541943 | DP21: 2.663468 | DQ21: 26.94255533 | DR21: 21.42766667 | DW21: 70.412696 | DX21: 26.91666667 | DY21: 26.76666667 | DZ21: 27.14666667 | EA21: 21.18666667 | EB21: 21.39666667 | EC21: 21.69666667 | ED21: 30.28 | EE21: 27.99333333 | EI21: =(1.2*DW21/3600*1004.5*(DR21-ED21)-DI21/3600*4180*DL21)/(1004.5*(DQ21-DR21)/3600) -> 187.5253416 | EO21: 16 | EP21: 18.4 | EQ21: 188 | ER21: 0.4 | ES21: 26.9 | ET21: 40 | EU21: 0.56 | EV21: 0.56 | EW21: 17.72 | EX21: 69.8 | EY21: 199 | EZ21: 0.8 | FA21: 20.6 | FB21: 1 | FC21: =(EQ21*EW21+DW21*ED21)/(EQ21+DW21) -> 21.14236847 | FD21: =-EU21*1000 -> -560 | FE21: =DM21 -> -497.271474 | FF21: =FE21/FD21 -> 0.887984775 | FG21: =EU21*1000/(ES21-EO21) -> 51.37614679 | FH21: =FG21/FM21 -> 1.556852933 | FI21: =DN21 -> 45.25636933 | FJ21: =FI21/FM21 -> 1.371405131 | FK21: =FI21/FG21 -> 0.8808829031 | FL21: =DW21 -> 70.412696 | FM21: 33 | FN21: =FL21/FM21 -> 2.133718061 | FO21: =FI21/FN21 -> 21.21009808 | FP21: 300 | HQ21: 30 | HR21: 10 | HS21: 120 | HT21: 10
B22: wOH= | F22: =woh -> 100 | G22: [kg/h] | H22: wH= | I22: =HFB!I54 -> 100 | J22: [kg/h] | L22: DpH = | M22: =(AH34/100^AI34)*I22^AI34 -> 1.8 | N22: [kPa] | O22: Eigenkonvektion Heizen QE: | Z22: wk | AF22: wh | AN22: 1072187 | AO22: =VLOOKUP(AN22,Duesenkaesten_Groeßen_Matrix,3) -> 42 | AP22: =CONCATENATE(""&AO22&" Düsen ") -> 42 Düsen | AQ22: 89.238556 | AR22: 49.78324433 | AS22: 300 | AT22: =CONCATENATE(""&AS22&" Pa ") -> 300 Pa | AU22: 1.950294244 | BY22: 52 | BZ22: 110.8819483 | CA22: 301 | CB22: 44.5 | CC22: 46.6 | CD22: M4;2548; Düsen 52 (30 / 22); mit Edelstahlgitter | HQ22: 30 | HR22: 100 | HS22: 120 | HT22: 100
H23: =IF(I21/F21<0.2,"Kaltwassermenge mind. 20% von Nennwassermenge!",0) -> 0 | O23: 175 W bei WWVL= 55°C | Z23: =I21 -> 250 | AA23: =Z30*Z23^Z29+AA30*Z23^AA29+AB30*Z23^AB29+AC30*Z23^AC29+AD30 -> 30.48862474 | AB23: =Z47*Wassermenge_Faktor_kühlen^Z46+AA47*Wassermenge_Faktor_kühlen^AA46+AB47*Wassermenge_Faktor_kühlen^AB46+AC47*Wassermenge_Faktor_kühlen^AC46+AD47 -> 1.007492955 | AC23: =Wassermenge_Faktor_kühlen -> 1.25 | AD23: =AA38*Z23^AB38 -> 42.04015627 | AF23: =I22 -> 100 | AG23: =AF30*AF23^4+AG30*AF23^3+AH30*AF23^2+AI30*AF23+AJ30 -> 29.73723919 | AH23: =AF47*Wassermenge_Faktor_heizen^AF46+AG47*Wassermenge_Faktor_heizen^AG46+AH47*Wassermenge_Faktor_heizen^AH46+AI47*Wassermenge_Faktor_heizen^AI46+AJ47 -> 1 | AI23: =Wassermenge_Faktor_heizen -> 1 | AJ23: =AG38*AF23^AH38 -> 2.561828505 | AQ23: V_Prim_3_kühlen | AR23: qk_3_kühlen | AS23: dP_3_kühlen | BC23: S | BD23: 60 | BY23: 52 | BZ23: 90.38975113 | CA23: 195 | CB23: 38.4 | CC23: 42 | CD23: M4;2549; Düsen 52 (30 / 22); mit Edelstahlgitter | CY23: 1072187 | CZ23: 28.3 | DA23: 50 | DB23: =(1.2*DW23/3600*1004.5*(DR23-ED23)-DI23/3600*4180*DL23)/(1004.5*(DQ23-DR23)/3600)/DW23 -> 2.15331991 | DC23: =(((4180/1004.5)*(DI23/(1.2*DW23))*(DL23))+(ED23-DR23))/(DR23-DQ23) -> 1.794433259 | DD23: =(1.2*DW23/3600*1004.5*(DR23-ED23)-DI23/3600*4180*DL23)/(1.2*1004.5*(DQ23-DR23)/3600)/DW23 -> 1.794433259 | DE23: 2016-08-04 | DI23: 200.516411 | DJ23: 15.92733333 | DK23: 16.86333333 | DL23: -0.936 | DM23: -217.9223973 | DN23: 19.059264 | DO23: 80.84454433 | DP23: 2.154000333 | DQ23: 27.36255567 | DR23: 21.74666667 | DW23: 37.532281 | DX23: 27.54 | DY23: 27.22 | DZ23: 27.33 | EA23: 22.14333333 | EB23: 21.57 | EC23: 21.52666667 | ED23: 29.01 | EE23: 27.89666667 | EI23: =(1.2*DW23/3600*1004.5*(DR23-ED23)-DI23/3600*4180*DL23)/(1004.5*(DQ23-DR23)/3600) -> 80.81900796 | EO23: 15.9 | EP23: 17.1 | EQ23: 81 | ER23: 0.2 | ES23: 27.4 | ET23: 40 | EU23: 0.29 | EV23: 0.29 | EW23: 16.3 | EX23: 78.8 | EY23: 201 | EZ23: 0.8 | FA23: 20.9 | FB23: 0 | FC23: =(EQ23*EW23+DW23*ED23)/(EQ23+DW23) -> 20.32451794 | FD23: =-EU23*1000 -> -290 | FE23: =DM23 -> -217.9223973 | FF23: =FE23/FD23 -> 0.7514565425 | FG23: =EU23*1000/(ES23-EO23) -> 25.2173913 | FH23: =FG23/FM23 -> 0.6004140787 | FI23: =DN23 -> 19.059264 | FJ23: =FI23/FM23 -> 0.453792 | FK23: =FI23/FG23 -> 0.7557984 | FL23: =DW23 -> 37.532281 | FM23: 42 | FN23: =FL23/FM23 -> 0.8936257381 | FO23: =FI23/FN23 -> 21.32801596 | FP23: 50 | HQ23: 30 | HR23: 10 | HS23: 120 | HT23: 10
H24: =IF(I22/F22<0.4,"Heizwassermenge mind. 40% von Nennwassermenge!",0) -> 0 | O24: (bei tR = 20 °C und Nennwasserm.) | Z24: y = qk x = wk | AF24: y = qh x = wh | AN24: 1072190 | AO24: =VLOOKUP(AN24,Duesenkaesten_Groeßen_Matrix,3) -> 52 | AP24: =CONCATENATE(""&AO24&" Düsen ") -> 52 Düsen | AQ24: 46.038504 | AR24: 19.90665033 | AS24: 50 | AT24: =CONCATENATE(""&AS24&" Pa ") -> 50 Pa | AU24: 1.403428775 | BZ24: Akustik_Vpr4 | CA24: Akustik_P4 | CB24: Akustik_Lwa4 | CY24: 1072187 | CZ24: 28.7 | DA24: 150 | DB24: =(1.2*DW24/3600*1004.5*(DR24-ED24)-DI24/3600*4180*DL24)/(1004.5*(DQ24-DR24)/3600)/DW24 -> 2.197061115 | DC24: =(((4180/1004.5)*(DI24/(1.2*DW24))*(DL24))+(ED24-DR24))/(DR24-DQ24) -> 1.830884263 | DD24: =(1.2*DW24/3600*1004.5*(DR24-ED24)-DI24/3600*4180*DL24)/(1.2*1004.5*(DQ24-DR24)/3600)/DW24 -> 1.830884263 | DE24: 2016-08-03 | DI24: 202.019715 | DJ24: 15.98933333 | DK24: 17.75466667 | DL24: -1.765333333 | DM24: -414.0869063 | DN24: 36.34820167 | DO24: 141.876346 | DP24: 2.197354667 | DQ24: 27.382 | DR24: 21.885778 | DW24: 64.566884 | DX24: 27.53 | DY24: 27 | DZ24: 27.61 | EA24: 21.80666667 | EB24: 22.01666667 | EC24: 21.83 | ED24: 30.97666667 | EE24: 29.04 | EI24: =(1.2*DW24/3600*1004.5*(DR24-ED24)-DI24/3600*4180*DL24)/(1004.5*(DQ24-DR24)/3600) -> 141.8573902 | EO24: 16 | EP24: 18 | EQ24: 142 | ER24: 0.3 | ES24: 27.4 | ET24: 40 | EU24: 0.47 | EV24: 0.47 | EW24: 17.18 | EX24: 74.4 | EY24: 202 | EZ24: 0.8 | FA24: 21.1 | FB24: 0 | FC24: =(EQ24*EW24+DW24*ED24)/(EQ24+DW24) -> 21.49244234 | FD24: =-EU24*1000 -> -470 | FE24: =DM24 -> -414.0869063 | FF24: =FE24/FD24 -> 0.8810359709 | FG24: =EU24*1000/(ES24-EO24) -> 41.22807018 | FH24: =FG24/FM24 -> 0.9816207185 | FI24: =DN24 -> 36.34820167 | FJ24: =FI24/FM24 -> 0.865433373 | FK24: =FI24/FG24 -> 0.8816372319 | FL24: =DW24 -> 64.566884 | FM24: 42 | FN24: =FL24/FM24 -> 1.537306762 | FO24: =FI24/FN24 -> 23.64407844 | FP24: 150 | HQ24: 40 | HR24: 10 | HS24: 130 | HT24: 10
AN25: 1072190 | AO25: =VLOOKUP(AN25,Duesenkaesten_Groeßen_Matrix,3) -> 52 | AP25: =CONCATENATE(""&AO25&" Düsen ") -> 52 Düsen | AQ25: 79.798111 | AR25: 38.60197233 | AS25: 150 | AT25: =CONCATENATE(""&AS25&" Pa ") -> 150 Pa | AU25: 1.574171452 | BY25: 60 | BZ25: 93.49321919 | CA25: 156 | CB25: 36.3 | CC25: 41.3 | CD25: M1;2538; Düsen 60 (30 / 30); mit Edelstahlgitter | CY25: 1072187 | CZ25: 28.5 | DA25: 300 | DB25: =(1.2*DW25/3600*1004.5*(DR25-ED25)-DI25/3600*4180*DL25)/(1004.5*(DQ25-DR25)/3600)/DW25 -> 2.340353093 | DC25: =(((4180/1004.5)*(DI25/(1.2*DW25))*(DL25))+(ED25-DR25))/(DR25-DQ25) -> 1.950294244 | DD25: =(1.2*DW25/3600*1004.5*(DR25-ED25)-DI25/3600*4180*DL25)/(1.2*1004.5*(DQ25-DR25)/3600)/DW25 -> 1.950294244 | DE25: 2016-08-03 | DI25: 201.9129747 | DJ25: 15.98566667 | DK25: 18.395 | DL25: -2.409333333 | DM25: -564.8564493 | DN25: 49.78324433 | DO25: 208.8751863 | DP25: 2.340638333 | DQ25: 27.33222233 | DR25: 22.219889 | DW25: 89.238556 | DX25: 27.18333333 | DY25: 27.16 | DZ25: 27.65333333 | EA25: 21.96333333 | EB25: 22.46333333 | EC25: 22.23333333 | ED25: 31.15333333 | EE25: 28.95 | EI25: =(1.2*DW25/3600*1004.5*(DR25-ED25)-DI25/3600*4180*DL25)/(1004.5*(DQ25-DR25)/3600) -> 208.8497306 | EO25: 16 | EP25: 18.7 | EQ25: 209 | ER25: 0.4 | ES25: 27.3 | ET25: 40 | EU25: 0.63 | EV25: 0.63 | EW25: 18.04 | EX25: 70 | EY25: 202 | EZ25: 0.8 | FA25: 21 | FB25: 1 | FC25: =(EQ25*EW25+DW25*ED25)/(EQ25+DW25) -> 21.96375468 | FD25: =-EU25*1000 -> -630 | FE25: =DM25 -> -564.8564493 | FF25: =FE25/FD25 -> 0.8965975386 | FG25: =EU25*1000/(ES25-EO25) -> 55.75221239 | FH25: =FG25/FM25 -> 1.327433628 | FI25: =DN25 -> 49.78324433 | FJ25: =FI25/FM25 -> 1.185315341 | FK25: =FI25/FG25 -> 0.8929375571 | FL25: =DW25 -> 89.238556 | FM25: 42 | FN25: =FL25/FM25 -> 2.124727524 | FO25: =FI25/FN25 -> 23.43041344 | FP25: 300 | HQ25: 40 | HR25: 100 | HS25: 130 | HT25: 100
G26: BG | H26: WT | I26: Verhältnis | J26: korrektur kühlen (Eurocoil) | K26: korrektur - heizen (Eurocoil) | Z26: y = | AA26: axn+bx(n-1)+...+nx+m | AF26: y = | AG26: axn+bx(n-1)+...+nx+m | AN26: 1072190 | AO26: =VLOOKUP(AN26,Duesenkaesten_Groeßen_Matrix,3) -> 52 | AP26: =CONCATENATE(""&AO26&" Düsen ") -> 52 Düsen | AQ26: 110.374885 | AR26: 51.937211 | AS26: 300 | AT26: =CONCATENATE(""&AS26&" Pa ") -> 300 Pa | AU26: 1.606350583 | BY26: 60 | BZ26: 114.342701 | CA26: 241 | CB26: 42.3 | CC26: 48 | CD26: M1;2539; Düsen 60 (30 / 30); mit Edelstahlgitter | HQ26: 40 | HR26: 10 | HS26: 130 | HT26: 10
G27: BG 800 | H27: 820 | I27: =H27/$H$27 -> 1 | J27: =1 -> 1 | K27: =1 -> 1 | Z27: Polynom | AA27: 3 | AB27: Ordnung | AF27: Polynom | AG27: 4 | AH27: Ordnung | AQ27: V_Prim_4_kühlen | AR27: qk_4_kühlen | AS27: dP_4_kühlen | BY27: 60 | BZ27: 115.2798326 | CA27: 240 | CB27: 42.3 | CC27: 45.4 | CD27: M1;2540; Düsen 60 (30 / 30); mit Edelstahlgitter | CY27: 1072190 | CZ27: 28.7 | DA27: 50 | DB27: =(1.2*DW27/3600*1004.5*(DR27-ED27)-DI27/3600*4180*DL27)/(1004.5*(DQ27-DR27)/3600)/DW27 -> 1.684114529 | DC27: =(((4180/1004.5)*(DI27/(1.2*DW27))*(DL27))+(ED27-DR27))/(DR27-DQ27) -> 1.403428775 | DD27: =(1.2*DW27/3600*1004.5*(DR27-ED27)-DI27/3600*4180*DL27)/(1.2*1004.5*(DQ27-DR27)/3600)/DW27 -> 1.403428775 | DE27: 2016-08-03 | DI27: 202.0863747 | DJ27: 15.97533333 | DK27: 17.016 | DL27: -1.040666667 | DM27: -244.1910097 | DN27: 19.90665033 | DO27: 77.51354833 | DP27: 1.683668 | DQ27: 28.24200033 | DR27: 22.651667 | DW27: 46.038504 | DX27: 28.45 | DY27: 28.14333333 | DZ27: 28.13 | EA27: 22.63666667 | EB27: 22.36 | EC27: 22.96 | ED27: 30.64666667 | EE27: 29.03666667 | EI27: =(1.2*DW27/3600*1004.5*(DR27-ED27)-DI27/3600*4180*DL27)/(1004.5*(DQ27-DR27)/3600) -> 77.5341135 | EL27: 240 | EN27: S | EO27: 16 | EP27: 17.3 | EQ27: 77 | ER27: 0.2 | ES27: 28.2 | ET27: 40 | EU27: 0.3 | EV27: 0.3 | EW27: 16.38 | EX27: 82.1 | EY27: 202 | EZ27: 0.8 | FA27: 21.1 | FB27: 0 | FC27: =(EQ27*EW27+DW27*ED27)/(EQ27+DW27) -> 21.7182963 | FD27: =-EU27*1000 -> -300 | FE27: =DM27 -> -244.1910097 | FF27: =FE27/FD27 -> 0.8139700322 | FG27: =EU27*1000/(ES27-EO27) -> 24.59016393 | FH27: =FG27/FM27 -> 0.472887768 | FI27: =DN27 -> 19.90665033 | FJ27: =FI27/FM27 -> 0.3828201987 | FK27: =FI27/FG27 -> 0.8095371136 | FL27: =DW27 -> 46.038504 | FM27: 52 | FN27: =FL27/FM27 -> 0.8853558462 | FO27: =FI27/FN27 -> 22.48434956 | FP27: 50 | HQ27: 50 | HR27: 10 | HS27: 140 | HT27: 10
G28: BG 1000 | H28: 1020 | I28: =H28/$H$27 -> 1.243902439 | J28: =Druckverlust_Wasser!G4 -> 1.170275085 | K28: =Druckverlust_Wasser!H4 -> 1.160440361 | O28: =175*I28 -> 217.6829268 | Z28: a = | AA28: b = | AB28: c = | AC28: d = | AD28: m = | AE28: R2 = | AF28: a = | AG28: b = | AH28: c = | AI28: d = | AJ28: e = | AK28: R2 = | AM28: Keine Messungen -> Extrapolierte Werte (mit höherer Düsenzahl maximale Leistung aus Diagramm) | AN28: 1072193 | AO28: 60 | AP28: =CONCATENATE(""&AO28&" Düsen ") -> 60 Düsen | AQ28: =AQ60 -> 55.320572 | AR28: =-0.00566*60^2 + 0.68029*60 -> 20.4414 | AS28: 50 | AT28: =CONCATENATE(""&AS28&" Pa ") -> 50 Pa | BY28: 60 | BZ28: 133.6537843 | CA28: 328 | CB28: 46.7 | CC28: 48.9 | CD28: M1;2541; Düsen 60 (30 / 30); mit Edelstahlgitter | CY28: 1072190 | CZ28: 28.7 | DA28: 150 | DB28: =(1.2*DW28/3600*1004.5*(DR28-ED28)-DI28/3600*4180*DL28)/(1004.5*(DQ28-DR28)/3600)/DW28 -> 1.889005742 | DC28: =(((4180/1004.5)*(DI28/(1.2*DW28))*(DL28))+(ED28-DR28))/(DR28-DQ28) -> 1.574171452 | DD28: =(1.2*DW28/3600*1004.5*(DR28-ED28)-DI28/3600*4180*DL28)/(1.2*1004.5*(DQ28-DR28)/3600)/DW28 -> 1.574171452 | DE28: 2016-08-03 | DI28: 202.1124377 | DJ28: 15.972 | DK28: 17.90133333 | DL28: -1.929333333 | DM28: -452.7665397 | DN28: 38.60197233 | DO28: 150.727441 | DP28: 1.888859667 | DQ28: 27.701 | DR28: 22.472222 | DW28: 79.798111 | DX28: 27.9 | DY28: 27.51 | DZ28: 27.69 | EA28: 22.22 | EB28: 22.18666667 | EC28: 23.01 | ED28: 31.18666667 | EE28: 29.03 | EI28: =(1.2*DW28/3600*1004.5*(DR28-ED28)-DI28/3600*4180*DL28)/(1004.5*(DQ28-DR28)/3600) -> 150.7390899 | EO28: 16 | EP28: 18.2 | EQ28: 151 | ER28: 0.3 | ES28: 27.7 | ET28: 40 | EU28: 0.51 | EV28: 0.51 | EW28: 17.33 | EX28: 74.9 | EY28: 202 | EZ28: 0.8 | FA28: 21.1 | FB28: 1 | FC28: =(EQ28*EW28+DW28*ED28)/(EQ28+DW28) -> 22.12092233 | FD28: =-EU28*1000 -> -510 | FE28: =DM28 -> -452.7665397 | FF28: =FE28/FD28 -> 0.8877775288 | FG28: =EU28*1000/(ES28-EO28) -> 43.58974359 | FH28: =FG28/FM28 -> 0.8382642998 | FI28: =DN28 -> 38.60197233 | FJ28: =FI28/FM28 -> 0.7423456218 | FK28: =FI28/FG28 -> 0.8855746594 | FL28: =DW28 -> 79.798111 | FM28: 52 | FN28: =FL28/FM28 -> 1.534579058 | FO28: =FI28/FN28 -> 25.15476289 | FP28: 150 | HQ28: 50 | HR28: 100 | HS28: 140 | HT28: 100
G29: BG 630 | H29: 590 | I29: =H29/$H$27 -> 0.7195121951 | J29: =Druckverlust_Wasser!G5 -> 0.8023054378 | K29: =Druckverlust_Wasser!H5 -> 0.8194232081 | Z29: 4 | AA29: 3 | AB29: 2 | AC29: 1 | AD29: 0 | AF29: 4 | AG29: 3 | AH29: 2 | AI29: 1 | AN29: 1072193 | AO29: 60 | AP29: =CONCATENATE(""&AO29&" Düsen ") -> 60 Düsen | AQ29: =AQ62 -> 95.011117 | AR29: =-0.01105*60^2 + 1.31977*60 -> 39.4062 | AS29: 150 | AT29: =CONCATENATE(""&AS29&" Pa ") -> 150 Pa | CY29: 1072190 | CZ29: 28.6 | DA29: 300 | DB29: =(1.2*DW29/3600*1004.5*(DR29-ED29)-DI29/3600*4180*DL29)/(1004.5*(DQ29-DR29)/3600)/DW29 -> 1.9276207 | DC29: =(((4180/1004.5)*(DI29/(1.2*DW29))*(DL29))+(ED29-DR29))/(DR29-DQ29) -> 1.606350583 | DD29: =(1.2*DW29/3600*1004.5*(DR29-ED29)-DI29/3600*4180*DL29)/(1.2*1004.5*(DQ29-DR29)/3600)/DW29 -> 1.606350583 | DE29: 2016-08-03 | DI29: 202.4224537 | DJ29: 15.989 | DK29: 18.58766667 | DL29: -2.598666667 | DM29: -610.7664487 | DN29: 51.937211 | DO29: 212.753901 | DP29: 1.927557 | DQ29: 27.74866667 | DR29: 22.77288867 | DW29: 110.374885 | DX29: 27.83333333 | DY29: 27.63333333 | DZ29: 27.77666667 | EA29: 22.33666667 | EB29: 22.56666667 | EC29: 23.41666667 | ED29: 31.30666667 | EE29: 28.95333333 | EI29: =(1.2*DW29/3600*1004.5*(DR29-ED29)-DI29/3600*4180*DL29)/(1004.5*(DQ29-DR29)/3600) -> 212.7609131 | EO29: 16 | EP29: 18.8 | EQ29: 213 | ER29: 0.4 | ES29: 27.7 | ET29: 40 | EU29: 0.66 | EV29: 0.66 | EW29: 18.15 | EX29: 71.1 | EY29: 202 | EZ29: 0.8 | FA29: 21.1 | FB29: 1 | FC29: =(EQ29*EW29+DW29*ED29)/(EQ29+DW29) -> 22.64065663 | FD29: =-EU29*1000 -> -660 | FE29: =DM29 -> -610.7664487 | FF29: =FE29/FD29 -> 0.9254037101 | FG29: =EU29*1000/(ES29-EO29) -> 56.41025641 | FH29: =FG29/FM29 -> 1.084812623 | FI29: =DN29 -> 51.937211 | FJ29: =FI29/FM29 -> 0.9987925192 | FK29: =FI29/FG29 -> 0.9207051041 | FL29: =DW29 -> 110.374885 | FM29: 52 | FN29: =FL29/FM29 -> 2.122593942 | FO29: =FI29/FN29 -> 24.46874551 | FP29: 300 | HQ29: 50 | HR29: 10 | HS29: 140 | HT29: 10
Y30: Exponent | Z30: 0 | AA30: =LINEST(WM_Roh_qk,WM_Roh_wk^{0,1,2,3},0,0) -> 9.110256216e-07 | AB30: -0.0006642636947 | AC30: 0.1645222726 | AD30: 16.63976216 | AE30: =RSQ(WM_Roh_qk,TREND(WM_Roh_qk,WM_Roh_wk^{0,1,2,3},WM_Roh_wk^{0,1,2,3})) -> 0.9968576676 | AF30: =LINEST(WM_Roh_qh,WM_Roh_wh^{0,1,2,3,4},0,0) -> -1.849318093e-08 | AG30: 1.35611032e-05 | AH30: -0.003747095357 | AI30: 0.4846233809 | AJ30: 7.03406956 | AK30: =RSQ(WM_Roh_qh,TREND(WM_Roh_qh,WM_Roh_wh^{0,1,2,3,4},WM_Roh_wh^{0,1,2,3,4})) -> 0.9998530946 | AN30: 1072193 | AO30: 60 | AP30: =CONCATENATE(""&AO30&" Düsen ") -> 60 Düsen | AQ30: =AQ65 -> 131.214168 | AR30: =-0.01944*52^2 + 2.00777*52 -> 51.83828 | AS30: 300 | AT30: =CONCATENATE(""&AS30&" Pa ") -> 300 Pa | HQ30: 60 | HR30: 10 | HS30: 160 | HT30: 10
G31: Vprimär BG800 | AF31: dp_H an HFBsf angepasst | AG31: BG | AH31: a | AI31: b | HQ31: 60 | HR31: 100 | HS31: 160 | HT31: 100
G32: =F11/I28 -> 102.0980392 | AF32: 2025-01-13 | AG32: 630 | AH32: 1.3 | AI32: 1.802884 | AJ32: (1,3/(100^1,802884))*m_w^1,802884 | HQ32: 60 | HR32: 10 | HS32: 160 | HT32: 10
G33: Korrekturfaktor für BG 630 - Kühlen | AG33: 800 | AH33: 1.6 | AI33: 1.788496 | AJ33: (1,6/(100^1,788496))*m_w^1,788496 | HQ33: 70 | HR33: 10 | HS33: 170 | HT33: 10
G34: 6 | H34: 5 | I34: 4 | J34: 3 | K34: 2 | L34: 1 | M34: 0 | Z34: y = Druck dp [kPa] x = Wassermenge wk | AF34: y = Druck dp [kPa] x = Wassermenge wk | AG34: 1000 | AH34: 1.8 | AI34: 1.769775 | AJ34: (1,8/(100^1,769775))*m_w^1,769775 | HQ34: 70 | HR34: 100 | HS34: 170 | HT34: 100
G35: =LINEST('Eurocoil_kühlen_26°C (2)'!$V$12:$V$79,'Eurocoil_kühlen_26°C (2)'!$S$12:$S$79^{0,1,2,3,4,5,6},0,0) -> 5.087661046e-13 | H35: -1.352962921e-10 | I35: 1.416026086e-08 | J35: -7.453615757e-07 | K35: 1.707675287e-05 | L35: -0.0008866878604 | M35: 1.271383081 | HQ35: 70 | HR35: 10 | HS35: 170 | HT35: 10
Z36: y = | AA36: mxb | AF36: y = | AG36: mxb | HQ36: 80 | HR36: 10 | HS36: 180 | HT36: 10
AA37: m | AB37: b | AC37: R2 | AG37: m | AH37: b | AI37: R2 | HQ37: 80 | HR37: 100 | HS37: 180 | HT37: 100
G38: Korrekturfaktor für BG 630 - Heizen | AA38: =INDEX(LOGEST(WM_kPa_kühlen,LN(WM_Roh_wk),,TRUE),1,2) -> 0.001683972432 | AB38: =LN(INDEX(LOGEST(WM_kPa_kühlen,LN(WM_Roh_wk),,TRUE),1,1)) -> 1.83379456 | AC38: =INDEX(LOGEST(WM_kPa_kühlen,LN(WM_Roh_wk),,TRUE),3,1) -> 0.999807125 | AG38: =INDEX(LOGEST(WM_kPa_heizen,LN(WM_Roh_wh),,TRUE),1,2) -> 0.0001357446827 | AH38: =LN(INDEX(LOGEST(WM_kPa_heizen,LN(WM_Roh_wh),,TRUE),1,1)) -> 2.137913613 | AI38: =INDEX(LOGEST(WM_kPa_heizen,LN(WM_Roh_wh),,TRUE),3,1) -> 0.9965449264 | HQ38: 80 | HR38: 10 | HS38: 180 | HT38: 10
G39: 6 | H39: 5 | I39: 4 | J39: 3 | K39: 2 | L39: 1 | M39: 0 | FC39: =2/7 -> 0.2857142857 | HQ39: 90 | HR39: 10 | HS39: 190 | HT39: 10
G40: =LINEST(Eurocoil_heizen_26°C!U12:U89,Eurocoil_heizen_26°C!R12:R89^{0,1,2,3,4,5,6},0,0) -> 7.377220529e-09 | H40: -1.006273244e-06 | I40: 5.359313773e-05 | J40: -0.00141083489 | K40: 0.01926373376 | L40: -0.1343594771 | M40: 1.657979674 | HQ40: 90 | HR40: 100 | HS40: 190 | HT40: 100
Z41: y = qk in % x = wk in % | AF41: y = qh in % x = wh in % | HQ41: 90 | HR41: 10 | HS41: 190 | HT41: 10
H42: BG 800 | I42: BG 630 | J42: BG1000 | HQ42: 100 | HR42: 10 | HS42: 210 | HT42: 10
H43: Düsen | I43: Düsen | J43: Düsen | Z43: y = | AA43: axn+bx(n-1)+...+nx+m | AF43: y = | AG43: axn+bx(n-1)+...+nx+m | HQ43: 100 | HR43: 100 | HS43: 210 | HT43: 100
G44: S | H44: 33 | I44: =H44*$I$29 -> 23.74390244 | J44: =H44*$I$28 -> 41.04878049 | Z44: Polynom | AA44: 3 | AB44: Ordnung | AF44: Polynom | AG44: 4 | AH44: Ordnung | HQ44: 100 | HR44: 10 | HS44: 210 | HT44: 10
G45: M | H45: 42 | I45: =H45*$I$29 -> 30.2195122 | J45: =H45*$I$28 -> 52.24390244 | Z45: a = | AA45: b = | AB45: c = | AC45: d = | AD45: m = | AE45: R2 = | AF45: a = | AG45: b = | AH45: c = | AI45: d = | AJ45: e = | AK45: R2 = | AN45: Heizen - ohne Schieber, mit Al-Lineargitter (Tabellenblatt: 26-07-2016_Heizen) | HQ45: 150 | HR45: 10 | HS45: 220 | HT45: 10
